Workbook

Sheet Log_working_2-way (hidden)
A1: Target overround | B1: 0 | D1: 'c'
A2: Accuracy, decimal places | B2: 10 | D2: =solve_for_d('True_Odds_Calculator_2-way'!A3,'True_Odds_Calculator_2-way'!#REF!,'True_Odds_Calculator_2-way'!B3,'Log_working_2-way'!B$1,'Log_working_2-way'!B$2) -> 1.057245223
D3: =solve_for_d('True_Odds_Calculator_2-way'!A4,'True_Odds_Calculator_2-way'!#REF!,'True_Odds_Calculator_2-way'!B4,'Log_working_2-way'!B$1,'Log_working_2-way'!B$2) -> 1.059064279
D4: =solve_for_d('True_Odds_Calculator_2-way'!A5,'True_Odds_Calculator_2-way'!#REF!,'True_Odds_Calculator_2-way'!B5,'Log_working_2-way'!B$1,'Log_working_2-way'!B$2) -> 1.064610674
D5: =solve_for_d('True_Odds_Calculator_2-way'!A6,'True_Odds_Calculator_2-way'!#REF!,'True_Odds_Calculator_2-way'!B6,'Log_working_2-way'!B$1,'Log_working_2-way'!B$2) -> 1.070021064
D6: =solve_for_d('True_Odds_Calculator_2-way'!A7,'True_Odds_Calculator_2-way'!#REF!,'True_Odds_Calculator_2-way'!B7,'Log_working_2-way'!B$1,'Log_working_2-way'!B$2) -> 1.046365252
D7: =solve_for_d('True_Odds_Calculator_2-way'!A8,'True_Odds_Calculator_2-way'!#REF!,'True_Odds_Calculator_2-way'!B8,'Log_working_2-way'!B$1,'Log_working_2-way'!B$2) -> 1.097462938
D8: =solve_for_d('True_Odds_Calculator_2-way'!A9,'True_Odds_Calculator_2-way'!#REF!,'True_Odds_Calculator_2-way'!B9,'Log_working_2-way'!B$1,'Log_working_2-way'!B$2) -> 1.064610674
D9: =solve_for_d('True_Odds_Calculator_2-way'!A10,'True_Odds_Calculator_2-way'!#REF!,'True_Odds_Calculator_2-way'!B10,'Log_working_2-way'!B$1,'Log_working_2-way'!B$2) -> 1.050722269
D10: =solve_for_d('True_Odds_Calculator_2-way'!A11,'True_Odds_Calculator_2-way'!#REF!,'True_Odds_Calculator_2-way'!B11,'Log_working_2-way'!B$1,'Log_working_2-way'!B$2) -> 1.046128695
D11: =solve_for_d('True_Odds_Calculator_2-way'!A12,'True_Odds_Calculator_2-way'!#REF!,'True_Odds_Calculator_2-way'!B12,'Log_working_2-way'!B$1,'Log_working_2-way'!B$2) -> 1.042708497
D12: =solve_for_d('True_Odds_Calculator_2-way'!A13,'True_Odds_Calculator_2-way'!#REF!,'True_Odds_Calculator_2-way'!B13,'Log_working_2-way'!B$1,'Log_working_2-way'!B$2) -> 
D13: =solve_for_d('True_Odds_Calculator_2-way'!A14,'True_Odds_Calculator_2-way'!#REF!,'True_Odds_Calculator_2-way'!B14,'Log_working_2-way'!B$1,'Log_working_2-way'!B$2) -> 
D14: =solve_for_d('True_Odds_Calculator_2-way'!A15,'True_Odds_Calculator_2-way'!#REF!,'True_Odds_Calculator_2-way'!B15,'Log_working_2-way'!B$1,'Log_working_2-way'!B$2) -> 
D15: =solve_for_d('True_Odds_Calculator_2-way'!A16,'True_Odds_Calculator_2-way'!#REF!,'True_Odds_Calculator_2-way'!B16,'Log_working_2-way'!B$1,'Log_working_2-way'!B$2) -> 
D16: =solve_for_d('True_Odds_Calculator_2-way'!A17,'True_Odds_Calculator_2-way'!#REF!,'True_Odds_Calculator_2-way'!B17,'Log_working_2-way'!B$1,'Log_working_2-way'!B$2) -> 
D17: =solve_for_d('True_Odds_Calculator_2-way'!A18,'True_Odds_Calculator_2-way'!#REF!,'True_Odds_Calculator_2-way'!B18,'Log_working_2-way'!B$1,'Log_working_2-way'!B$2) -> 
D18: =solve_for_d('True_Odds_Calculator_2-way'!A19,'True_Odds_Calculator_2-way'!#REF!,'True_Odds_Calculator_2-way'!B19,'Log_working_2-way'!B$1,'Log_working_2-way'!B$2) -> 
D19: =solve_for_d('True_Odds_Calculator_2-way'!A20,'True_Odds_Calculator_2-way'!#REF!,'True_Odds_Calculator_2-way'!B20,'Log_working_2-way'!B$1,'Log_working_2-way'!B$2) -> 
D20: =solve_for_d('True_Odds_Calculator_2-way'!A21,'True_Odds_Calculator_2-way'!#REF!,'True_Odds_Calculator_2-way'!B21,'Log_working_2-way'!B$1,'Log_working_2-way'!B$2) -> 
D21: =solve_for_d('True_Odds_Calculator_2-way'!A22,'True_Odds_Calculator_2-way'!#REF!,'True_Odds_Calculator_2-way'!B22,'Log_working_2-way'!B$1,'Log_working_2-way'!B$2) -> 
D22: =solve_for_d('True_Odds_Calculator_2-way'!A23,'True_Odds_Calculator_2-way'!#REF!,'True_Odds_Calculator_2-way'!B23,'Log_working_2-way'!B$1,'Log_working_2-way'!B$2) -> 
D23: =solve_for_d('True_Odds_Calculator_2-way'!A24,'True_Odds_Calculator_2-way'!#REF!,'True_Odds_Calculator_2-way'!B24,'Log_working_2-way'!B$1,'Log_working_2-way'!B$2) -> 
D24: =solve_for_d('True_Odds_Calculator_2-way'!A25,'True_Odds_Calculator_2-way'!#REF!,'True_Odds_Calculator_2-way'!B25,'Log_working_2-way'!B$1,'Log_working_2-way'!B$2) -> 
D25: =solve_for_d('True_Odds_Calculator_2-way'!A26,'True_Odds_Calculator_2-way'!#REF!,'True_Odds_Calculator_2-way'!B26,'Log_working_2-way'!B$1,'Log_working_2-way'!B$2) -> 
D26: =solve_for_d('True_Odds_Calculator_2-way'!A27,'True_Odds_Calculator_2-way'!#REF!,'True_Odds_Calculator_2-way'!B27,'Log_working_2-way'!B$1,'Log_working_2-way'!B$2) -> 
D27: =solve_for_d('True_Odds_Calculator_2-way'!A28,'True_Odds_Calculator_2-way'!#REF!,'True_Odds_Calculator_2-way'!B28,'Log_working_2-way'!B$1,'Log_working_2-way'!B$2) -> 
D28: =solve_for_d('True_Odds_Calculator_2-way'!A29,'True_Odds_Calculator_2-way'!#REF!,'True_Odds_Calculator_2-way'!B29,'Log_working_2-way'!B$1,'Log_working_2-way'!B$2) -> 
D29: =solve_for_d('True_Odds_Calculator_2-way'!A30,'True_Odds_Calculator_2-way'!#REF!,'True_Odds_Calculator_2-way'!B30,'Log_working_2-way'!B$1,'Log_working_2-way'!B$2) -> 
D30: =solve_for_d('True_Odds_Calculator_2-way'!A31,'True_Odds_Calculator_2-way'!#REF!,'True_Odds_Calculator_2-way'!B31,'Log_working_2-way'!B$1,'Log_working_2-way'!B$2) -> 
D31: =solve_for_d('True_Odds_Calculator_2-way'!A32,'True_Odds_Calculator_2-way'!#REF!,'True_Odds_Calculator_2-way'!B32,'Log_working_2-way'!B$1,'Log_working_2-way'!B$2) -> 
D32: =solve_for_d('True_Odds_Calculator_2-way'!A33,'True_Odds_Calculator_2-way'!#REF!,'True_Odds_Calculator_2-way'!B33,'Log_working_2-way'!B$1,'Log_working_2-way'!B$2) -> 
D33: =solve_for_d('True_Odds_Calculator_2-way'!A34,'True_Odds_Calculator_2-way'!#REF!,'True_Odds_Calculator_2-way'!B34,'Log_working_2-way'!B$1,'Log_working_2-way'!B$2) -> 
D34: =solve_for_d('True_Odds_Calculator_2-way'!A35,'True_Odds_Calculator_2-way'!#REF!,'True_Odds_Calculator_2-way'!B35,'Log_working_2-way'!B$1,'Log_working_2-way'!B$2) -> 
D35: =solve_for_d('True_Odds_Calculator_2-way'!A36,'True_Odds_Calculator_2-way'!#REF!,'True_Odds_Calculator_2-way'!B36,'Log_working_2-way'!B$1,'Log_working_2-way'!B$2) -> 
D36: =solve_for_d('True_Odds_Calculator_2-way'!A37,'True_Odds_Calculator_2-way'!#REF!,'True_Odds_Calculator_2-way'!B37,'Log_working_2-way'!B$1,'Log_working_2-way'!B$2) -> 
D37: =solve_for_d('True_Odds_Calculator_2-way'!A38,'True_Odds_Calculator_2-way'!#REF!,'True_Odds_Calculator_2-way'!B38,'Log_working_2-way'!B$1,'Log_working_2-way'!B$2) -> 
D38: =solve_for_d('True_Odds_Calculator_2-way'!A39,'True_Odds_Calculator_2-way'!#REF!,'True_Odds_Calculator_2-way'!B39,'Log_working_2-way'!B$1,'Log_working_2-way'!B$2) -> 
D39: =solve_for_d('True_Odds_Calculator_2-way'!A40,'True_Odds_Calculator_2-way'!#REF!,'True_Odds_Calculator_2-way'!B40,'Log_working_2-way'!B$1,'Log_working_2-way'!B$2) -> 
D40: =solve_for_d('True_Odds_Calculator_2-way'!A41,'True_Odds_Calculator_2-way'!#REF!,'True_Odds_Calculator_2-way'!B41,'Log_working_2-way'!B$1,'Log_working_2-way'!B$2) -> 
D41: =solve_for_d('True_Odds_Calculator_2-way'!A42,'True_Odds_Calculator_2-way'!#REF!,'True_Odds_Calculator_2-way'!B42,'Log_working_2-way'!B$1,'Log_working_2-way'!B$2) -> 
D42: =solve_for_d('True_Odds_Calculator_2-way'!A43,'True_Odds_Calculator_2-way'!#REF!,'True_Odds_Calculator_2-way'!B43,'Log_working_2-way'!B$1,'Log_working_2-way'!B$2) -> 
D43: =solve_for_d('True_Odds_Calculator_2-way'!A44,'True_Odds_Calculator_2-way'!#REF!,'True_Odds_Calculator_2-way'!B44,'Log_working_2-way'!B$1,'Log_working_2-way'!B$2) -> 
D44: =solve_for_d('True_Odds_Calculator_2-way'!A45,'True_Odds_Calculator_2-way'!#REF!,'True_Odds_Calculator_2-way'!B45,'Log_working_2-way'!B$1,'Log_working_2-way'!B$2) -> 
D45: =solve_for_d('True_Odds_Calculator_2-way'!A46,'True_Odds_Calculator_2-way'!#REF!,'True_Odds_Calculator_2-way'!B46,'Log_working_2-way'!B$1,'Log_working_2-way'!B$2) -> 
D46: =solve_for_d('True_Odds_Calculator_2-way'!A47,'True_Odds_Calculator_2-way'!#REF!,'True_Odds_Calculator_2-way'!B47,'Log_working_2-way'!B$1,'Log_working_2-way'!B$2) -> 
D47: =solve_for_d('True_Odds_Calculator_2-way'!A48,'True_Odds_Calculator_2-way'!#REF!,'True_Odds_Calculator_2-way'!B48,'Log_working_2-way'!B$1,'Log_working_2-way'!B$2) -> 
D48: =solve_for_d('True_Odds_Calculator_2-way'!A49,'True_Odds_Calculator_2-way'!#REF!,'True_Odds_Calculator_2-way'!B49,'Log_working_2-way'!B$1,'Log_working_2-way'!B$2) -> 
D49: =solve_for_d('True_Odds_Calculator_2-way'!A50,'True_Odds_Calculator_2-way'!#REF!,'True_Odds_Calculator_2-way'!B50,'Log_working_2-way'!B$1,'Log_working_2-way'!B$2) -> 
D50: =solve_for_d('True_Odds_Calculator_2-way'!A51,'True_Odds_Calculator_2-way'!#REF!,'True_Odds_Calculator_2-way'!B51,'Log_working_2-way'!B$1,'Log_working_2-way'!B$2) -> 
D51: =solve_for_d('True_Odds_Calculator_2-way'!A52,'True_Odds_Calculator_2-way'!#REF!,'True_Odds_Calculator_2-way'!B52,'Log_working_2-way'!B$1,'Log_working_2-way'!B$2) -> 
D52: =solve_for_d('True_Odds_Calculator_2-way'!A53,'True_Odds_Calculator_2-way'!#REF!,'True_Odds_Calculator_2-way'!B53,'Log_working_2-way'!B$1,'Log_working_2-way'!B$2) -> 
D53: =solve_for_d('True_Odds_Calculator_2-way'!A54,'True_Odds_Calculator_2-way'!#REF!,'True_Odds_Calculator_2-way'!B54,'Log_working_2-way'!B$1,'Log_working_2-way'!B$2) -> 
D54: =solve_for_d('True_Odds_Calculator_2-way'!A55,'True_Odds_Calculator_2-way'!#REF!,'True_Odds_Calculator_2-way'!B55,'Log_working_2-way'!B$1,'Log_working_2-way'!B$2) -> 
D55: =solve_for_d('True_Odds_Calculator_2-way'!A56,'True_Odds_Calculator_2-way'!#REF!,'True_Odds_Calculator_2-way'!B56,'Log_working_2-way'!B$1,'Log_working_2-way'!B$2) -> 
D56: =solve_for_d('True_Odds_Calculator_2-way'!A57,'True_Odds_Calculator_2-way'!#REF!,'True_Odds_Calculator_2-way'!B57,'Log_working_2-way'!B$1,'Log_working_2-way'!B$2) -> 
D57: =solve_for_d('True_Odds_Calculator_2-way'!A58,'True_Odds_Calculator_2-way'!#REF!,'True_Odds_Calculator_2-way'!B58,'Log_working_2-way'!B$1,'Log_working_2-way'!B$2) -> 
D58: =solve_for_d('True_Odds_Calculator_2-way'!A59,'True_Odds_Calculator_2-way'!#REF!,'True_Odds_Calculator_2-way'!B59,'Log_working_2-way'!B$1,'Log_working_2-way'!B$2) -> 
D59: =solve_for_d('True_Odds_Calculator_2-way'!A60,'True_Odds_Calculator_2-way'!#REF!,'True_Odds_Calculator_2-way'!B60,'Log_working_2-way'!B$1,'Log_working_2-way'!B$2) -> 
D60: =solve_for_d('True_Odds_Calculator_2-way'!A61,'True_Odds_Calculator_2-way'!#REF!,'True_Odds_Calculator_2-way'!B61,'Log_working_2-way'!B$1,'Log_working_2-way'!B$2) -> 
D61: =solve_for_d('True_Odds_Calculator_2-way'!A62,'True_Odds_Calculator_2-way'!#REF!,'True_Odds_Calculator_2-way'!B62,'Log_working_2-way'!B$1,'Log_working_2-way'!B$2) -> 
D62: =solve_for_d('True_Odds_Calculator_2-way'!A63,'True_Odds_Calculator_2-way'!#REF!,'True_Odds_Calculator_2-way'!B63,'Log_working_2-way'!B$1,'Log_working_2-way'!B$2) -> 
D63: =solve_for_d('True_Odds_Calculator_2-way'!A64,'True_Odds_Calculator_2-way'!#REF!,'True_Odds_Calculator_2-way'!B64,'Log_working_2-way'!B$1,'Log_working_2-way'!B$2) -> 
D64: =solve_for_d('True_Odds_Calculator_2-way'!A65,'True_Odds_Calculator_2-way'!#REF!,'True_Odds_Calculator_2-way'!B65,'Log_working_2-way'!B$1,'Log_working_2-way'!B$2) -> 
D65: =solve_for_d('True_Odds_Calculator_2-way'!A66,'True_Odds_Calculator_2-way'!#REF!,'True_Odds_Calculator_2-way'!B66,'Log_working_2-way'!B$1,'Log_working_2-way'!B$2) -> 
D66: =solve_for_d('True_Odds_Calculator_2-way'!A67,'True_Odds_Calculator_2-way'!#REF!,'True_Odds_Calculator_2-way'!B67,'Log_working_2-way'!B$1,'Log_working_2-way'!B$2) -> 
D67: =solve_for_d('True_Odds_Calculator_2-way'!A68,'True_Odds_Calculator_2-way'!#REF!,'True_Odds_Calculator_2-way'!B68,'Log_working_2-way'!B$1,'Log_working_2-way'!B$2) -> 
D68: =solve_for_d('True_Odds_Calculator_2-way'!A69,'True_Odds_Calculator_2-way'!#REF!,'True_Odds_Calculator_2-way'!B69,'Log_working_2-way'!B$1,'Log_working_2-way'!B$2) -> 
D69: =solve_for_d('True_Odds_Calculator_2-way'!A70,'True_Odds_Calculator_2-way'!#REF!,'True_Odds_Calculator_2-way'!B70,'Log_working_2-way'!B$1,'Log_working_2-way'!B$2) -> 
D70: =solve_for_d('True_Odds_Calculator_2-way'!A71,'True_Odds_Calculator_2-way'!#REF!,'True_Odds_Calculator_2-way'!B71,'Log_working_2-way'!B$1,'Log_working_2-way'!B$2) -> 
D71: =solve_for_d('True_Odds_Calculator_2-way'!A72,'True_Odds_Calculator_2-way'!#REF!,'True_Odds_Calculator_2-way'!B72,'Log_working_2-way'!B$1,'Log_working_2-way'!B$2) -> 
D72: =solve_for_d('True_Odds_Calculator_2-way'!A73,'True_Odds_Calculator_2-way'!#REF!,'True_Odds_Calculator_2-way'!B73,'Log_working_2-way'!B$1,'Log_working_2-way'!B$2) -> 
D73: =solve_for_d('True_Odds_Calculator_2-way'!A74,'True_Odds_Calculator_2-way'!#REF!,'True_Odds_Calculator_2-way'!B74,'Log_working_2-way'!B$1,'Log_working_2-way'!B$2) -> 
D74: =solve_for_d('True_Odds_Calculator_2-way'!A75,'True_Odds_Calculator_2-way'!#REF!,'True_Odds_Calculator_2-way'!B75,'Log_working_2-way'!B$1,'Log_working_2-way'!B$2) -> 
D75: =solve_for_d('True_Odds_Calculator_2-way'!A76,'True_Odds_Calculator_2-way'!#REF!,'True_Odds_Calculator_2-way'!B76,'Log_working_2-way'!B$1,'Log_working_2-way'!B$2) -> 
D76: =solve_for_d('True_Odds_Calculator_2-way'!A77,'True_Odds_Calculator_2-way'!#REF!,'True_Odds_Calculator_2-way'!B77,'Log_working_2-way'!B$1,'Log_working_2-way'!B$2) -> 
D77: =solve_for_d('True_Odds_Calculator_2-way'!A78,'True_Odds_Calculator_2-way'!#REF!,'True_Odds_Calculator_2-way'!B78,'Log_working_2-way'!B$1,'Log_working_2-way'!B$2) -> 
D78: =solve_for_d('True_Odds_Calculator_2-way'!A79,'True_Odds_Calculator_2-way'!#REF!,'True_Odds_Calculator_2-way'!B79,'Log_working_2-way'!B$1,'Log_working_2-way'!B$2) -> 
D79: =solve_for_d('True_Odds_Calculator_2-way'!A80,'True_Odds_Calculator_2-way'!#REF!,'True_Odds_Calculator_2-way'!B80,'Log_working_2-way'!B$1,'Log_working_2-way'!B$2) -> 
D80: =solve_for_d('True_Odds_Calculator_2-way'!A81,'True_Odds_Calculator_2-way'!#REF!,'True_Odds_Calculator_2-way'!B81,'Log_working_2-way'!B$1,'Log_working_2-way'!B$2) -> 
D81: =solve_for_d('True_Odds_Calculator_2-way'!A82,'True_Odds_Calculator_2-way'!#REF!,'True_Odds_Calculator_2-way'!B82,'Log_working_2-way'!B$1,'Log_working_2-way'!B$2) -> 
D82: =solve_for_d('True_Odds_Calculator_2-way'!A83,'True_Odds_Calculator_2-way'!#REF!,'True_Odds_Calculator_2-way'!B83,'Log_working_2-way'!B$1,'Log_working_2-way'!B$2) -> 
D83: =solve_for_d('True_Odds_Calculator_2-way'!A84,'True_Odds_Calculator_2-way'!#REF!,'True_Odds_Calculator_2-way'!B84,'Log_working_2-way'!B$1,'Log_working_2-way'!B$2) -> 
D84: =solve_for_d('True_Odds_Calculator_2-way'!A85,'True_Odds_Calculator_2-way'!#REF!,'True_Odds_Calculator_2-way'!B85,'Log_working_2-way'!B$1,'Log_working_2-way'!B$2) -> 
D85: =solve_for_d('True_Odds_Calculator_2-way'!A86,'True_Odds_Calculator_2-way'!#REF!,'True_Odds_Calculator_2-way'!B86,'Log_working_2-way'!B$1,'Log_working_2-way'!B$2) -> 
D86: =solve_for_d('True_Odds_Calculator_2-way'!A87,'True_Odds_Calculator_2-way'!#REF!,'True_Odds_Calculator_2-way'!B87,'Log_working_2-way'!B$1,'Log_working_2-way'!B$2) -> 
D87: =solve_for_d('True_Odds_Calculator_2-way'!A88,'True_Odds_Calculator_2-way'!#REF!,'True_Odds_Calculator_2-way'!B88,'Log_working_2-way'!B$1,'Log_working_2-way'!B$2) -> 
D88: =solve_for_d('True_Odds_Calculator_2-way'!A89,'True_Odds_Calculator_2-way'!#REF!,'True_Odds_Calculator_2-way'!B89,'Log_working_2-way'!B$1,'Log_working_2-way'!B$2) -> 
D89: =solve_for_d('True_Odds_Calculator_2-way'!A90,'True_Odds_Calculator_2-way'!#REF!,'True_Odds_Calculator_2-way'!B90,'Log_working_2-way'!B$1,'Log_working_2-way'!B$2) -> 
D90: =solve_for_d('True_Odds_Calculator_2-way'!A91,'True_Odds_Calculator_2-way'!#REF!,'True_Odds_Calculator_2-way'!B91,'Log_working_2-way'!B$1,'Log_working_2-way'!B$2) -> 
D91: =solve_for_d('True_Odds_Calculator_2-way'!A92,'True_Odds_Calculator_2-way'!#REF!,'True_Odds_Calculator_2-way'!B92,'Log_working_2-way'!B$1,'Log_working_2-way'!B$2) -> 
D92: =solve_for_d('True_Odds_Calculator_2-way'!A93,'True_Odds_Calculator_2-way'!#REF!,'True_Odds_Calculator_2-way'!B93,'Log_working_2-way'!B$1,'Log_working_2-way'!B$2) -> 
D93: =solve_for_d('True_Odds_Calculator_2-way'!A94,'True_Odds_Calculator_2-way'!#REF!,'True_Odds_Calculator_2-way'!B94,'Log_working_2-way'!B$1,'Log_working_2-way'!B$2) -> 
D94: =solve_for_d('True_Odds_Calculator_2-way'!A95,'True_Odds_Calculator_2-way'!#REF!,'True_Odds_Calculator_2-way'!B95,'Log_working_2-way'!B$1,'Log_working_2-way'!B$2) -> 
D95: =solve_for_d('True_Odds_Calculator_2-way'!A96,'True_Odds_Calculator_2-way'!#REF!,'True_Odds_Calculator_2-way'!B96,'Log_working_2-way'!B$1,'Log_working_2-way'!B$2) -> 
D96: =solve_for_d('True_Odds_Calculator_2-way'!A97,'True_Odds_Calculator_2-way'!#REF!,'True_Odds_Calculator_2-way'!B97,'Log_working_2-way'!B$1,'Log_working_2-way'!B$2) -> 
D97: =solve_for_d('True_Odds_Calculator_2-way'!A98,'True_Odds_Calculator_2-way'!#REF!,'True_Odds_Calculator_2-way'!B98,'Log_working_2-way'!B$1,'Log_working_2-way'!B$2) -> 
D98: =solve_for_d('True_Odds_Calculator_2-way'!A99,'True_Odds_Calculator_2-way'!#REF!,'True_Odds_Calculator_2-way'!B99,'Log_working_2-way'!B$1,'Log_working_2-way'!B$2) -> 
D99: =solve_for_d('True_Odds_Calculator_2-way'!A100,'True_Odds_Calculator_2-way'!#REF!,'True_Odds_Calculator_2-way'!B100,'Log_working_2-way'!B$1,'Log_working_2-way'!B$2) -> 
D100: =solve_for_d('True_Odds_Calculator_2-way'!A101,'True_Odds_Calculator_2-way'!#REF!,'True_Odds_Calculator_2-way'!B101,'Log_working_2-way'!B$1,'Log_working_2-way'!B$2) -> 
D101: =solve_for_d('True_Odds_Calculator_2-way'!A102,'True_Odds_Calculator_2-way'!#REF!,'True_Odds_Calculator_2-way'!B102,'Log_working_2-way'!B$1,'Log_working_2-way'!B$2) -> 
D102: =solve_for_d('True_Odds_Calculator_2-way'!A103,'True_Odds_Calculator_2-way'!#REF!,'True_Odds_Calculator_2-way'!B103,'Log_working_2-way'!B$1,'Log_working_2-way'!B$2) -> 
D103: =solve_for_d('True_Odds_Calculator_2-way'!A104,'True_Odds_Calculator_2-way'!#REF!,'True_Odds_Calculator_2-way'!B104,'Log_working_2-way'!B$1,'Log_working_2-way'!B$2) -> 
D104: =solve_for_d('True_Odds_Calculator_2-way'!A105,'True_Odds_Calculator_2-way'!#REF!,'True_Odds_Calculator_2-way'!B105,'Log_working_2-way'!B$1,'Log_working_2-way'!B$2) -> 
D105: =solve_for_d('True_Odds_Calculator_2-way'!A106,'True_Odds_Calculator_2-way'!#REF!,'True_Odds_Calculator_2-way'!B106,'Log_working_2-way'!B$1,'Log_working_2-way'!B$2) -> 
D106: =solve_for_d('True_Odds_Calculator_2-way'!A107,'True_Odds_Calculator_2-way'!#REF!,'True_Odds_Calculator_2-way'!B107,'Log_working_2-way'!B$1,'Log_working_2-way'!B$2) -> 
D107: =solve_for_d('True_Odds_Calculator_2-way'!A108,'True_Odds_Calculator_2-way'!#REF!,'True_Odds_Calculator_2-way'!B108,'Log_working_2-way'!B$1,'Log_working_2-way'!B$2) -> 
D108: =solve_for_d('True_Odds_Calculator_2-way'!A109,'True_Odds_Calculator_2-way'!#REF!,'True_Odds_Calculator_2-way'!B109,'Log_working_2-way'!B$1,'Log_working_2-way'!B$2) -> 
D109: =solve_for_d('True_Odds_Calculator_2-way'!A110,'True_Odds_Calculator_2-way'!#REF!,'True_Odds_Calculator_2-way'!B110,'Log_working_2-way'!B$1,'Log_working_2-way'!B$2) -> 
D110: =solve_for_d('True_Odds_Calculator_2-way'!A111,'True_Odds_Calculator_2-way'!#REF!,'True_Odds_Calculator_2-way'!B111,'Log_working_2-way'!B$1,'Log_working_2-way'!B$2) -> 
D111: =solve_for_d('True_Odds_Calculator_2-way'!A112,'True_Odds_Calculator_2-way'!#REF!,'True_Odds_Calculator_2-way'!B112,'Log_working_2-way'!B$1,'Log_working_2-way'!B$2) -> 
D112: =solve_for_d('True_Odds_Calculator_2-way'!A113,'True_Odds_Calculator_2-way'!#REF!,'True_Odds_Calculator_2-way'!B113,'Log_working_2-way'!B$1,'Log_working_2-way'!B$2) -> 
D113: =solve_for_d('True_Odds_Calculator_2-way'!A114,'True_Odds_Calculator_2-way'!#REF!,'True_Odds_Calculator_2-way'!B114,'Log_working_2-way'!B$1,'Log_working_2-way'!B$2) -> 
D114: =solve_for_d('True_Odds_Calculator_2-way'!A115,'True_Odds_Calculator_2-way'!#REF!,'True_Odds_Calculator_2-way'!B115,'Log_working_2-way'!B$1,'Log_working_2-way'!B$2) -> 
D115: =solve_for_d('True_Odds_Calculator_2-way'!A116,'True_Odds_Calculator_2-way'!#REF!,'True_Odds_Calculator_2-way'!B116,'Log_working_2-way'!B$1,'Log_working_2-way'!B$2) -> 
D116: =solve_for_d('True_Odds_Calculator_2-way'!A117,'True_Odds_Calculator_2-way'!#REF!,'True_Odds_Calculator_2-way'!B117,'Log_working_2-way'!B$1,'Log_working_2-way'!B$2) -> 
D117: =solve_for_d('True_Odds_Calculator_2-way'!A118,'True_Odds_Calculator_2-way'!#REF!,'True_Odds_Calculator_2-way'!B118,'Log_working_2-way'!B$1,'Log_working_2-way'!B$2) -> 
D118: =solve_for_d('True_Odds_Calculator_2-way'!A119,'True_Odds_Calculator_2-way'!#REF!,'True_Odds_Calculator_2-way'!B119,'Log_working_2-way'!B$1,'Log_working_2-way'!B$2) -> 
D119: =solve_for_d('True_Odds_Calculator_2-way'!A120,'True_Odds_Calculator_2-way'!#REF!,'True_Odds_Calculator_2-way'!B120,'Log_working_2-way'!B$1,'Log_working_2-way'!B$2) -> 
D120: =solve_for_d('True_Odds_Calculator_2-way'!A121,'True_Odds_Calculator_2-way'!#REF!,'True_Odds_Calculator_2-way'!B121,'Log_working_2-way'!B$1,'Log_working_2-way'!B$2) -> 
D121: =solve_for_d('True_Odds_Calculator_2-way'!A122,'True_Odds_Calculator_2-way'!#REF!,'True_Odds_Calculator_2-way'!B122,'Log_working_2-way'!B$1,'Log_working_2-way'!B$2) -> 
D122: =solve_for_d('True_Odds_Calculator_2-way'!A123,'True_Odds_Calculator_2-way'!#REF!,'True_Odds_Calculator_2-way'!B123,'Log_working_2-way'!B$1,'Log_working_2-way'!B$2) -> 
D123: =solve_for_d('True_Odds_Calculator_2-way'!A124,'True_Odds_Calculator_2-way'!#REF!,'True_Odds_Calculator_2-way'!B124,'Log_working_2-way'!B$1,'Log_working_2-way'!B$2) -> 
D124: =solve_for_d('True_Odds_Calculator_2-way'!A125,'True_Odds_Calculator_2-way'!#REF!,'True_Odds_Calculator_2-way'!B125,'Log_working_2-way'!B$1,'Log_working_2-way'!B$2) -> 
D125: =solve_for_d('True_Odds_Calculator_2-way'!A126,'True_Odds_Calculator_2-way'!#REF!,'True_Odds_Calculator_2-way'!B126,'Log_working_2-way'!B$1,'Log_working_2-way'!B$2) -> 
D126: =solve_for_d('True_Odds_Calculator_2-way'!A127,'True_Odds_Calculator_2-way'!#REF!,'True_Odds_Calculator_2-way'!B127,'Log_working_2-way'!B$1,'Log_working_2-way'!B$2) -> 
D127: =solve_for_d('True_Odds_Calculator_2-way'!A128,'True_Odds_Calculator_2-way'!#REF!,'True_Odds_Calculator_2-way'!B128,'Log_working_2-way'!B$1,'Log_working_2-way'!B$2) -> 
D128: =solve_for_d('True_Odds_Calculator_2-way'!A129,'True_Odds_Calculator_2-way'!#REF!,'True_Odds_Calculator_2-way'!B129,'Log_working_2-way'!B$1,'Log_working_2-way'!B$2) -> 
D129: =solve_for_d('True_Odds_Calculator_2-way'!A130,'True_Odds_Calculator_2-way'!#REF!,'True_Odds_Calculator_2-way'!B130,'Log_working_2-way'!B$1,'Log_working_2-way'!B$2) -> 
D130: =solve_for_d('True_Odds_Calculator_2-way'!A131,'True_Odds_Calculator_2-way'!#REF!,'True_Odds_Calculator_2-way'!B131,'Log_working_2-way'!B$1,'Log_working_2-way'!B$2) -> 
D131: =solve_for_d('True_Odds_Calculator_2-way'!A132,'True_Odds_Calculator_2-way'!#REF!,'True_Odds_Calculator_2-way'!B132,'Log_working_2-way'!B$1,'Log_working_2-way'!B$2) -> 
D132: =solve_for_d('True_Odds_Calculator_2-way'!A133,'True_Odds_Calculator_2-way'!#REF!,'True_Odds_Calculator_2-way'!B133,'Log_working_2-way'!B$1,'Log_working_2-way'!B$2) -> 
D133: =solve_for_d('True_Odds_Calculator_2-way'!A134,'True_Odds_Calculator_2-way'!#REF!,'True_Odds_Calculator_2-way'!B134,'Log_working_2-way'!B$1,'Log_working_2-way'!B$2) -> 
D134: =solve_for_d('True_Odds_Calculator_2-way'!A135,'True_Odds_Calculator_2-way'!#REF!,'True_Odds_Calculator_2-way'!B135,'Log_working_2-way'!B$1,'Log_working_2-way'!B$2) -> 
D135: =solve_for_d('True_Odds_Calculator_2-way'!A136,'True_Odds_Calculator_2-way'!#REF!,'True_Odds_Calculator_2-way'!B136,'Log_working_2-way'!B$1,'Log_working_2-way'!B$2) -> 
D136: =solve_for_d('True_Odds_Calculator_2-way'!A137,'True_Odds_Calculator_2-way'!#REF!,'True_Odds_Calculator_2-way'!B137,'Log_working_2-way'!B$1,'Log_working_2-way'!B$2) -> 
D137: =solve_for_d('True_Odds_Calculator_2-way'!A138,'True_Odds_Calculator_2-way'!#REF!,'True_Odds_Calculator_2-way'!B138,'Log_working_2-way'!B$1,'Log_working_2-way'!B$2) -> 
D138: =solve_for_d('True_Odds_Calculator_2-way'!A139,'True_Odds_Calculator_2-way'!#REF!,'True_Odds_Calculator_2-way'!B139,'Log_working_2-way'!B$1,'Log_working_2-way'!B$2) -> 
D139: =solve_for_d('True_Odds_Calculator_2-way'!A140,'True_Odds_Calculator_2-way'!#REF!,'True_Odds_Calculator_2-way'!B140,'Log_working_2-way'!B$1,'Log_working_2-way'!B$2) -> 
D140: =solve_for_d('True_Odds_Calculator_2-way'!A141,'True_Odds_Calculator_2-way'!#REF!,'True_Odds_Calculator_2-way'!B141,'Log_working_2-way'!B$1,'Log_working_2-way'!B$2) -> 
D141: =solve_for_d('True_Odds_Calculator_2-way'!A142,'True_Odds_Calculator_2-way'!#REF!,'True_Odds_Calculator_2-way'!B142,'Log_working_2-way'!B$1,'Log_working_2-way'!B$2) -> 
D142: =solve_for_d('True_Odds_Calculator_2-way'!A143,'True_Odds_Calculator_2-way'!#REF!,'True_Odds_Calculator_2-way'!B143,'Log_working_2-way'!B$1,'Log_working_2-way'!B$2) -> 
D143: =solve_for_d('True_Odds_Calculator_2-way'!A144,'True_Odds_Calculator_2-way'!#REF!,'True_Odds_Calculator_2-way'!B144,'Log_working_2-way'!B$1,'Log_working_2-way'!B$2) -> 
D144: =solve_for_d('True_Odds_Calculator_2-way'!A145,'True_Odds_Calculator_2-way'!#REF!,'True_Odds_Calculator_2-way'!B145,'Log_working_2-way'!B$1,'Log_working_2-way'!B$2) -> 
D145: =solve_for_d('True_Odds_Calculator_2-way'!A146,'True_Odds_Calculator_2-way'!#REF!,'True_Odds_Calculator_2-way'!B146,'Log_working_2-way'!B$1,'Log_working_2-way'!B$2) -> 
D146: =solve_for_d('True_Odds_Calculator_2-way'!A147,'True_Odds_Calculator_2-way'!#REF!,'True_Odds_Calculator_2-way'!B147,'Log_working_2-way'!B$1,'Log_working_2-way'!B$2) -> 
D147: =solve_for_d('True_Odds_Calculator_2-way'!A148,'True_Odds_Calculator_2-way'!#REF!,'True_Odds_Calculator_2-way'!B148,'Log_working_2-way'!B$1,'Log_working_2-way'!B$2) -> 
D148: =solve_for_d('True_Odds_Calculator_2-way'!A149,'True_Odds_Calculator_2-way'!#REF!,'True_Odds_Calculator_2-way'!B149,'Log_working_2-way'!B$1,'Log_working_2-way'!B$2) -> 
D149: =solve_for_d('True_Odds_Calculator_2-way'!A150,'True_Odds_Calculator_2-way'!#REF!,'True_Odds_Calculator_2-way'!B150,'Log_working_2-way'!B$1,'Log_working_2-way'!B$2) -> 
D150: =solve_for_d('True_Odds_Calculator_2-way'!A151,'True_Odds_Calculator_2-way'!#REF!,'True_Odds_Calculator_2-way'!B151,'Log_working_2-way'!B$1,'Log_working_2-way'!B$2) -> 
D151: =solve_for_d('True_Odds_Calculator_2-way'!A152,'True_Odds_Calculator_2-way'!#REF!,'True_Odds_Calculator_2-way'!B152,'Log_working_2-way'!B$1,'Log_working_2-way'!B$2) -> 
D152: =solve_for_d('True_Odds_Calculator_2-way'!A153,'True_Odds_Calculator_2-way'!#REF!,'True_Odds_Calculator_2-way'!B153,'Log_working_2-way'!B$1,'Log_working_2-way'!B$2) -> 
D153: =solve_for_d('True_Odds_Calculator_2-way'!A154,'True_Odds_Calculator_2-way'!#REF!,'True_Odds_Calculator_2-way'!B154,'Log_working_2-way'!B$1,'Log_working_2-way'!B$2) -> 
D154: =solve_for_d('True_Odds_Calculator_2-way'!A155,'True_Odds_Calculator_2-way'!#REF!,'True_Odds_Calculator_2-way'!B155,'Log_working_2-way'!B$1,'Log_working_2-way'!B$2) -> 
D155: =solve_for_d('True_Odds_Calculator_2-way'!A156,'True_Odds_Calculator_2-way'!#REF!,'True_Odds_Calculator_2-way'!B156,'Log_working_2-way'!B$1,'Log_working_2-way'!B$2) -> 
D156: =solve_for_d('True_Odds_Calculator_2-way'!A157,'True_Odds_Calculator_2-way'!#REF!,'True_Odds_Calculator_2-way'!B157,'Log_working_2-way'!B$1,'Log_working_2-way'!B$2) -> 
D157: =solve_for_d('True_Odds_Calculator_2-way'!A158,'True_Odds_Calculator_2-way'!#REF!,'True_Odds_Calculator_2-way'!B158,'Log_working_2-way'!B$1,'Log_working_2-way'!B$2) -> 
D158: =solve_for_d('True_Odds_Calculator_2-way'!A159,'True_Odds_Calculator_2-way'!#REF!,'True_Odds_Calculator_2-way'!B159,'Log_working_2-way'!B$1,'Log_working_2-way'!B$2) -> 
D159: =solve_for_d('True_Odds_Calculator_2-way'!A160,'True_Odds_Calculator_2-way'!#REF!,'True_Odds_Calculator_2-way'!B160,'Log_working_2-way'!B$1,'Log_working_2-way'!B$2) -> 
D160: =solve_for_d('True_Odds_Calculator_2-way'!A161,'True_Odds_Calculator_2-way'!#REF!,'True_Odds_Calculator_2-way'!B161,'Log_working_2-way'!B$1,'Log_working_2-way'!B$2) -> 
D161: =solve_for_d('True_Odds_Calculator_2-way'!A162,'True_Odds_Calculator_2-way'!#REF!,'True_Odds_Calculator_2-way'!B162,'Log_working_2-way'!B$1,'Log_working_2-way'!B$2) -> 
D162: =solve_for_d('True_Odds_Calculator_2-way'!A163,'True_Odds_Calculator_2-way'!#REF!,'True_Odds_Calculator_2-way'!B163,'Log_working_2-way'!B$1,'Log_working_2-way'!B$2) -> 
D163: =solve_for_d('True_Odds_Calculator_2-way'!A164,'True_Odds_Calculator_2-way'!#REF!,'True_Odds_Calculator_2-way'!B164,'Log_working_2-way'!B$1,'Log_working_2-way'!B$2) -> 
D164: =solve_for_d('True_Odds_Calculator_2-way'!A165,'True_Odds_Calculator_2-way'!#REF!,'True_Odds_Calculator_2-way'!B165,'Log_working_2-way'!B$1,'Log_working_2-way'!B$2) -> 
D165: =solve_for_d('True_Odds_Calculator_2-way'!A166,'True_Odds_Calculator_2-way'!#REF!,'True_Odds_Calculator_2-way'!B166,'Log_working_2-way'!B$1,'Log_working_2-way'!B$2) -> 
D166: =solve_for_d('True_Odds_Calculator_2-way'!A167,'True_Odds_Calculator_2-way'!#REF!,'True_Odds_Calculator_2-way'!B167,'Log_working_2-way'!B$1,'Log_working_2-way'!B$2) -> 
D167: =solve_for_d('True_Odds_Calculator_2-way'!A168,'True_Odds_Calculator_2-way'!#REF!,'True_Odds_Calculator_2-way'!B168,'Log_working_2-way'!B$1,'Log_working_2-way'!B$2) -> 
D168: =solve_for_d('True_Odds_Calculator_2-way'!A169,'True_Odds_Calculator_2-way'!#REF!,'True_Odds_Calculator_2-way'!B169,'Log_working_2-way'!B$1,'Log_working_2-way'!B$2) -> 
D169: =solve_for_d('True_Odds_Calculator_2-way'!A170,'True_Odds_Calculator_2-way'!#REF!,'True_Odds_Calculator_2-way'!B170,'Log_working_2-way'!B$1,'Log_working_2-way'!B$2) -> 
D170: =solve_for_d('True_Odds_Calculator_2-way'!A171,'True_Odds_Calculator_2-way'!#REF!,'True_Odds_Calculator_2-way'!B171,'Log_working_2-way'!B$1,'Log_working_2-way'!B$2) -> 
D171: =solve_for_d('True_Odds_Calculator_2-way'!A172,'True_Odds_Calculator_2-way'!#REF!,'True_Odds_Calculator_2-way'!B172,'Log_working_2-way'!B$1,'Log_working_2-way'!B$2) -> 
D172: =solve_for_d('True_Odds_Calculator_2-way'!A173,'True_Odds_Calculator_2-way'!#REF!,'True_Odds_Calculator_2-way'!B173,'Log_working_2-way'!B$1,'Log_working_2-way'!B$2) -> 
D173: =solve_for_d('True_Odds_Calculator_2-way'!A174,'True_Odds_Calculator_2-way'!#REF!,'True_Odds_Calculator_2-way'!B174,'Log_working_2-way'!B$1,'Log_working_2-way'!B$2) -> 
D174: =solve_for_d('True_Odds_Calculator_2-way'!A175,'True_Odds_Calculator_2-way'!#REF!,'True_Odds_Calculator_2-way'!B175,'Log_working_2-way'!B$1,'Log_working_2-way'!B$2) -> 
D175: =solve_for_d('True_Odds_Calculator_2-way'!A176,'True_Odds_Calculator_2-way'!#REF!,'True_Odds_Calculator_2-way'!B176,'Log_working_2-way'!B$1,'Log_working_2-way'!B$2) -> 
D176: =solve_for_d('True_Odds_Calculator_2-way'!A177,'True_Odds_Calculator_2-way'!#REF!,'True_Odds_Calculator_2-way'!B177,'Log_working_2-way'!B$1,'Log_working_2-way'!B$2) -> 
D177: =solve_for_d('True_Odds_Calculator_2-way'!A178,'True_Odds_Calculator_2-way'!#REF!,'True_Odds_Calculator_2-way'!B178,'Log_working_2-way'!B$1,'Log_working_2-way'!B$2) -> 
D178: =solve_for_d('True_Odds_Calculator_2-way'!A179,'True_Odds_Calculator_2-way'!#REF!,'True_Odds_Calculator_2-way'!B179,'Log_working_2-way'!B$1,'Log_working_2-way'!B$2) -> 
D179: =solve_for_d('True_Odds_Calculator_2-way'!A180,'True_Odds_Calculator_2-way'!#REF!,'True_Odds_Calculator_2-way'!B180,'Log_working_2-way'!B$1,'Log_working_2-way'!B$2) -> 
D180: =solve_for_d('True_Odds_Calculator_2-way'!A181,'True_Odds_Calculator_2-way'!#REF!,'True_Odds_Calculator_2-way'!B181,'Log_working_2-way'!B$1,'Log_working_2-way'!B$2) -> 
D181: =solve_for_d('True_Odds_Calculator_2-way'!A182,'True_Odds_Calculator_2-way'!#REF!,'True_Odds_Calculator_2-way'!B182,'Log_working_2-way'!B$1,'Log_working_2-way'!B$2) -> 
D182: =solve_for_d('True_Odds_Calculator_2-way'!A183,'True_Odds_Calculator_2-way'!#REF!,'True_Odds_Calculator_2-way'!B183,'Log_working_2-way'!B$1,'Log_working_2-way'!B$2) -> 
D183: =solve_for_d('True_Odds_Calculator_2-way'!A184,'True_Odds_Calculator_2-way'!#REF!,'True_Odds_Calculator_2-way'!B184,'Log_working_2-way'!B$1,'Log_working_2-way'!B$2) -> 
D184: =solve_for_d('True_Odds_Calculator_2-way'!A185,'True_Odds_Calculator_2-way'!#REF!,'True_Odds_Calculator_2-way'!B185,'Log_working_2-way'!B$1,'Log_working_2-way'!B$2) -> 
D185: =solve_for_d('True_Odds_Calculator_2-way'!A186,'True_Odds_Calculator_2-way'!#REF!,'True_Odds_Calculator_2-way'!B186,'Log_working_2-way'!B$1,'Log_working_2-way'!B$2) -> 
D186: =solve_for_d('True_Odds_Calculator_2-way'!A187,'True_Odds_Calculator_2-way'!#REF!,'True_Odds_Calculator_2-way'!B187,'Log_working_2-way'!B$1,'Log_working_2-way'!B$2) -> 
D187: =solve_for_d('True_Odds_Calculator_2-way'!A188,'True_Odds_Calculator_2-way'!#REF!,'True_Odds_Calculator_2-way'!B188,'Log_working_2-way'!B$1,'Log_working_2-way'!B$2) -> 
D188: =solve_for_d('True_Odds_Calculator_2-way'!A189,'True_Odds_Calculator_2-way'!#REF!,'True_Odds_Calculator_2-way'!B189,'Log_working_2-way'!B$1,'Log_working_2-way'!B$2) -> 
D189: =solve_for_d('True_Odds_Calculator_2-way'!A190,'True_Odds_Calculator_2-way'!#REF!,'True_Odds_Calculator_2-way'!B190,'Log_working_2-way'!B$1,'Log_working_2-way'!B$2) -> 
D190: =solve_for_d('True_Odds_Calculator_2-way'!A191,'True_Odds_Calculator_2-way'!#REF!,'True_Odds_Calculator_2-way'!B191,'Log_working_2-way'!B$1,'Log_working_2-way'!B$2) -> 
D191: =solve_for_d('True_Odds_Calculator_2-way'!A192,'True_Odds_Calculator_2-way'!#REF!,'True_Odds_Calculator_2-way'!B192,'Log_working_2-way'!B$1,'Log_working_2-way'!B$2) -> 
D192: =solve_for_d('True_Odds_Calculator_2-way'!A193,'True_Odds_Calculator_2-way'!#REF!,'True_Odds_Calculator_2-way'!B193,'Log_working_2-way'!B$1,'Log_working_2-way'!B$2) -> 
D193: =solve_for_d('True_Odds_Calculator_2-way'!A194,'True_Odds_Calculator_2-way'!#REF!,'True_Odds_Calculator_2-way'!B194,'Log_working_2-way'!B$1,'Log_working_2-way'!B$2) -> 
D194: =solve_for_d('True_Odds_Calculator_2-way'!A195,'True_Odds_Calculator_2-way'!#REF!,'True_Odds_Calculator_2-way'!B195,'Log_working_2-way'!B$1,'Log_working_2-way'!B$2) -> 
D195: =solve_for_d('True_Odds_Calculator_2-way'!A196,'True_Odds_Calculator_2-way'!#REF!,'True_Odds_Calculator_2-way'!B196,'Log_working_2-way'!B$1,'Log_working_2-way'!B$2) -> 
D196: =solve_for_d('True_Odds_Calculator_2-way'!A197,'True_Odds_Calculator_2-way'!#REF!,'True_Odds_Calculator_2-way'!B197,'Log_working_2-way'!B$1,'Log_working_2-way'!B$2) -> 
D197: =solve_for_d('True_Odds_Calculator_2-way'!A198,'True_Odds_Calculator_2-way'!#REF!,'True_Odds_Calculator_2-way'!B198,'Log_working_2-way'!B$1,'Log_working_2-way'!B$2) -> 
D198: =solve_for_d('True_Odds_Calculator_2-way'!A199,'True_Odds_Calculator_2-way'!#REF!,'True_Odds_Calculator_2-way'!B199,'Log_working_2-way'!B$1,'Log_working_2-way'!B$2) -> 
D199: =solve_for_d('True_Odds_Calculator_2-way'!A200,'True_Odds_Calculator_2-way'!#REF!,'True_Odds_Calculator_2-way'!B200,'Log_working_2-way'!B$1,'Log_working_2-way'!B$2) -> 
D200: =solve_for_d('True_Odds_Calculator_2-way'!A201,'True_Odds_Calculator_2-way'!#REF!,'True_Odds_Calculator_2-way'!B201,'Log_working_2-way'!B$1,'Log_working_2-way'!B$2) -> 
... 801 more rows

Sheet Log_working_3-way (hidden)
A1: Target overround | B1: 0 | D1: 'c' | F1: Check | H1: 1 | I1: X | J1: 2 | K1: Market
A2: Accuracy, decimal places | B2: 10 | D2: =solve_for_c('True_Odds_Calculator_3-way'!A3,'True_Odds_Calculator_3-way'!B3,'True_Odds_Calculator_3-way'!C3,'Log_working_3-way'!B$1,'Log_working_3-way'!B$2) -> 1.027507146 | F2: =IF('Log_working_3-way'!D2="","",1/'True_Odds_Calculator_3-way'!N3+1/'True_Odds_Calculator_3-way'!O3+1/'True_Odds_Calculator_3-way'!P3-1) -> 1.887379142e-14 | H2: =IF('Log_working_3-way'!$D2="","",'True_Odds_Calculator_3-way'!N3/'True_Odds_Calculator_3-way'!A3-1) -> 0.009692238276 | I2: =IF('Log_working_3-way'!$D2="","",'True_Odds_Calculator_3-way'!O3/'True_Odds_Calculator_3-way'!B3-1) -> 0.04688794996 | J2: =IF('Log_working_3-way'!$D2="","",'True_Odds_Calculator_3-way'!P3/'True_Odds_Calculator_3-way'!C3-1) -> 0.05794271404 | K2: =IF('Log_working_3-way'!$D2="","",1/'True_Odds_Calculator_3-way'!A3+1/'True_Odds_Calculator_3-way'!B3+1/'True_Odds_Calculator_3-way'!C3-1) -> 0.022293527
D3: =solve_for_c('True_Odds_Calculator_3-way'!A4,'True_Odds_Calculator_3-way'!B4,'True_Odds_Calculator_3-way'!C4,'Log_working_3-way'!B$1,'Log_working_3-way'!B$2) -> 1.019562123 | F3: =IF('Log_working_3-way'!D3="","",1/'True_Odds_Calculator_3-way'!N4+1/'True_Odds_Calculator_3-way'!O4+1/'True_Odds_Calculator_3-way'!P4-1) -> 4.440892099e-16 | H3: =IF('Log_working_3-way'!$D3="","",'True_Odds_Calculator_3-way'!N4/'True_Odds_Calculator_3-way'!A4-1) -> 0.01710700346 | I3: =IF('Log_working_3-way'!$D3="","",'True_Odds_Calculator_3-way'!O4/'True_Odds_Calculator_3-way'!B4-1) -> 0.02422849917 | J3: =IF('Log_working_3-way'!$D3="","",'True_Odds_Calculator_3-way'!P4/'True_Odds_Calculator_3-way'!C4-1) -> 0.02338636358 | K3: =IF('Log_working_3-way'!$D3="","",1/'True_Odds_Calculator_3-way'!A4+1/'True_Odds_Calculator_3-way'!B4+1/'True_Odds_Calculator_3-way'!C4-1) -> 0.02103418054
D4: =solve_for_c('True_Odds_Calculator_3-way'!A5,'True_Odds_Calculator_3-way'!B5,'True_Odds_Calculator_3-way'!C5,'Log_working_3-way'!B$1,'Log_working_3-way'!B$2) -> 1.041523732 | F4: =IF('Log_working_3-way'!D4="","",1/'True_Odds_Calculator_3-way'!N5+1/'True_Odds_Calculator_3-way'!O5+1/'True_Odds_Calculator_3-way'!P5-1) -> 2.63034039e-12 | H4: =IF('Log_working_3-way'!$D4="","",'True_Odds_Calculator_3-way'!N5/'True_Odds_Calculator_3-way'!A5-1) -> 0.006181982622 | I4: =IF('Log_working_3-way'!$D4="","",'True_Odds_Calculator_3-way'!O5/'True_Odds_Calculator_3-way'!B5-1) -> 0.09557909456 | J4: =IF('Log_working_3-way'!$D4="","",'True_Odds_Calculator_3-way'!P5/'True_Odds_Calculator_3-way'!C5-1) -> 0.1348034478 | K4: =IF('Log_working_3-way'!$D4="","",1/'True_Odds_Calculator_3-way'!A5+1/'True_Odds_Calculator_3-way'!B5+1/'True_Odds_Calculator_3-way'!C5-1) -> 0.02063049616
D5: =solve_for_c('True_Odds_Calculator_3-way'!A6,'True_Odds_Calculator_3-way'!B6,'True_Odds_Calculator_3-way'!C6,'Log_working_3-way'!B$1,'Log_working_3-way'!B$2) -> 1.021636869 | F5: =IF('Log_working_3-way'!D5="","",1/'True_Odds_Calculator_3-way'!N6+1/'True_Odds_Calculator_3-way'!O6+1/'True_Odds_Calculator_3-way'!P6-1) -> 1.776356839e-15 | H5: =IF('Log_working_3-way'!$D5="","",'True_Odds_Calculator_3-way'!N6/'True_Odds_Calculator_3-way'!A6-1) -> 0.0408407734 | I5: =IF('Log_working_3-way'!$D5="","",'True_Odds_Calculator_3-way'!O6/'True_Odds_Calculator_3-way'!B6-1) -> 0.03361882472 | J5: =IF('Log_working_3-way'!$D5="","",'True_Odds_Calculator_3-way'!P6/'True_Odds_Calculator_3-way'!C6-1) -> 0.009527565745 | K5: =IF('Log_working_3-way'!$D5="","",1/'True_Odds_Calculator_3-way'!A6+1/'True_Odds_Calculator_3-way'!B6+1/'True_Odds_Calculator_3-way'!C6-1) -> 0.01931373442
D6: =solve_for_c('True_Odds_Calculator_3-way'!A7,'True_Odds_Calculator_3-way'!B7,'True_Odds_Calculator_3-way'!C7,'Log_working_3-way'!B$1,'Log_working_3-way'!B$2) -> 1.019763046 | F6: =IF('Log_working_3-way'!D6="","",1/'True_Odds_Calculator_3-way'!N7+1/'True_Odds_Calculator_3-way'!O7+1/'True_Odds_Calculator_3-way'!P7-1) -> 4.440892099e-16 | H6: =IF('Log_working_3-way'!$D6="","",'True_Odds_Calculator_3-way'!N7/'True_Odds_Calculator_3-way'!A7-1) -> 0.01287085637 | I6: =IF('Log_working_3-way'!$D6="","",'True_Odds_Calculator_3-way'!O7/'True_Odds_Calculator_3-way'!B7-1) -> 0.02646608845 | J6: =IF('Log_working_3-way'!$D6="","",'True_Odds_Calculator_3-way'!P7/'True_Odds_Calculator_3-way'!C7-1) -> 0.02948137103 | K6: =IF('Log_working_3-way'!$D6="","",1/'True_Odds_Calculator_3-way'!A7+1/'True_Odds_Calculator_3-way'!B7+1/'True_Odds_Calculator_3-way'!C7-1) -> 0.02011193356
D7: =solve_for_c('True_Odds_Calculator_3-way'!A8,'True_Odds_Calculator_3-way'!B8,'True_Odds_Calculator_3-way'!C8,'Log_working_3-way'!B$1,'Log_working_3-way'!B$2) -> 1.045313764 | F7: =IF('Log_working_3-way'!D7="","",1/'True_Odds_Calculator_3-way'!N8+1/'True_Odds_Calculator_3-way'!O8+1/'True_Odds_Calculator_3-way'!P8-1) -> 5.950795412e-12 | H7: =IF('Log_working_3-way'!$D7="","",'True_Odds_Calculator_3-way'!N8/'True_Odds_Calculator_3-way'!A8-1) -> 0.005955045018 | I7: =IF('Log_working_3-way'!$D7="","",'True_Odds_Calculator_3-way'!O8/'True_Odds_Calculator_3-way'!B8-1) -> 0.1063862189 | J7: =IF('Log_working_3-way'!$D7="","",'True_Odds_Calculator_3-way'!P8/'True_Odds_Calculator_3-way'!C8-1) -> 0.1626507031 | K7: =IF('Log_working_3-way'!$D7="","",1/'True_Odds_Calculator_3-way'!A8+1/'True_Odds_Calculator_3-way'!B8+1/'True_Odds_Calculator_3-way'!C8-1) -> 0.02054973111
D8: =solve_for_c('True_Odds_Calculator_3-way'!A9,'True_Odds_Calculator_3-way'!B9,'True_Odds_Calculator_3-way'!C9,'Log_working_3-way'!B$1,'Log_working_3-way'!B$2) -> 1.020808458 | F8: =IF('Log_working_3-way'!D8="","",1/'True_Odds_Calculator_3-way'!N9+1/'True_Odds_Calculator_3-way'!O9+1/'True_Odds_Calculator_3-way'!P9-1) -> 8.881784197e-16 | H8: =IF('Log_working_3-way'!$D8="","",'True_Odds_Calculator_3-way'!N9/'True_Odds_Calculator_3-way'!A9-1) -> 0.01873443187 | I8: =IF('Log_working_3-way'!$D8="","",'True_Odds_Calculator_3-way'!O9/'True_Odds_Calculator_3-way'!B9-1) -> 0.02579187966 | J8: =IF('Log_working_3-way'!$D8="","",'True_Odds_Calculator_3-way'!P9/'True_Odds_Calculator_3-way'!C9-1) -> 0.0240952217 | K8: =IF('Log_working_3-way'!$D8="","",1/'True_Odds_Calculator_3-way'!A9+1/'True_Odds_Calculator_3-way'!B9+1/'True_Odds_Calculator_3-way'!C9-1) -> 0.02242505021
D9: =solve_for_c('True_Odds_Calculator_3-way'!A10,'True_Odds_Calculator_3-way'!B10,'True_Odds_Calculator_3-way'!C10,'Log_working_3-way'!B$1,'Log_working_3-way'!B$2) -> 1.020320184 | F9: =IF('Log_working_3-way'!D9="","",1/'True_Odds_Calculator_3-way'!N10+1/'True_Odds_Calculator_3-way'!O10+1/'True_Odds_Calculator_3-way'!P10-1) -> 6.661338148e-16 | H9: =IF('Log_working_3-way'!$D9="","",'True_Odds_Calculator_3-way'!N10/'True_Odds_Calculator_3-way'!A10-1) -> 0.01201554692 | I9: =IF('Log_working_3-way'!$D9="","",'True_Odds_Calculator_3-way'!O10/'True_Odds_Calculator_3-way'!B10-1) -> 0.02830740418 | J9: =IF('Log_working_3-way'!$D9="","",'True_Odds_Calculator_3-way'!P10/'True_Odds_Calculator_3-way'!C10-1) -> 0.03207985855 | K9: =IF('Log_working_3-way'!$D9="","",1/'True_Odds_Calculator_3-way'!A10+1/'True_Odds_Calculator_3-way'!B10+1/'True_Odds_Calculator_3-way'!C10-1) -> 0.020136603
D10: =solve_for_c('True_Odds_Calculator_3-way'!A11,'True_Odds_Calculator_3-way'!B11,'True_Odds_Calculator_3-way'!C11,'Log_working_3-way'!B$1,'Log_working_3-way'!B$2) -> 1.01943335 | F10: =IF('Log_working_3-way'!D10="","",1/'True_Odds_Calculator_3-way'!N11+1/'True_Odds_Calculator_3-way'!O11+1/'True_Odds_Calculator_3-way'!P11-1) -> 0 | H10: =IF('Log_working_3-way'!$D10="","",'True_Odds_Calculator_3-way'!N11/'True_Odds_Calculator_3-way'!A11-1) -> 0.01452277364 | I10: =IF('Log_working_3-way'!$D10="","",'True_Odds_Calculator_3-way'!O11/'True_Odds_Calculator_3-way'!B11-1) -> 0.02564323249 | J10: =IF('Log_working_3-way'!$D10="","",'True_Odds_Calculator_3-way'!P11/'True_Odds_Calculator_3-way'!C11-1) -> 0.02558899802 | K10: =IF('Log_working_3-way'!$D10="","",1/'True_Odds_Calculator_3-way'!A11+1/'True_Odds_Calculator_3-way'!B11+1/'True_Odds_Calculator_3-way'!C11-1) -> 0.02040917066
D11: =solve_for_c('True_Odds_Calculator_3-way'!A12,'True_Odds_Calculator_3-way'!B12,'True_Odds_Calculator_3-way'!C12,'Log_working_3-way'!B$1,'Log_working_3-way'!B$2) -> 1.033705025 | F11: =IF('Log_working_3-way'!D11="","",1/'True_Odds_Calculator_3-way'!N12+1/'True_Odds_Calculator_3-way'!O12+1/'True_Odds_Calculator_3-way'!P12-1) -> 1.789679516e-13 | H11: =IF('Log_working_3-way'!$D11="","",'True_Odds_Calculator_3-way'!N12/'True_Odds_Calculator_3-way'!A12-1) -> 0.08583433585 | I11: =IF('Log_working_3-way'!$D11="","",'True_Odds_Calculator_3-way'!O12/'True_Odds_Calculator_3-way'!B12-1) -> 0.06348451933 | J11: =IF('Log_working_3-way'!$D11="","",'True_Odds_Calculator_3-way'!P12/'True_Odds_Calculator_3-way'!C12-1) -> 0.008619659575 | K11: =IF('Log_working_3-way'!$D11="","",1/'True_Odds_Calculator_3-way'!A12+1/'True_Odds_Calculator_3-way'!B12+1/'True_Odds_Calculator_3-way'!C12-1) -> 0.02310536733
D12: =solve_for_c('True_Odds_Calculator_3-way'!A13,'True_Odds_Calculator_3-way'!B13,'True_Odds_Calculator_3-way'!C13,'Log_working_3-way'!B$1,'Log_working_3-way'!B$2) ->  | F12: =IF('Log_working_3-way'!D12="","",1/'True_Odds_Calculator_3-way'!N13+1/'True_Odds_Calculator_3-way'!O13+1/'True_Odds_Calculator_3-way'!P13-1) ->  | H12: =IF('Log_working_3-way'!$D12="","",'True_Odds_Calculator_3-way'!N13/'True_Odds_Calculator_3-way'!A13-1) ->  | I12: =IF('Log_working_3-way'!$D12="","",'True_Odds_Calculator_3-way'!O13/'True_Odds_Calculator_3-way'!B13-1) ->  | J12: =IF('Log_working_3-way'!$D12="","",'True_Odds_Calculator_3-way'!P13/'True_Odds_Calculator_3-way'!C13-1) ->  | K12: =IF('Log_working_3-way'!$D12="","",1/'True_Odds_Calculator_3-way'!A13+1/'True_Odds_Calculator_3-way'!B13+1/'True_Odds_Calculator_3-way'!C13-1) -> 
D13: =solve_for_c('True_Odds_Calculator_3-way'!A14,'True_Odds_Calculator_3-way'!B14,'True_Odds_Calculator_3-way'!C14,'Log_working_3-way'!B$1,'Log_working_3-way'!B$2) ->  | F13: =IF('Log_working_3-way'!D13="","",1/'True_Odds_Calculator_3-way'!N14+1/'True_Odds_Calculator_3-way'!O14+1/'True_Odds_Calculator_3-way'!P14-1) ->  | H13: =IF('Log_working_3-way'!$D13="","",'True_Odds_Calculator_3-way'!N14/'True_Odds_Calculator_3-way'!A14-1) ->  | I13: =IF('Log_working_3-way'!$D13="","",'True_Odds_Calculator_3-way'!O14/'True_Odds_Calculator_3-way'!B14-1) ->  | J13: =IF('Log_working_3-way'!$D13="","",'True_Odds_Calculator_3-way'!P14/'True_Odds_Calculator_3-way'!C14-1) ->  | K13: =IF('Log_working_3-way'!$D13="","",1/'True_Odds_Calculator_3-way'!A14+1/'True_Odds_Calculator_3-way'!B14+1/'True_Odds_Calculator_3-way'!C14-1) -> 
D14: =solve_for_c('True_Odds_Calculator_3-way'!A15,'True_Odds_Calculator_3-way'!B15,'True_Odds_Calculator_3-way'!C15,'Log_working_3-way'!B$1,'Log_working_3-way'!B$2) ->  | F14: =IF('Log_working_3-way'!D14="","",1/'True_Odds_Calculator_3-way'!N15+1/'True_Odds_Calculator_3-way'!O15+1/'True_Odds_Calculator_3-way'!P15-1) ->  | H14: =IF('Log_working_3-way'!$D14="","",'True_Odds_Calculator_3-way'!N15/'True_Odds_Calculator_3-way'!A15-1) ->  | I14: =IF('Log_working_3-way'!$D14="","",'True_Odds_Calculator_3-way'!O15/'True_Odds_Calculator_3-way'!B15-1) ->  | J14: =IF('Log_working_3-way'!$D14="","",'True_Odds_Calculator_3-way'!P15/'True_Odds_Calculator_3-way'!C15-1) ->  | K14: =IF('Log_working_3-way'!$D14="","",1/'True_Odds_Calculator_3-way'!A15+1/'True_Odds_Calculator_3-way'!B15+1/'True_Odds_Calculator_3-way'!C15-1) -> 
D15: =solve_for_c('True_Odds_Calculator_3-way'!A16,'True_Odds_Calculator_3-way'!B16,'True_Odds_Calculator_3-way'!C16,'Log_working_3-way'!B$1,'Log_working_3-way'!B$2) ->  | F15: =IF('Log_working_3-way'!D15="","",1/'True_Odds_Calculator_3-way'!N16+1/'True_Odds_Calculator_3-way'!O16+1/'True_Odds_Calculator_3-way'!P16-1) ->  | H15: =IF('Log_working_3-way'!$D15="","",'True_Odds_Calculator_3-way'!N16/'True_Odds_Calculator_3-way'!A16-1) ->  | I15: =IF('Log_working_3-way'!$D15="","",'True_Odds_Calculator_3-way'!O16/'True_Odds_Calculator_3-way'!B16-1) ->  | J15: =IF('Log_working_3-way'!$D15="","",'True_Odds_Calculator_3-way'!P16/'True_Odds_Calculator_3-way'!C16-1) ->  | K15: =IF('Log_working_3-way'!$D15="","",1/'True_Odds_Calculator_3-way'!A16+1/'True_Odds_Calculator_3-way'!B16+1/'True_Odds_Calculator_3-way'!C16-1) -> 
D16: =solve_for_c('True_Odds_Calculator_3-way'!A17,'True_Odds_Calculator_3-way'!B17,'True_Odds_Calculator_3-way'!C17,'Log_working_3-way'!B$1,'Log_working_3-way'!B$2) ->  | F16: =IF('Log_working_3-way'!D16="","",1/'True_Odds_Calculator_3-way'!N17+1/'True_Odds_Calculator_3-way'!O17+1/'True_Odds_Calculator_3-way'!P17-1) ->  | H16: =IF('Log_working_3-way'!$D16="","",'True_Odds_Calculator_3-way'!N17/'True_Odds_Calculator_3-way'!A17-1) ->  | I16: =IF('Log_working_3-way'!$D16="","",'True_Odds_Calculator_3-way'!O17/'True_Odds_Calculator_3-way'!B17-1) ->  | J16: =IF('Log_working_3-way'!$D16="","",'True_Odds_Calculator_3-way'!P17/'True_Odds_Calculator_3-way'!C17-1) ->  | K16: =IF('Log_working_3-way'!$D16="","",1/'True_Odds_Calculator_3-way'!A17+1/'True_Odds_Calculator_3-way'!B17+1/'True_Odds_Calculator_3-way'!C17-1) -> 
D17: =solve_for_c('True_Odds_Calculator_3-way'!A18,'True_Odds_Calculator_3-way'!B18,'True_Odds_Calculator_3-way'!C18,'Log_working_3-way'!B$1,'Log_working_3-way'!B$2) ->  | F17: =IF('Log_working_3-way'!D17="","",1/'True_Odds_Calculator_3-way'!N18+1/'True_Odds_Calculator_3-way'!O18+1/'True_Odds_Calculator_3-way'!P18-1) ->  | H17: =IF('Log_working_3-way'!$D17="","",'True_Odds_Calculator_3-way'!N18/'True_Odds_Calculator_3-way'!A18-1) ->  | I17: =IF('Log_working_3-way'!$D17="","",'True_Odds_Calculator_3-way'!O18/'True_Odds_Calculator_3-way'!B18-1) ->  | J17: =IF('Log_working_3-way'!$D17="","",'True_Odds_Calculator_3-way'!P18/'True_Odds_Calculator_3-way'!C18-1) ->  | K17: =IF('Log_working_3-way'!$D17="","",1/'True_Odds_Calculator_3-way'!A18+1/'True_Odds_Calculator_3-way'!B18+1/'True_Odds_Calculator_3-way'!C18-1) -> 
D18: =solve_for_c('True_Odds_Calculator_3-way'!A19,'True_Odds_Calculator_3-way'!B19,'True_Odds_Calculator_3-way'!C19,'Log_working_3-way'!B$1,'Log_working_3-way'!B$2) ->  | F18: =IF('Log_working_3-way'!D18="","",1/'True_Odds_Calculator_3-way'!N19+1/'True_Odds_Calculator_3-way'!O19+1/'True_Odds_Calculator_3-way'!P19-1) ->  | H18: =IF('Log_working_3-way'!$D18="","",'True_Odds_Calculator_3-way'!N19/'True_Odds_Calculator_3-way'!A19-1) ->  | I18: =IF('Log_working_3-way'!$D18="","",'True_Odds_Calculator_3-way'!O19/'True_Odds_Calculator_3-way'!B19-1) ->  | J18: =IF('Log_working_3-way'!$D18="","",'True_Odds_Calculator_3-way'!P19/'True_Odds_Calculator_3-way'!C19-1) ->  | K18: =IF('Log_working_3-way'!$D18="","",1/'True_Odds_Calculator_3-way'!A19+1/'True_Odds_Calculator_3-way'!B19+1/'True_Odds_Calculator_3-way'!C19-1) -> 
D19: =solve_for_c('True_Odds_Calculator_3-way'!A20,'True_Odds_Calculator_3-way'!B20,'True_Odds_Calculator_3-way'!C20,'Log_working_3-way'!B$1,'Log_working_3-way'!B$2) ->  | F19: =IF('Log_working_3-way'!D19="","",1/'True_Odds_Calculator_3-way'!N20+1/'True_Odds_Calculator_3-way'!O20+1/'True_Odds_Calculator_3-way'!P20-1) ->  | H19: =IF('Log_working_3-way'!$D19="","",'True_Odds_Calculator_3-way'!N20/'True_Odds_Calculator_3-way'!A20-1) ->  | I19: =IF('Log_working_3-way'!$D19="","",'True_Odds_Calculator_3-way'!O20/'True_Odds_Calculator_3-way'!B20-1) ->  | J19: =IF('Log_working_3-way'!$D19="","",'True_Odds_Calculator_3-way'!P20/'True_Odds_Calculator_3-way'!C20-1) ->  | K19: =IF('Log_working_3-way'!$D19="","",1/'True_Odds_Calculator_3-way'!A20+1/'True_Odds_Calculator_3-way'!B20+1/'True_Odds_Calculator_3-way'!C20-1) -> 
D20: =solve_for_c('True_Odds_Calculator_3-way'!A21,'True_Odds_Calculator_3-way'!B21,'True_Odds_Calculator_3-way'!C21,'Log_working_3-way'!B$1,'Log_working_3-way'!B$2) ->  | F20: =IF('Log_working_3-way'!D20="","",1/'True_Odds_Calculator_3-way'!N21+1/'True_Odds_Calculator_3-way'!O21+1/'True_Odds_Calculator_3-way'!P21-1) ->  | H20: =IF('Log_working_3-way'!$D20="","",'True_Odds_Calculator_3-way'!N21/'True_Odds_Calculator_3-way'!A21-1) ->  | I20: =IF('Log_working_3-way'!$D20="","",'True_Odds_Calculator_3-way'!O21/'True_Odds_Calculator_3-way'!B21-1) ->  | J20: =IF('Log_working_3-way'!$D20="","",'True_Odds_Calculator_3-way'!P21/'True_Odds_Calculator_3-way'!C21-1) ->  | K20: =IF('Log_working_3-way'!$D20="","",1/'True_Odds_Calculator_3-way'!A21+1/'True_Odds_Calculator_3-way'!B21+1/'True_Odds_Calculator_3-way'!C21-1) -> 
D21: =solve_for_c('True_Odds_Calculator_3-way'!A22,'True_Odds_Calculator_3-way'!B22,'True_Odds_Calculator_3-way'!C22,'Log_working_3-way'!B$1,'Log_working_3-way'!B$2) ->  | F21: =IF('Log_working_3-way'!D21="","",1/'True_Odds_Calculator_3-way'!N22+1/'True_Odds_Calculator_3-way'!O22+1/'True_Odds_Calculator_3-way'!P22-1) ->  | H21: =IF('Log_working_3-way'!$D21="","",'True_Odds_Calculator_3-way'!N22/'True_Odds_Calculator_3-way'!A22-1) ->  | I21: =IF('Log_working_3-way'!$D21="","",'True_Odds_Calculator_3-way'!O22/'True_Odds_Calculator_3-way'!B22-1) ->  | J21: =IF('Log_working_3-way'!$D21="","",'True_Odds_Calculator_3-way'!P22/'True_Odds_Calculator_3-way'!C22-1) ->  | K21: =IF('Log_working_3-way'!$D21="","",1/'True_Odds_Calculator_3-way'!A22+1/'True_Odds_Calculator_3-way'!B22+1/'True_Odds_Calculator_3-way'!C22-1) -> 
D22: =solve_for_c('True_Odds_Calculator_3-way'!A23,'True_Odds_Calculator_3-way'!B23,'True_Odds_Calculator_3-way'!C23,'Log_working_3-way'!B$1,'Log_working_3-way'!B$2) ->  | F22: =IF('Log_working_3-way'!D22="","",1/'True_Odds_Calculator_3-way'!N23+1/'True_Odds_Calculator_3-way'!O23+1/'True_Odds_Calculator_3-way'!P23-1) ->  | H22: =IF('Log_working_3-way'!$D22="","",'True_Odds_Calculator_3-way'!N23/'True_Odds_Calculator_3-way'!A23-1) ->  | I22: =IF('Log_working_3-way'!$D22="","",'True_Odds_Calculator_3-way'!O23/'True_Odds_Calculator_3-way'!B23-1) ->  | J22: =IF('Log_working_3-way'!$D22="","",'True_Odds_Calculator_3-way'!P23/'True_Odds_Calculator_3-way'!C23-1) ->  | K22: =IF('Log_working_3-way'!$D22="","",1/'True_Odds_Calculator_3-way'!A23+1/'True_Odds_Calculator_3-way'!B23+1/'True_Odds_Calculator_3-way'!C23-1) -> 
D23: =solve_for_c('True_Odds_Calculator_3-way'!A24,'True_Odds_Calculator_3-way'!B24,'True_Odds_Calculator_3-way'!C24,'Log_working_3-way'!B$1,'Log_working_3-way'!B$2) ->  | F23: =IF('Log_working_3-way'!D23="","",1/'True_Odds_Calculator_3-way'!N24+1/'True_Odds_Calculator_3-way'!O24+1/'True_Odds_Calculator_3-way'!P24-1) ->  | H23: =IF('Log_working_3-way'!$D23="","",'True_Odds_Calculator_3-way'!N24/'True_Odds_Calculator_3-way'!A24-1) ->  | I23: =IF('Log_working_3-way'!$D23="","",'True_Odds_Calculator_3-way'!O24/'True_Odds_Calculator_3-way'!B24-1) ->  | J23: =IF('Log_working_3-way'!$D23="","",'True_Odds_Calculator_3-way'!P24/'True_Odds_Calculator_3-way'!C24-1) ->  | K23: =IF('Log_working_3-way'!$D23="","",1/'True_Odds_Calculator_3-way'!A24+1/'True_Odds_Calculator_3-way'!B24+1/'True_Odds_Calculator_3-way'!C24-1) -> 
D24: =solve_for_c('True_Odds_Calculator_3-way'!A25,'True_Odds_Calculator_3-way'!B25,'True_Odds_Calculator_3-way'!C25,'Log_working_3-way'!B$1,'Log_working_3-way'!B$2) ->  | F24: =IF('Log_working_3-way'!D24="","",1/'True_Odds_Calculator_3-way'!N25+1/'True_Odds_Calculator_3-way'!O25+1/'True_Odds_Calculator_3-way'!P25-1) ->  | H24: =IF('Log_working_3-way'!$D24="","",'True_Odds_Calculator_3-way'!N25/'True_Odds_Calculator_3-way'!A25-1) ->  | I24: =IF('Log_working_3-way'!$D24="","",'True_Odds_Calculator_3-way'!O25/'True_Odds_Calculator_3-way'!B25-1) ->  | J24: =IF('Log_working_3-way'!$D24="","",'True_Odds_Calculator_3-way'!P25/'True_Odds_Calculator_3-way'!C25-1) ->  | K24: =IF('Log_working_3-way'!$D24="","",1/'True_Odds_Calculator_3-way'!A25+1/'True_Odds_Calculator_3-way'!B25+1/'True_Odds_Calculator_3-way'!C25-1) -> 
D25: =solve_for_c('True_Odds_Calculator_3-way'!A26,'True_Odds_Calculator_3-way'!B26,'True_Odds_Calculator_3-way'!C26,'Log_working_3-way'!B$1,'Log_working_3-way'!B$2) ->  | F25: =IF('Log_working_3-way'!D25="","",1/'True_Odds_Calculator_3-way'!N26+1/'True_Odds_Calculator_3-way'!O26+1/'True_Odds_Calculator_3-way'!P26-1) ->  | H25: =IF('Log_working_3-way'!$D25="","",'True_Odds_Calculator_3-way'!N26/'True_Odds_Calculator_3-way'!A26-1) ->  | I25: =IF('Log_working_3-way'!$D25="","",'True_Odds_Calculator_3-way'!O26/'True_Odds_Calculator_3-way'!B26-1) ->  | J25: =IF('Log_working_3-way'!$D25="","",'True_Odds_Calculator_3-way'!P26/'True_Odds_Calculator_3-way'!C26-1) ->  | K25: =IF('Log_working_3-way'!$D25="","",1/'True_Odds_Calculator_3-way'!A26+1/'True_Odds_Calculator_3-way'!B26+1/'True_Odds_Calculator_3-way'!C26-1) -> 
D26: =solve_for_c('True_Odds_Calculator_3-way'!A27,'True_Odds_Calculator_3-way'!B27,'True_Odds_Calculator_3-way'!C27,'Log_working_3-way'!B$1,'Log_working_3-way'!B$2) ->  | F26: =IF('Log_working_3-way'!D26="","",1/'True_Odds_Calculator_3-way'!N27+1/'True_Odds_Calculator_3-way'!O27+1/'True_Odds_Calculator_3-way'!P27-1) ->  | H26: =IF('Log_working_3-way'!$D26="","",'True_Odds_Calculator_3-way'!N27/'True_Odds_Calculator_3-way'!A27-1) ->  | I26: =IF('Log_working_3-way'!$D26="","",'True_Odds_Calculator_3-way'!O27/'True_Odds_Calculator_3-way'!B27-1) ->  | J26: =IF('Log_working_3-way'!$D26="","",'True_Odds_Calculator_3-way'!P27/'True_Odds_Calculator_3-way'!C27-1) ->  | K26: =IF('Log_working_3-way'!$D26="","",1/'True_Odds_Calculator_3-way'!A27+1/'True_Odds_Calculator_3-way'!B27+1/'True_Odds_Calculator_3-way'!C27-1) -> 
D27: =solve_for_c('True_Odds_Calculator_3-way'!A28,'True_Odds_Calculator_3-way'!B28,'True_Odds_Calculator_3-way'!C28,'Log_working_3-way'!B$1,'Log_working_3-way'!B$2) ->  | F27: =IF('Log_working_3-way'!D27="","",1/'True_Odds_Calculator_3-way'!N28+1/'True_Odds_Calculator_3-way'!O28+1/'True_Odds_Calculator_3-way'!P28-1) ->  | H27: =IF('Log_working_3-way'!$D27="","",'True_Odds_Calculator_3-way'!N28/'True_Odds_Calculator_3-way'!A28-1) ->  | I27: =IF('Log_working_3-way'!$D27="","",'True_Odds_Calculator_3-way'!O28/'True_Odds_Calculator_3-way'!B28-1) ->  | J27: =IF('Log_working_3-way'!$D27="","",'True_Odds_Calculator_3-way'!P28/'True_Odds_Calculator_3-way'!C28-1) ->  | K27: =IF('Log_working_3-way'!$D27="","",1/'True_Odds_Calculator_3-way'!A28+1/'True_Odds_Calculator_3-way'!B28+1/'True_Odds_Calculator_3-way'!C28-1) -> 
D28: =solve_for_c('True_Odds_Calculator_3-way'!A29,'True_Odds_Calculator_3-way'!B29,'True_Odds_Calculator_3-way'!C29,'Log_working_3-way'!B$1,'Log_working_3-way'!B$2) ->  | F28: =IF('Log_working_3-way'!D28="","",1/'True_Odds_Calculator_3-way'!N29+1/'True_Odds_Calculator_3-way'!O29+1/'True_Odds_Calculator_3-way'!P29-1) ->  | H28: =IF('Log_working_3-way'!$D28="","",'True_Odds_Calculator_3-way'!N29/'True_Odds_Calculator_3-way'!A29-1) ->  | I28: =IF('Log_working_3-way'!$D28="","",'True_Odds_Calculator_3-way'!O29/'True_Odds_Calculator_3-way'!B29-1) ->  | J28: =IF('Log_working_3-way'!$D28="","",'True_Odds_Calculator_3-way'!P29/'True_Odds_Calculator_3-way'!C29-1) ->  | K28: =IF('Log_working_3-way'!$D28="","",1/'True_Odds_Calculator_3-way'!A29+1/'True_Odds_Calculator_3-way'!B29+1/'True_Odds_Calculator_3-way'!C29-1) -> 
D29: =solve_for_c('True_Odds_Calculator_3-way'!A30,'True_Odds_Calculator_3-way'!B30,'True_Odds_Calculator_3-way'!C30,'Log_working_3-way'!B$1,'Log_working_3-way'!B$2) ->  | F29: =IF('Log_working_3-way'!D29="","",1/'True_Odds_Calculator_3-way'!N30+1/'True_Odds_Calculator_3-way'!O30+1/'True_Odds_Calculator_3-way'!P30-1) ->  | H29: =IF('Log_working_3-way'!$D29="","",'True_Odds_Calculator_3-way'!N30/'True_Odds_Calculator_3-way'!A30-1) ->  | I29: =IF('Log_working_3-way'!$D29="","",'True_Odds_Calculator_3-way'!O30/'True_Odds_Calculator_3-way'!B30-1) ->  | J29: =IF('Log_working_3-way'!$D29="","",'True_Odds_Calculator_3-way'!P30/'True_Odds_Calculator_3-way'!C30-1) ->  | K29: =IF('Log_working_3-way'!$D29="","",1/'True_Odds_Calculator_3-way'!A30+1/'True_Odds_Calculator_3-way'!B30+1/'True_Odds_Calculator_3-way'!C30-1) -> 
D30: =solve_for_c('True_Odds_Calculator_3-way'!A31,'True_Odds_Calculator_3-way'!B31,'True_Odds_Calculator_3-way'!C31,'Log_working_3-way'!B$1,'Log_working_3-way'!B$2) ->  | F30: =IF('Log_working_3-way'!D30="","",1/'True_Odds_Calculator_3-way'!N31+1/'True_Odds_Calculator_3-way'!O31+1/'True_Odds_Calculator_3-way'!P31-1) ->  | H30: =IF('Log_working_3-way'!$D30="","",'True_Odds_Calculator_3-way'!N31/'True_Odds_Calculator_3-way'!A31-1) ->  | I30: =IF('Log_working_3-way'!$D30="","",'True_Odds_Calculator_3-way'!O31/'True_Odds_Calculator_3-way'!B31-1) ->  | J30: =IF('Log_working_3-way'!$D30="","",'True_Odds_Calculator_3-way'!P31/'True_Odds_Calculator_3-way'!C31-1) ->  | K30: =IF('Log_working_3-way'!$D30="","",1/'True_Odds_Calculator_3-way'!A31+1/'True_Odds_Calculator_3-way'!B31+1/'True_Odds_Calculator_3-way'!C31-1) -> 
D31: =solve_for_c('True_Odds_Calculator_3-way'!A32,'True_Odds_Calculator_3-way'!B32,'True_Odds_Calculator_3-way'!C32,'Log_working_3-way'!B$1,'Log_working_3-way'!B$2) ->  | F31: =IF('Log_working_3-way'!D31="","",1/'True_Odds_Calculator_3-way'!N32+1/'True_Odds_Calculator_3-way'!O32+1/'True_Odds_Calculator_3-way'!P32-1) ->  | H31: =IF('Log_working_3-way'!$D31="","",'True_Odds_Calculator_3-way'!N32/'True_Odds_Calculator_3-way'!A32-1) ->  | I31: =IF('Log_working_3-way'!$D31="","",'True_Odds_Calculator_3-way'!O32/'True_Odds_Calculator_3-way'!B32-1) ->  | J31: =IF('Log_working_3-way'!$D31="","",'True_Odds_Calculator_3-way'!P32/'True_Odds_Calculator_3-way'!C32-1) ->  | K31: =IF('Log_working_3-way'!$D31="","",1/'True_Odds_Calculator_3-way'!A32+1/'True_Odds_Calculator_3-way'!B32+1/'True_Odds_Calculator_3-way'!C32-1) -> 
D32: =solve_for_c('True_Odds_Calculator_3-way'!A33,'True_Odds_Calculator_3-way'!B33,'True_Odds_Calculator_3-way'!C33,'Log_working_3-way'!B$1,'Log_working_3-way'!B$2) ->  | F32: =IF('Log_working_3-way'!D32="","",1/'True_Odds_Calculator_3-way'!N33+1/'True_Odds_Calculator_3-way'!O33+1/'True_Odds_Calculator_3-way'!P33-1) ->  | H32: =IF('Log_working_3-way'!$D32="","",'True_Odds_Calculator_3-way'!N33/'True_Odds_Calculator_3-way'!A33-1) ->  | I32: =IF('Log_working_3-way'!$D32="","",'True_Odds_Calculator_3-way'!O33/'True_Odds_Calculator_3-way'!B33-1) ->  | J32: =IF('Log_working_3-way'!$D32="","",'True_Odds_Calculator_3-way'!P33/'True_Odds_Calculator_3-way'!C33-1) ->  | K32: =IF('Log_working_3-way'!$D32="","",1/'True_Odds_Calculator_3-way'!A33+1/'True_Odds_Calculator_3-way'!B33+1/'True_Odds_Calculator_3-way'!C33-1) -> 
D33: =solve_for_c('True_Odds_Calculator_3-way'!A34,'True_Odds_Calculator_3-way'!B34,'True_Odds_Calculator_3-way'!C34,'Log_working_3-way'!B$1,'Log_working_3-way'!B$2) ->  | F33: =IF('Log_working_3-way'!D33="","",1/'True_Odds_Calculator_3-way'!N34+1/'True_Odds_Calculator_3-way'!O34+1/'True_Odds_Calculator_3-way'!P34-1) ->  | H33: =IF('Log_working_3-way'!$D33="","",'True_Odds_Calculator_3-way'!N34/'True_Odds_Calculator_3-way'!A34-1) ->  | I33: =IF('Log_working_3-way'!$D33="","",'True_Odds_Calculator_3-way'!O34/'True_Odds_Calculator_3-way'!B34-1) ->  | J33: =IF('Log_working_3-way'!$D33="","",'True_Odds_Calculator_3-way'!P34/'True_Odds_Calculator_3-way'!C34-1) ->  | K33: =IF('Log_working_3-way'!$D33="","",1/'True_Odds_Calculator_3-way'!A34+1/'True_Odds_Calculator_3-way'!B34+1/'True_Odds_Calculator_3-way'!C34-1) -> 
D34: =solve_for_c('True_Odds_Calculator_3-way'!A35,'True_Odds_Calculator_3-way'!B35,'True_Odds_Calculator_3-way'!C35,'Log_working_3-way'!B$1,'Log_working_3-way'!B$2) ->  | F34: =IF('Log_working_3-way'!D34="","",1/'True_Odds_Calculator_3-way'!N35+1/'True_Odds_Calculator_3-way'!O35+1/'True_Odds_Calculator_3-way'!P35-1) ->  | H34: =IF('Log_working_3-way'!$D34="","",'True_Odds_Calculator_3-way'!N35/'True_Odds_Calculator_3-way'!A35-1) ->  | I34: =IF('Log_working_3-way'!$D34="","",'True_Odds_Calculator_3-way'!O35/'True_Odds_Calculator_3-way'!B35-1) ->  | J34: =IF('Log_working_3-way'!$D34="","",'True_Odds_Calculator_3-way'!P35/'True_Odds_Calculator_3-way'!C35-1) ->  | K34: =IF('Log_working_3-way'!$D34="","",1/'True_Odds_Calculator_3-way'!A35+1/'True_Odds_Calculator_3-way'!B35+1/'True_Odds_Calculator_3-way'!C35-1) -> 
D35: =solve_for_c('True_Odds_Calculator_3-way'!A36,'True_Odds_Calculator_3-way'!B36,'True_Odds_Calculator_3-way'!C36,'Log_working_3-way'!B$1,'Log_working_3-way'!B$2) ->  | F35: =IF('Log_working_3-way'!D35="","",1/'True_Odds_Calculator_3-way'!N36+1/'True_Odds_Calculator_3-way'!O36+1/'True_Odds_Calculator_3-way'!P36-1) ->  | H35: =IF('Log_working_3-way'!$D35="","",'True_Odds_Calculator_3-way'!N36/'True_Odds_Calculator_3-way'!A36-1) ->  | I35: =IF('Log_working_3-way'!$D35="","",'True_Odds_Calculator_3-way'!O36/'True_Odds_Calculator_3-way'!B36-1) ->  | J35: =IF('Log_working_3-way'!$D35="","",'True_Odds_Calculator_3-way'!P36/'True_Odds_Calculator_3-way'!C36-1) ->  | K35: =IF('Log_working_3-way'!$D35="","",1/'True_Odds_Calculator_3-way'!A36+1/'True_Odds_Calculator_3-way'!B36+1/'True_Odds_Calculator_3-way'!C36-1) -> 
D36: =solve_for_c('True_Odds_Calculator_3-way'!A37,'True_Odds_Calculator_3-way'!B37,'True_Odds_Calculator_3-way'!C37,'Log_working_3-way'!B$1,'Log_working_3-way'!B$2) ->  | F36: =IF('Log_working_3-way'!D36="","",1/'True_Odds_Calculator_3-way'!N37+1/'True_Odds_Calculator_3-way'!O37+1/'True_Odds_Calculator_3-way'!P37-1) ->  | H36: =IF('Log_working_3-way'!$D36="","",'True_Odds_Calculator_3-way'!N37/'True_Odds_Calculator_3-way'!A37-1) ->  | I36: =IF('Log_working_3-way'!$D36="","",'True_Odds_Calculator_3-way'!O37/'True_Odds_Calculator_3-way'!B37-1) ->  | J36: =IF('Log_working_3-way'!$D36="","",'True_Odds_Calculator_3-way'!P37/'True_Odds_Calculator_3-way'!C37-1) ->  | K36: =IF('Log_working_3-way'!$D36="","",1/'True_Odds_Calculator_3-way'!A37+1/'True_Odds_Calculator_3-way'!B37+1/'True_Odds_Calculator_3-way'!C37-1) -> 
D37: =solve_for_c('True_Odds_Calculator_3-way'!A38,'True_Odds_Calculator_3-way'!B38,'True_Odds_Calculator_3-way'!C38,'Log_working_3-way'!B$1,'Log_working_3-way'!B$2) ->  | F37: =IF('Log_working_3-way'!D37="","",1/'True_Odds_Calculator_3-way'!N38+1/'True_Odds_Calculator_3-way'!O38+1/'True_Odds_Calculator_3-way'!P38-1) ->  | H37: =IF('Log_working_3-way'!$D37="","",'True_Odds_Calculator_3-way'!N38/'True_Odds_Calculator_3-way'!A38-1) ->  | I37: =IF('Log_working_3-way'!$D37="","",'True_Odds_Calculator_3-way'!O38/'True_Odds_Calculator_3-way'!B38-1) ->  | J37: =IF('Log_working_3-way'!$D37="","",'True_Odds_Calculator_3-way'!P38/'True_Odds_Calculator_3-way'!C38-1) ->  | K37: =IF('Log_working_3-way'!$D37="","",1/'True_Odds_Calculator_3-way'!A38+1/'True_Odds_Calculator_3-way'!B38+1/'True_Odds_Calculator_3-way'!C38-1) -> 
D38: =solve_for_c('True_Odds_Calculator_3-way'!A39,'True_Odds_Calculator_3-way'!B39,'True_Odds_Calculator_3-way'!C39,'Log_working_3-way'!B$1,'Log_working_3-way'!B$2) ->  | F38: =IF('Log_working_3-way'!D38="","",1/'True_Odds_Calculator_3-way'!N39+1/'True_Odds_Calculator_3-way'!O39+1/'True_Odds_Calculator_3-way'!P39-1) ->  | H38: =IF('Log_working_3-way'!$D38="","",'True_Odds_Calculator_3-way'!N39/'True_Odds_Calculator_3-way'!A39-1) ->  | I38: =IF('Log_working_3-way'!$D38="","",'True_Odds_Calculator_3-way'!O39/'True_Odds_Calculator_3-way'!B39-1) ->  | J38: =IF('Log_working_3-way'!$D38="","",'True_Odds_Calculator_3-way'!P39/'True_Odds_Calculator_3-way'!C39-1) ->  | K38: =IF('Log_working_3-way'!$D38="","",1/'True_Odds_Calculator_3-way'!A39+1/'True_Odds_Calculator_3-way'!B39+1/'True_Odds_Calculator_3-way'!C39-1) -> 
D39: =solve_for_c('True_Odds_Calculator_3-way'!A40,'True_Odds_Calculator_3-way'!B40,'True_Odds_Calculator_3-way'!C40,'Log_working_3-way'!B$1,'Log_working_3-way'!B$2) ->  | F39: =IF('Log_working_3-way'!D39="","",1/'True_Odds_Calculator_3-way'!N40+1/'True_Odds_Calculator_3-way'!O40+1/'True_Odds_Calculator_3-way'!P40-1) ->  | H39: =IF('Log_working_3-way'!$D39="","",'True_Odds_Calculator_3-way'!N40/'True_Odds_Calculator_3-way'!A40-1) ->  | I39: =IF('Log_working_3-way'!$D39="","",'True_Odds_Calculator_3-way'!O40/'True_Odds_Calculator_3-way'!B40-1) ->  | J39: =IF('Log_working_3-way'!$D39="","",'True_Odds_Calculator_3-way'!P40/'True_Odds_Calculator_3-way'!C40-1) ->  | K39: =IF('Log_working_3-way'!$D39="","",1/'True_Odds_Calculator_3-way'!A40+1/'True_Odds_Calculator_3-way'!B40+1/'True_Odds_Calculator_3-way'!C40-1) -> 
D40: =solve_for_c('True_Odds_Calculator_3-way'!A41,'True_Odds_Calculator_3-way'!B41,'True_Odds_Calculator_3-way'!C41,'Log_working_3-way'!B$1,'Log_working_3-way'!B$2) ->  | F40: =IF('Log_working_3-way'!D40="","",1/'True_Odds_Calculator_3-way'!N41+1/'True_Odds_Calculator_3-way'!O41+1/'True_Odds_Calculator_3-way'!P41-1) ->  | H40: =IF('Log_working_3-way'!$D40="","",'True_Odds_Calculator_3-way'!N41/'True_Odds_Calculator_3-way'!A41-1) ->  | I40: =IF('Log_working_3-way'!$D40="","",'True_Odds_Calculator_3-way'!O41/'True_Odds_Calculator_3-way'!B41-1) ->  | J40: =IF('Log_working_3-way'!$D40="","",'True_Odds_Calculator_3-way'!P41/'True_Odds_Calculator_3-way'!C41-1) ->  | K40: =IF('Log_working_3-way'!$D40="","",1/'True_Odds_Calculator_3-way'!A41+1/'True_Odds_Calculator_3-way'!B41+1/'True_Odds_Calculator_3-way'!C41-1) -> 
D41: =solve_for_c('True_Odds_Calculator_3-way'!A42,'True_Odds_Calculator_3-way'!B42,'True_Odds_Calculator_3-way'!C42,'Log_working_3-way'!B$1,'Log_working_3-way'!B$2) ->  | F41: =IF('Log_working_3-way'!D41="","",1/'True_Odds_Calculator_3-way'!N42+1/'True_Odds_Calculator_3-way'!O42+1/'True_Odds_Calculator_3-way'!P42-1) ->  | H41: =IF('Log_working_3-way'!$D41="","",'True_Odds_Calculator_3-way'!N42/'True_Odds_Calculator_3-way'!A42-1) ->  | I41: =IF('Log_working_3-way'!$D41="","",'True_Odds_Calculator_3-way'!O42/'True_Odds_Calculator_3-way'!B42-1) ->  | J41: =IF('Log_working_3-way'!$D41="","",'True_Odds_Calculator_3-way'!P42/'True_Odds_Calculator_3-way'!C42-1) ->  | K41: =IF('Log_working_3-way'!$D41="","",1/'True_Odds_Calculator_3-way'!A42+1/'True_Odds_Calculator_3-way'!B42+1/'True_Odds_Calculator_3-way'!C42-1) -> 
D42: =solve_for_c('True_Odds_Calculator_3-way'!A43,'True_Odds_Calculator_3-way'!B43,'True_Odds_Calculator_3-way'!C43,'Log_working_3-way'!B$1,'Log_working_3-way'!B$2) ->  | F42: =IF('Log_working_3-way'!D42="","",1/'True_Odds_Calculator_3-way'!N43+1/'True_Odds_Calculator_3-way'!O43+1/'True_Odds_Calculator_3-way'!P43-1) ->  | H42: =IF('Log_working_3-way'!$D42="","",'True_Odds_Calculator_3-way'!N43/'True_Odds_Calculator_3-way'!A43-1) ->  | I42: =IF('Log_working_3-way'!$D42="","",'True_Odds_Calculator_3-way'!O43/'True_Odds_Calculator_3-way'!B43-1) ->  | J42: =IF('Log_working_3-way'!$D42="","",'True_Odds_Calculator_3-way'!P43/'True_Odds_Calculator_3-way'!C43-1) ->  | K42: =IF('Log_working_3-way'!$D42="","",1/'True_Odds_Calculator_3-way'!A43+1/'True_Odds_Calculator_3-way'!B43+1/'True_Odds_Calculator_3-way'!C43-1) -> 
D43: =solve_for_c('True_Odds_Calculator_3-way'!A44,'True_Odds_Calculator_3-way'!B44,'True_Odds_Calculator_3-way'!C44,'Log_working_3-way'!B$1,'Log_working_3-way'!B$2) ->  | F43: =IF('Log_working_3-way'!D43="","",1/'True_Odds_Calculator_3-way'!N44+1/'True_Odds_Calculator_3-way'!O44+1/'True_Odds_Calculator_3-way'!P44-1) ->  | H43: =IF('Log_working_3-way'!$D43="","",'True_Odds_Calculator_3-way'!N44/'True_Odds_Calculator_3-way'!A44-1) ->  | I43: =IF('Log_working_3-way'!$D43="","",'True_Odds_Calculator_3-way'!O44/'True_Odds_Calculator_3-way'!B44-1) ->  | J43: =IF('Log_working_3-way'!$D43="","",'True_Odds_Calculator_3-way'!P44/'True_Odds_Calculator_3-way'!C44-1) ->  | K43: =IF('Log_working_3-way'!$D43="","",1/'True_Odds_Calculator_3-way'!A44+1/'True_Odds_Calculator_3-way'!B44+1/'True_Odds_Calculator_3-way'!C44-1) -> 
D44: =solve_for_c('True_Odds_Calculator_3-way'!A45,'True_Odds_Calculator_3-way'!B45,'True_Odds_Calculator_3-way'!C45,'Log_working_3-way'!B$1,'Log_working_3-way'!B$2) ->  | F44: =IF('Log_working_3-way'!D44="","",1/'True_Odds_Calculator_3-way'!N45+1/'True_Odds_Calculator_3-way'!O45+1/'True_Odds_Calculator_3-way'!P45-1) ->  | H44: =IF('Log_working_3-way'!$D44="","",'True_Odds_Calculator_3-way'!N45/'True_Odds_Calculator_3-way'!A45-1) ->  | I44: =IF('Log_working_3-way'!$D44="","",'True_Odds_Calculator_3-way'!O45/'True_Odds_Calculator_3-way'!B45-1) ->  | J44: =IF('Log_working_3-way'!$D44="","",'True_Odds_Calculator_3-way'!P45/'True_Odds_Calculator_3-way'!C45-1) ->  | K44: =IF('Log_working_3-way'!$D44="","",1/'True_Odds_Calculator_3-way'!A45+1/'True_Odds_Calculator_3-way'!B45+1/'True_Odds_Calculator_3-way'!C45-1) -> 
D45: =solve_for_c('True_Odds_Calculator_3-way'!A46,'True_Odds_Calculator_3-way'!B46,'True_Odds_Calculator_3-way'!C46,'Log_working_3-way'!B$1,'Log_working_3-way'!B$2) ->  | F45: =IF('Log_working_3-way'!D45="","",1/'True_Odds_Calculator_3-way'!N46+1/'True_Odds_Calculator_3-way'!O46+1/'True_Odds_Calculator_3-way'!P46-1) ->  | H45: =IF('Log_working_3-way'!$D45="","",'True_Odds_Calculator_3-way'!N46/'True_Odds_Calculator_3-way'!A46-1) ->  | I45: =IF('Log_working_3-way'!$D45="","",'True_Odds_Calculator_3-way'!O46/'True_Odds_Calculator_3-way'!B46-1) ->  | J45: =IF('Log_working_3-way'!$D45="","",'True_Odds_Calculator_3-way'!P46/'True_Odds_Calculator_3-way'!C46-1) ->  | K45: =IF('Log_working_3-way'!$D45="","",1/'True_Odds_Calculator_3-way'!A46+1/'True_Odds_Calculator_3-way'!B46+1/'True_Odds_Calculator_3-way'!C46-1) -> 
D46: =solve_for_c('True_Odds_Calculator_3-way'!A47,'True_Odds_Calculator_3-way'!B47,'True_Odds_Calculator_3-way'!C47,'Log_working_3-way'!B$1,'Log_working_3-way'!B$2) ->  | F46: =IF('Log_working_3-way'!D46="","",1/'True_Odds_Calculator_3-way'!N47+1/'True_Odds_Calculator_3-way'!O47+1/'True_Odds_Calculator_3-way'!P47-1) ->  | H46: =IF('Log_working_3-way'!$D46="","",'True_Odds_Calculator_3-way'!N47/'True_Odds_Calculator_3-way'!A47-1) ->  | I46: =IF('Log_working_3-way'!$D46="","",'True_Odds_Calculator_3-way'!O47/'True_Odds_Calculator_3-way'!B47-1) ->  | J46: =IF('Log_working_3-way'!$D46="","",'True_Odds_Calculator_3-way'!P47/'True_Odds_Calculator_3-way'!C47-1) ->  | K46: =IF('Log_working_3-way'!$D46="","",1/'True_Odds_Calculator_3-way'!A47+1/'True_Odds_Calculator_3-way'!B47+1/'True_Odds_Calculator_3-way'!C47-1) -> 
D47: =solve_for_c('True_Odds_Calculator_3-way'!A48,'True_Odds_Calculator_3-way'!B48,'True_Odds_Calculator_3-way'!C48,'Log_working_3-way'!B$1,'Log_working_3-way'!B$2) ->  | F47: =IF('Log_working_3-way'!D47="","",1/'True_Odds_Calculator_3-way'!N48+1/'True_Odds_Calculator_3-way'!O48+1/'True_Odds_Calculator_3-way'!P48-1) ->  | H47: =IF('Log_working_3-way'!$D47="","",'True_Odds_Calculator_3-way'!N48/'True_Odds_Calculator_3-way'!A48-1) ->  | I47: =IF('Log_working_3-way'!$D47="","",'True_Odds_Calculator_3-way'!O48/'True_Odds_Calculator_3-way'!B48-1) ->  | J47: =IF('Log_working_3-way'!$D47="","",'True_Odds_Calculator_3-way'!P48/'True_Odds_Calculator_3-way'!C48-1) ->  | K47: =IF('Log_working_3-way'!$D47="","",1/'True_Odds_Calculator_3-way'!A48+1/'True_Odds_Calculator_3-way'!B48+1/'True_Odds_Calculator_3-way'!C48-1) -> 
D48: =solve_for_c('True_Odds_Calculator_3-way'!A49,'True_Odds_Calculator_3-way'!B49,'True_Odds_Calculator_3-way'!C49,'Log_working_3-way'!B$1,'Log_working_3-way'!B$2) ->  | F48: =IF('Log_working_3-way'!D48="","",1/'True_Odds_Calculator_3-way'!N49+1/'True_Odds_Calculator_3-way'!O49+1/'True_Odds_Calculator_3-way'!P49-1) ->  | H48: =IF('Log_working_3-way'!$D48="","",'True_Odds_Calculator_3-way'!N49/'True_Odds_Calculator_3-way'!A49-1) ->  | I48: =IF('Log_working_3-way'!$D48="","",'True_Odds_Calculator_3-way'!O49/'True_Odds_Calculator_3-way'!B49-1) ->  | J48: =IF('Log_working_3-way'!$D48="","",'True_Odds_Calculator_3-way'!P49/'True_Odds_Calculator_3-way'!C49-1) ->  | K48: =IF('Log_working_3-way'!$D48="","",1/'True_Odds_Calculator_3-way'!A49+1/'True_Odds_Calculator_3-way'!B49+1/'True_Odds_Calculator_3-way'!C49-1) -> 
D49: =solve_for_c('True_Odds_Calculator_3-way'!A50,'True_Odds_Calculator_3-way'!B50,'True_Odds_Calculator_3-way'!C50,'Log_working_3-way'!B$1,'Log_working_3-way'!B$2) ->  | F49: =IF('Log_working_3-way'!D49="","",1/'True_Odds_Calculator_3-way'!N50+1/'True_Odds_Calculator_3-way'!O50+1/'True_Odds_Calculator_3-way'!P50-1) ->  | H49: =IF('Log_working_3-way'!$D49="","",'True_Odds_Calculator_3-way'!N50/'True_Odds_Calculator_3-way'!A50-1) ->  | I49: =IF('Log_working_3-way'!$D49="","",'True_Odds_Calculator_3-way'!O50/'True_Odds_Calculator_3-way'!B50-1) ->  | J49: =IF('Log_working_3-way'!$D49="","",'True_Odds_Calculator_3-way'!P50/'True_Odds_Calculator_3-way'!C50-1) ->  | K49: =IF('Log_working_3-way'!$D49="","",1/'True_Odds_Calculator_3-way'!A50+1/'True_Odds_Calculator_3-way'!B50+1/'True_Odds_Calculator_3-way'!C50-1) -> 
D50: =solve_for_c('True_Odds_Calculator_3-way'!A51,'True_Odds_Calculator_3-way'!B51,'True_Odds_Calculator_3-way'!C51,'Log_working_3-way'!B$1,'Log_working_3-way'!B$2) ->  | F50: =IF('Log_working_3-way'!D50="","",1/'True_Odds_Calculator_3-way'!N51+1/'True_Odds_Calculator_3-way'!O51+1/'True_Odds_Calculator_3-way'!P51-1) ->  | H50: =IF('Log_working_3-way'!$D50="","",'True_Odds_Calculator_3-way'!N51/'True_Odds_Calculator_3-way'!A51-1) ->  | I50: =IF('Log_working_3-way'!$D50="","",'True_Odds_Calculator_3-way'!O51/'True_Odds_Calculator_3-way'!B51-1) ->  | J50: =IF('Log_working_3-way'!$D50="","",'True_Odds_Calculator_3-way'!P51/'True_Odds_Calculator_3-way'!C51-1) ->  | K50: =IF('Log_working_3-way'!$D50="","",1/'True_Odds_Calculator_3-way'!A51+1/'True_Odds_Calculator_3-way'!B51+1/'True_Odds_Calculator_3-way'!C51-1) -> 
D51: =solve_for_c('True_Odds_Calculator_3-way'!A52,'True_Odds_Calculator_3-way'!B52,'True_Odds_Calculator_3-way'!C52,'Log_working_3-way'!B$1,'Log_working_3-way'!B$2) ->  | F51: =IF('Log_working_3-way'!D51="","",1/'True_Odds_Calculator_3-way'!N52+1/'True_Odds_Calculator_3-way'!O52+1/'True_Odds_Calculator_3-way'!P52-1) ->  | H51: =IF('Log_working_3-way'!$D51="","",'True_Odds_Calculator_3-way'!N52/'True_Odds_Calculator_3-way'!A52-1) ->  | I51: =IF('Log_working_3-way'!$D51="","",'True_Odds_Calculator_3-way'!O52/'True_Odds_Calculator_3-way'!B52-1) ->  | J51: =IF('Log_working_3-way'!$D51="","",'True_Odds_Calculator_3-way'!P52/'True_Odds_Calculator_3-way'!C52-1) ->  | K51: =IF('Log_working_3-way'!$D51="","",1/'True_Odds_Calculator_3-way'!A52+1/'True_Odds_Calculator_3-way'!B52+1/'True_Odds_Calculator_3-way'!C52-1) -> 
D52: =solve_for_c('True_Odds_Calculator_3-way'!A53,'True_Odds_Calculator_3-way'!B53,'True_Odds_Calculator_3-way'!C53,'Log_working_3-way'!B$1,'Log_working_3-way'!B$2) ->  | F52: =IF('Log_working_3-way'!D52="","",1/'True_Odds_Calculator_3-way'!N53+1/'True_Odds_Calculator_3-way'!O53+1/'True_Odds_Calculator_3-way'!P53-1) ->  | H52: =IF('Log_working_3-way'!$D52="","",'True_Odds_Calculator_3-way'!N53/'True_Odds_Calculator_3-way'!A53-1) ->  | I52: =IF('Log_working_3-way'!$D52="","",'True_Odds_Calculator_3-way'!O53/'True_Odds_Calculator_3-way'!B53-1) ->  | J52: =IF('Log_working_3-way'!$D52="","",'True_Odds_Calculator_3-way'!P53/'True_Odds_Calculator_3-way'!C53-1) ->  | K52: =IF('Log_working_3-way'!$D52="","",1/'True_Odds_Calculator_3-way'!A53+1/'True_Odds_Calculator_3-way'!B53+1/'True_Odds_Calculator_3-way'!C53-1) -> 
D53: =solve_for_c('True_Odds_Calculator_3-way'!A54,'True_Odds_Calculator_3-way'!B54,'True_Odds_Calculator_3-way'!C54,'Log_working_3-way'!B$1,'Log_working_3-way'!B$2) ->  | F53: =IF('Log_working_3-way'!D53="","",1/'True_Odds_Calculator_3-way'!N54+1/'True_Odds_Calculator_3-way'!O54+1/'True_Odds_Calculator_3-way'!P54-1) ->  | H53: =IF('Log_working_3-way'!$D53="","",'True_Odds_Calculator_3-way'!N54/'True_Odds_Calculator_3-way'!A54-1) ->  | I53: =IF('Log_working_3-way'!$D53="","",'True_Odds_Calculator_3-way'!O54/'True_Odds_Calculator_3-way'!B54-1) ->  | J53: =IF('Log_working_3-way'!$D53="","",'True_Odds_Calculator_3-way'!P54/'True_Odds_Calculator_3-way'!C54-1) ->  | K53: =IF('Log_working_3-way'!$D53="","",1/'True_Odds_Calculator_3-way'!A54+1/'True_Odds_Calculator_3-way'!B54+1/'True_Odds_Calculator_3-way'!C54-1) -> 
D54: =solve_for_c('True_Odds_Calculator_3-way'!A55,'True_Odds_Calculator_3-way'!B55,'True_Odds_Calculator_3-way'!C55,'Log_working_3-way'!B$1,'Log_working_3-way'!B$2) ->  | F54: =IF('Log_working_3-way'!D54="","",1/'True_Odds_Calculator_3-way'!N55+1/'True_Odds_Calculator_3-way'!O55+1/'True_Odds_Calculator_3-way'!P55-1) ->  | H54: =IF('Log_working_3-way'!$D54="","",'True_Odds_Calculator_3-way'!N55/'True_Odds_Calculator_3-way'!A55-1) ->  | I54: =IF('Log_working_3-way'!$D54="","",'True_Odds_Calculator_3-way'!O55/'True_Odds_Calculator_3-way'!B55-1) ->  | J54: =IF('Log_working_3-way'!$D54="","",'True_Odds_Calculator_3-way'!P55/'True_Odds_Calculator_3-way'!C55-1) ->  | K54: =IF('Log_working_3-way'!$D54="","",1/'True_Odds_Calculator_3-way'!A55+1/'True_Odds_Calculator_3-way'!B55+1/'True_Odds_Calculator_3-way'!C55-1) -> 
D55: =solve_for_c('True_Odds_Calculator_3-way'!A56,'True_Odds_Calculator_3-way'!B56,'True_Odds_Calculator_3-way'!C56,'Log_working_3-way'!B$1,'Log_working_3-way'!B$2) ->  | F55: =IF('Log_working_3-way'!D55="","",1/'True_Odds_Calculator_3-way'!N56+1/'True_Odds_Calculator_3-way'!O56+1/'True_Odds_Calculator_3-way'!P56-1) ->  | H55: =IF('Log_working_3-way'!$D55="","",'True_Odds_Calculator_3-way'!N56/'True_Odds_Calculator_3-way'!A56-1) ->  | I55: =IF('Log_working_3-way'!$D55="","",'True_Odds_Calculator_3-way'!O56/'True_Odds_Calculator_3-way'!B56-1) ->  | J55: =IF('Log_working_3-way'!$D55="","",'True_Odds_Calculator_3-way'!P56/'True_Odds_Calculator_3-way'!C56-1) ->  | K55: =IF('Log_working_3-way'!$D55="","",1/'True_Odds_Calculator_3-way'!A56+1/'True_Odds_Calculator_3-way'!B56+1/'True_Odds_Calculator_3-way'!C56-1) -> 
D56: =solve_for_c('True_Odds_Calculator_3-way'!A57,'True_Odds_Calculator_3-way'!B57,'True_Odds_Calculator_3-way'!C57,'Log_working_3-way'!B$1,'Log_working_3-way'!B$2) ->  | F56: =IF('Log_working_3-way'!D56="","",1/'True_Odds_Calculator_3-way'!N57+1/'True_Odds_Calculator_3-way'!O57+1/'True_Odds_Calculator_3-way'!P57-1) ->  | H56: =IF('Log_working_3-way'!$D56="","",'True_Odds_Calculator_3-way'!N57/'True_Odds_Calculator_3-way'!A57-1) ->  | I56: =IF('Log_working_3-way'!$D56="","",'True_Odds_Calculator_3-way'!O57/'True_Odds_Calculator_3-way'!B57-1) ->  | J56: =IF('Log_working_3-way'!$D56="","",'True_Odds_Calculator_3-way'!P57/'True_Odds_Calculator_3-way'!C57-1) ->  | K56: =IF('Log_working_3-way'!$D56="","",1/'True_Odds_Calculator_3-way'!A57+1/'True_Odds_Calculator_3-way'!B57+1/'True_Odds_Calculator_3-way'!C57-1) -> 
D57: =solve_for_c('True_Odds_Calculator_3-way'!A58,'True_Odds_Calculator_3-way'!B58,'True_Odds_Calculator_3-way'!C58,'Log_working_3-way'!B$1,'Log_working_3-way'!B$2) ->  | F57: =IF('Log_working_3-way'!D57="","",1/'True_Odds_Calculator_3-way'!N58+1/'True_Odds_Calculator_3-way'!O58+1/'True_Odds_Calculator_3-way'!P58-1) ->  | H57: =IF('Log_working_3-way'!$D57="","",'True_Odds_Calculator_3-way'!N58/'True_Odds_Calculator_3-way'!A58-1) ->  | I57: =IF('Log_working_3-way'!$D57="","",'True_Odds_Calculator_3-way'!O58/'True_Odds_Calculator_3-way'!B58-1) ->  | J57: =IF('Log_working_3-way'!$D57="","",'True_Odds_Calculator_3-way'!P58/'True_Odds_Calculator_3-way'!C58-1) ->  | K57: =IF('Log_working_3-way'!$D57="","",1/'True_Odds_Calculator_3-way'!A58+1/'True_Odds_Calculator_3-way'!B58+1/'True_Odds_Calculator_3-way'!C58-1) -> 
D58: =solve_for_c('True_Odds_Calculator_3-way'!A59,'True_Odds_Calculator_3-way'!B59,'True_Odds_Calculator_3-way'!C59,'Log_working_3-way'!B$1,'Log_working_3-way'!B$2) ->  | F58: =IF('Log_working_3-way'!D58="","",1/'True_Odds_Calculator_3-way'!N59+1/'True_Odds_Calculator_3-way'!O59+1/'True_Odds_Calculator_3-way'!P59-1) ->  | H58: =IF('Log_working_3-way'!$D58="","",'True_Odds_Calculator_3-way'!N59/'True_Odds_Calculator_3-way'!A59-1) ->  | I58: =IF('Log_working_3-way'!$D58="","",'True_Odds_Calculator_3-way'!O59/'True_Odds_Calculator_3-way'!B59-1) ->  | J58: =IF('Log_working_3-way'!$D58="","",'True_Odds_Calculator_3-way'!P59/'True_Odds_Calculator_3-way'!C59-1) ->  | K58: =IF('Log_working_3-way'!$D58="","",1/'True_Odds_Calculator_3-way'!A59+1/'True_Odds_Calculator_3-way'!B59+1/'True_Odds_Calculator_3-way'!C59-1) -> 
D59: =solve_for_c('True_Odds_Calculator_3-way'!A60,'True_Odds_Calculator_3-way'!B60,'True_Odds_Calculator_3-way'!C60,'Log_working_3-way'!B$1,'Log_working_3-way'!B$2) ->  | F59: =IF('Log_working_3-way'!D59="","",1/'True_Odds_Calculator_3-way'!N60+1/'True_Odds_Calculator_3-way'!O60+1/'True_Odds_Calculator_3-way'!P60-1) ->  | H59: =IF('Log_working_3-way'!$D59="","",'True_Odds_Calculator_3-way'!N60/'True_Odds_Calculator_3-way'!A60-1) ->  | I59: =IF('Log_working_3-way'!$D59="","",'True_Odds_Calculator_3-way'!O60/'True_Odds_Calculator_3-way'!B60-1) ->  | J59: =IF('Log_working_3-way'!$D59="","",'True_Odds_Calculator_3-way'!P60/'True_Odds_Calculator_3-way'!C60-1) ->  | K59: =IF('Log_working_3-way'!$D59="","",1/'True_Odds_Calculator_3-way'!A60+1/'True_Odds_Calculator_3-way'!B60+1/'True_Odds_Calculator_3-way'!C60-1) -> 
D60: =solve_for_c('True_Odds_Calculator_3-way'!A61,'True_Odds_Calculator_3-way'!B61,'True_Odds_Calculator_3-way'!C61,'Log_working_3-way'!B$1,'Log_working_3-way'!B$2) ->  | F60: =IF('Log_working_3-way'!D60="","",1/'True_Odds_Calculator_3-way'!N61+1/'True_Odds_Calculator_3-way'!O61+1/'True_Odds_Calculator_3-way'!P61-1) ->  | H60: =IF('Log_working_3-way'!$D60="","",'True_Odds_Calculator_3-way'!N61/'True_Odds_Calculator_3-way'!A61-1) ->  | I60: =IF('Log_working_3-way'!$D60="","",'True_Odds_Calculator_3-way'!O61/'True_Odds_Calculator_3-way'!B61-1) ->  | J60: =IF('Log_working_3-way'!$D60="","",'True_Odds_Calculator_3-way'!P61/'True_Odds_Calculator_3-way'!C61-1) ->  | K60: =IF('Log_working_3-way'!$D60="","",1/'True_Odds_Calculator_3-way'!A61+1/'True_Odds_Calculator_3-way'!B61+1/'True_Odds_Calculator_3-way'!C61-1) -> 
D61: =solve_for_c('True_Odds_Calculator_3-way'!A62,'True_Odds_Calculator_3-way'!B62,'True_Odds_Calculator_3-way'!C62,'Log_working_3-way'!B$1,'Log_working_3-way'!B$2) ->  | F61: =IF('Log_working_3-way'!D61="","",1/'True_Odds_Calculator_3-way'!N62+1/'True_Odds_Calculator_3-way'!O62+1/'True_Odds_Calculator_3-way'!P62-1) ->  | H61: =IF('Log_working_3-way'!$D61="","",'True_Odds_Calculator_3-way'!N62/'True_Odds_Calculator_3-way'!A62-1) ->  | I61: =IF('Log_working_3-way'!$D61="","",'True_Odds_Calculator_3-way'!O62/'True_Odds_Calculator_3-way'!B62-1) ->  | J61: =IF('Log_working_3-way'!$D61="","",'True_Odds_Calculator_3-way'!P62/'True_Odds_Calculator_3-way'!C62-1) ->  | K61: =IF('Log_working_3-way'!$D61="","",1/'True_Odds_Calculator_3-way'!A62+1/'True_Odds_Calculator_3-way'!B62+1/'True_Odds_Calculator_3-way'!C62-1) -> 
D62: =solve_for_c('True_Odds_Calculator_3-way'!A63,'True_Odds_Calculator_3-way'!B63,'True_Odds_Calculator_3-way'!C63,'Log_working_3-way'!B$1,'Log_working_3-way'!B$2) ->  | F62: =IF('Log_working_3-way'!D62="","",1/'True_Odds_Calculator_3-way'!N63+1/'True_Odds_Calculator_3-way'!O63+1/'True_Odds_Calculator_3-way'!P63-1) ->  | H62: =IF('Log_working_3-way'!$D62="","",'True_Odds_Calculator_3-way'!N63/'True_Odds_Calculator_3-way'!A63-1) ->  | I62: =IF('Log_working_3-way'!$D62="","",'True_Odds_Calculator_3-way'!O63/'True_Odds_Calculator_3-way'!B63-1) ->  | J62: =IF('Log_working_3-way'!$D62="","",'True_Odds_Calculator_3-way'!P63/'True_Odds_Calculator_3-way'!C63-1) ->  | K62: =IF('Log_working_3-way'!$D62="","",1/'True_Odds_Calculator_3-way'!A63+1/'True_Odds_Calculator_3-way'!B63+1/'True_Odds_Calculator_3-way'!C63-1) -> 
D63: =solve_for_c('True_Odds_Calculator_3-way'!A64,'True_Odds_Calculator_3-way'!B64,'True_Odds_Calculator_3-way'!C64,'Log_working_3-way'!B$1,'Log_working_3-way'!B$2) ->  | F63: =IF('Log_working_3-way'!D63="","",1/'True_Odds_Calculator_3-way'!N64+1/'True_Odds_Calculator_3-way'!O64+1/'True_Odds_Calculator_3-way'!P64-1) ->  | H63: =IF('Log_working_3-way'!$D63="","",'True_Odds_Calculator_3-way'!N64/'True_Odds_Calculator_3-way'!A64-1) ->  | I63: =IF('Log_working_3-way'!$D63="","",'True_Odds_Calculator_3-way'!O64/'True_Odds_Calculator_3-way'!B64-1) ->  | J63: =IF('Log_working_3-way'!$D63="","",'True_Odds_Calculator_3-way'!P64/'True_Odds_Calculator_3-way'!C64-1) ->  | K63: =IF('Log_working_3-way'!$D63="","",1/'True_Odds_Calculator_3-way'!A64+1/'True_Odds_Calculator_3-way'!B64+1/'True_Odds_Calculator_3-way'!C64-1) -> 
D64: =solve_for_c('True_Odds_Calculator_3-way'!A65,'True_Odds_Calculator_3-way'!B65,'True_Odds_Calculator_3-way'!C65,'Log_working_3-way'!B$1,'Log_working_3-way'!B$2) ->  | F64: =IF('Log_working_3-way'!D64="","",1/'True_Odds_Calculator_3-way'!N65+1/'True_Odds_Calculator_3-way'!O65+1/'True_Odds_Calculator_3-way'!P65-1) ->  | H64: =IF('Log_working_3-way'!$D64="","",'True_Odds_Calculator_3-way'!N65/'True_Odds_Calculator_3-way'!A65-1) ->  | I64: =IF('Log_working_3-way'!$D64="","",'True_Odds_Calculator_3-way'!O65/'True_Odds_Calculator_3-way'!B65-1) ->  | J64: =IF('Log_working_3-way'!$D64="","",'True_Odds_Calculator_3-way'!P65/'True_Odds_Calculator_3-way'!C65-1) ->  | K64: =IF('Log_working_3-way'!$D64="","",1/'True_Odds_Calculator_3-way'!A65+1/'True_Odds_Calculator_3-way'!B65+1/'True_Odds_Calculator_3-way'!C65-1) -> 
D65: =solve_for_c('True_Odds_Calculator_3-way'!A66,'True_Odds_Calculator_3-way'!B66,'True_Odds_Calculator_3-way'!C66,'Log_working_3-way'!B$1,'Log_working_3-way'!B$2) ->  | F65: =IF('Log_working_3-way'!D65="","",1/'True_Odds_Calculator_3-way'!N66+1/'True_Odds_Calculator_3-way'!O66+1/'True_Odds_Calculator_3-way'!P66-1) ->  | H65: =IF('Log_working_3-way'!$D65="","",'True_Odds_Calculator_3-way'!N66/'True_Odds_Calculator_3-way'!A66-1) ->  | I65: =IF('Log_working_3-way'!$D65="","",'True_Odds_Calculator_3-way'!O66/'True_Odds_Calculator_3-way'!B66-1) ->  | J65: =IF('Log_working_3-way'!$D65="","",'True_Odds_Calculator_3-way'!P66/'True_Odds_Calculator_3-way'!C66-1) ->  | K65: =IF('Log_working_3-way'!$D65="","",1/'True_Odds_Calculator_3-way'!A66+1/'True_Odds_Calculator_3-way'!B66+1/'True_Odds_Calculator_3-way'!C66-1) -> 
D66: =solve_for_c('True_Odds_Calculator_3-way'!A67,'True_Odds_Calculator_3-way'!B67,'True_Odds_Calculator_3-way'!C67,'Log_working_3-way'!B$1,'Log_working_3-way'!B$2) ->  | F66: =IF('Log_working_3-way'!D66="","",1/'True_Odds_Calculator_3-way'!N67+1/'True_Odds_Calculator_3-way'!O67+1/'True_Odds_Calculator_3-way'!P67-1) ->  | H66: =IF('Log_working_3-way'!$D66="","",'True_Odds_Calculator_3-way'!N67/'True_Odds_Calculator_3-way'!A67-1) ->  | I66: =IF('Log_working_3-way'!$D66="","",'True_Odds_Calculator_3-way'!O67/'True_Odds_Calculator_3-way'!B67-1) ->  | J66: =IF('Log_working_3-way'!$D66="","",'True_Odds_Calculator_3-way'!P67/'True_Odds_Calculator_3-way'!C67-1) ->  | K66: =IF('Log_working_3-way'!$D66="","",1/'True_Odds_Calculator_3-way'!A67+1/'True_Odds_Calculator_3-way'!B67+1/'True_Odds_Calculator_3-way'!C67-1) -> 
D67: =solve_for_c('True_Odds_Calculator_3-way'!A68,'True_Odds_Calculator_3-way'!B68,'True_Odds_Calculator_3-way'!C68,'Log_working_3-way'!B$1,'Log_working_3-way'!B$2) ->  | F67: =IF('Log_working_3-way'!D67="","",1/'True_Odds_Calculator_3-way'!N68+1/'True_Odds_Calculator_3-way'!O68+1/'True_Odds_Calculator_3-way'!P68-1) ->  | H67: =IF('Log_working_3-way'!$D67="","",'True_Odds_Calculator_3-way'!N68/'True_Odds_Calculator_3-way'!A68-1) ->  | I67: =IF('Log_working_3-way'!$D67="","",'True_Odds_Calculator_3-way'!O68/'True_Odds_Calculator_3-way'!B68-1) ->  | J67: =IF('Log_working_3-way'!$D67="","",'True_Odds_Calculator_3-way'!P68/'True_Odds_Calculator_3-way'!C68-1) ->  | K67: =IF('Log_working_3-way'!$D67="","",1/'True_Odds_Calculator_3-way'!A68+1/'True_Odds_Calculator_3-way'!B68+1/'True_Odds_Calculator_3-way'!C68-1) -> 
D68: =solve_for_c('True_Odds_Calculator_3-way'!A69,'True_Odds_Calculator_3-way'!B69,'True_Odds_Calculator_3-way'!C69,'Log_working_3-way'!B$1,'Log_working_3-way'!B$2) ->  | F68: =IF('Log_working_3-way'!D68="","",1/'True_Odds_Calculator_3-way'!N69+1/'True_Odds_Calculator_3-way'!O69+1/'True_Odds_Calculator_3-way'!P69-1) ->  | H68: =IF('Log_working_3-way'!$D68="","",'True_Odds_Calculator_3-way'!N69/'True_Odds_Calculator_3-way'!A69-1) ->  | I68: =IF('Log_working_3-way'!$D68="","",'True_Odds_Calculator_3-way'!O69/'True_Odds_Calculator_3-way'!B69-1) ->  | J68: =IF('Log_working_3-way'!$D68="","",'True_Odds_Calculator_3-way'!P69/'True_Odds_Calculator_3-way'!C69-1) ->  | K68: =IF('Log_working_3-way'!$D68="","",1/'True_Odds_Calculator_3-way'!A69+1/'True_Odds_Calculator_3-way'!B69+1/'True_Odds_Calculator_3-way'!C69-1) -> 
D69: =solve_for_c('True_Odds_Calculator_3-way'!A70,'True_Odds_Calculator_3-way'!B70,'True_Odds_Calculator_3-way'!C70,'Log_working_3-way'!B$1,'Log_working_3-way'!B$2) ->  | F69: =IF('Log_working_3-way'!D69="","",1/'True_Odds_Calculator_3-way'!N70+1/'True_Odds_Calculator_3-way'!O70+1/'True_Odds_Calculator_3-way'!P70-1) ->  | H69: =IF('Log_working_3-way'!$D69="","",'True_Odds_Calculator_3-way'!N70/'True_Odds_Calculator_3-way'!A70-1) ->  | I69: =IF('Log_working_3-way'!$D69="","",'True_Odds_Calculator_3-way'!O70/'True_Odds_Calculator_3-way'!B70-1) ->  | J69: =IF('Log_working_3-way'!$D69="","",'True_Odds_Calculator_3-way'!P70/'True_Odds_Calculator_3-way'!C70-1) ->  | K69: =IF('Log_working_3-way'!$D69="","",1/'True_Odds_Calculator_3-way'!A70+1/'True_Odds_Calculator_3-way'!B70+1/'True_Odds_Calculator_3-way'!C70-1) -> 
D70: =solve_for_c('True_Odds_Calculator_3-way'!A71,'True_Odds_Calculator_3-way'!B71,'True_Odds_Calculator_3-way'!C71,'Log_working_3-way'!B$1,'Log_working_3-way'!B$2) ->  | F70: =IF('Log_working_3-way'!D70="","",1/'True_Odds_Calculator_3-way'!N71+1/'True_Odds_Calculator_3-way'!O71+1/'True_Odds_Calculator_3-way'!P71-1) ->  | H70: =IF('Log_working_3-way'!$D70="","",'True_Odds_Calculator_3-way'!N71/'True_Odds_Calculator_3-way'!A71-1) ->  | I70: =IF('Log_working_3-way'!$D70="","",'True_Odds_Calculator_3-way'!O71/'True_Odds_Calculator_3-way'!B71-1) ->  | J70: =IF('Log_working_3-way'!$D70="","",'True_Odds_Calculator_3-way'!P71/'True_Odds_Calculator_3-way'!C71-1) ->  | K70: =IF('Log_working_3-way'!$D70="","",1/'True_Odds_Calculator_3-way'!A71+1/'True_Odds_Calculator_3-way'!B71+1/'True_Odds_Calculator_3-way'!C71-1) -> 
D71: =solve_for_c('True_Odds_Calculator_3-way'!A72,'True_Odds_Calculator_3-way'!B72,'True_Odds_Calculator_3-way'!C72,'Log_working_3-way'!B$1,'Log_working_3-way'!B$2) ->  | F71: =IF('Log_working_3-way'!D71="","",1/'True_Odds_Calculator_3-way'!N72+1/'True_Odds_Calculator_3-way'!O72+1/'True_Odds_Calculator_3-way'!P72-1) ->  | H71: =IF('Log_working_3-way'!$D71="","",'True_Odds_Calculator_3-way'!N72/'True_Odds_Calculator_3-way'!A72-1) ->  | I71: =IF('Log_working_3-way'!$D71="","",'True_Odds_Calculator_3-way'!O72/'True_Odds_Calculator_3-way'!B72-1) ->  | J71: =IF('Log_working_3-way'!$D71="","",'True_Odds_Calculator_3-way'!P72/'True_Odds_Calculator_3-way'!C72-1) ->  | K71: =IF('Log_working_3-way'!$D71="","",1/'True_Odds_Calculator_3-way'!A72+1/'True_Odds_Calculator_3-way'!B72+1/'True_Odds_Calculator_3-way'!C72-1) -> 
D72: =solve_for_c('True_Odds_Calculator_3-way'!A73,'True_Odds_Calculator_3-way'!B73,'True_Odds_Calculator_3-way'!C73,'Log_working_3-way'!B$1,'Log_working_3-way'!B$2) ->  | F72: =IF('Log_working_3-way'!D72="","",1/'True_Odds_Calculator_3-way'!N73+1/'True_Odds_Calculator_3-way'!O73+1/'True_Odds_Calculator_3-way'!P73-1) ->  | H72: =IF('Log_working_3-way'!$D72="","",'True_Odds_Calculator_3-way'!N73/'True_Odds_Calculator_3-way'!A73-1) ->  | I72: =IF('Log_working_3-way'!$D72="","",'True_Odds_Calculator_3-way'!O73/'True_Odds_Calculator_3-way'!B73-1) ->  | J72: =IF('Log_working_3-way'!$D72="","",'True_Odds_Calculator_3-way'!P73/'True_Odds_Calculator_3-way'!C73-1) ->  | K72: =IF('Log_working_3-way'!$D72="","",1/'True_Odds_Calculator_3-way'!A73+1/'True_Odds_Calculator_3-way'!B73+1/'True_Odds_Calculator_3-way'!C73-1) -> 
D73: =solve_for_c('True_Odds_Calculator_3-way'!A74,'True_Odds_Calculator_3-way'!B74,'True_Odds_Calculator_3-way'!C74,'Log_working_3-way'!B$1,'Log_working_3-way'!B$2) ->  | F73: =IF('Log_working_3-way'!D73="","",1/'True_Odds_Calculator_3-way'!N74+1/'True_Odds_Calculator_3-way'!O74+1/'True_Odds_Calculator_3-way'!P74-1) ->  | H73: =IF('Log_working_3-way'!$D73="","",'True_Odds_Calculator_3-way'!N74/'True_Odds_Calculator_3-way'!A74-1) ->  | I73: =IF('Log_working_3-way'!$D73="","",'True_Odds_Calculator_3-way'!O74/'True_Odds_Calculator_3-way'!B74-1) ->  | J73: =IF('Log_working_3-way'!$D73="","",'True_Odds_Calculator_3-way'!P74/'True_Odds_Calculator_3-way'!C74-1) ->  | K73: =IF('Log_working_3-way'!$D73="","",1/'True_Odds_Calculator_3-way'!A74+1/'True_Odds_Calculator_3-way'!B74+1/'True_Odds_Calculator_3-way'!C74-1) -> 
D74: =solve_for_c('True_Odds_Calculator_3-way'!A75,'True_Odds_Calculator_3-way'!B75,'True_Odds_Calculator_3-way'!C75,'Log_working_3-way'!B$1,'Log_working_3-way'!B$2) ->  | F74: =IF('Log_working_3-way'!D74="","",1/'True_Odds_Calculator_3-way'!N75+1/'True_Odds_Calculator_3-way'!O75+1/'True_Odds_Calculator_3-way'!P75-1) ->  | H74: =IF('Log_working_3-way'!$D74="","",'True_Odds_Calculator_3-way'!N75/'True_Odds_Calculator_3-way'!A75-1) ->  | I74: =IF('Log_working_3-way'!$D74="","",'True_Odds_Calculator_3-way'!O75/'True_Odds_Calculator_3-way'!B75-1) ->  | J74: =IF('Log_working_3-way'!$D74="","",'True_Odds_Calculator_3-way'!P75/'True_Odds_Calculator_3-way'!C75-1) ->  | K74: =IF('Log_working_3-way'!$D74="","",1/'True_Odds_Calculator_3-way'!A75+1/'True_Odds_Calculator_3-way'!B75+1/'True_Odds_Calculator_3-way'!C75-1) -> 
D75: =solve_for_c('True_Odds_Calculator_3-way'!A76,'True_Odds_Calculator_3-way'!B76,'True_Odds_Calculator_3-way'!C76,'Log_working_3-way'!B$1,'Log_working_3-way'!B$2) ->  | F75: =IF('Log_working_3-way'!D75="","",1/'True_Odds_Calculator_3-way'!N76+1/'True_Odds_Calculator_3-way'!O76+1/'True_Odds_Calculator_3-way'!P76-1) ->  | H75: =IF('Log_working_3-way'!$D75="","",'True_Odds_Calculator_3-way'!N76/'True_Odds_Calculator_3-way'!A76-1) ->  | I75: =IF('Log_working_3-way'!$D75="","",'True_Odds_Calculator_3-way'!O76/'True_Odds_Calculator_3-way'!B76-1) ->  | J75: =IF('Log_working_3-way'!$D75="","",'True_Odds_Calculator_3-way'!P76/'True_Odds_Calculator_3-way'!C76-1) ->  | K75: =IF('Log_working_3-way'!$D75="","",1/'True_Odds_Calculator_3-way'!A76+1/'True_Odds_Calculator_3-way'!B76+1/'True_Odds_Calculator_3-way'!C76-1) -> 
D76: =solve_for_c('True_Odds_Calculator_3-way'!A77,'True_Odds_Calculator_3-way'!B77,'True_Odds_Calculator_3-way'!C77,'Log_working_3-way'!B$1,'Log_working_3-way'!B$2) ->  | F76: =IF('Log_working_3-way'!D76="","",1/'True_Odds_Calculator_3-way'!N77+1/'True_Odds_Calculator_3-way'!O77+1/'True_Odds_Calculator_3-way'!P77-1) ->  | H76: =IF('Log_working_3-way'!$D76="","",'True_Odds_Calculator_3-way'!N77/'True_Odds_Calculator_3-way'!A77-1) ->  | I76: =IF('Log_working_3-way'!$D76="","",'True_Odds_Calculator_3-way'!O77/'True_Odds_Calculator_3-way'!B77-1) ->  | J76: =IF('Log_working_3-way'!$D76="","",'True_Odds_Calculator_3-way'!P77/'True_Odds_Calculator_3-way'!C77-1) ->  | K76: =IF('Log_working_3-way'!$D76="","",1/'True_Odds_Calculator_3-way'!A77+1/'True_Odds_Calculator_3-way'!B77+1/'True_Odds_Calculator_3-way'!C77-1) -> 
D77: =solve_for_c('True_Odds_Calculator_3-way'!A78,'True_Odds_Calculator_3-way'!B78,'True_Odds_Calculator_3-way'!C78,'Log_working_3-way'!B$1,'Log_working_3-way'!B$2) ->  | F77: =IF('Log_working_3-way'!D77="","",1/'True_Odds_Calculator_3-way'!N78+1/'True_Odds_Calculator_3-way'!O78+1/'True_Odds_Calculator_3-way'!P78-1) ->  | H77: =IF('Log_working_3-way'!$D77="","",'True_Odds_Calculator_3-way'!N78/'True_Odds_Calculator_3-way'!A78-1) ->  | I77: =IF('Log_working_3-way'!$D77="","",'True_Odds_Calculator_3-way'!O78/'True_Odds_Calculator_3-way'!B78-1) ->  | J77: =IF('Log_working_3-way'!$D77="","",'True_Odds_Calculator_3-way'!P78/'True_Odds_Calculator_3-way'!C78-1) ->  | K77: =IF('Log_working_3-way'!$D77="","",1/'True_Odds_Calculator_3-way'!A78+1/'True_Odds_Calculator_3-way'!B78+1/'True_Odds_Calculator_3-way'!C78-1) -> 
D78: =solve_for_c('True_Odds_Calculator_3-way'!A79,'True_Odds_Calculator_3-way'!B79,'True_Odds_Calculator_3-way'!C79,'Log_working_3-way'!B$1,'Log_working_3-way'!B$2) ->  | F78: =IF('Log_working_3-way'!D78="","",1/'True_Odds_Calculator_3-way'!N79+1/'True_Odds_Calculator_3-way'!O79+1/'True_Odds_Calculator_3-way'!P79-1) ->  | H78: =IF('Log_working_3-way'!$D78="","",'True_Odds_Calculator_3-way'!N79/'True_Odds_Calculator_3-way'!A79-1) ->  | I78: =IF('Log_working_3-way'!$D78="","",'True_Odds_Calculator_3-way'!O79/'True_Odds_Calculator_3-way'!B79-1) ->  | J78: =IF('Log_working_3-way'!$D78="","",'True_Odds_Calculator_3-way'!P79/'True_Odds_Calculator_3-way'!C79-1) ->  | K78: =IF('Log_working_3-way'!$D78="","",1/'True_Odds_Calculator_3-way'!A79+1/'True_Odds_Calculator_3-way'!B79+1/'True_Odds_Calculator_3-way'!C79-1) -> 
D79: =solve_for_c('True_Odds_Calculator_3-way'!A80,'True_Odds_Calculator_3-way'!B80,'True_Odds_Calculator_3-way'!C80,'Log_working_3-way'!B$1,'Log_working_3-way'!B$2) ->  | F79: =IF('Log_working_3-way'!D79="","",1/'True_Odds_Calculator_3-way'!N80+1/'True_Odds_Calculator_3-way'!O80+1/'True_Odds_Calculator_3-way'!P80-1) ->  | H79: =IF('Log_working_3-way'!$D79="","",'True_Odds_Calculator_3-way'!N80/'True_Odds_Calculator_3-way'!A80-1) ->  | I79: =IF('Log_working_3-way'!$D79="","",'True_Odds_Calculator_3-way'!O80/'True_Odds_Calculator_3-way'!B80-1) ->  | J79: =IF('Log_working_3-way'!$D79="","",'True_Odds_Calculator_3-way'!P80/'True_Odds_Calculator_3-way'!C80-1) ->  | K79: =IF('Log_working_3-way'!$D79="","",1/'True_Odds_Calculator_3-way'!A80+1/'True_Odds_Calculator_3-way'!B80+1/'True_Odds_Calculator_3-way'!C80-1) -> 
D80: =solve_for_c('True_Odds_Calculator_3-way'!A81,'True_Odds_Calculator_3-way'!B81,'True_Odds_Calculator_3-way'!C81,'Log_working_3-way'!B$1,'Log_working_3-way'!B$2) ->  | F80: =IF('Log_working_3-way'!D80="","",1/'True_Odds_Calculator_3-way'!N81+1/'True_Odds_Calculator_3-way'!O81+1/'True_Odds_Calculator_3-way'!P81-1) ->  | H80: =IF('Log_working_3-way'!$D80="","",'True_Odds_Calculator_3-way'!N81/'True_Odds_Calculator_3-way'!A81-1) ->  | I80: =IF('Log_working_3-way'!$D80="","",'True_Odds_Calculator_3-way'!O81/'True_Odds_Calculator_3-way'!B81-1) ->  | J80: =IF('Log_working_3-way'!$D80="","",'True_Odds_Calculator_3-way'!P81/'True_Odds_Calculator_3-way'!C81-1) ->  | K80: =IF('Log_working_3-way'!$D80="","",1/'True_Odds_Calculator_3-way'!A81+1/'True_Odds_Calculator_3-way'!B81+1/'True_Odds_Calculator_3-way'!C81-1) -> 
D81: =solve_for_c('True_Odds_Calculator_3-way'!A82,'True_Odds_Calculator_3-way'!B82,'True_Odds_Calculator_3-way'!C82,'Log_working_3-way'!B$1,'Log_working_3-way'!B$2) ->  | F81: =IF('Log_working_3-way'!D81="","",1/'True_Odds_Calculator_3-way'!N82+1/'True_Odds_Calculator_3-way'!O82+1/'True_Odds_Calculator_3-way'!P82-1) ->  | H81: =IF('Log_working_3-way'!$D81="","",'True_Odds_Calculator_3-way'!N82/'True_Odds_Calculator_3-way'!A82-1) ->  | I81: =IF('Log_working_3-way'!$D81="","",'True_Odds_Calculator_3-way'!O82/'True_Odds_Calculator_3-way'!B82-1) ->  | J81: =IF('Log_working_3-way'!$D81="","",'True_Odds_Calculator_3-way'!P82/'True_Odds_Calculator_3-way'!C82-1) ->  | K81: =IF('Log_working_3-way'!$D81="","",1/'True_Odds_Calculator_3-way'!A82+1/'True_Odds_Calculator_3-way'!B82+1/'True_Odds_Calculator_3-way'!C82-1) -> 
D82: =solve_for_c('True_Odds_Calculator_3-way'!A83,'True_Odds_Calculator_3-way'!B83,'True_Odds_Calculator_3-way'!C83,'Log_working_3-way'!B$1,'Log_working_3-way'!B$2) ->  | F82: =IF('Log_working_3-way'!D82="","",1/'True_Odds_Calculator_3-way'!N83+1/'True_Odds_Calculator_3-way'!O83+1/'True_Odds_Calculator_3-way'!P83-1) ->  | H82: =IF('Log_working_3-way'!$D82="","",'True_Odds_Calculator_3-way'!N83/'True_Odds_Calculator_3-way'!A83-1) ->  | I82: =IF('Log_working_3-way'!$D82="","",'True_Odds_Calculator_3-way'!O83/'True_Odds_Calculator_3-way'!B83-1) ->  | J82: =IF('Log_working_3-way'!$D82="","",'True_Odds_Calculator_3-way'!P83/'True_Odds_Calculator_3-way'!C83-1) ->  | K82: =IF('Log_working_3-way'!$D82="","",1/'True_Odds_Calculator_3-way'!A83+1/'True_Odds_Calculator_3-way'!B83+1/'True_Odds_Calculator_3-way'!C83-1) -> 
D83: =solve_for_c('True_Odds_Calculator_3-way'!A84,'True_Odds_Calculator_3-way'!B84,'True_Odds_Calculator_3-way'!C84,'Log_working_3-way'!B$1,'Log_working_3-way'!B$2) ->  | F83: =IF('Log_working_3-way'!D83="","",1/'True_Odds_Calculator_3-way'!N84+1/'True_Odds_Calculator_3-way'!O84+1/'True_Odds_Calculator_3-way'!P84-1) ->  | H83: =IF('Log_working_3-way'!$D83="","",'True_Odds_Calculator_3-way'!N84/'True_Odds_Calculator_3-way'!A84-1) ->  | I83: =IF('Log_working_3-way'!$D83="","",'True_Odds_Calculator_3-way'!O84/'True_Odds_Calculator_3-way'!B84-1) ->  | J83: =IF('Log_working_3-way'!$D83="","",'True_Odds_Calculator_3-way'!P84/'True_Odds_Calculator_3-way'!C84-1) ->  | K83: =IF('Log_working_3-way'!$D83="","",1/'True_Odds_Calculator_3-way'!A84+1/'True_Odds_Calculator_3-way'!B84+1/'True_Odds_Calculator_3-way'!C84-1) -> 
D84: =solve_for_c('True_Odds_Calculator_3-way'!A85,'True_Odds_Calculator_3-way'!B85,'True_Odds_Calculator_3-way'!C85,'Log_working_3-way'!B$1,'Log_working_3-way'!B$2) ->  | F84: =IF('Log_working_3-way'!D84="","",1/'True_Odds_Calculator_3-way'!N85+1/'True_Odds_Calculator_3-way'!O85+1/'True_Odds_Calculator_3-way'!P85-1) ->  | H84: =IF('Log_working_3-way'!$D84="","",'True_Odds_Calculator_3-way'!N85/'True_Odds_Calculator_3-way'!A85-1) ->  | I84: =IF('Log_working_3-way'!$D84="","",'True_Odds_Calculator_3-way'!O85/'True_Odds_Calculator_3-way'!B85-1) ->  | J84: =IF('Log_working_3-way'!$D84="","",'True_Odds_Calculator_3-way'!P85/'True_Odds_Calculator_3-way'!C85-1) ->  | K84: =IF('Log_working_3-way'!$D84="","",1/'True_Odds_Calculator_3-way'!A85+1/'True_Odds_Calculator_3-way'!B85+1/'True_Odds_Calculator_3-way'!C85-1) -> 
D85: =solve_for_c('True_Odds_Calculator_3-way'!A86,'True_Odds_Calculator_3-way'!B86,'True_Odds_Calculator_3-way'!C86,'Log_working_3-way'!B$1,'Log_working_3-way'!B$2) ->  | F85: =IF('Log_working_3-way'!D85="","",1/'True_Odds_Calculator_3-way'!N86+1/'True_Odds_Calculator_3-way'!O86+1/'True_Odds_Calculator_3-way'!P86-1) ->  | H85: =IF('Log_working_3-way'!$D85="","",'True_Odds_Calculator_3-way'!N86/'True_Odds_Calculator_3-way'!A86-1) ->  | I85: =IF('Log_working_3-way'!$D85="","",'True_Odds_Calculator_3-way'!O86/'True_Odds_Calculator_3-way'!B86-1) ->  | J85: =IF('Log_working_3-way'!$D85="","",'True_Odds_Calculator_3-way'!P86/'True_Odds_Calculator_3-way'!C86-1) ->  | K85: =IF('Log_working_3-way'!$D85="","",1/'True_Odds_Calculator_3-way'!A86+1/'True_Odds_Calculator_3-way'!B86+1/'True_Odds_Calculator_3-way'!C86-1) -> 
D86: =solve_for_c('True_Odds_Calculator_3-way'!A87,'True_Odds_Calculator_3-way'!B87,'True_Odds_Calculator_3-way'!C87,'Log_working_3-way'!B$1,'Log_working_3-way'!B$2) ->  | F86: =IF('Log_working_3-way'!D86="","",1/'True_Odds_Calculator_3-way'!N87+1/'True_Odds_Calculator_3-way'!O87+1/'True_Odds_Calculator_3-way'!P87-1) ->  | H86: =IF('Log_working_3-way'!$D86="","",'True_Odds_Calculator_3-way'!N87/'True_Odds_Calculator_3-way'!A87-1) ->  | I86: =IF('Log_working_3-way'!$D86="","",'True_Odds_Calculator_3-way'!O87/'True_Odds_Calculator_3-way'!B87-1) ->  | J86: =IF('Log_working_3-way'!$D86="","",'True_Odds_Calculator_3-way'!P87/'True_Odds_Calculator_3-way'!C87-1) ->  | K86: =IF('Log_working_3-way'!$D86="","",1/'True_Odds_Calculator_3-way'!A87+1/'True_Odds_Calculator_3-way'!B87+1/'True_Odds_Calculator_3-way'!C87-1) -> 
D87: =solve_for_c('True_Odds_Calculator_3-way'!A88,'True_Odds_Calculator_3-way'!B88,'True_Odds_Calculator_3-way'!C88,'Log_working_3-way'!B$1,'Log_working_3-way'!B$2) ->  | F87: =IF('Log_working_3-way'!D87="","",1/'True_Odds_Calculator_3-way'!N88+1/'True_Odds_Calculator_3-way'!O88+1/'True_Odds_Calculator_3-way'!P88-1) ->  | H87: =IF('Log_working_3-way'!$D87="","",'True_Odds_Calculator_3-way'!N88/'True_Odds_Calculator_3-way'!A88-1) ->  | I87: =IF('Log_working_3-way'!$D87="","",'True_Odds_Calculator_3-way'!O88/'True_Odds_Calculator_3-way'!B88-1) ->  | J87: =IF('Log_working_3-way'!$D87="","",'True_Odds_Calculator_3-way'!P88/'True_Odds_Calculator_3-way'!C88-1) ->  | K87: =IF('Log_working_3-way'!$D87="","",1/'True_Odds_Calculator_3-way'!A88+1/'True_Odds_Calculator_3-way'!B88+1/'True_Odds_Calculator_3-way'!C88-1) -> 
D88: =solve_for_c('True_Odds_Calculator_3-way'!A89,'True_Odds_Calculator_3-way'!B89,'True_Odds_Calculator_3-way'!C89,'Log_working_3-way'!B$1,'Log_working_3-way'!B$2) ->  | F88: =IF('Log_working_3-way'!D88="","",1/'True_Odds_Calculator_3-way'!N89+1/'True_Odds_Calculator_3-way'!O89+1/'True_Odds_Calculator_3-way'!P89-1) ->  | H88: =IF('Log_working_3-way'!$D88="","",'True_Odds_Calculator_3-way'!N89/'True_Odds_Calculator_3-way'!A89-1) ->  | I88: =IF('Log_working_3-way'!$D88="","",'True_Odds_Calculator_3-way'!O89/'True_Odds_Calculator_3-way'!B89-1) ->  | J88: =IF('Log_working_3-way'!$D88="","",'True_Odds_Calculator_3-way'!P89/'True_Odds_Calculator_3-way'!C89-1) ->  | K88: =IF('Log_working_3-way'!$D88="","",1/'True_Odds_Calculator_3-way'!A89+1/'True_Odds_Calculator_3-way'!B89+1/'True_Odds_Calculator_3-way'!C89-1) -> 
D89: =solve_for_c('True_Odds_Calculator_3-way'!A90,'True_Odds_Calculator_3-way'!B90,'True_Odds_Calculator_3-way'!C90,'Log_working_3-way'!B$1,'Log_working_3-way'!B$2) ->  | F89: =IF('Log_working_3-way'!D89="","",1/'True_Odds_Calculator_3-way'!N90+1/'True_Odds_Calculator_3-way'!O90+1/'True_Odds_Calculator_3-way'!P90-1) ->  | H89: =IF('Log_working_3-way'!$D89="","",'True_Odds_Calculator_3-way'!N90/'True_Odds_Calculator_3-way'!A90-1) ->  | I89: =IF('Log_working_3-way'!$D89="","",'True_Odds_Calculator_3-way'!O90/'True_Odds_Calculator_3-way'!B90-1) ->  | J89: =IF('Log_working_3-way'!$D89="","",'True_Odds_Calculator_3-way'!P90/'True_Odds_Calculator_3-way'!C90-1) ->  | K89: =IF('Log_working_3-way'!$D89="","",1/'True_Odds_Calculator_3-way'!A90+1/'True_Odds_Calculator_3-way'!B90+1/'True_Odds_Calculator_3-way'!C90-1) -> 
D90: =solve_for_c('True_Odds_Calculator_3-way'!A91,'True_Odds_Calculator_3-way'!B91,'True_Odds_Calculator_3-way'!C91,'Log_working_3-way'!B$1,'Log_working_3-way'!B$2) ->  | F90: =IF('Log_working_3-way'!D90="","",1/'True_Odds_Calculator_3-way'!N91+1/'True_Odds_Calculator_3-way'!O91+1/'True_Odds_Calculator_3-way'!P91-1) ->  | H90: =IF('Log_working_3-way'!$D90="","",'True_Odds_Calculator_3-way'!N91/'True_Odds_Calculator_3-way'!A91-1) ->  | I90: =IF('Log_working_3-way'!$D90="","",'True_Odds_Calculator_3-way'!O91/'True_Odds_Calculator_3-way'!B91-1) ->  | J90: =IF('Log_working_3-way'!$D90="","",'True_Odds_Calculator_3-way'!P91/'True_Odds_Calculator_3-way'!C91-1) ->  | K90: =IF('Log_working_3-way'!$D90="","",1/'True_Odds_Calculator_3-way'!A91+1/'True_Odds_Calculator_3-way'!B91+1/'True_Odds_Calculator_3-way'!C91-1) -> 
D91: =solve_for_c('True_Odds_Calculator_3-way'!A92,'True_Odds_Calculator_3-way'!B92,'True_Odds_Calculator_3-way'!C92,'Log_working_3-way'!B$1,'Log_working_3-way'!B$2) ->  | F91: =IF('Log_working_3-way'!D91="","",1/'True_Odds_Calculator_3-way'!N92+1/'True_Odds_Calculator_3-way'!O92+1/'True_Odds_Calculator_3-way'!P92-1) ->  | H91: =IF('Log_working_3-way'!$D91="","",'True_Odds_Calculator_3-way'!N92/'True_Odds_Calculator_3-way'!A92-1) ->  | I91: =IF('Log_working_3-way'!$D91="","",'True_Odds_Calculator_3-way'!O92/'True_Odds_Calculator_3-way'!B92-1) ->  | J91: =IF('Log_working_3-way'!$D91="","",'True_Odds_Calculator_3-way'!P92/'True_Odds_Calculator_3-way'!C92-1) ->  | K91: =IF('Log_working_3-way'!$D91="","",1/'True_Odds_Calculator_3-way'!A92+1/'True_Odds_Calculator_3-way'!B92+1/'True_Odds_Calculator_3-way'!C92-1) -> 
D92: =solve_for_c('True_Odds_Calculator_3-way'!A93,'True_Odds_Calculator_3-way'!B93,'True_Odds_Calculator_3-way'!C93,'Log_working_3-way'!B$1,'Log_working_3-way'!B$2) ->  | F92: =IF('Log_working_3-way'!D92="","",1/'True_Odds_Calculator_3-way'!N93+1/'True_Odds_Calculator_3-way'!O93+1/'True_Odds_Calculator_3-way'!P93-1) ->  | H92: =IF('Log_working_3-way'!$D92="","",'True_Odds_Calculator_3-way'!N93/'True_Odds_Calculator_3-way'!A93-1) ->  | I92: =IF('Log_working_3-way'!$D92="","",'True_Odds_Calculator_3-way'!O93/'True_Odds_Calculator_3-way'!B93-1) ->  | J92: =IF('Log_working_3-way'!$D92="","",'True_Odds_Calculator_3-way'!P93/'True_Odds_Calculator_3-way'!C93-1) ->  | K92: =IF('Log_working_3-way'!$D92="","",1/'True_Odds_Calculator_3-way'!A93+1/'True_Odds_Calculator_3-way'!B93+1/'True_Odds_Calculator_3-way'!C93-1) -> 
D93: =solve_for_c('True_Odds_Calculator_3-way'!A94,'True_Odds_Calculator_3-way'!B94,'True_Odds_Calculator_3-way'!C94,'Log_working_3-way'!B$1,'Log_working_3-way'!B$2) ->  | F93: =IF('Log_working_3-way'!D93="","",1/'True_Odds_Calculator_3-way'!N94+1/'True_Odds_Calculator_3-way'!O94+1/'True_Odds_Calculator_3-way'!P94-1) ->  | H93: =IF('Log_working_3-way'!$D93="","",'True_Odds_Calculator_3-way'!N94/'True_Odds_Calculator_3-way'!A94-1) ->  | I93: =IF('Log_working_3-way'!$D93="","",'True_Odds_Calculator_3-way'!O94/'True_Odds_Calculator_3-way'!B94-1) ->  | J93: =IF('Log_working_3-way'!$D93="","",'True_Odds_Calculator_3-way'!P94/'True_Odds_Calculator_3-way'!C94-1) ->  | K93: =IF('Log_working_3-way'!$D93="","",1/'True_Odds_Calculator_3-way'!A94+1/'True_Odds_Calculator_3-way'!B94+1/'True_Odds_Calculator_3-way'!C94-1) -> 
D94: =solve_for_c('True_Odds_Calculator_3-way'!A95,'True_Odds_Calculator_3-way'!B95,'True_Odds_Calculator_3-way'!C95,'Log_working_3-way'!B$1,'Log_working_3-way'!B$2) ->  | F94: =IF('Log_working_3-way'!D94="","",1/'True_Odds_Calculator_3-way'!N95+1/'True_Odds_Calculator_3-way'!O95+1/'True_Odds_Calculator_3-way'!P95-1) ->  | H94: =IF('Log_working_3-way'!$D94="","",'True_Odds_Calculator_3-way'!N95/'True_Odds_Calculator_3-way'!A95-1) ->  | I94: =IF('Log_working_3-way'!$D94="","",'True_Odds_Calculator_3-way'!O95/'True_Odds_Calculator_3-way'!B95-1) ->  | J94: =IF('Log_working_3-way'!$D94="","",'True_Odds_Calculator_3-way'!P95/'True_Odds_Calculator_3-way'!C95-1) ->  | K94: =IF('Log_working_3-way'!$D94="","",1/'True_Odds_Calculator_3-way'!A95+1/'True_Odds_Calculator_3-way'!B95+1/'True_Odds_Calculator_3-way'!C95-1) -> 
D95: =solve_for_c('True_Odds_Calculator_3-way'!A96,'True_Odds_Calculator_3-way'!B96,'True_Odds_Calculator_3-way'!C96,'Log_working_3-way'!B$1,'Log_working_3-way'!B$2) ->  | F95: =IF('Log_working_3-way'!D95="","",1/'True_Odds_Calculator_3-way'!N96+1/'True_Odds_Calculator_3-way'!O96+1/'True_Odds_Calculator_3-way'!P96-1) ->  | H95: =IF('Log_working_3-way'!$D95="","",'True_Odds_Calculator_3-way'!N96/'True_Odds_Calculator_3-way'!A96-1) ->  | I95: =IF('Log_working_3-way'!$D95="","",'True_Odds_Calculator_3-way'!O96/'True_Odds_Calculator_3-way'!B96-1) ->  | J95: =IF('Log_working_3-way'!$D95="","",'True_Odds_Calculator_3-way'!P96/'True_Odds_Calculator_3-way'!C96-1) ->  | K95: =IF('Log_working_3-way'!$D95="","",1/'True_Odds_Calculator_3-way'!A96+1/'True_Odds_Calculator_3-way'!B96+1/'True_Odds_Calculator_3-way'!C96-1) -> 
D96: =solve_for_c('True_Odds_Calculator_3-way'!A97,'True_Odds_Calculator_3-way'!B97,'True_Odds_Calculator_3-way'!C97,'Log_working_3-way'!B$1,'Log_working_3-way'!B$2) ->  | F96: =IF('Log_working_3-way'!D96="","",1/'True_Odds_Calculator_3-way'!N97+1/'True_Odds_Calculator_3-way'!O97+1/'True_Odds_Calculator_3-way'!P97-1) ->  | H96: =IF('Log_working_3-way'!$D96="","",'True_Odds_Calculator_3-way'!N97/'True_Odds_Calculator_3-way'!A97-1) ->  | I96: =IF('Log_working_3-way'!$D96="","",'True_Odds_Calculator_3-way'!O97/'True_Odds_Calculator_3-way'!B97-1) ->  | J96: =IF('Log_working_3-way'!$D96="","",'True_Odds_Calculator_3-way'!P97/'True_Odds_Calculator_3-way'!C97-1) ->  | K96: =IF('Log_working_3-way'!$D96="","",1/'True_Odds_Calculator_3-way'!A97+1/'True_Odds_Calculator_3-way'!B97+1/'True_Odds_Calculator_3-way'!C97-1) -> 
D97: =solve_for_c('True_Odds_Calculator_3-way'!A98,'True_Odds_Calculator_3-way'!B98,'True_Odds_Calculator_3-way'!C98,'Log_working_3-way'!B$1,'Log_working_3-way'!B$2) ->  | F97: =IF('Log_working_3-way'!D97="","",1/'True_Odds_Calculator_3-way'!N98+1/'True_Odds_Calculator_3-way'!O98+1/'True_Odds_Calculator_3-way'!P98-1) ->  | H97: =IF('Log_working_3-way'!$D97="","",'True_Odds_Calculator_3-way'!N98/'True_Odds_Calculator_3-way'!A98-1) ->  | I97: =IF('Log_working_3-way'!$D97="","",'True_Odds_Calculator_3-way'!O98/'True_Odds_Calculator_3-way'!B98-1) ->  | J97: =IF('Log_working_3-way'!$D97="","",'True_Odds_Calculator_3-way'!P98/'True_Odds_Calculator_3-way'!C98-1) ->  | K97: =IF('Log_working_3-way'!$D97="","",1/'True_Odds_Calculator_3-way'!A98+1/'True_Odds_Calculator_3-way'!B98+1/'True_Odds_Calculator_3-way'!C98-1) -> 
D98: =solve_for_c('True_Odds_Calculator_3-way'!A99,'True_Odds_Calculator_3-way'!B99,'True_Odds_Calculator_3-way'!C99,'Log_working_3-way'!B$1,'Log_working_3-way'!B$2) ->  | F98: =IF('Log_working_3-way'!D98="","",1/'True_Odds_Calculator_3-way'!N99+1/'True_Odds_Calculator_3-way'!O99+1/'True_Odds_Calculator_3-way'!P99-1) ->  | H98: =IF('Log_working_3-way'!$D98="","",'True_Odds_Calculator_3-way'!N99/'True_Odds_Calculator_3-way'!A99-1) ->  | I98: =IF('Log_working_3-way'!$D98="","",'True_Odds_Calculator_3-way'!O99/'True_Odds_Calculator_3-way'!B99-1) ->  | J98: =IF('Log_working_3-way'!$D98="","",'True_Odds_Calculator_3-way'!P99/'True_Odds_Calculator_3-way'!C99-1) ->  | K98: =IF('Log_working_3-way'!$D98="","",1/'True_Odds_Calculator_3-way'!A99+1/'True_Odds_Calculator_3-way'!B99+1/'True_Odds_Calculator_3-way'!C99-1) -> 
D99: =solve_for_c('True_Odds_Calculator_3-way'!A100,'True_Odds_Calculator_3-way'!B100,'True_Odds_Calculator_3-way'!C100,'Log_working_3-way'!B$1,'Log_working_3-way'!B$2) ->  | F99: =IF('Log_working_3-way'!D99="","",1/'True_Odds_Calculator_3-way'!N100+1/'True_Odds_Calculator_3-way'!O100+1/'True_Odds_Calculator_3-way'!P100-1) ->  | H99: =IF('Log_working_3-way'!$D99="","",'True_Odds_Calculator_3-way'!N100/'True_Odds_Calculator_3-way'!A100-1) ->  | I99: =IF('Log_working_3-way'!$D99="","",'True_Odds_Calculator_3-way'!O100/'True_Odds_Calculator_3-way'!B100-1) ->  | J99: =IF('Log_working_3-way'!$D99="","",'True_Odds_Calculator_3-way'!P100/'True_Odds_Calculator_3-way'!C100-1) ->  | K99: =IF('Log_working_3-way'!$D99="","",1/'True_Odds_Calculator_3-way'!A100+1/'True_Odds_Calculator_3-way'!B100+1/'True_Odds_Calculator_3-way'!C100-1) -> 
D100: =solve_for_c('True_Odds_Calculator_3-way'!A101,'True_Odds_Calculator_3-way'!B101,'True_Odds_Calculator_3-way'!C101,'Log_working_3-way'!B$1,'Log_working_3-way'!B$2) ->  | F100: =IF('Log_working_3-way'!D100="","",1/'True_Odds_Calculator_3-way'!N101+1/'True_Odds_Calculator_3-way'!O101+1/'True_Odds_Calculator_3-way'!P101-1) ->  | H100: =IF('Log_working_3-way'!$D100="","",'True_Odds_Calculator_3-way'!N101/'True_Odds_Calculator_3-way'!A101-1) ->  | I100: =IF('Log_working_3-way'!$D100="","",'True_Odds_Calculator_3-way'!O101/'True_Odds_Calculator_3-way'!B101-1) ->  | J100: =IF('Log_working_3-way'!$D100="","",'True_Odds_Calculator_3-way'!P101/'True_Odds_Calculator_3-way'!C101-1) ->  | K100: =IF('Log_working_3-way'!$D100="","",1/'True_Odds_Calculator_3-way'!A101+1/'True_Odds_Calculator_3-way'!B101+1/'True_Odds_Calculator_3-way'!C101-1) -> 
D101: =solve_for_c('True_Odds_Calculator_3-way'!A102,'True_Odds_Calculator_3-way'!B102,'True_Odds_Calculator_3-way'!C102,'Log_working_3-way'!B$1,'Log_working_3-way'!B$2) ->  | F101: =IF('Log_working_3-way'!D101="","",1/'True_Odds_Calculator_3-way'!N102+1/'True_Odds_Calculator_3-way'!O102+1/'True_Odds_Calculator_3-way'!P102-1) ->  | H101: =IF('Log_working_3-way'!$D101="","",'True_Odds_Calculator_3-way'!N102/'True_Odds_Calculator_3-way'!A102-1) ->  | I101: =IF('Log_working_3-way'!$D101="","",'True_Odds_Calculator_3-way'!O102/'True_Odds_Calculator_3-way'!B102-1) ->  | J101: =IF('Log_working_3-way'!$D101="","",'True_Odds_Calculator_3-way'!P102/'True_Odds_Calculator_3-way'!C102-1) ->  | K101: =IF('Log_working_3-way'!$D101="","",1/'True_Odds_Calculator_3-way'!A102+1/'True_Odds_Calculator_3-way'!B102+1/'True_Odds_Calculator_3-way'!C102-1) -> 
D102: =solve_for_c('True_Odds_Calculator_3-way'!A103,'True_Odds_Calculator_3-way'!B103,'True_Odds_Calculator_3-way'!C103,'Log_working_3-way'!B$1,'Log_working_3-way'!B$2) ->  | F102: =IF('Log_working_3-way'!D102="","",1/'True_Odds_Calculator_3-way'!N103+1/'True_Odds_Calculator_3-way'!O103+1/'True_Odds_Calculator_3-way'!P103-1) ->  | H102: =IF('Log_working_3-way'!$D102="","",'True_Odds_Calculator_3-way'!N103/'True_Odds_Calculator_3-way'!A103-1) ->  | I102: =IF('Log_working_3-way'!$D102="","",'True_Odds_Calculator_3-way'!O103/'True_Odds_Calculator_3-way'!B103-1) ->  | J102: =IF('Log_working_3-way'!$D102="","",'True_Odds_Calculator_3-way'!P103/'True_Odds_Calculator_3-way'!C103-1) ->  | K102: =IF('Log_working_3-way'!$D102="","",1/'True_Odds_Calculator_3-way'!A103+1/'True_Odds_Calculator_3-way'!B103+1/'True_Odds_Calculator_3-way'!C103-1) -> 
D103: =solve_for_c('True_Odds_Calculator_3-way'!A104,'True_Odds_Calculator_3-way'!B104,'True_Odds_Calculator_3-way'!C104,'Log_working_3-way'!B$1,'Log_working_3-way'!B$2) ->  | F103: =IF('Log_working_3-way'!D103="","",1/'True_Odds_Calculator_3-way'!N104+1/'True_Odds_Calculator_3-way'!O104+1/'True_Odds_Calculator_3-way'!P104-1) ->  | H103: =IF('Log_working_3-way'!$D103="","",'True_Odds_Calculator_3-way'!N104/'True_Odds_Calculator_3-way'!A104-1) ->  | I103: =IF('Log_working_3-way'!$D103="","",'True_Odds_Calculator_3-way'!O104/'True_Odds_Calculator_3-way'!B104-1) ->  | J103: =IF('Log_working_3-way'!$D103="","",'True_Odds_Calculator_3-way'!P104/'True_Odds_Calculator_3-way'!C104-1) ->  | K103: =IF('Log_working_3-way'!$D103="","",1/'True_Odds_Calculator_3-way'!A104+1/'True_Odds_Calculator_3-way'!B104+1/'True_Odds_Calculator_3-way'!C104-1) -> 
D104: =solve_for_c('True_Odds_Calculator_3-way'!A105,'True_Odds_Calculator_3-way'!B105,'True_Odds_Calculator_3-way'!C105,'Log_working_3-way'!B$1,'Log_working_3-way'!B$2) ->  | F104: =IF('Log_working_3-way'!D104="","",1/'True_Odds_Calculator_3-way'!N105+1/'True_Odds_Calculator_3-way'!O105+1/'True_Odds_Calculator_3-way'!P105-1) ->  | H104: =IF('Log_working_3-way'!$D104="","",'True_Odds_Calculator_3-way'!N105/'True_Odds_Calculator_3-way'!A105-1) ->  | I104: =IF('Log_working_3-way'!$D104="","",'True_Odds_Calculator_3-way'!O105/'True_Odds_Calculator_3-way'!B105-1) ->  | J104: =IF('Log_working_3-way'!$D104="","",'True_Odds_Calculator_3-way'!P105/'True_Odds_Calculator_3-way'!C105-1) ->  | K104: =IF('Log_working_3-way'!$D104="","",1/'True_Odds_Calculator_3-way'!A105+1/'True_Odds_Calculator_3-way'!B105+1/'True_Odds_Calculator_3-way'!C105-1) -> 
D105: =solve_for_c('True_Odds_Calculator_3-way'!A106,'True_Odds_Calculator_3-way'!B106,'True_Odds_Calculator_3-way'!C106,'Log_working_3-way'!B$1,'Log_working_3-way'!B$2) ->  | F105: =IF('Log_working_3-way'!D105="","",1/'True_Odds_Calculator_3-way'!N106+1/'True_Odds_Calculator_3-way'!O106+1/'True_Odds_Calculator_3-way'!P106-1) ->  | H105: =IF('Log_working_3-way'!$D105="","",'True_Odds_Calculator_3-way'!N106/'True_Odds_Calculator_3-way'!A106-1) ->  | I105: =IF('Log_working_3-way'!$D105="","",'True_Odds_Calculator_3-way'!O106/'True_Odds_Calculator_3-way'!B106-1) ->  | J105: =IF('Log_working_3-way'!$D105="","",'True_Odds_Calculator_3-way'!P106/'True_Odds_Calculator_3-way'!C106-1) ->  | K105: =IF('Log_working_3-way'!$D105="","",1/'True_Odds_Calculator_3-way'!A106+1/'True_Odds_Calculator_3-way'!B106+1/'True_Odds_Calculator_3-way'!C106-1) -> 
D106: =solve_for_c('True_Odds_Calculator_3-way'!A107,'True_Odds_Calculator_3-way'!B107,'True_Odds_Calculator_3-way'!C107,'Log_working_3-way'!B$1,'Log_working_3-way'!B$2) ->  | F106: =IF('Log_working_3-way'!D106="","",1/'True_Odds_Calculator_3-way'!N107+1/'True_Odds_Calculator_3-way'!O107+1/'True_Odds_Calculator_3-way'!P107-1) ->  | H106: =IF('Log_working_3-way'!$D106="","",'True_Odds_Calculator_3-way'!N107/'True_Odds_Calculator_3-way'!A107-1) ->  | I106: =IF('Log_working_3-way'!$D106="","",'True_Odds_Calculator_3-way'!O107/'True_Odds_Calculator_3-way'!B107-1) ->  | J106: =IF('Log_working_3-way'!$D106="","",'True_Odds_Calculator_3-way'!P107/'True_Odds_Calculator_3-way'!C107-1) ->  | K106: =IF('Log_working_3-way'!$D106="","",1/'True_Odds_Calculator_3-way'!A107+1/'True_Odds_Calculator_3-way'!B107+1/'True_Odds_Calculator_3-way'!C107-1) -> 
D107: =solve_for_c('True_Odds_Calculator_3-way'!A108,'True_Odds_Calculator_3-way'!B108,'True_Odds_Calculator_3-way'!C108,'Log_working_3-way'!B$1,'Log_working_3-way'!B$2) ->  | F107: =IF('Log_working_3-way'!D107="","",1/'True_Odds_Calculator_3-way'!N108+1/'True_Odds_Calculator_3-way'!O108+1/'True_Odds_Calculator_3-way'!P108-1) ->  | H107: =IF('Log_working_3-way'!$D107="","",'True_Odds_Calculator_3-way'!N108/'True_Odds_Calculator_3-way'!A108-1) ->  | I107: =IF('Log_working_3-way'!$D107="","",'True_Odds_Calculator_3-way'!O108/'True_Odds_Calculator_3-way'!B108-1) ->  | J107: =IF('Log_working_3-way'!$D107="","",'True_Odds_Calculator_3-way'!P108/'True_Odds_Calculator_3-way'!C108-1) ->  | K107: =IF('Log_working_3-way'!$D107="","",1/'True_Odds_Calculator_3-way'!A108+1/'True_Odds_Calculator_3-way'!B108+1/'True_Odds_Calculator_3-way'!C108-1) -> 
D108: =solve_for_c('True_Odds_Calculator_3-way'!A109,'True_Odds_Calculator_3-way'!B109,'True_Odds_Calculator_3-way'!C109,'Log_working_3-way'!B$1,'Log_working_3-way'!B$2) ->  | F108: =IF('Log_working_3-way'!D108="","",1/'True_Odds_Calculator_3-way'!N109+1/'True_Odds_Calculator_3-way'!O109+1/'True_Odds_Calculator_3-way'!P109-1) ->  | H108: =IF('Log_working_3-way'!$D108="","",'True_Odds_Calculator_3-way'!N109/'True_Odds_Calculator_3-way'!A109-1) ->  | I108: =IF('Log_working_3-way'!$D108="","",'True_Odds_Calculator_3-way'!O109/'True_Odds_Calculator_3-way'!B109-1) ->  | J108: =IF('Log_working_3-way'!$D108="","",'True_Odds_Calculator_3-way'!P109/'True_Odds_Calculator_3-way'!C109-1) ->  | K108: =IF('Log_working_3-way'!$D108="","",1/'True_Odds_Calculator_3-way'!A109+1/'True_Odds_Calculator_3-way'!B109+1/'True_Odds_Calculator_3-way'!C109-1) -> 
D109: =solve_for_c('True_Odds_Calculator_3-way'!A110,'True_Odds_Calculator_3-way'!B110,'True_Odds_Calculator_3-way'!C110,'Log_working_3-way'!B$1,'Log_working_3-way'!B$2) ->  | F109: =IF('Log_working_3-way'!D109="","",1/'True_Odds_Calculator_3-way'!N110+1/'True_Odds_Calculator_3-way'!O110+1/'True_Odds_Calculator_3-way'!P110-1) ->  | H109: =IF('Log_working_3-way'!$D109="","",'True_Odds_Calculator_3-way'!N110/'True_Odds_Calculator_3-way'!A110-1) ->  | I109: =IF('Log_working_3-way'!$D109="","",'True_Odds_Calculator_3-way'!O110/'True_Odds_Calculator_3-way'!B110-1) ->  | J109: =IF('Log_working_3-way'!$D109="","",'True_Odds_Calculator_3-way'!P110/'True_Odds_Calculator_3-way'!C110-1) ->  | K109: =IF('Log_working_3-way'!$D109="","",1/'True_Odds_Calculator_3-way'!A110+1/'True_Odds_Calculator_3-way'!B110+1/'True_Odds_Calculator_3-way'!C110-1) -> 
D110: =solve_for_c('True_Odds_Calculator_3-way'!A111,'True_Odds_Calculator_3-way'!B111,'True_Odds_Calculator_3-way'!C111,'Log_working_3-way'!B$1,'Log_working_3-way'!B$2) ->  | F110: =IF('Log_working_3-way'!D110="","",1/'True_Odds_Calculator_3-way'!N111+1/'True_Odds_Calculator_3-way'!O111+1/'True_Odds_Calculator_3-way'!P111-1) ->  | H110: =IF('Log_working_3-way'!$D110="","",'True_Odds_Calculator_3-way'!N111/'True_Odds_Calculator_3-way'!A111-1) ->  | I110: =IF('Log_working_3-way'!$D110="","",'True_Odds_Calculator_3-way'!O111/'True_Odds_Calculator_3-way'!B111-1) ->  | J110: =IF('Log_working_3-way'!$D110="","",'True_Odds_Calculator_3-way'!P111/'True_Odds_Calculator_3-way'!C111-1) ->  | K110: =IF('Log_working_3-way'!$D110="","",1/'True_Odds_Calculator_3-way'!A111+1/'True_Odds_Calculator_3-way'!B111+1/'True_Odds_Calculator_3-way'!C111-1) -> 
D111: =solve_for_c('True_Odds_Calculator_3-way'!A112,'True_Odds_Calculator_3-way'!B112,'True_Odds_Calculator_3-way'!C112,'Log_working_3-way'!B$1,'Log_working_3-way'!B$2) ->  | F111: =IF('Log_working_3-way'!D111="","",1/'True_Odds_Calculator_3-way'!N112+1/'True_Odds_Calculator_3-way'!O112+1/'True_Odds_Calculator_3-way'!P112-1) ->  | H111: =IF('Log_working_3-way'!$D111="","",'True_Odds_Calculator_3-way'!N112/'True_Odds_Calculator_3-way'!A112-1) ->  | I111: =IF('Log_working_3-way'!$D111="","",'True_Odds_Calculator_3-way'!O112/'True_Odds_Calculator_3-way'!B112-1) ->  | J111: =IF('Log_working_3-way'!$D111="","",'True_Odds_Calculator_3-way'!P112/'True_Odds_Calculator_3-way'!C112-1) ->  | K111: =IF('Log_working_3-way'!$D111="","",1/'True_Odds_Calculator_3-way'!A112+1/'True_Odds_Calculator_3-way'!B112+1/'True_Odds_Calculator_3-way'!C112-1) -> 
D112: =solve_for_c('True_Odds_Calculator_3-way'!A113,'True_Odds_Calculator_3-way'!B113,'True_Odds_Calculator_3-way'!C113,'Log_working_3-way'!B$1,'Log_working_3-way'!B$2) ->  | F112: =IF('Log_working_3-way'!D112="","",1/'True_Odds_Calculator_3-way'!N113+1/'True_Odds_Calculator_3-way'!O113+1/'True_Odds_Calculator_3-way'!P113-1) ->  | H112: =IF('Log_working_3-way'!$D112="","",'True_Odds_Calculator_3-way'!N113/'True_Odds_Calculator_3-way'!A113-1) ->  | I112: =IF('Log_working_3-way'!$D112="","",'True_Odds_Calculator_3-way'!O113/'True_Odds_Calculator_3-way'!B113-1) ->  | J112: =IF('Log_working_3-way'!$D112="","",'True_Odds_Calculator_3-way'!P113/'True_Odds_Calculator_3-way'!C113-1) ->  | K112: =IF('Log_working_3-way'!$D112="","",1/'True_Odds_Calculator_3-way'!A113+1/'True_Odds_Calculator_3-way'!B113+1/'True_Odds_Calculator_3-way'!C113-1) -> 
D113: =solve_for_c('True_Odds_Calculator_3-way'!A114,'True_Odds_Calculator_3-way'!B114,'True_Odds_Calculator_3-way'!C114,'Log_working_3-way'!B$1,'Log_working_3-way'!B$2) ->  | F113: =IF('Log_working_3-way'!D113="","",1/'True_Odds_Calculator_3-way'!N114+1/'True_Odds_Calculator_3-way'!O114+1/'True_Odds_Calculator_3-way'!P114-1) ->  | H113: =IF('Log_working_3-way'!$D113="","",'True_Odds_Calculator_3-way'!N114/'True_Odds_Calculator_3-way'!A114-1) ->  | I113: =IF('Log_working_3-way'!$D113="","",'True_Odds_Calculator_3-way'!O114/'True_Odds_Calculator_3-way'!B114-1) ->  | J113: =IF('Log_working_3-way'!$D113="","",'True_Odds_Calculator_3-way'!P114/'True_Odds_Calculator_3-way'!C114-1) ->  | K113: =IF('Log_working_3-way'!$D113="","",1/'True_Odds_Calculator_3-way'!A114+1/'True_Odds_Calculator_3-way'!B114+1/'True_Odds_Calculator_3-way'!C114-1) -> 
D114: =solve_for_c('True_Odds_Calculator_3-way'!A115,'True_Odds_Calculator_3-way'!B115,'True_Odds_Calculator_3-way'!C115,'Log_working_3-way'!B$1,'Log_working_3-way'!B$2) ->  | F114: =IF('Log_working_3-way'!D114="","",1/'True_Odds_Calculator_3-way'!N115+1/'True_Odds_Calculator_3-way'!O115+1/'True_Odds_Calculator_3-way'!P115-1) ->  | H114: =IF('Log_working_3-way'!$D114="","",'True_Odds_Calculator_3-way'!N115/'True_Odds_Calculator_3-way'!A115-1) ->  | I114: =IF('Log_working_3-way'!$D114="","",'True_Odds_Calculator_3-way'!O115/'True_Odds_Calculator_3-way'!B115-1) ->  | J114: =IF('Log_working_3-way'!$D114="","",'True_Odds_Calculator_3-way'!P115/'True_Odds_Calculator_3-way'!C115-1) ->  | K114: =IF('Log_working_3-way'!$D114="","",1/'True_Odds_Calculator_3-way'!A115+1/'True_Odds_Calculator_3-way'!B115+1/'True_Odds_Calculator_3-way'!C115-1) -> 
D115: =solve_for_c('True_Odds_Calculator_3-way'!A116,'True_Odds_Calculator_3-way'!B116,'True_Odds_Calculator_3-way'!C116,'Log_working_3-way'!B$1,'Log_working_3-way'!B$2) ->  | F115: =IF('Log_working_3-way'!D115="","",1/'True_Odds_Calculator_3-way'!N116+1/'True_Odds_Calculator_3-way'!O116+1/'True_Odds_Calculator_3-way'!P116-1) ->  | H115: =IF('Log_working_3-way'!$D115="","",'True_Odds_Calculator_3-way'!N116/'True_Odds_Calculator_3-way'!A116-1) ->  | I115: =IF('Log_working_3-way'!$D115="","",'True_Odds_Calculator_3-way'!O116/'True_Odds_Calculator_3-way'!B116-1) ->  | J115: =IF('Log_working_3-way'!$D115="","",'True_Odds_Calculator_3-way'!P116/'True_Odds_Calculator_3-way'!C116-1) ->  | K115: =IF('Log_working_3-way'!$D115="","",1/'True_Odds_Calculator_3-way'!A116+1/'True_Odds_Calculator_3-way'!B116+1/'True_Odds_Calculator_3-way'!C116-1) -> 
D116: =solve_for_c('True_Odds_Calculator_3-way'!A117,'True_Odds_Calculator_3-way'!B117,'True_Odds_Calculator_3-way'!C117,'Log_working_3-way'!B$1,'Log_working_3-way'!B$2) ->  | F116: =IF('Log_working_3-way'!D116="","",1/'True_Odds_Calculator_3-way'!N117+1/'True_Odds_Calculator_3-way'!O117+1/'True_Odds_Calculator_3-way'!P117-1) ->  | H116: =IF('Log_working_3-way'!$D116="","",'True_Odds_Calculator_3-way'!N117/'True_Odds_Calculator_3-way'!A117-1) ->  | I116: =IF('Log_working_3-way'!$D116="","",'True_Odds_Calculator_3-way'!O117/'True_Odds_Calculator_3-way'!B117-1) ->  | J116: =IF('Log_working_3-way'!$D116="","",'True_Odds_Calculator_3-way'!P117/'True_Odds_Calculator_3-way'!C117-1) ->  | K116: =IF('Log_working_3-way'!$D116="","",1/'True_Odds_Calculator_3-way'!A117+1/'True_Odds_Calculator_3-way'!B117+1/'True_Odds_Calculator_3-way'!C117-1) -> 
D117: =solve_for_c('True_Odds_Calculator_3-way'!A118,'True_Odds_Calculator_3-way'!B118,'True_Odds_Calculator_3-way'!C118,'Log_working_3-way'!B$1,'Log_working_3-way'!B$2) ->  | F117: =IF('Log_working_3-way'!D117="","",1/'True_Odds_Calculator_3-way'!N118+1/'True_Odds_Calculator_3-way'!O118+1/'True_Odds_Calculator_3-way'!P118-1) ->  | H117: =IF('Log_working_3-way'!$D117="","",'True_Odds_Calculator_3-way'!N118/'True_Odds_Calculator_3-way'!A118-1) ->  | I117: =IF('Log_working_3-way'!$D117="","",'True_Odds_Calculator_3-way'!O118/'True_Odds_Calculator_3-way'!B118-1) ->  | J117: =IF('Log_working_3-way'!$D117="","",'True_Odds_Calculator_3-way'!P118/'True_Odds_Calculator_3-way'!C118-1) ->  | K117: =IF('Log_working_3-way'!$D117="","",1/'True_Odds_Calculator_3-way'!A118+1/'True_Odds_Calculator_3-way'!B118+1/'True_Odds_Calculator_3-way'!C118-1) -> 
D118: =solve_for_c('True_Odds_Calculator_3-way'!A119,'True_Odds_Calculator_3-way'!B119,'True_Odds_Calculator_3-way'!C119,'Log_working_3-way'!B$1,'Log_working_3-way'!B$2) ->  | F118: =IF('Log_working_3-way'!D118="","",1/'True_Odds_Calculator_3-way'!N119+1/'True_Odds_Calculator_3-way'!O119+1/'True_Odds_Calculator_3-way'!P119-1) ->  | H118: =IF('Log_working_3-way'!$D118="","",'True_Odds_Calculator_3-way'!N119/'True_Odds_Calculator_3-way'!A119-1) ->  | I118: =IF('Log_working_3-way'!$D118="","",'True_Odds_Calculator_3-way'!O119/'True_Odds_Calculator_3-way'!B119-1) ->  | J118: =IF('Log_working_3-way'!$D118="","",'True_Odds_Calculator_3-way'!P119/'True_Odds_Calculator_3-way'!C119-1) ->  | K118: =IF('Log_working_3-way'!$D118="","",1/'True_Odds_Calculator_3-way'!A119+1/'True_Odds_Calculator_3-way'!B119+1/'True_Odds_Calculator_3-way'!C119-1) -> 
D119: =solve_for_c('True_Odds_Calculator_3-way'!A120,'True_Odds_Calculator_3-way'!B120,'True_Odds_Calculator_3-way'!C120,'Log_working_3-way'!B$1,'Log_working_3-way'!B$2) ->  | F119: =IF('Log_working_3-way'!D119="","",1/'True_Odds_Calculator_3-way'!N120+1/'True_Odds_Calculator_3-way'!O120+1/'True_Odds_Calculator_3-way'!P120-1) ->  | H119: =IF('Log_working_3-way'!$D119="","",'True_Odds_Calculator_3-way'!N120/'True_Odds_Calculator_3-way'!A120-1) ->  | I119: =IF('Log_working_3-way'!$D119="","",'True_Odds_Calculator_3-way'!O120/'True_Odds_Calculator_3-way'!B120-1) ->  | J119: =IF('Log_working_3-way'!$D119="","",'True_Odds_Calculator_3-way'!P120/'True_Odds_Calculator_3-way'!C120-1) ->  | K119: =IF('Log_working_3-way'!$D119="","",1/'True_Odds_Calculator_3-way'!A120+1/'True_Odds_Calculator_3-way'!B120+1/'True_Odds_Calculator_3-way'!C120-1) -> 
D120: =solve_for_c('True_Odds_Calculator_3-way'!A121,'True_Odds_Calculator_3-way'!B121,'True_Odds_Calculator_3-way'!C121,'Log_working_3-way'!B$1,'Log_working_3-way'!B$2) ->  | F120: =IF('Log_working_3-way'!D120="","",1/'True_Odds_Calculator_3-way'!N121+1/'True_Odds_Calculator_3-way'!O121+1/'True_Odds_Calculator_3-way'!P121-1) ->  | H120: =IF('Log_working_3-way'!$D120="","",'True_Odds_Calculator_3-way'!N121/'True_Odds_Calculator_3-way'!A121-1) ->  | I120: =IF('Log_working_3-way'!$D120="","",'True_Odds_Calculator_3-way'!O121/'True_Odds_Calculator_3-way'!B121-1) ->  | J120: =IF('Log_working_3-way'!$D120="","",'True_Odds_Calculator_3-way'!P121/'True_Odds_Calculator_3-way'!C121-1) ->  | K120: =IF('Log_working_3-way'!$D120="","",1/'True_Odds_Calculator_3-way'!A121+1/'True_Odds_Calculator_3-way'!B121+1/'True_Odds_Calculator_3-way'!C121-1) -> 
D121: =solve_for_c('True_Odds_Calculator_3-way'!A122,'True_Odds_Calculator_3-way'!B122,'True_Odds_Calculator_3-way'!C122,'Log_working_3-way'!B$1,'Log_working_3-way'!B$2) ->  | F121: =IF('Log_working_3-way'!D121="","",1/'True_Odds_Calculator_3-way'!N122+1/'True_Odds_Calculator_3-way'!O122+1/'True_Odds_Calculator_3-way'!P122-1) ->  | H121: =IF('Log_working_3-way'!$D121="","",'True_Odds_Calculator_3-way'!N122/'True_Odds_Calculator_3-way'!A122-1) ->  | I121: =IF('Log_working_3-way'!$D121="","",'True_Odds_Calculator_3-way'!O122/'True_Odds_Calculator_3-way'!B122-1) ->  | J121: =IF('Log_working_3-way'!$D121="","",'True_Odds_Calculator_3-way'!P122/'True_Odds_Calculator_3-way'!C122-1) ->  | K121: =IF('Log_working_3-way'!$D121="","",1/'True_Odds_Calculator_3-way'!A122+1/'True_Odds_Calculator_3-way'!B122+1/'True_Odds_Calculator_3-way'!C122-1) -> 
D122: =solve_for_c('True_Odds_Calculator_3-way'!A123,'True_Odds_Calculator_3-way'!B123,'True_Odds_Calculator_3-way'!C123,'Log_working_3-way'!B$1,'Log_working_3-way'!B$2) ->  | F122: =IF('Log_working_3-way'!D122="","",1/'True_Odds_Calculator_3-way'!N123+1/'True_Odds_Calculator_3-way'!O123+1/'True_Odds_Calculator_3-way'!P123-1) ->  | H122: =IF('Log_working_3-way'!$D122="","",'True_Odds_Calculator_3-way'!N123/'True_Odds_Calculator_3-way'!A123-1) ->  | I122: =IF('Log_working_3-way'!$D122="","",'True_Odds_Calculator_3-way'!O123/'True_Odds_Calculator_3-way'!B123-1) ->  | J122: =IF('Log_working_3-way'!$D122="","",'True_Odds_Calculator_3-way'!P123/'True_Odds_Calculator_3-way'!C123-1) ->  | K122: =IF('Log_working_3-way'!$D122="","",1/'True_Odds_Calculator_3-way'!A123+1/'True_Odds_Calculator_3-way'!B123+1/'True_Odds_Calculator_3-way'!C123-1) -> 
D123: =solve_for_c('True_Odds_Calculator_3-way'!A124,'True_Odds_Calculator_3-way'!B124,'True_Odds_Calculator_3-way'!C124,'Log_working_3-way'!B$1,'Log_working_3-way'!B$2) ->  | F123: =IF('Log_working_3-way'!D123="","",1/'True_Odds_Calculator_3-way'!N124+1/'True_Odds_Calculator_3-way'!O124+1/'True_Odds_Calculator_3-way'!P124-1) ->  | H123: =IF('Log_working_3-way'!$D123="","",'True_Odds_Calculator_3-way'!N124/'True_Odds_Calculator_3-way'!A124-1) ->  | I123: =IF('Log_working_3-way'!$D123="","",'True_Odds_Calculator_3-way'!O124/'True_Odds_Calculator_3-way'!B124-1) ->  | J123: =IF('Log_working_3-way'!$D123="","",'True_Odds_Calculator_3-way'!P124/'True_Odds_Calculator_3-way'!C124-1) ->  | K123: =IF('Log_working_3-way'!$D123="","",1/'True_Odds_Calculator_3-way'!A124+1/'True_Odds_Calculator_3-way'!B124+1/'True_Odds_Calculator_3-way'!C124-1) -> 
D124: =solve_for_c('True_Odds_Calculator_3-way'!A125,'True_Odds_Calculator_3-way'!B125,'True_Odds_Calculator_3-way'!C125,'Log_working_3-way'!B$1,'Log_working_3-way'!B$2) ->  | F124: =IF('Log_working_3-way'!D124="","",1/'True_Odds_Calculator_3-way'!N125+1/'True_Odds_Calculator_3-way'!O125+1/'True_Odds_Calculator_3-way'!P125-1) ->  | H124: =IF('Log_working_3-way'!$D124="","",'True_Odds_Calculator_3-way'!N125/'True_Odds_Calculator_3-way'!A125-1) ->  | I124: =IF('Log_working_3-way'!$D124="","",'True_Odds_Calculator_3-way'!O125/'True_Odds_Calculator_3-way'!B125-1) ->  | J124: =IF('Log_working_3-way'!$D124="","",'True_Odds_Calculator_3-way'!P125/'True_Odds_Calculator_3-way'!C125-1) ->  | K124: =IF('Log_working_3-way'!$D124="","",1/'True_Odds_Calculator_3-way'!A125+1/'True_Odds_Calculator_3-way'!B125+1/'True_Odds_Calculator_3-way'!C125-1) -> 
D125: =solve_for_c('True_Odds_Calculator_3-way'!A126,'True_Odds_Calculator_3-way'!B126,'True_Odds_Calculator_3-way'!C126,'Log_working_3-way'!B$1,'Log_working_3-way'!B$2) ->  | F125: =IF('Log_working_3-way'!D125="","",1/'True_Odds_Calculator_3-way'!N126+1/'True_Odds_Calculator_3-way'!O126+1/'True_Odds_Calculator_3-way'!P126-1) ->  | H125: =IF('Log_working_3-way'!$D125="","",'True_Odds_Calculator_3-way'!N126/'True_Odds_Calculator_3-way'!A126-1) ->  | I125: =IF('Log_working_3-way'!$D125="","",'True_Odds_Calculator_3-way'!O126/'True_Odds_Calculator_3-way'!B126-1) ->  | J125: =IF('Log_working_3-way'!$D125="","",'True_Odds_Calculator_3-way'!P126/'True_Odds_Calculator_3-way'!C126-1) ->  | K125: =IF('Log_working_3-way'!$D125="","",1/'True_Odds_Calculator_3-way'!A126+1/'True_Odds_Calculator_3-way'!B126+1/'True_Odds_Calculator_3-way'!C126-1) -> 
D126: =solve_for_c('True_Odds_Calculator_3-way'!A127,'True_Odds_Calculator_3-way'!B127,'True_Odds_Calculator_3-way'!C127,'Log_working_3-way'!B$1,'Log_working_3-way'!B$2) ->  | F126: =IF('Log_working_3-way'!D126="","",1/'True_Odds_Calculator_3-way'!N127+1/'True_Odds_Calculator_3-way'!O127+1/'True_Odds_Calculator_3-way'!P127-1) ->  | H126: =IF('Log_working_3-way'!$D126="","",'True_Odds_Calculator_3-way'!N127/'True_Odds_Calculator_3-way'!A127-1) ->  | I126: =IF('Log_working_3-way'!$D126="","",'True_Odds_Calculator_3-way'!O127/'True_Odds_Calculator_3-way'!B127-1) ->  | J126: =IF('Log_working_3-way'!$D126="","",'True_Odds_Calculator_3-way'!P127/'True_Odds_Calculator_3-way'!C127-1) ->  | K126: =IF('Log_working_3-way'!$D126="","",1/'True_Odds_Calculator_3-way'!A127+1/'True_Odds_Calculator_3-way'!B127+1/'True_Odds_Calculator_3-way'!C127-1) -> 
D127: =solve_for_c('True_Odds_Calculator_3-way'!A128,'True_Odds_Calculator_3-way'!B128,'True_Odds_Calculator_3-way'!C128,'Log_working_3-way'!B$1,'Log_working_3-way'!B$2) ->  | F127: =IF('Log_working_3-way'!D127="","",1/'True_Odds_Calculator_3-way'!N128+1/'True_Odds_Calculator_3-way'!O128+1/'True_Odds_Calculator_3-way'!P128-1) ->  | H127: =IF('Log_working_3-way'!$D127="","",'True_Odds_Calculator_3-way'!N128/'True_Odds_Calculator_3-way'!A128-1) ->  | I127: =IF('Log_working_3-way'!$D127="","",'True_Odds_Calculator_3-way'!O128/'True_Odds_Calculator_3-way'!B128-1) ->  | J127: =IF('Log_working_3-way'!$D127="","",'True_Odds_Calculator_3-way'!P128/'True_Odds_Calculator_3-way'!C128-1) ->  | K127: =IF('Log_working_3-way'!$D127="","",1/'True_Odds_Calculator_3-way'!A128+1/'True_Odds_Calculator_3-way'!B128+1/'True_Odds_Calculator_3-way'!C128-1) -> 
D128: =solve_for_c('True_Odds_Calculator_3-way'!A129,'True_Odds_Calculator_3-way'!B129,'True_Odds_Calculator_3-way'!C129,'Log_working_3-way'!B$1,'Log_working_3-way'!B$2) ->  | F128: =IF('Log_working_3-way'!D128="","",1/'True_Odds_Calculator_3-way'!N129+1/'True_Odds_Calculator_3-way'!O129+1/'True_Odds_Calculator_3-way'!P129-1) ->  | H128: =IF('Log_working_3-way'!$D128="","",'True_Odds_Calculator_3-way'!N129/'True_Odds_Calculator_3-way'!A129-1) ->  | I128: =IF('Log_working_3-way'!$D128="","",'True_Odds_Calculator_3-way'!O129/'True_Odds_Calculator_3-way'!B129-1) ->  | J128: =IF('Log_working_3-way'!$D128="","",'True_Odds_Calculator_3-way'!P129/'True_Odds_Calculator_3-way'!C129-1) ->  | K128: =IF('Log_working_3-way'!$D128="","",1/'True_Odds_Calculator_3-way'!A129+1/'True_Odds_Calculator_3-way'!B129+1/'True_Odds_Calculator_3-way'!C129-1) -> 
D129: =solve_for_c('True_Odds_Calculator_3-way'!A130,'True_Odds_Calculator_3-way'!B130,'True_Odds_Calculator_3-way'!C130,'Log_working_3-way'!B$1,'Log_working_3-way'!B$2) ->  | F129: =IF('Log_working_3-way'!D129="","",1/'True_Odds_Calculator_3-way'!N130+1/'True_Odds_Calculator_3-way'!O130+1/'True_Odds_Calculator_3-way'!P130-1) ->  | H129: =IF('Log_working_3-way'!$D129="","",'True_Odds_Calculator_3-way'!N130/'True_Odds_Calculator_3-way'!A130-1) ->  | I129: =IF('Log_working_3-way'!$D129="","",'True_Odds_Calculator_3-way'!O130/'True_Odds_Calculator_3-way'!B130-1) ->  | J129: =IF('Log_working_3-way'!$D129="","",'True_Odds_Calculator_3-way'!P130/'True_Odds_Calculator_3-way'!C130-1) ->  | K129: =IF('Log_working_3-way'!$D129="","",1/'True_Odds_Calculator_3-way'!A130+1/'True_Odds_Calculator_3-way'!B130+1/'True_Odds_Calculator_3-way'!C130-1) -> 
D130: =solve_for_c('True_Odds_Calculator_3-way'!A131,'True_Odds_Calculator_3-way'!B131,'True_Odds_Calculator_3-way'!C131,'Log_working_3-way'!B$1,'Log_working_3-way'!B$2) ->  | F130: =IF('Log_working_3-way'!D130="","",1/'True_Odds_Calculator_3-way'!N131+1/'True_Odds_Calculator_3-way'!O131+1/'True_Odds_Calculator_3-way'!P131-1) ->  | H130: =IF('Log_working_3-way'!$D130="","",'True_Odds_Calculator_3-way'!N131/'True_Odds_Calculator_3-way'!A131-1) ->  | I130: =IF('Log_working_3-way'!$D130="","",'True_Odds_Calculator_3-way'!O131/'True_Odds_Calculator_3-way'!B131-1) ->  | J130: =IF('Log_working_3-way'!$D130="","",'True_Odds_Calculator_3-way'!P131/'True_Odds_Calculator_3-way'!C131-1) ->  | K130: =IF('Log_working_3-way'!$D130="","",1/'True_Odds_Calculator_3-way'!A131+1/'True_Odds_Calculator_3-way'!B131+1/'True_Odds_Calculator_3-way'!C131-1) -> 
D131: =solve_for_c('True_Odds_Calculator_3-way'!A132,'True_Odds_Calculator_3-way'!B132,'True_Odds_Calculator_3-way'!C132,'Log_working_3-way'!B$1,'Log_working_3-way'!B$2) ->  | F131: =IF('Log_working_3-way'!D131="","",1/'True_Odds_Calculator_3-way'!N132+1/'True_Odds_Calculator_3-way'!O132+1/'True_Odds_Calculator_3-way'!P132-1) ->  | H131: =IF('Log_working_3-way'!$D131="","",'True_Odds_Calculator_3-way'!N132/'True_Odds_Calculator_3-way'!A132-1) ->  | I131: =IF('Log_working_3-way'!$D131="","",'True_Odds_Calculator_3-way'!O132/'True_Odds_Calculator_3-way'!B132-1) ->  | J131: =IF('Log_working_3-way'!$D131="","",'True_Odds_Calculator_3-way'!P132/'True_Odds_Calculator_3-way'!C132-1) ->  | K131: =IF('Log_working_3-way'!$D131="","",1/'True_Odds_Calculator_3-way'!A132+1/'True_Odds_Calculator_3-way'!B132+1/'True_Odds_Calculator_3-way'!C132-1) -> 
D132: =solve_for_c('True_Odds_Calculator_3-way'!A133,'True_Odds_Calculator_3-way'!B133,'True_Odds_Calculator_3-way'!C133,'Log_working_3-way'!B$1,'Log_working_3-way'!B$2) ->  | F132: =IF('Log_working_3-way'!D132="","",1/'True_Odds_Calculator_3-way'!N133+1/'True_Odds_Calculator_3-way'!O133+1/'True_Odds_Calculator_3-way'!P133-1) ->  | H132: =IF('Log_working_3-way'!$D132="","",'True_Odds_Calculator_3-way'!N133/'True_Odds_Calculator_3-way'!A133-1) ->  | I132: =IF('Log_working_3-way'!$D132="","",'True_Odds_Calculator_3-way'!O133/'True_Odds_Calculator_3-way'!B133-1) ->  | J132: =IF('Log_working_3-way'!$D132="","",'True_Odds_Calculator_3-way'!P133/'True_Odds_Calculator_3-way'!C133-1) ->  | K132: =IF('Log_working_3-way'!$D132="","",1/'True_Odds_Calculator_3-way'!A133+1/'True_Odds_Calculator_3-way'!B133+1/'True_Odds_Calculator_3-way'!C133-1) -> 
D133: =solve_for_c('True_Odds_Calculator_3-way'!A134,'True_Odds_Calculator_3-way'!B134,'True_Odds_Calculator_3-way'!C134,'Log_working_3-way'!B$1,'Log_working_3-way'!B$2) ->  | F133: =IF('Log_working_3-way'!D133="","",1/'True_Odds_Calculator_3-way'!N134+1/'True_Odds_Calculator_3-way'!O134+1/'True_Odds_Calculator_3-way'!P134-1) ->  | H133: =IF('Log_working_3-way'!$D133="","",'True_Odds_Calculator_3-way'!N134/'True_Odds_Calculator_3-way'!A134-1) ->  | I133: =IF('Log_working_3-way'!$D133="","",'True_Odds_Calculator_3-way'!O134/'True_Odds_Calculator_3-way'!B134-1) ->  | J133: =IF('Log_working_3-way'!$D133="","",'True_Odds_Calculator_3-way'!P134/'True_Odds_Calculator_3-way'!C134-1) ->  | K133: =IF('Log_working_3-way'!$D133="","",1/'True_Odds_Calculator_3-way'!A134+1/'True_Odds_Calculator_3-way'!B134+1/'True_Odds_Calculator_3-way'!C134-1) -> 
D134: =solve_for_c('True_Odds_Calculator_3-way'!A135,'True_Odds_Calculator_3-way'!B135,'True_Odds_Calculator_3-way'!C135,'Log_working_3-way'!B$1,'Log_working_3-way'!B$2) ->  | F134: =IF('Log_working_3-way'!D134="","",1/'True_Odds_Calculator_3-way'!N135+1/'True_Odds_Calculator_3-way'!O135+1/'True_Odds_Calculator_3-way'!P135-1) ->  | H134: =IF('Log_working_3-way'!$D134="","",'True_Odds_Calculator_3-way'!N135/'True_Odds_Calculator_3-way'!A135-1) ->  | I134: =IF('Log_working_3-way'!$D134="","",'True_Odds_Calculator_3-way'!O135/'True_Odds_Calculator_3-way'!B135-1) ->  | J134: =IF('Log_working_3-way'!$D134="","",'True_Odds_Calculator_3-way'!P135/'True_Odds_Calculator_3-way'!C135-1) ->  | K134: =IF('Log_working_3-way'!$D134="","",1/'True_Odds_Calculator_3-way'!A135+1/'True_Odds_Calculator_3-way'!B135+1/'True_Odds_Calculator_3-way'!C135-1) -> 
D135: =solve_for_c('True_Odds_Calculator_3-way'!A136,'True_Odds_Calculator_3-way'!B136,'True_Odds_Calculator_3-way'!C136,'Log_working_3-way'!B$1,'Log_working_3-way'!B$2) ->  | F135: =IF('Log_working_3-way'!D135="","",1/'True_Odds_Calculator_3-way'!N136+1/'True_Odds_Calculator_3-way'!O136+1/'True_Odds_Calculator_3-way'!P136-1) ->  | H135: =IF('Log_working_3-way'!$D135="","",'True_Odds_Calculator_3-way'!N136/'True_Odds_Calculator_3-way'!A136-1) ->  | I135: =IF('Log_working_3-way'!$D135="","",'True_Odds_Calculator_3-way'!O136/'True_Odds_Calculator_3-way'!B136-1) ->  | J135: =IF('Log_working_3-way'!$D135="","",'True_Odds_Calculator_3-way'!P136/'True_Odds_Calculator_3-way'!C136-1) ->  | K135: =IF('Log_working_3-way'!$D135="","",1/'True_Odds_Calculator_3-way'!A136+1/'True_Odds_Calculator_3-way'!B136+1/'True_Odds_Calculator_3-way'!C136-1) -> 
D136: =solve_for_c('True_Odds_Calculator_3-way'!A137,'True_Odds_Calculator_3-way'!B137,'True_Odds_Calculator_3-way'!C137,'Log_working_3-way'!B$1,'Log_working_3-way'!B$2) ->  | F136: =IF('Log_working_3-way'!D136="","",1/'True_Odds_Calculator_3-way'!N137+1/'True_Odds_Calculator_3-way'!O137+1/'True_Odds_Calculator_3-way'!P137-1) ->  | H136: =IF('Log_working_3-way'!$D136="","",'True_Odds_Calculator_3-way'!N137/'True_Odds_Calculator_3-way'!A137-1) ->  | I136: =IF('Log_working_3-way'!$D136="","",'True_Odds_Calculator_3-way'!O137/'True_Odds_Calculator_3-way'!B137-1) ->  | J136: =IF('Log_working_3-way'!$D136="","",'True_Odds_Calculator_3-way'!P137/'True_Odds_Calculator_3-way'!C137-1) ->  | K136: =IF('Log_working_3-way'!$D136="","",1/'True_Odds_Calculator_3-way'!A137+1/'True_Odds_Calculator_3-way'!B137+1/'True_Odds_Calculator_3-way'!C137-1) -> 
D137: =solve_for_c('True_Odds_Calculator_3-way'!A138,'True_Odds_Calculator_3-way'!B138,'True_Odds_Calculator_3-way'!C138,'Log_working_3-way'!B$1,'Log_working_3-way'!B$2) ->  | F137: =IF('Log_working_3-way'!D137="","",1/'True_Odds_Calculator_3-way'!N138+1/'True_Odds_Calculator_3-way'!O138+1/'True_Odds_Calculator_3-way'!P138-1) ->  | H137: =IF('Log_working_3-way'!$D137="","",'True_Odds_Calculator_3-way'!N138/'True_Odds_Calculator_3-way'!A138-1) ->  | I137: =IF('Log_working_3-way'!$D137="","",'True_Odds_Calculator_3-way'!O138/'True_Odds_Calculator_3-way'!B138-1) ->  | J137: =IF('Log_working_3-way'!$D137="","",'True_Odds_Calculator_3-way'!P138/'True_Odds_Calculator_3-way'!C138-1) ->  | K137: =IF('Log_working_3-way'!$D137="","",1/'True_Odds_Calculator_3-way'!A138+1/'True_Odds_Calculator_3-way'!B138+1/'True_Odds_Calculator_3-way'!C138-1) -> 
D138: =solve_for_c('True_Odds_Calculator_3-way'!A139,'True_Odds_Calculator_3-way'!B139,'True_Odds_Calculator_3-way'!C139,'Log_working_3-way'!B$1,'Log_working_3-way'!B$2) ->  | F138: =IF('Log_working_3-way'!D138="","",1/'True_Odds_Calculator_3-way'!N139+1/'True_Odds_Calculator_3-way'!O139+1/'True_Odds_Calculator_3-way'!P139-1) ->  | H138: =IF('Log_working_3-way'!$D138="","",'True_Odds_Calculator_3-way'!N139/'True_Odds_Calculator_3-way'!A139-1) ->  | I138: =IF('Log_working_3-way'!$D138="","",'True_Odds_Calculator_3-way'!O139/'True_Odds_Calculator_3-way'!B139-1) ->  | J138: =IF('Log_working_3-way'!$D138="","",'True_Odds_Calculator_3-way'!P139/'True_Odds_Calculator_3-way'!C139-1) ->  | K138: =IF('Log_working_3-way'!$D138="","",1/'True_Odds_Calculator_3-way'!A139+1/'True_Odds_Calculator_3-way'!B139+1/'True_Odds_Calculator_3-way'!C139-1) -> 
D139: =solve_for_c('True_Odds_Calculator_3-way'!A140,'True_Odds_Calculator_3-way'!B140,'True_Odds_Calculator_3-way'!C140,'Log_working_3-way'!B$1,'Log_working_3-way'!B$2) ->  | F139: =IF('Log_working_3-way'!D139="","",1/'True_Odds_Calculator_3-way'!N140+1/'True_Odds_Calculator_3-way'!O140+1/'True_Odds_Calculator_3-way'!P140-1) ->  | H139: =IF('Log_working_3-way'!$D139="","",'True_Odds_Calculator_3-way'!N140/'True_Odds_Calculator_3-way'!A140-1) ->  | I139: =IF('Log_working_3-way'!$D139="","",'True_Odds_Calculator_3-way'!O140/'True_Odds_Calculator_3-way'!B140-1) ->  | J139: =IF('Log_working_3-way'!$D139="","",'True_Odds_Calculator_3-way'!P140/'True_Odds_Calculator_3-way'!C140-1) ->  | K139: =IF('Log_working_3-way'!$D139="","",1/'True_Odds_Calculator_3-way'!A140+1/'True_Odds_Calculator_3-way'!B140+1/'True_Odds_Calculator_3-way'!C140-1) -> 
D140: =solve_for_c('True_Odds_Calculator_3-way'!A141,'True_Odds_Calculator_3-way'!B141,'True_Odds_Calculator_3-way'!C141,'Log_working_3-way'!B$1,'Log_working_3-way'!B$2) ->  | F140: =IF('Log_working_3-way'!D140="","",1/'True_Odds_Calculator_3-way'!N141+1/'True_Odds_Calculator_3-way'!O141+1/'True_Odds_Calculator_3-way'!P141-1) ->  | H140: =IF('Log_working_3-way'!$D140="","",'True_Odds_Calculator_3-way'!N141/'True_Odds_Calculator_3-way'!A141-1) ->  | I140: =IF('Log_working_3-way'!$D140="","",'True_Odds_Calculator_3-way'!O141/'True_Odds_Calculator_3-way'!B141-1) ->  | J140: =IF('Log_working_3-way'!$D140="","",'True_Odds_Calculator_3-way'!P141/'True_Odds_Calculator_3-way'!C141-1) ->  | K140: =IF('Log_working_3-way'!$D140="","",1/'True_Odds_Calculator_3-way'!A141+1/'True_Odds_Calculator_3-way'!B141+1/'True_Odds_Calculator_3-way'!C141-1) -> 
D141: =solve_for_c('True_Odds_Calculator_3-way'!A142,'True_Odds_Calculator_3-way'!B142,'True_Odds_Calculator_3-way'!C142,'Log_working_3-way'!B$1,'Log_working_3-way'!B$2) ->  | F141: =IF('Log_working_3-way'!D141="","",1/'True_Odds_Calculator_3-way'!N142+1/'True_Odds_Calculator_3-way'!O142+1/'True_Odds_Calculator_3-way'!P142-1) ->  | H141: =IF('Log_working_3-way'!$D141="","",'True_Odds_Calculator_3-way'!N142/'True_Odds_Calculator_3-way'!A142-1) ->  | I141: =IF('Log_working_3-way'!$D141="","",'True_Odds_Calculator_3-way'!O142/'True_Odds_Calculator_3-way'!B142-1) ->  | J141: =IF('Log_working_3-way'!$D141="","",'True_Odds_Calculator_3-way'!P142/'True_Odds_Calculator_3-way'!C142-1) ->  | K141: =IF('Log_working_3-way'!$D141="","",1/'True_Odds_Calculator_3-way'!A142+1/'True_Odds_Calculator_3-way'!B142+1/'True_Odds_Calculator_3-way'!C142-1) -> 
D142: =solve_for_c('True_Odds_Calculator_3-way'!A143,'True_Odds_Calculator_3-way'!B143,'True_Odds_Calculator_3-way'!C143,'Log_working_3-way'!B$1,'Log_working_3-way'!B$2) ->  | F142: =IF('Log_working_3-way'!D142="","",1/'True_Odds_Calculator_3-way'!N143+1/'True_Odds_Calculator_3-way'!O143+1/'True_Odds_Calculator_3-way'!P143-1) ->  | H142: =IF('Log_working_3-way'!$D142="","",'True_Odds_Calculator_3-way'!N143/'True_Odds_Calculator_3-way'!A143-1) ->  | I142: =IF('Log_working_3-way'!$D142="","",'True_Odds_Calculator_3-way'!O143/'True_Odds_Calculator_3-way'!B143-1) ->  | J142: =IF('Log_working_3-way'!$D142="","",'True_Odds_Calculator_3-way'!P143/'True_Odds_Calculator_3-way'!C143-1) ->  | K142: =IF('Log_working_3-way'!$D142="","",1/'True_Odds_Calculator_3-way'!A143+1/'True_Odds_Calculator_3-way'!B143+1/'True_Odds_Calculator_3-way'!C143-1) -> 
D143: =solve_for_c('True_Odds_Calculator_3-way'!A144,'True_Odds_Calculator_3-way'!B144,'True_Odds_Calculator_3-way'!C144,'Log_working_3-way'!B$1,'Log_working_3-way'!B$2) ->  | F143: =IF('Log_working_3-way'!D143="","",1/'True_Odds_Calculator_3-way'!N144+1/'True_Odds_Calculator_3-way'!O144+1/'True_Odds_Calculator_3-way'!P144-1) ->  | H143: =IF('Log_working_3-way'!$D143="","",'True_Odds_Calculator_3-way'!N144/'True_Odds_Calculator_3-way'!A144-1) ->  | I143: =IF('Log_working_3-way'!$D143="","",'True_Odds_Calculator_3-way'!O144/'True_Odds_Calculator_3-way'!B144-1) ->  | J143: =IF('Log_working_3-way'!$D143="","",'True_Odds_Calculator_3-way'!P144/'True_Odds_Calculator_3-way'!C144-1) ->  | K143: =IF('Log_working_3-way'!$D143="","",1/'True_Odds_Calculator_3-way'!A144+1/'True_Odds_Calculator_3-way'!B144+1/'True_Odds_Calculator_3-way'!C144-1) -> 
D144: =solve_for_c('True_Odds_Calculator_3-way'!A145,'True_Odds_Calculator_3-way'!B145,'True_Odds_Calculator_3-way'!C145,'Log_working_3-way'!B$1,'Log_working_3-way'!B$2) ->  | F144: =IF('Log_working_3-way'!D144="","",1/'True_Odds_Calculator_3-way'!N145+1/'True_Odds_Calculator_3-way'!O145+1/'True_Odds_Calculator_3-way'!P145-1) ->  | H144: =IF('Log_working_3-way'!$D144="","",'True_Odds_Calculator_3-way'!N145/'True_Odds_Calculator_3-way'!A145-1) ->  | I144: =IF('Log_working_3-way'!$D144="","",'True_Odds_Calculator_3-way'!O145/'True_Odds_Calculator_3-way'!B145-1) ->  | J144: =IF('Log_working_3-way'!$D144="","",'True_Odds_Calculator_3-way'!P145/'True_Odds_Calculator_3-way'!C145-1) ->  | K144: =IF('Log_working_3-way'!$D144="","",1/'True_Odds_Calculator_3-way'!A145+1/'True_Odds_Calculator_3-way'!B145+1/'True_Odds_Calculator_3-way'!C145-1) -> 
D145: =solve_for_c('True_Odds_Calculator_3-way'!A146,'True_Odds_Calculator_3-way'!B146,'True_Odds_Calculator_3-way'!C146,'Log_working_3-way'!B$1,'Log_working_3-way'!B$2) ->  | F145: =IF('Log_working_3-way'!D145="","",1/'True_Odds_Calculator_3-way'!N146+1/'True_Odds_Calculator_3-way'!O146+1/'True_Odds_Calculator_3-way'!P146-1) ->  | H145: =IF('Log_working_3-way'!$D145="","",'True_Odds_Calculator_3-way'!N146/'True_Odds_Calculator_3-way'!A146-1) ->  | I145: =IF('Log_working_3-way'!$D145="","",'True_Odds_Calculator_3-way'!O146/'True_Odds_Calculator_3-way'!B146-1) ->  | J145: =IF('Log_working_3-way'!$D145="","",'True_Odds_Calculator_3-way'!P146/'True_Odds_Calculator_3-way'!C146-1) ->  | K145: =IF('Log_working_3-way'!$D145="","",1/'True_Odds_Calculator_3-way'!A146+1/'True_Odds_Calculator_3-way'!B146+1/'True_Odds_Calculator_3-way'!C146-1) -> 
D146: =solve_for_c('True_Odds_Calculator_3-way'!A147,'True_Odds_Calculator_3-way'!B147,'True_Odds_Calculator_3-way'!C147,'Log_working_3-way'!B$1,'Log_working_3-way'!B$2) ->  | F146: =IF('Log_working_3-way'!D146="","",1/'True_Odds_Calculator_3-way'!N147+1/'True_Odds_Calculator_3-way'!O147+1/'True_Odds_Calculator_3-way'!P147-1) ->  | H146: =IF('Log_working_3-way'!$D146="","",'True_Odds_Calculator_3-way'!N147/'True_Odds_Calculator_3-way'!A147-1) ->  | I146: =IF('Log_working_3-way'!$D146="","",'True_Odds_Calculator_3-way'!O147/'True_Odds_Calculator_3-way'!B147-1) ->  | J146: =IF('Log_working_3-way'!$D146="","",'True_Odds_Calculator_3-way'!P147/'True_Odds_Calculator_3-way'!C147-1) ->  | K146: =IF('Log_working_3-way'!$D146="","",1/'True_Odds_Calculator_3-way'!A147+1/'True_Odds_Calculator_3-way'!B147+1/'True_Odds_Calculator_3-way'!C147-1) -> 
D147: =solve_for_c('True_Odds_Calculator_3-way'!A148,'True_Odds_Calculator_3-way'!B148,'True_Odds_Calculator_3-way'!C148,'Log_working_3-way'!B$1,'Log_working_3-way'!B$2) ->  | F147: =IF('Log_working_3-way'!D147="","",1/'True_Odds_Calculator_3-way'!N148+1/'True_Odds_Calculator_3-way'!O148+1/'True_Odds_Calculator_3-way'!P148-1) ->  | H147: =IF('Log_working_3-way'!$D147="","",'True_Odds_Calculator_3-way'!N148/'True_Odds_Calculator_3-way'!A148-1) ->  | I147: =IF('Log_working_3-way'!$D147="","",'True_Odds_Calculator_3-way'!O148/'True_Odds_Calculator_3-way'!B148-1) ->  | J147: =IF('Log_working_3-way'!$D147="","",'True_Odds_Calculator_3-way'!P148/'True_Odds_Calculator_3-way'!C148-1) ->  | K147: =IF('Log_working_3-way'!$D147="","",1/'True_Odds_Calculator_3-way'!A148+1/'True_Odds_Calculator_3-way'!B148+1/'True_Odds_Calculator_3-way'!C148-1) -> 
D148: =solve_for_c('True_Odds_Calculator_3-way'!A149,'True_Odds_Calculator_3-way'!B149,'True_Odds_Calculator_3-way'!C149,'Log_working_3-way'!B$1,'Log_working_3-way'!B$2) ->  | F148: =IF('Log_working_3-way'!D148="","",1/'True_Odds_Calculator_3-way'!N149+1/'True_Odds_Calculator_3-way'!O149+1/'True_Odds_Calculator_3-way'!P149-1) ->  | H148: =IF('Log_working_3-way'!$D148="","",'True_Odds_Calculator_3-way'!N149/'True_Odds_Calculator_3-way'!A149-1) ->  | I148: =IF('Log_working_3-way'!$D148="","",'True_Odds_Calculator_3-way'!O149/'True_Odds_Calculator_3-way'!B149-1) ->  | J148: =IF('Log_working_3-way'!$D148="","",'True_Odds_Calculator_3-way'!P149/'True_Odds_Calculator_3-way'!C149-1) ->  | K148: =IF('Log_working_3-way'!$D148="","",1/'True_Odds_Calculator_3-way'!A149+1/'True_Odds_Calculator_3-way'!B149+1/'True_Odds_Calculator_3-way'!C149-1) -> 
D149: =solve_for_c('True_Odds_Calculator_3-way'!A150,'True_Odds_Calculator_3-way'!B150,'True_Odds_Calculator_3-way'!C150,'Log_working_3-way'!B$1,'Log_working_3-way'!B$2) ->  | F149: =IF('Log_working_3-way'!D149="","",1/'True_Odds_Calculator_3-way'!N150+1/'True_Odds_Calculator_3-way'!O150+1/'True_Odds_Calculator_3-way'!P150-1) ->  | H149: =IF('Log_working_3-way'!$D149="","",'True_Odds_Calculator_3-way'!N150/'True_Odds_Calculator_3-way'!A150-1) ->  | I149: =IF('Log_working_3-way'!$D149="","",'True_Odds_Calculator_3-way'!O150/'True_Odds_Calculator_3-way'!B150-1) ->  | J149: =IF('Log_working_3-way'!$D149="","",'True_Odds_Calculator_3-way'!P150/'True_Odds_Calculator_3-way'!C150-1) ->  | K149: =IF('Log_working_3-way'!$D149="","",1/'True_Odds_Calculator_3-way'!A150+1/'True_Odds_Calculator_3-way'!B150+1/'True_Odds_Calculator_3-way'!C150-1) -> 
D150: =solve_for_c('True_Odds_Calculator_3-way'!A151,'True_Odds_Calculator_3-way'!B151,'True_Odds_Calculator_3-way'!C151,'Log_working_3-way'!B$1,'Log_working_3-way'!B$2) ->  | F150: =IF('Log_working_3-way'!D150="","",1/'True_Odds_Calculator_3-way'!N151+1/'True_Odds_Calculator_3-way'!O151+1/'True_Odds_Calculator_3-way'!P151-1) ->  | H150: =IF('Log_working_3-way'!$D150="","",'True_Odds_Calculator_3-way'!N151/'True_Odds_Calculator_3-way'!A151-1) ->  | I150: =IF('Log_working_3-way'!$D150="","",'True_Odds_Calculator_3-way'!O151/'True_Odds_Calculator_3-way'!B151-1) ->  | J150: =IF('Log_working_3-way'!$D150="","",'True_Odds_Calculator_3-way'!P151/'True_Odds_Calculator_3-way'!C151-1) ->  | K150: =IF('Log_working_3-way'!$D150="","",1/'True_Odds_Calculator_3-way'!A151+1/'True_Odds_Calculator_3-way'!B151+1/'True_Odds_Calculator_3-way'!C151-1) -> 
D151: =solve_for_c('True_Odds_Calculator_3-way'!A152,'True_Odds_Calculator_3-way'!B152,'True_Odds_Calculator_3-way'!C152,'Log_working_3-way'!B$1,'Log_working_3-way'!B$2) ->  | F151: =IF('Log_working_3-way'!D151="","",1/'True_Odds_Calculator_3-way'!N152+1/'True_Odds_Calculator_3-way'!O152+1/'True_Odds_Calculator_3-way'!P152-1) ->  | H151: =IF('Log_working_3-way'!$D151="","",'True_Odds_Calculator_3-way'!N152/'True_Odds_Calculator_3-way'!A152-1) ->  | I151: =IF('Log_working_3-way'!$D151="","",'True_Odds_Calculator_3-way'!O152/'True_Odds_Calculator_3-way'!B152-1) ->  | J151: =IF('Log_working_3-way'!$D151="","",'True_Odds_Calculator_3-way'!P152/'True_Odds_Calculator_3-way'!C152-1) ->  | K151: =IF('Log_working_3-way'!$D151="","",1/'True_Odds_Calculator_3-way'!A152+1/'True_Odds_Calculator_3-way'!B152+1/'True_Odds_Calculator_3-way'!C152-1) -> 
D152: =solve_for_c('True_Odds_Calculator_3-way'!A153,'True_Odds_Calculator_3-way'!B153,'True_Odds_Calculator_3-way'!C153,'Log_working_3-way'!B$1,'Log_working_3-way'!B$2) ->  | F152: =IF('Log_working_3-way'!D152="","",1/'True_Odds_Calculator_3-way'!N153+1/'True_Odds_Calculator_3-way'!O153+1/'True_Odds_Calculator_3-way'!P153-1) ->  | H152: =IF('Log_working_3-way'!$D152="","",'True_Odds_Calculator_3-way'!N153/'True_Odds_Calculator_3-way'!A153-1) ->  | I152: =IF('Log_working_3-way'!$D152="","",'True_Odds_Calculator_3-way'!O153/'True_Odds_Calculator_3-way'!B153-1) ->  | J152: =IF('Log_working_3-way'!$D152="","",'True_Odds_Calculator_3-way'!P153/'True_Odds_Calculator_3-way'!C153-1) ->  | K152: =IF('Log_working_3-way'!$D152="","",1/'True_Odds_Calculator_3-way'!A153+1/'True_Odds_Calculator_3-way'!B153+1/'True_Odds_Calculator_3-way'!C153-1) -> 
D153: =solve_for_c('True_Odds_Calculator_3-way'!A154,'True_Odds_Calculator_3-way'!B154,'True_Odds_Calculator_3-way'!C154,'Log_working_3-way'!B$1,'Log_working_3-way'!B$2) ->  | F153: =IF('Log_working_3-way'!D153="","",1/'True_Odds_Calculator_3-way'!N154+1/'True_Odds_Calculator_3-way'!O154+1/'True_Odds_Calculator_3-way'!P154-1) ->  | H153: =IF('Log_working_3-way'!$D153="","",'True_Odds_Calculator_3-way'!N154/'True_Odds_Calculator_3-way'!A154-1) ->  | I153: =IF('Log_working_3-way'!$D153="","",'True_Odds_Calculator_3-way'!O154/'True_Odds_Calculator_3-way'!B154-1) ->  | J153: =IF('Log_working_3-way'!$D153="","",'True_Odds_Calculator_3-way'!P154/'True_Odds_Calculator_3-way'!C154-1) ->  | K153: =IF('Log_working_3-way'!$D153="","",1/'True_Odds_Calculator_3-way'!A154+1/'True_Odds_Calculator_3-way'!B154+1/'True_Odds_Calculator_3-way'!C154-1) -> 
D154: =solve_for_c('True_Odds_Calculator_3-way'!A155,'True_Odds_Calculator_3-way'!B155,'True_Odds_Calculator_3-way'!C155,'Log_working_3-way'!B$1,'Log_working_3-way'!B$2) ->  | F154: =IF('Log_working_3-way'!D154="","",1/'True_Odds_Calculator_3-way'!N155+1/'True_Odds_Calculator_3-way'!O155+1/'True_Odds_Calculator_3-way'!P155-1) ->  | H154: =IF('Log_working_3-way'!$D154="","",'True_Odds_Calculator_3-way'!N155/'True_Odds_Calculator_3-way'!A155-1) ->  | I154: =IF('Log_working_3-way'!$D154="","",'True_Odds_Calculator_3-way'!O155/'True_Odds_Calculator_3-way'!B155-1) ->  | J154: =IF('Log_working_3-way'!$D154="","",'True_Odds_Calculator_3-way'!P155/'True_Odds_Calculator_3-way'!C155-1) ->  | K154: =IF('Log_working_3-way'!$D154="","",1/'True_Odds_Calculator_3-way'!A155+1/'True_Odds_Calculator_3-way'!B155+1/'True_Odds_Calculator_3-way'!C155-1) -> 
D155: =solve_for_c('True_Odds_Calculator_3-way'!A156,'True_Odds_Calculator_3-way'!B156,'True_Odds_Calculator_3-way'!C156,'Log_working_3-way'!B$1,'Log_working_3-way'!B$2) ->  | F155: =IF('Log_working_3-way'!D155="","",1/'True_Odds_Calculator_3-way'!N156+1/'True_Odds_Calculator_3-way'!O156+1/'True_Odds_Calculator_3-way'!P156-1) ->  | H155: =IF('Log_working_3-way'!$D155="","",'True_Odds_Calculator_3-way'!N156/'True_Odds_Calculator_3-way'!A156-1) ->  | I155: =IF('Log_working_3-way'!$D155="","",'True_Odds_Calculator_3-way'!O156/'True_Odds_Calculator_3-way'!B156-1) ->  | J155: =IF('Log_working_3-way'!$D155="","",'True_Odds_Calculator_3-way'!P156/'True_Odds_Calculator_3-way'!C156-1) ->  | K155: =IF('Log_working_3-way'!$D155="","",1/'True_Odds_Calculator_3-way'!A156+1/'True_Odds_Calculator_3-way'!B156+1/'True_Odds_Calculator_3-way'!C156-1) -> 
D156: =solve_for_c('True_Odds_Calculator_3-way'!A157,'True_Odds_Calculator_3-way'!B157,'True_Odds_Calculator_3-way'!C157,'Log_working_3-way'!B$1,'Log_working_3-way'!B$2) ->  | F156: =IF('Log_working_3-way'!D156="","",1/'True_Odds_Calculator_3-way'!N157+1/'True_Odds_Calculator_3-way'!O157+1/'True_Odds_Calculator_3-way'!P157-1) ->  | H156: =IF('Log_working_3-way'!$D156="","",'True_Odds_Calculator_3-way'!N157/'True_Odds_Calculator_3-way'!A157-1) ->  | I156: =IF('Log_working_3-way'!$D156="","",'True_Odds_Calculator_3-way'!O157/'True_Odds_Calculator_3-way'!B157-1) ->  | J156: =IF('Log_working_3-way'!$D156="","",'True_Odds_Calculator_3-way'!P157/'True_Odds_Calculator_3-way'!C157-1) ->  | K156: =IF('Log_working_3-way'!$D156="","",1/'True_Odds_Calculator_3-way'!A157+1/'True_Odds_Calculator_3-way'!B157+1/'True_Odds_Calculator_3-way'!C157-1) -> 
D157: =solve_for_c('True_Odds_Calculator_3-way'!A158,'True_Odds_Calculator_3-way'!B158,'True_Odds_Calculator_3-way'!C158,'Log_working_3-way'!B$1,'Log_working_3-way'!B$2) ->  | F157: =IF('Log_working_3-way'!D157="","",1/'True_Odds_Calculator_3-way'!N158+1/'True_Odds_Calculator_3-way'!O158+1/'True_Odds_Calculator_3-way'!P158-1) ->  | H157: =IF('Log_working_3-way'!$D157="","",'True_Odds_Calculator_3-way'!N158/'True_Odds_Calculator_3-way'!A158-1) ->  | I157: =IF('Log_working_3-way'!$D157="","",'True_Odds_Calculator_3-way'!O158/'True_Odds_Calculator_3-way'!B158-1) ->  | J157: =IF('Log_working_3-way'!$D157="","",'True_Odds_Calculator_3-way'!P158/'True_Odds_Calculator_3-way'!C158-1) ->  | K157: =IF('Log_working_3-way'!$D157="","",1/'True_Odds_Calculator_3-way'!A158+1/'True_Odds_Calculator_3-way'!B158+1/'True_Odds_Calculator_3-way'!C158-1) -> 
D158: =solve_for_c('True_Odds_Calculator_3-way'!A159,'True_Odds_Calculator_3-way'!B159,'True_Odds_Calculator_3-way'!C159,'Log_working_3-way'!B$1,'Log_working_3-way'!B$2) ->  | F158: =IF('Log_working_3-way'!D158="","",1/'True_Odds_Calculator_3-way'!N159+1/'True_Odds_Calculator_3-way'!O159+1/'True_Odds_Calculator_3-way'!P159-1) ->  | H158: =IF('Log_working_3-way'!$D158="","",'True_Odds_Calculator_3-way'!N159/'True_Odds_Calculator_3-way'!A159-1) ->  | I158: =IF('Log_working_3-way'!$D158="","",'True_Odds_Calculator_3-way'!O159/'True_Odds_Calculator_3-way'!B159-1) ->  | J158: =IF('Log_working_3-way'!$D158="","",'True_Odds_Calculator_3-way'!P159/'True_Odds_Calculator_3-way'!C159-1) ->  | K158: =IF('Log_working_3-way'!$D158="","",1/'True_Odds_Calculator_3-way'!A159+1/'True_Odds_Calculator_3-way'!B159+1/'True_Odds_Calculator_3-way'!C159-1) -> 
D159: =solve_for_c('True_Odds_Calculator_3-way'!A160,'True_Odds_Calculator_3-way'!B160,'True_Odds_Calculator_3-way'!C160,'Log_working_3-way'!B$1,'Log_working_3-way'!B$2) ->  | F159: =IF('Log_working_3-way'!D159="","",1/'True_Odds_Calculator_3-way'!N160+1/'True_Odds_Calculator_3-way'!O160+1/'True_Odds_Calculator_3-way'!P160-1) ->  | H159: =IF('Log_working_3-way'!$D159="","",'True_Odds_Calculator_3-way'!N160/'True_Odds_Calculator_3-way'!A160-1) ->  | I159: =IF('Log_working_3-way'!$D159="","",'True_Odds_Calculator_3-way'!O160/'True_Odds_Calculator_3-way'!B160-1) ->  | J159: =IF('Log_working_3-way'!$D159="","",'True_Odds_Calculator_3-way'!P160/'True_Odds_Calculator_3-way'!C160-1) ->  | K159: =IF('Log_working_3-way'!$D159="","",1/'True_Odds_Calculator_3-way'!A160+1/'True_Odds_Calculator_3-way'!B160+1/'True_Odds_Calculator_3-way'!C160-1) -> 
D160: =solve_for_c('True_Odds_Calculator_3-way'!A161,'True_Odds_Calculator_3-way'!B161,'True_Odds_Calculator_3-way'!C161,'Log_working_3-way'!B$1,'Log_working_3-way'!B$2) ->  | F160: =IF('Log_working_3-way'!D160="","",1/'True_Odds_Calculator_3-way'!N161+1/'True_Odds_Calculator_3-way'!O161+1/'True_Odds_Calculator_3-way'!P161-1) ->  | H160: =IF('Log_working_3-way'!$D160="","",'True_Odds_Calculator_3-way'!N161/'True_Odds_Calculator_3-way'!A161-1) ->  | I160: =IF('Log_working_3-way'!$D160="","",'True_Odds_Calculator_3-way'!O161/'True_Odds_Calculator_3-way'!B161-1) ->  | J160: =IF('Log_working_3-way'!$D160="","",'True_Odds_Calculator_3-way'!P161/'True_Odds_Calculator_3-way'!C161-1) ->  | K160: =IF('Log_working_3-way'!$D160="","",1/'True_Odds_Calculator_3-way'!A161+1/'True_Odds_Calculator_3-way'!B161+1/'True_Odds_Calculator_3-way'!C161-1) -> 
D161: =solve_for_c('True_Odds_Calculator_3-way'!A162,'True_Odds_Calculator_3-way'!B162,'True_Odds_Calculator_3-way'!C162,'Log_working_3-way'!B$1,'Log_working_3-way'!B$2) ->  | F161: =IF('Log_working_3-way'!D161="","",1/'True_Odds_Calculator_3-way'!N162+1/'True_Odds_Calculator_3-way'!O162+1/'True_Odds_Calculator_3-way'!P162-1) ->  | H161: =IF('Log_working_3-way'!$D161="","",'True_Odds_Calculator_3-way'!N162/'True_Odds_Calculator_3-way'!A162-1) ->  | I161: =IF('Log_working_3-way'!$D161="","",'True_Odds_Calculator_3-way'!O162/'True_Odds_Calculator_3-way'!B162-1) ->  | J161: =IF('Log_working_3-way'!$D161="","",'True_Odds_Calculator_3-way'!P162/'True_Odds_Calculator_3-way'!C162-1) ->  | K161: =IF('Log_working_3-way'!$D161="","",1/'True_Odds_Calculator_3-way'!A162+1/'True_Odds_Calculator_3-way'!B162+1/'True_Odds_Calculator_3-way'!C162-1) -> 
D162: =solve_for_c('True_Odds_Calculator_3-way'!A163,'True_Odds_Calculator_3-way'!B163,'True_Odds_Calculator_3-way'!C163,'Log_working_3-way'!B$1,'Log_working_3-way'!B$2) ->  | F162: =IF('Log_working_3-way'!D162="","",1/'True_Odds_Calculator_3-way'!N163+1/'True_Odds_Calculator_3-way'!O163+1/'True_Odds_Calculator_3-way'!P163-1) ->  | H162: =IF('Log_working_3-way'!$D162="","",'True_Odds_Calculator_3-way'!N163/'True_Odds_Calculator_3-way'!A163-1) ->  | I162: =IF('Log_working_3-way'!$D162="","",'True_Odds_Calculator_3-way'!O163/'True_Odds_Calculator_3-way'!B163-1) ->  | J162: =IF('Log_working_3-way'!$D162="","",'True_Odds_Calculator_3-way'!P163/'True_Odds_Calculator_3-way'!C163-1) ->  | K162: =IF('Log_working_3-way'!$D162="","",1/'True_Odds_Calculator_3-way'!A163+1/'True_Odds_Calculator_3-way'!B163+1/'True_Odds_Calculator_3-way'!C163-1) -> 
D163: =solve_for_c('True_Odds_Calculator_3-way'!A164,'True_Odds_Calculator_3-way'!B164,'True_Odds_Calculator_3-way'!C164,'Log_working_3-way'!B$1,'Log_working_3-way'!B$2) ->  | F163: =IF('Log_working_3-way'!D163="","",1/'True_Odds_Calculator_3-way'!N164+1/'True_Odds_Calculator_3-way'!O164+1/'True_Odds_Calculator_3-way'!P164-1) ->  | H163: =IF('Log_working_3-way'!$D163="","",'True_Odds_Calculator_3-way'!N164/'True_Odds_Calculator_3-way'!A164-1) ->  | I163: =IF('Log_working_3-way'!$D163="","",'True_Odds_Calculator_3-way'!O164/'True_Odds_Calculator_3-way'!B164-1) ->  | J163: =IF('Log_working_3-way'!$D163="","",'True_Odds_Calculator_3-way'!P164/'True_Odds_Calculator_3-way'!C164-1) ->  | K163: =IF('Log_working_3-way'!$D163="","",1/'True_Odds_Calculator_3-way'!A164+1/'True_Odds_Calculator_3-way'!B164+1/'True_Odds_Calculator_3-way'!C164-1) -> 
D164: =solve_for_c('True_Odds_Calculator_3-way'!A165,'True_Odds_Calculator_3-way'!B165,'True_Odds_Calculator_3-way'!C165,'Log_working_3-way'!B$1,'Log_working_3-way'!B$2) ->  | F164: =IF('Log_working_3-way'!D164="","",1/'True_Odds_Calculator_3-way'!N165+1/'True_Odds_Calculator_3-way'!O165+1/'True_Odds_Calculator_3-way'!P165-1) ->  | H164: =IF('Log_working_3-way'!$D164="","",'True_Odds_Calculator_3-way'!N165/'True_Odds_Calculator_3-way'!A165-1) ->  | I164: =IF('Log_working_3-way'!$D164="","",'True_Odds_Calculator_3-way'!O165/'True_Odds_Calculator_3-way'!B165-1) ->  | J164: =IF('Log_working_3-way'!$D164="","",'True_Odds_Calculator_3-way'!P165/'True_Odds_Calculator_3-way'!C165-1) ->  | K164: =IF('Log_working_3-way'!$D164="","",1/'True_Odds_Calculator_3-way'!A165+1/'True_Odds_Calculator_3-way'!B165+1/'True_Odds_Calculator_3-way'!C165-1) -> 
D165: =solve_for_c('True_Odds_Calculator_3-way'!A166,'True_Odds_Calculator_3-way'!B166,'True_Odds_Calculator_3-way'!C166,'Log_working_3-way'!B$1,'Log_working_3-way'!B$2) ->  | F165: =IF('Log_working_3-way'!D165="","",1/'True_Odds_Calculator_3-way'!N166+1/'True_Odds_Calculator_3-way'!O166+1/'True_Odds_Calculator_3-way'!P166-1) ->  | H165: =IF('Log_working_3-way'!$D165="","",'True_Odds_Calculator_3-way'!N166/'True_Odds_Calculator_3-way'!A166-1) ->  | I165: =IF('Log_working_3-way'!$D165="","",'True_Odds_Calculator_3-way'!O166/'True_Odds_Calculator_3-way'!B166-1) ->  | J165: =IF('Log_working_3-way'!$D165="","",'True_Odds_Calculator_3-way'!P166/'True_Odds_Calculator_3-way'!C166-1) ->  | K165: =IF('Log_working_3-way'!$D165="","",1/'True_Odds_Calculator_3-way'!A166+1/'True_Odds_Calculator_3-way'!B166+1/'True_Odds_Calculator_3-way'!C166-1) -> 
D166: =solve_for_c('True_Odds_Calculator_3-way'!A167,'True_Odds_Calculator_3-way'!B167,'True_Odds_Calculator_3-way'!C167,'Log_working_3-way'!B$1,'Log_working_3-way'!B$2) ->  | F166: =IF('Log_working_3-way'!D166="","",1/'True_Odds_Calculator_3-way'!N167+1/'True_Odds_Calculator_3-way'!O167+1/'True_Odds_Calculator_3-way'!P167-1) ->  | H166: =IF('Log_working_3-way'!$D166="","",'True_Odds_Calculator_3-way'!N167/'True_Odds_Calculator_3-way'!A167-1) ->  | I166: =IF('Log_working_3-way'!$D166="","",'True_Odds_Calculator_3-way'!O167/'True_Odds_Calculator_3-way'!B167-1) ->  | J166: =IF('Log_working_3-way'!$D166="","",'True_Odds_Calculator_3-way'!P167/'True_Odds_Calculator_3-way'!C167-1) ->  | K166: =IF('Log_working_3-way'!$D166="","",1/'True_Odds_Calculator_3-way'!A167+1/'True_Odds_Calculator_3-way'!B167+1/'True_Odds_Calculator_3-way'!C167-1) -> 
D167: =solve_for_c('True_Odds_Calculator_3-way'!A168,'True_Odds_Calculator_3-way'!B168,'True_Odds_Calculator_3-way'!C168,'Log_working_3-way'!B$1,'Log_working_3-way'!B$2) ->  | F167: =IF('Log_working_3-way'!D167="","",1/'True_Odds_Calculator_3-way'!N168+1/'True_Odds_Calculator_3-way'!O168+1/'True_Odds_Calculator_3-way'!P168-1) ->  | H167: =IF('Log_working_3-way'!$D167="","",'True_Odds_Calculator_3-way'!N168/'True_Odds_Calculator_3-way'!A168-1) ->  | I167: =IF('Log_working_3-way'!$D167="","",'True_Odds_Calculator_3-way'!O168/'True_Odds_Calculator_3-way'!B168-1) ->  | J167: =IF('Log_working_3-way'!$D167="","",'True_Odds_Calculator_3-way'!P168/'True_Odds_Calculator_3-way'!C168-1) ->  | K167: =IF('Log_working_3-way'!$D167="","",1/'True_Odds_Calculator_3-way'!A168+1/'True_Odds_Calculator_3-way'!B168+1/'True_Odds_Calculator_3-way'!C168-1) -> 
D168: =solve_for_c('True_Odds_Calculator_3-way'!A169,'True_Odds_Calculator_3-way'!B169,'True_Odds_Calculator_3-way'!C169,'Log_working_3-way'!B$1,'Log_working_3-way'!B$2) ->  | F168: =IF('Log_working_3-way'!D168="","",1/'True_Odds_Calculator_3-way'!N169+1/'True_Odds_Calculator_3-way'!O169+1/'True_Odds_Calculator_3-way'!P169-1) ->  | H168: =IF('Log_working_3-way'!$D168="","",'True_Odds_Calculator_3-way'!N169/'True_Odds_Calculator_3-way'!A169-1) ->  | I168: =IF('Log_working_3-way'!$D168="","",'True_Odds_Calculator_3-way'!O169/'True_Odds_Calculator_3-way'!B169-1) ->  | J168: =IF('Log_working_3-way'!$D168="","",'True_Odds_Calculator_3-way'!P169/'True_Odds_Calculator_3-way'!C169-1) ->  | K168: =IF('Log_working_3-way'!$D168="","",1/'True_Odds_Calculator_3-way'!A169+1/'True_Odds_Calculator_3-way'!B169+1/'True_Odds_Calculator_3-way'!C169-1) -> 
D169: =solve_for_c('True_Odds_Calculator_3-way'!A170,'True_Odds_Calculator_3-way'!B170,'True_Odds_Calculator_3-way'!C170,'Log_working_3-way'!B$1,'Log_working_3-way'!B$2) ->  | F169: =IF('Log_working_3-way'!D169="","",1/'True_Odds_Calculator_3-way'!N170+1/'True_Odds_Calculator_3-way'!O170+1/'True_Odds_Calculator_3-way'!P170-1) ->  | H169: =IF('Log_working_3-way'!$D169="","",'True_Odds_Calculator_3-way'!N170/'True_Odds_Calculator_3-way'!A170-1) ->  | I169: =IF('Log_working_3-way'!$D169="","",'True_Odds_Calculator_3-way'!O170/'True_Odds_Calculator_3-way'!B170-1) ->  | J169: =IF('Log_working_3-way'!$D169="","",'True_Odds_Calculator_3-way'!P170/'True_Odds_Calculator_3-way'!C170-1) ->  | K169: =IF('Log_working_3-way'!$D169="","",1/'True_Odds_Calculator_3-way'!A170+1/'True_Odds_Calculator_3-way'!B170+1/'True_Odds_Calculator_3-way'!C170-1) -> 
D170: =solve_for_c('True_Odds_Calculator_3-way'!A171,'True_Odds_Calculator_3-way'!B171,'True_Odds_Calculator_3-way'!C171,'Log_working_3-way'!B$1,'Log_working_3-way'!B$2) ->  | F170: =IF('Log_working_3-way'!D170="","",1/'True_Odds_Calculator_3-way'!N171+1/'True_Odds_Calculator_3-way'!O171+1/'True_Odds_Calculator_3-way'!P171-1) ->  | H170: =IF('Log_working_3-way'!$D170="","",'True_Odds_Calculator_3-way'!N171/'True_Odds_Calculator_3-way'!A171-1) ->  | I170: =IF('Log_working_3-way'!$D170="","",'True_Odds_Calculator_3-way'!O171/'True_Odds_Calculator_3-way'!B171-1) ->  | J170: =IF('Log_working_3-way'!$D170="","",'True_Odds_Calculator_3-way'!P171/'True_Odds_Calculator_3-way'!C171-1) ->  | K170: =IF('Log_working_3-way'!$D170="","",1/'True_Odds_Calculator_3-way'!A171+1/'True_Odds_Calculator_3-way'!B171+1/'True_Odds_Calculator_3-way'!C171-1) -> 
D171: =solve_for_c('True_Odds_Calculator_3-way'!A172,'True_Odds_Calculator_3-way'!B172,'True_Odds_Calculator_3-way'!C172,'Log_working_3-way'!B$1,'Log_working_3-way'!B$2) ->  | F171: =IF('Log_working_3-way'!D171="","",1/'True_Odds_Calculator_3-way'!N172+1/'True_Odds_Calculator_3-way'!O172+1/'True_Odds_Calculator_3-way'!P172-1) ->  | H171: =IF('Log_working_3-way'!$D171="","",'True_Odds_Calculator_3-way'!N172/'True_Odds_Calculator_3-way'!A172-1) ->  | I171: =IF('Log_working_3-way'!$D171="","",'True_Odds_Calculator_3-way'!O172/'True_Odds_Calculator_3-way'!B172-1) ->  | J171: =IF('Log_working_3-way'!$D171="","",'True_Odds_Calculator_3-way'!P172/'True_Odds_Calculator_3-way'!C172-1) ->  | K171: =IF('Log_working_3-way'!$D171="","",1/'True_Odds_Calculator_3-way'!A172+1/'True_Odds_Calculator_3-way'!B172+1/'True_Odds_Calculator_3-way'!C172-1) -> 
D172: =solve_for_c('True_Odds_Calculator_3-way'!A173,'True_Odds_Calculator_3-way'!B173,'True_Odds_Calculator_3-way'!C173,'Log_working_3-way'!B$1,'Log_working_3-way'!B$2) ->  | F172: =IF('Log_working_3-way'!D172="","",1/'True_Odds_Calculator_3-way'!N173+1/'True_Odds_Calculator_3-way'!O173+1/'True_Odds_Calculator_3-way'!P173-1) ->  | H172: =IF('Log_working_3-way'!$D172="","",'True_Odds_Calculator_3-way'!N173/'True_Odds_Calculator_3-way'!A173-1) ->  | I172: =IF('Log_working_3-way'!$D172="","",'True_Odds_Calculator_3-way'!O173/'True_Odds_Calculator_3-way'!B173-1) ->  | J172: =IF('Log_working_3-way'!$D172="","",'True_Odds_Calculator_3-way'!P173/'True_Odds_Calculator_3-way'!C173-1) ->  | K172: =IF('Log_working_3-way'!$D172="","",1/'True_Odds_Calculator_3-way'!A173+1/'True_Odds_Calculator_3-way'!B173+1/'True_Odds_Calculator_3-way'!C173-1) -> 
D173: =solve_for_c('True_Odds_Calculator_3-way'!A174,'True_Odds_Calculator_3-way'!B174,'True_Odds_Calculator_3-way'!C174,'Log_working_3-way'!B$1,'Log_working_3-way'!B$2) ->  | F173: =IF('Log_working_3-way'!D173="","",1/'True_Odds_Calculator_3-way'!N174+1/'True_Odds_Calculator_3-way'!O174+1/'True_Odds_Calculator_3-way'!P174-1) ->  | H173: =IF('Log_working_3-way'!$D173="","",'True_Odds_Calculator_3-way'!N174/'True_Odds_Calculator_3-way'!A174-1) ->  | I173: =IF('Log_working_3-way'!$D173="","",'True_Odds_Calculator_3-way'!O174/'True_Odds_Calculator_3-way'!B174-1) ->  | J173: =IF('Log_working_3-way'!$D173="","",'True_Odds_Calculator_3-way'!P174/'True_Odds_Calculator_3-way'!C174-1) ->  | K173: =IF('Log_working_3-way'!$D173="","",1/'True_Odds_Calculator_3-way'!A174+1/'True_Odds_Calculator_3-way'!B174+1/'True_Odds_Calculator_3-way'!C174-1) -> 
D174: =solve_for_c('True_Odds_Calculator_3-way'!A175,'True_Odds_Calculator_3-way'!B175,'True_Odds_Calculator_3-way'!C175,'Log_working_3-way'!B$1,'Log_working_3-way'!B$2) ->  | F174: =IF('Log_working_3-way'!D174="","",1/'True_Odds_Calculator_3-way'!N175+1/'True_Odds_Calculator_3-way'!O175+1/'True_Odds_Calculator_3-way'!P175-1) ->  | H174: =IF('Log_working_3-way'!$D174="","",'True_Odds_Calculator_3-way'!N175/'True_Odds_Calculator_3-way'!A175-1) ->  | I174: =IF('Log_working_3-way'!$D174="","",'True_Odds_Calculator_3-way'!O175/'True_Odds_Calculator_3-way'!B175-1) ->  | J174: =IF('Log_working_3-way'!$D174="","",'True_Odds_Calculator_3-way'!P175/'True_Odds_Calculator_3-way'!C175-1) ->  | K174: =IF('Log_working_3-way'!$D174="","",1/'True_Odds_Calculator_3-way'!A175+1/'True_Odds_Calculator_3-way'!B175+1/'True_Odds_Calculator_3-way'!C175-1) -> 
D175: =solve_for_c('True_Odds_Calculator_3-way'!A176,'True_Odds_Calculator_3-way'!B176,'True_Odds_Calculator_3-way'!C176,'Log_working_3-way'!B$1,'Log_working_3-way'!B$2) ->  | F175: =IF('Log_working_3-way'!D175="","",1/'True_Odds_Calculator_3-way'!N176+1/'True_Odds_Calculator_3-way'!O176+1/'True_Odds_Calculator_3-way'!P176-1) ->  | H175: =IF('Log_working_3-way'!$D175="","",'True_Odds_Calculator_3-way'!N176/'True_Odds_Calculator_3-way'!A176-1) ->  | I175: =IF('Log_working_3-way'!$D175="","",'True_Odds_Calculator_3-way'!O176/'True_Odds_Calculator_3-way'!B176-1) ->  | J175: =IF('Log_working_3-way'!$D175="","",'True_Odds_Calculator_3-way'!P176/'True_Odds_Calculator_3-way'!C176-1) ->  | K175: =IF('Log_working_3-way'!$D175="","",1/'True_Odds_Calculator_3-way'!A176+1/'True_Odds_Calculator_3-way'!B176+1/'True_Odds_Calculator_3-way'!C176-1) -> 
D176: =solve_for_c('True_Odds_Calculator_3-way'!A177,'True_Odds_Calculator_3-way'!B177,'True_Odds_Calculator_3-way'!C177,'Log_working_3-way'!B$1,'Log_working_3-way'!B$2) ->  | F176: =IF('Log_working_3-way'!D176="","",1/'True_Odds_Calculator_3-way'!N177+1/'True_Odds_Calculator_3-way'!O177+1/'True_Odds_Calculator_3-way'!P177-1) ->  | H176: =IF('Log_working_3-way'!$D176="","",'True_Odds_Calculator_3-way'!N177/'True_Odds_Calculator_3-way'!A177-1) ->  | I176: =IF('Log_working_3-way'!$D176="","",'True_Odds_Calculator_3-way'!O177/'True_Odds_Calculator_3-way'!B177-1) ->  | J176: =IF('Log_working_3-way'!$D176="","",'True_Odds_Calculator_3-way'!P177/'True_Odds_Calculator_3-way'!C177-1) ->  | K176: =IF('Log_working_3-way'!$D176="","",1/'True_Odds_Calculator_3-way'!A177+1/'True_Odds_Calculator_3-way'!B177+1/'True_Odds_Calculator_3-way'!C177-1) -> 
D177: =solve_for_c('True_Odds_Calculator_3-way'!A178,'True_Odds_Calculator_3-way'!B178,'True_Odds_Calculator_3-way'!C178,'Log_working_3-way'!B$1,'Log_working_3-way'!B$2) ->  | F177: =IF('Log_working_3-way'!D177="","",1/'True_Odds_Calculator_3-way'!N178+1/'True_Odds_Calculator_3-way'!O178+1/'True_Odds_Calculator_3-way'!P178-1) ->  | H177: =IF('Log_working_3-way'!$D177="","",'True_Odds_Calculator_3-way'!N178/'True_Odds_Calculator_3-way'!A178-1) ->  | I177: =IF('Log_working_3-way'!$D177="","",'True_Odds_Calculator_3-way'!O178/'True_Odds_Calculator_3-way'!B178-1) ->  | J177: =IF('Log_working_3-way'!$D177="","",'True_Odds_Calculator_3-way'!P178/'True_Odds_Calculator_3-way'!C178-1) ->  | K177: =IF('Log_working_3-way'!$D177="","",1/'True_Odds_Calculator_3-way'!A178+1/'True_Odds_Calculator_3-way'!B178+1/'True_Odds_Calculator_3-way'!C178-1) -> 
D178: =solve_for_c('True_Odds_Calculator_3-way'!A179,'True_Odds_Calculator_3-way'!B179,'True_Odds_Calculator_3-way'!C179,'Log_working_3-way'!B$1,'Log_working_3-way'!B$2) ->  | F178: =IF('Log_working_3-way'!D178="","",1/'True_Odds_Calculator_3-way'!N179+1/'True_Odds_Calculator_3-way'!O179+1/'True_Odds_Calculator_3-way'!P179-1) ->  | H178: =IF('Log_working_3-way'!$D178="","",'True_Odds_Calculator_3-way'!N179/'True_Odds_Calculator_3-way'!A179-1) ->  | I178: =IF('Log_working_3-way'!$D178="","",'True_Odds_Calculator_3-way'!O179/'True_Odds_Calculator_3-way'!B179-1) ->  | J178: =IF('Log_working_3-way'!$D178="","",'True_Odds_Calculator_3-way'!P179/'True_Odds_Calculator_3-way'!C179-1) ->  | K178: =IF('Log_working_3-way'!$D178="","",1/'True_Odds_Calculator_3-way'!A179+1/'True_Odds_Calculator_3-way'!B179+1/'True_Odds_Calculator_3-way'!C179-1) -> 
D179: =solve_for_c('True_Odds_Calculator_3-way'!A180,'True_Odds_Calculator_3-way'!B180,'True_Odds_Calculator_3-way'!C180,'Log_working_3-way'!B$1,'Log_working_3-way'!B$2) ->  | F179: =IF('Log_working_3-way'!D179="","",1/'True_Odds_Calculator_3-way'!N180+1/'True_Odds_Calculator_3-way'!O180+1/'True_Odds_Calculator_3-way'!P180-1) ->  | H179: =IF('Log_working_3-way'!$D179="","",'True_Odds_Calculator_3-way'!N180/'True_Odds_Calculator_3-way'!A180-1) ->  | I179: =IF('Log_working_3-way'!$D179="","",'True_Odds_Calculator_3-way'!O180/'True_Odds_Calculator_3-way'!B180-1) ->  | J179: =IF('Log_working_3-way'!$D179="","",'True_Odds_Calculator_3-way'!P180/'True_Odds_Calculator_3-way'!C180-1) ->  | K179: =IF('Log_working_3-way'!$D179="","",1/'True_Odds_Calculator_3-way'!A180+1/'True_Odds_Calculator_3-way'!B180+1/'True_Odds_Calculator_3-way'!C180-1) -> 
D180: =solve_for_c('True_Odds_Calculator_3-way'!A181,'True_Odds_Calculator_3-way'!B181,'True_Odds_Calculator_3-way'!C181,'Log_working_3-way'!B$1,'Log_working_3-way'!B$2) ->  | F180: =IF('Log_working_3-way'!D180="","",1/'True_Odds_Calculator_3-way'!N181+1/'True_Odds_Calculator_3-way'!O181+1/'True_Odds_Calculator_3-way'!P181-1) ->  | H180: =IF('Log_working_3-way'!$D180="","",'True_Odds_Calculator_3-way'!N181/'True_Odds_Calculator_3-way'!A181-1) ->  | I180: =IF('Log_working_3-way'!$D180="","",'True_Odds_Calculator_3-way'!O181/'True_Odds_Calculator_3-way'!B181-1) ->  | J180: =IF('Log_working_3-way'!$D180="","",'True_Odds_Calculator_3-way'!P181/'True_Odds_Calculator_3-way'!C181-1) ->  | K180: =IF('Log_working_3-way'!$D180="","",1/'True_Odds_Calculator_3-way'!A181+1/'True_Odds_Calculator_3-way'!B181+1/'True_Odds_Calculator_3-way'!C181-1) -> 
D181: =solve_for_c('True_Odds_Calculator_3-way'!A182,'True_Odds_Calculator_3-way'!B182,'True_Odds_Calculator_3-way'!C182,'Log_working_3-way'!B$1,'Log_working_3-way'!B$2) ->  | F181: =IF('Log_working_3-way'!D181="","",1/'True_Odds_Calculator_3-way'!N182+1/'True_Odds_Calculator_3-way'!O182+1/'True_Odds_Calculator_3-way'!P182-1) ->  | H181: =IF('Log_working_3-way'!$D181="","",'True_Odds_Calculator_3-way'!N182/'True_Odds_Calculator_3-way'!A182-1) ->  | I181: =IF('Log_working_3-way'!$D181="","",'True_Odds_Calculator_3-way'!O182/'True_Odds_Calculator_3-way'!B182-1) ->  | J181: =IF('Log_working_3-way'!$D181="","",'True_Odds_Calculator_3-way'!P182/'True_Odds_Calculator_3-way'!C182-1) ->  | K181: =IF('Log_working_3-way'!$D181="","",1/'True_Odds_Calculator_3-way'!A182+1/'True_Odds_Calculator_3-way'!B182+1/'True_Odds_Calculator_3-way'!C182-1) -> 
D182: =solve_for_c('True_Odds_Calculator_3-way'!A183,'True_Odds_Calculator_3-way'!B183,'True_Odds_Calculator_3-way'!C183,'Log_working_3-way'!B$1,'Log_working_3-way'!B$2) ->  | F182: =IF('Log_working_3-way'!D182="","",1/'True_Odds_Calculator_3-way'!N183+1/'True_Odds_Calculator_3-way'!O183+1/'True_Odds_Calculator_3-way'!P183-1) ->  | H182: =IF('Log_working_3-way'!$D182="","",'True_Odds_Calculator_3-way'!N183/'True_Odds_Calculator_3-way'!A183-1) ->  | I182: =IF('Log_working_3-way'!$D182="","",'True_Odds_Calculator_3-way'!O183/'True_Odds_Calculator_3-way'!B183-1) ->  | J182: =IF('Log_working_3-way'!$D182="","",'True_Odds_Calculator_3-way'!P183/'True_Odds_Calculator_3-way'!C183-1) ->  | K182: =IF('Log_working_3-way'!$D182="","",1/'True_Odds_Calculator_3-way'!A183+1/'True_Odds_Calculator_3-way'!B183+1/'True_Odds_Calculator_3-way'!C183-1) -> 
D183: =solve_for_c('True_Odds_Calculator_3-way'!A184,'True_Odds_Calculator_3-way'!B184,'True_Odds_Calculator_3-way'!C184,'Log_working_3-way'!B$1,'Log_working_3-way'!B$2) ->  | F183: =IF('Log_working_3-way'!D183="","",1/'True_Odds_Calculator_3-way'!N184+1/'True_Odds_Calculator_3-way'!O184+1/'True_Odds_Calculator_3-way'!P184-1) ->  | H183: =IF('Log_working_3-way'!$D183="","",'True_Odds_Calculator_3-way'!N184/'True_Odds_Calculator_3-way'!A184-1) ->  | I183: =IF('Log_working_3-way'!$D183="","",'True_Odds_Calculator_3-way'!O184/'True_Odds_Calculator_3-way'!B184-1) ->  | J183: =IF('Log_working_3-way'!$D183="","",'True_Odds_Calculator_3-way'!P184/'True_Odds_Calculator_3-way'!C184-1) ->  | K183: =IF('Log_working_3-way'!$D183="","",1/'True_Odds_Calculator_3-way'!A184+1/'True_Odds_Calculator_3-way'!B184+1/'True_Odds_Calculator_3-way'!C184-1) -> 
D184: =solve_for_c('True_Odds_Calculator_3-way'!A185,'True_Odds_Calculator_3-way'!B185,'True_Odds_Calculator_3-way'!C185,'Log_working_3-way'!B$1,'Log_working_3-way'!B$2) ->  | F184: =IF('Log_working_3-way'!D184="","",1/'True_Odds_Calculator_3-way'!N185+1/'True_Odds_Calculator_3-way'!O185+1/'True_Odds_Calculator_3-way'!P185-1) ->  | H184: =IF('Log_working_3-way'!$D184="","",'True_Odds_Calculator_3-way'!N185/'True_Odds_Calculator_3-way'!A185-1) ->  | I184: =IF('Log_working_3-way'!$D184="","",'True_Odds_Calculator_3-way'!O185/'True_Odds_Calculator_3-way'!B185-1) ->  | J184: =IF('Log_working_3-way'!$D184="","",'True_Odds_Calculator_3-way'!P185/'True_Odds_Calculator_3-way'!C185-1) ->  | K184: =IF('Log_working_3-way'!$D184="","",1/'True_Odds_Calculator_3-way'!A185+1/'True_Odds_Calculator_3-way'!B185+1/'True_Odds_Calculator_3-way'!C185-1) -> 
D185: =solve_for_c('True_Odds_Calculator_3-way'!A186,'True_Odds_Calculator_3-way'!B186,'True_Odds_Calculator_3-way'!C186,'Log_working_3-way'!B$1,'Log_working_3-way'!B$2) ->  | F185: =IF('Log_working_3-way'!D185="","",1/'True_Odds_Calculator_3-way'!N186+1/'True_Odds_Calculator_3-way'!O186+1/'True_Odds_Calculator_3-way'!P186-1) ->  | H185: =IF('Log_working_3-way'!$D185="","",'True_Odds_Calculator_3-way'!N186/'True_Odds_Calculator_3-way'!A186-1) ->  | I185: =IF('Log_working_3-way'!$D185="","",'True_Odds_Calculator_3-way'!O186/'True_Odds_Calculator_3-way'!B186-1) ->  | J185: =IF('Log_working_3-way'!$D185="","",'True_Odds_Calculator_3-way'!P186/'True_Odds_Calculator_3-way'!C186-1) ->  | K185: =IF('Log_working_3-way'!$D185="","",1/'True_Odds_Calculator_3-way'!A186+1/'True_Odds_Calculator_3-way'!B186+1/'True_Odds_Calculator_3-way'!C186-1) -> 
D186: =solve_for_c('True_Odds_Calculator_3-way'!A187,'True_Odds_Calculator_3-way'!B187,'True_Odds_Calculator_3-way'!C187,'Log_working_3-way'!B$1,'Log_working_3-way'!B$2) ->  | F186: =IF('Log_working_3-way'!D186="","",1/'True_Odds_Calculator_3-way'!N187+1/'True_Odds_Calculator_3-way'!O187+1/'True_Odds_Calculator_3-way'!P187-1) ->  | H186: =IF('Log_working_3-way'!$D186="","",'True_Odds_Calculator_3-way'!N187/'True_Odds_Calculator_3-way'!A187-1) ->  | I186: =IF('Log_working_3-way'!$D186="","",'True_Odds_Calculator_3-way'!O187/'True_Odds_Calculator_3-way'!B187-1) ->  | J186: =IF('Log_working_3-way'!$D186="","",'True_Odds_Calculator_3-way'!P187/'True_Odds_Calculator_3-way'!C187-1) ->  | K186: =IF('Log_working_3-way'!$D186="","",1/'True_Odds_Calculator_3-way'!A187+1/'True_Odds_Calculator_3-way'!B187+1/'True_Odds_Calculator_3-way'!C187-1) -> 
D187: =solve_for_c('True_Odds_Calculator_3-way'!A188,'True_Odds_Calculator_3-way'!B188,'True_Odds_Calculator_3-way'!C188,'Log_working_3-way'!B$1,'Log_working_3-way'!B$2) ->  | F187: =IF('Log_working_3-way'!D187="","",1/'True_Odds_Calculator_3-way'!N188+1/'True_Odds_Calculator_3-way'!O188+1/'True_Odds_Calculator_3-way'!P188-1) ->  | H187: =IF('Log_working_3-way'!$D187="","",'True_Odds_Calculator_3-way'!N188/'True_Odds_Calculator_3-way'!A188-1) ->  | I187: =IF('Log_working_3-way'!$D187="","",'True_Odds_Calculator_3-way'!O188/'True_Odds_Calculator_3-way'!B188-1) ->  | J187: =IF('Log_working_3-way'!$D187="","",'True_Odds_Calculator_3-way'!P188/'True_Odds_Calculator_3-way'!C188-1) ->  | K187: =IF('Log_working_3-way'!$D187="","",1/'True_Odds_Calculator_3-way'!A188+1/'True_Odds_Calculator_3-way'!B188+1/'True_Odds_Calculator_3-way'!C188-1) -> 
D188: =solve_for_c('True_Odds_Calculator_3-way'!A189,'True_Odds_Calculator_3-way'!B189,'True_Odds_Calculator_3-way'!C189,'Log_working_3-way'!B$1,'Log_working_3-way'!B$2) ->  | F188: =IF('Log_working_3-way'!D188="","",1/'True_Odds_Calculator_3-way'!N189+1/'True_Odds_Calculator_3-way'!O189+1/'True_Odds_Calculator_3-way'!P189-1) ->  | H188: =IF('Log_working_3-way'!$D188="","",'True_Odds_Calculator_3-way'!N189/'True_Odds_Calculator_3-way'!A189-1) ->  | I188: =IF('Log_working_3-way'!$D188="","",'True_Odds_Calculator_3-way'!O189/'True_Odds_Calculator_3-way'!B189-1) ->  | J188: =IF('Log_working_3-way'!$D188="","",'True_Odds_Calculator_3-way'!P189/'True_Odds_Calculator_3-way'!C189-1) ->  | K188: =IF('Log_working_3-way'!$D188="","",1/'True_Odds_Calculator_3-way'!A189+1/'True_Odds_Calculator_3-way'!B189+1/'True_Odds_Calculator_3-way'!C189-1) -> 
D189: =solve_for_c('True_Odds_Calculator_3-way'!A190,'True_Odds_Calculator_3-way'!B190,'True_Odds_Calculator_3-way'!C190,'Log_working_3-way'!B$1,'Log_working_3-way'!B$2) ->  | F189: =IF('Log_working_3-way'!D189="","",1/'True_Odds_Calculator_3-way'!N190+1/'True_Odds_Calculator_3-way'!O190+1/'True_Odds_Calculator_3-way'!P190-1) ->  | H189: =IF('Log_working_3-way'!$D189="","",'True_Odds_Calculator_3-way'!N190/'True_Odds_Calculator_3-way'!A190-1) ->  | I189: =IF('Log_working_3-way'!$D189="","",'True_Odds_Calculator_3-way'!O190/'True_Odds_Calculator_3-way'!B190-1) ->  | J189: =IF('Log_working_3-way'!$D189="","",'True_Odds_Calculator_3-way'!P190/'True_Odds_Calculator_3-way'!C190-1) ->  | K189: =IF('Log_working_3-way'!$D189="","",1/'True_Odds_Calculator_3-way'!A190+1/'True_Odds_Calculator_3-way'!B190+1/'True_Odds_Calculator_3-way'!C190-1) -> 
D190: =solve_for_c('True_Odds_Calculator_3-way'!A191,'True_Odds_Calculator_3-way'!B191,'True_Odds_Calculator_3-way'!C191,'Log_working_3-way'!B$1,'Log_working_3-way'!B$2) ->  | F190: =IF('Log_working_3-way'!D190="","",1/'True_Odds_Calculator_3-way'!N191+1/'True_Odds_Calculator_3-way'!O191+1/'True_Odds_Calculator_3-way'!P191-1) ->  | H190: =IF('Log_working_3-way'!$D190="","",'True_Odds_Calculator_3-way'!N191/'True_Odds_Calculator_3-way'!A191-1) ->  | I190: =IF('Log_working_3-way'!$D190="","",'True_Odds_Calculator_3-way'!O191/'True_Odds_Calculator_3-way'!B191-1) ->  | J190: =IF('Log_working_3-way'!$D190="","",'True_Odds_Calculator_3-way'!P191/'True_Odds_Calculator_3-way'!C191-1) ->  | K190: =IF('Log_working_3-way'!$D190="","",1/'True_Odds_Calculator_3-way'!A191+1/'True_Odds_Calculator_3-way'!B191+1/'True_Odds_Calculator_3-way'!C191-1) -> 
D191: =solve_for_c('True_Odds_Calculator_3-way'!A192,'True_Odds_Calculator_3-way'!B192,'True_Odds_Calculator_3-way'!C192,'Log_working_3-way'!B$1,'Log_working_3-way'!B$2) ->  | F191: =IF('Log_working_3-way'!D191="","",1/'True_Odds_Calculator_3-way'!N192+1/'True_Odds_Calculator_3-way'!O192+1/'True_Odds_Calculator_3-way'!P192-1) ->  | H191: =IF('Log_working_3-way'!$D191="","",'True_Odds_Calculator_3-way'!N192/'True_Odds_Calculator_3-way'!A192-1) ->  | I191: =IF('Log_working_3-way'!$D191="","",'True_Odds_Calculator_3-way'!O192/'True_Odds_Calculator_3-way'!B192-1) ->  | J191: =IF('Log_working_3-way'!$D191="","",'True_Odds_Calculator_3-way'!P192/'True_Odds_Calculator_3-way'!C192-1) ->  | K191: =IF('Log_working_3-way'!$D191="","",1/'True_Odds_Calculator_3-way'!A192+1/'True_Odds_Calculator_3-way'!B192+1/'True_Odds_Calculator_3-way'!C192-1) -> 
D192: =solve_for_c('True_Odds_Calculator_3-way'!A193,'True_Odds_Calculator_3-way'!B193,'True_Odds_Calculator_3-way'!C193,'Log_working_3-way'!B$1,'Log_working_3-way'!B$2) ->  | F192: =IF('Log_working_3-way'!D192="","",1/'True_Odds_Calculator_3-way'!N193+1/'True_Odds_Calculator_3-way'!O193+1/'True_Odds_Calculator_3-way'!P193-1) ->  | H192: =IF('Log_working_3-way'!$D192="","",'True_Odds_Calculator_3-way'!N193/'True_Odds_Calculator_3-way'!A193-1) ->  | I192: =IF('Log_working_3-way'!$D192="","",'True_Odds_Calculator_3-way'!O193/'True_Odds_Calculator_3-way'!B193-1) ->  | J192: =IF('Log_working_3-way'!$D192="","",'True_Odds_Calculator_3-way'!P193/'True_Odds_Calculator_3-way'!C193-1) ->  | K192: =IF('Log_working_3-way'!$D192="","",1/'True_Odds_Calculator_3-way'!A193+1/'True_Odds_Calculator_3-way'!B193+1/'True_Odds_Calculator_3-way'!C193-1) -> 
D193: =solve_for_c('True_Odds_Calculator_3-way'!A194,'True_Odds_Calculator_3-way'!B194,'True_Odds_Calculator_3-way'!C194,'Log_working_3-way'!B$1,'Log_working_3-way'!B$2) ->  | F193: =IF('Log_working_3-way'!D193="","",1/'True_Odds_Calculator_3-way'!N194+1/'True_Odds_Calculator_3-way'!O194+1/'True_Odds_Calculator_3-way'!P194-1) ->  | H193: =IF('Log_working_3-way'!$D193="","",'True_Odds_Calculator_3-way'!N194/'True_Odds_Calculator_3-way'!A194-1) ->  | I193: =IF('Log_working_3-way'!$D193="","",'True_Odds_Calculator_3-way'!O194/'True_Odds_Calculator_3-way'!B194-1) ->  | J193: =IF('Log_working_3-way'!$D193="","",'True_Odds_Calculator_3-way'!P194/'True_Odds_Calculator_3-way'!C194-1) ->  | K193: =IF('Log_working_3-way'!$D193="","",1/'True_Odds_Calculator_3-way'!A194+1/'True_Odds_Calculator_3-way'!B194+1/'True_Odds_Calculator_3-way'!C194-1) -> 
D194: =solve_for_c('True_Odds_Calculator_3-way'!A195,'True_Odds_Calculator_3-way'!B195,'True_Odds_Calculator_3-way'!C195,'Log_working_3-way'!B$1,'Log_working_3-way'!B$2) ->  | F194: =IF('Log_working_3-way'!D194="","",1/'True_Odds_Calculator_3-way'!N195+1/'True_Odds_Calculator_3-way'!O195+1/'True_Odds_Calculator_3-way'!P195-1) ->  | H194: =IF('Log_working_3-way'!$D194="","",'True_Odds_Calculator_3-way'!N195/'True_Odds_Calculator_3-way'!A195-1) ->  | I194: =IF('Log_working_3-way'!$D194="","",'True_Odds_Calculator_3-way'!O195/'True_Odds_Calculator_3-way'!B195-1) ->  | J194: =IF('Log_working_3-way'!$D194="","",'True_Odds_Calculator_3-way'!P195/'True_Odds_Calculator_3-way'!C195-1) ->  | K194: =IF('Log_working_3-way'!$D194="","",1/'True_Odds_Calculator_3-way'!A195+1/'True_Odds_Calculator_3-way'!B195+1/'True_Odds_Calculator_3-way'!C195-1) -> 
D195: =solve_for_c('True_Odds_Calculator_3-way'!A196,'True_Odds_Calculator_3-way'!B196,'True_Odds_Calculator_3-way'!C196,'Log_working_3-way'!B$1,'Log_working_3-way'!B$2) ->  | F195: =IF('Log_working_3-way'!D195="","",1/'True_Odds_Calculator_3-way'!N196+1/'True_Odds_Calculator_3-way'!O196+1/'True_Odds_Calculator_3-way'!P196-1) ->  | H195: =IF('Log_working_3-way'!$D195="","",'True_Odds_Calculator_3-way'!N196/'True_Odds_Calculator_3-way'!A196-1) ->  | I195: =IF('Log_working_3-way'!$D195="","",'True_Odds_Calculator_3-way'!O196/'True_Odds_Calculator_3-way'!B196-1) ->  | J195: =IF('Log_working_3-way'!$D195="","",'True_Odds_Calculator_3-way'!P196/'True_Odds_Calculator_3-way'!C196-1) ->  | K195: =IF('Log_working_3-way'!$D195="","",1/'True_Odds_Calculator_3-way'!A196+1/'True_Odds_Calculator_3-way'!B196+1/'True_Odds_Calculator_3-way'!C196-1) -> 
D196: =solve_for_c('True_Odds_Calculator_3-way'!A197,'True_Odds_Calculator_3-way'!B197,'True_Odds_Calculator_3-way'!C197,'Log_working_3-way'!B$1,'Log_working_3-way'!B$2) ->  | F196: =IF('Log_working_3-way'!D196="","",1/'True_Odds_Calculator_3-way'!N197+1/'True_Odds_Calculator_3-way'!O197+1/'True_Odds_Calculator_3-way'!P197-1) ->  | H196: =IF('Log_working_3-way'!$D196="","",'True_Odds_Calculator_3-way'!N197/'True_Odds_Calculator_3-way'!A197-1) ->  | I196: =IF('Log_working_3-way'!$D196="","",'True_Odds_Calculator_3-way'!O197/'True_Odds_Calculator_3-way'!B197-1) ->  | J196: =IF('Log_working_3-way'!$D196="","",'True_Odds_Calculator_3-way'!P197/'True_Odds_Calculator_3-way'!C197-1) ->  | K196: =IF('Log_working_3-way'!$D196="","",1/'True_Odds_Calculator_3-way'!A197+1/'True_Odds_Calculator_3-way'!B197+1/'True_Odds_Calculator_3-way'!C197-1) -> 
D197: =solve_for_c('True_Odds_Calculator_3-way'!A198,'True_Odds_Calculator_3-way'!B198,'True_Odds_Calculator_3-way'!C198,'Log_working_3-way'!B$1,'Log_working_3-way'!B$2) ->  | F197: =IF('Log_working_3-way'!D197="","",1/'True_Odds_Calculator_3-way'!N198+1/'True_Odds_Calculator_3-way'!O198+1/'True_Odds_Calculator_3-way'!P198-1) ->  | H197: =IF('Log_working_3-way'!$D197="","",'True_Odds_Calculator_3-way'!N198/'True_Odds_Calculator_3-way'!A198-1) ->  | I197: =IF('Log_working_3-way'!$D197="","",'True_Odds_Calculator_3-way'!O198/'True_Odds_Calculator_3-way'!B198-1) ->  | J197: =IF('Log_working_3-way'!$D197="","",'True_Odds_Calculator_3-way'!P198/'True_Odds_Calculator_3-way'!C198-1) ->  | K197: =IF('Log_working_3-way'!$D197="","",1/'True_Odds_Calculator_3-way'!A198+1/'True_Odds_Calculator_3-way'!B198+1/'True_Odds_Calculator_3-way'!C198-1) -> 
D198: =solve_for_c('True_Odds_Calculator_3-way'!A199,'True_Odds_Calculator_3-way'!B199,'True_Odds_Calculator_3-way'!C199,'Log_working_3-way'!B$1,'Log_working_3-way'!B$2) ->  | F198: =IF('Log_working_3-way'!D198="","",1/'True_Odds_Calculator_3-way'!N199+1/'True_Odds_Calculator_3-way'!O199+1/'True_Odds_Calculator_3-way'!P199-1) ->  | H198: =IF('Log_working_3-way'!$D198="","",'True_Odds_Calculator_3-way'!N199/'True_Odds_Calculator_3-way'!A199-1) ->  | I198: =IF('Log_working_3-way'!$D198="","",'True_Odds_Calculator_3-way'!O199/'True_Odds_Calculator_3-way'!B199-1) ->  | J198: =IF('Log_working_3-way'!$D198="","",'True_Odds_Calculator_3-way'!P199/'True_Odds_Calculator_3-way'!C199-1) ->  | K198: =IF('Log_working_3-way'!$D198="","",1/'True_Odds_Calculator_3-way'!A199+1/'True_Odds_Calculator_3-way'!B199+1/'True_Odds_Calculator_3-way'!C199-1) -> 
D199: =solve_for_c('True_Odds_Calculator_3-way'!A200,'True_Odds_Calculator_3-way'!B200,'True_Odds_Calculator_3-way'!C200,'Log_working_3-way'!B$1,'Log_working_3-way'!B$2) ->  | F199: =IF('Log_working_3-way'!D199="","",1/'True_Odds_Calculator_3-way'!N200+1/'True_Odds_Calculator_3-way'!O200+1/'True_Odds_Calculator_3-way'!P200-1) ->  | H199: =IF('Log_working_3-way'!$D199="","",'True_Odds_Calculator_3-way'!N200/'True_Odds_Calculator_3-way'!A200-1) ->  | I199: =IF('Log_working_3-way'!$D199="","",'True_Odds_Calculator_3-way'!O200/'True_Odds_Calculator_3-way'!B200-1) ->  | J199: =IF('Log_working_3-way'!$D199="","",'True_Odds_Calculator_3-way'!P200/'True_Odds_Calculator_3-way'!C200-1) ->  | K199: =IF('Log_working_3-way'!$D199="","",1/'True_Odds_Calculator_3-way'!A200+1/'True_Odds_Calculator_3-way'!B200+1/'True_Odds_Calculator_3-way'!C200-1) -> 
D200: =solve_for_c('True_Odds_Calculator_3-way'!A201,'True_Odds_Calculator_3-way'!B201,'True_Odds_Calculator_3-way'!C201,'Log_working_3-way'!B$1,'Log_working_3-way'!B$2) ->  | F200: =IF('Log_working_3-way'!D200="","",1/'True_Odds_Calculator_3-way'!N201+1/'True_Odds_Calculator_3-way'!O201+1/'True_Odds_Calculator_3-way'!P201-1) ->  | H200: =IF('Log_working_3-way'!$D200="","",'True_Odds_Calculator_3-way'!N201/'True_Odds_Calculator_3-way'!A201-1) ->  | I200: =IF('Log_working_3-way'!$D200="","",'True_Odds_Calculator_3-way'!O201/'True_Odds_Calculator_3-way'!B201-1) ->  | J200: =IF('Log_working_3-way'!$D200="","",'True_Odds_Calculator_3-way'!P201/'True_Odds_Calculator_3-way'!C201-1) ->  | K200: =IF('Log_working_3-way'!$D200="","",1/'True_Odds_Calculator_3-way'!A201+1/'True_Odds_Calculator_3-way'!B201+1/'True_Odds_Calculator_3-way'!C201-1) -> 
... 801 more rows

Sheet OddsRatio_working_3-way (hidden)
A1: H | B1: D | C1: A | G1: OR | H1: H | I1: D | J1: A | K1: x | L1: y | M1: z | N1: a | O1: b | P1: c | Q1: d | AR1: OR
A2: =IF('True_Odds_Calculator_3-way'!A3="","",'True_Odds_Calculator_3-way'!A3) -> 1.42 | B2: =IF('True_Odds_Calculator_3-way'!B3="","",'True_Odds_Calculator_3-way'!B3) -> 5.29 | C2: =IF('True_Odds_Calculator_3-way'!C3="","",'True_Odds_Calculator_3-way'!C3) -> 7.75 | D2: =(K2/(AR2+K2-(AR2*K2))) -> 0.6942882863 | E2: =(L2/(AR2+L2-(AR2*L2))) -> 0.1818977558 | F2: =(M2/(AR2+M2-(AR2*M2))) -> 0.1238139579 | G2: =AR2 -> 1.048390196 | H2: =IF(A2="","",1/D2) -> 1.440323882 | I2: =IF(B2="","",1/E2) -> 5.497593941 | J2: =IF(C2="","",1/F2) -> 8.076633823 | K2: =1/A2 -> 0.7042253521 | L2: =1/B2 -> 0.1890359168 | M2: =1/C2 -> 0.1290322581 | N2: ='OddsRatio_working_3-way'!K2+'OddsRatio_working_3-way'!L2+'OddsRatio_working_3-way'!M2-('OddsRatio_working_3-way'!K2*'OddsRatio_working_3-way'!L2)-('OddsRatio_working_3-way'!K2*'OddsRatio_working_3-way'!M2)-('OddsRatio_working_3-way'!L2*'OddsRatio_working_3-way'!M2)+('OddsRatio_working_3-way'!K2*'OddsRatio_working_3-way'!L2*'OddsRatio_working_3-way'!M2)-1 -> -0.2089126012 | O2: =0 -> 0 | P2: =('OddsRatio_working_3-way'!K2*'OddsRatio_working_3-way'!L2)+('OddsRatio_working_3-way'!K2*'OddsRatio_working_3-way'!M2)+('OddsRatio_working_3-way'!L2*'OddsRatio_working_3-way'!M2)-(3*'OddsRatio_working_3-way'!K2*'OddsRatio_working_3-way'!L2*'OddsRatio_working_3-way'!M2) -> 0.1968515772 | Q2: =2*'OddsRatio_working_3-way'!K2*'OddsRatio_working_3-way'!L2*'OddsRatio_working_3-way'!M2 -> 0.03435455099 | R2: =O2/N2 -> 0 | S2: =P2/N2 -> -0.9422676089 | T2: =Q2/N2 -> -0.1644446089 | U2: ='OddsRatio_working_3-way'!S2-'OddsRatio_working_3-way'!R2^2/3 -> -0.9422676089 | V2: ='OddsRatio_working_3-way'!S2*'OddsRatio_working_3-way'!R2/3-2*'OddsRatio_working_3-way'!R2^3/27-'OddsRatio_working_3-way'!T2 -> 0.1644446089 | W2: ='OddsRatio_working_3-way'!V2^2+4*'OddsRatio_working_3-way'!U2^3/27 -> -0.09690011727 | X2: =IF('OddsRatio_working_3-way'!W2>0,IF(ABS('OddsRatio_working_3-way'!V2+SQRT('OddsRatio_working_3-way'!W2))/2>0,ABS('OddsRatio_working_3-way'!V2+SQRT('OddsRatio_working_3-way'!W2))/2,ABS('OddsRatio_working_3-way'!V2-SQRT('OddsRatio_working_3-way'!W2))/2),SQRT(-'OddsRatio_working_3-way'!U2^3/27)) -> 0.1760270907 | Y2: =IF('OddsRatio_working_3-way'!W2>=0,IF('OddsRatio_working_3-way'!V2+SQRT('OddsRatio_working_3-way'!W2)>0,0,PI()),ACOS('OddsRatio_working_3-way'!V2/(2*'OddsRatio_working_3-way'!X2))) -> 1.084787862 | Z2: ='OddsRatio_working_3-way'!X2^(1/3)*COS('OddsRatio_working_3-way'!Y2/3) -> 0.524195098 | AA2: ='OddsRatio_working_3-way'!X2^(1/3)*COS(('OddsRatio_working_3-way'!Y2+2*PI())/3) -> -0.433799403 | AB2: ='OddsRatio_working_3-way'!X2^(1/3)*COS(('OddsRatio_working_3-way'!Y2+4*PI())/3) -> -0.09039569495 | AC2: ='OddsRatio_working_3-way'!X2^(1/3)*SIN('OddsRatio_working_3-way'!Y2/3) -> 0.1982642233 | AD2: ='OddsRatio_working_3-way'!X2^(1/3)*SIN(('OddsRatio_working_3-way'!Y2+2*PI())/3) -> 0.3548341597 | AE2: ='OddsRatio_working_3-way'!X2^(1/3)*SIN(('OddsRatio_working_3-way'!Y2+4*PI())/3) -> -0.553098383 | AF2: =-'OddsRatio_working_3-way'!U2/(3*'OddsRatio_working_3-way'!X2^(1/3))*COS(('OddsRatio_working_3-way'!Y2)/3) -> 0.524195098 | AG2: =-'OddsRatio_working_3-way'!U2/(3*'OddsRatio_working_3-way'!X2^(1/3))*COS(('OddsRatio_working_3-way'!Y2+2*PI())/3) -> -0.433799403 | AH2: =-'OddsRatio_working_3-way'!U2/(3*'OddsRatio_working_3-way'!X2^(1/3))*COS(('OddsRatio_working_3-way'!Y2+4*PI())/3) -> -0.09039569495 | AI2: ='OddsRatio_working_3-way'!U2/(3*'OddsRatio_working_3-way'!X2^(1/3))*SIN(('OddsRatio_working_3-way'!Y2)/3) -> -0.1982642233 | AJ2: ='OddsRatio_working_3-way'!U2/(3*'OddsRatio_working_3-way'!X2^(1/3))*SIN(('OddsRatio_working_3-way'!Y2+2*PI())/3) -> -0.3548341597 | AK2: ='OddsRatio_working_3-way'!U2/(3*'OddsRatio_working_3-way'!X2^(1/3))*SIN(('OddsRatio_working_3-way'!Y2+4*PI())/3) -> 0.553098383 | AL2: ='OddsRatio_working_3-way'!Z2+'OddsRatio_working_3-way'!AF2 -> 1.048390196 | AM2: ='OddsRatio_working_3-way'!AA2+'OddsRatio_working_3-way'!AG2 -> -0.867598806 | AN2: ='OddsRatio_working_3-way'!AB2+'OddsRatio_working_3-way'!AH2 -> -0.1807913899 | AO2: ='OddsRatio_working_3-way'!AC2+'OddsRatio_working_3-way'!AI2 -> 0 | AP2: ='OddsRatio_working_3-way'!AD2+'OddsRatio_working_3-way'!AJ2 -> 0 | AQ2: ='OddsRatio_working_3-way'!AE2+'OddsRatio_working_3-way'!AK2 -> 0 | AR2: =IF(A2="","",IF(('OddsRatio_working_3-way'!X2=0),IF(Q2>0,-Q2^(1/3),(-Q2)^(1/3)),'OddsRatio_working_3-way'!AL2-'OddsRatio_working_3-way'!R2/3)) -> 1.048390196 | AS2: =IF(('OddsRatio_working_3-way'!X2=0),IF(Q2>0,-Q2^(1/3),(-Q2)^(1/3)),'OddsRatio_working_3-way'!AM2-'OddsRatio_working_3-way'!R2/3) -> -0.867598806 | AT2: =IF(('OddsRatio_working_3-way'!X2=0),IF(Q2>0,-Q2^(1/3),(-Q2)^(1/3)),'OddsRatio_working_3-way'!AN2-'OddsRatio_working_3-way'!R2/3) -> -0.1807913899 | AU2: =IF(('OddsRatio_working_3-way'!X2=0),0,'OddsRatio_working_3-way'!AO2) -> 0 | AV2: =IF(('OddsRatio_working_3-way'!X2=0),0,'OddsRatio_working_3-way'!AP2) -> 0 | AW2: =IF(('OddsRatio_working_3-way'!X2=0),0,'OddsRatio_working_3-way'!AQ2) -> 0
A3: =IF('True_Odds_Calculator_3-way'!A4="","",'True_Odds_Calculator_3-way'!A4) -> 2.38 | B3: =IF('True_Odds_Calculator_3-way'!B4="","",'True_Odds_Calculator_3-way'!B4) -> 3.4 | C3: =IF('True_Odds_Calculator_3-way'!C4="","",'True_Odds_Calculator_3-way'!C4) -> 3.26 | D3: =(K3/(AR3+K3-(AR3*K3))) -> 0.4124306745 | E3: =(L3/(AR3+L3-(AR3*L3))) -> 0.2875503335 | F3: =(M3/(AR3+M3-(AR3*M3))) -> 0.300018992 | G3: =AR3 -> 1.032355011 | H3: =IF(A3="","",1/D3) -> 2.424649915 | I3: =IF(B3="","",1/E3) -> 3.477652026 | J3: =IF(C3="","",1/F3) -> 3.333122325 | K3: =1/A3 -> 0.4201680672 | L3: =1/B3 -> 0.2941176471 | M3: =1/C3 -> 0.3067484663 | N3: ='OddsRatio_working_3-way'!K3+'OddsRatio_working_3-way'!L3+'OddsRatio_working_3-way'!M3-('OddsRatio_working_3-way'!K3*'OddsRatio_working_3-way'!L3)-('OddsRatio_working_3-way'!K3*'OddsRatio_working_3-way'!M3)-('OddsRatio_working_3-way'!L3*'OddsRatio_working_3-way'!M3)+('OddsRatio_working_3-way'!K3*'OddsRatio_working_3-way'!L3*'OddsRatio_working_3-way'!M3)-1 -> -0.2837430894 | O3: =0 -> 0 | P3: =('OddsRatio_working_3-way'!K3*'OddsRatio_working_3-way'!L3)+('OddsRatio_working_3-way'!K3*'OddsRatio_working_3-way'!M3)+('OddsRatio_working_3-way'!L3*'OddsRatio_working_3-way'!M3)-(3*'OddsRatio_working_3-way'!K3*'OddsRatio_working_3-way'!L3*'OddsRatio_working_3-way'!M3) -> 0.2289620287 | Q3: =2*'OddsRatio_working_3-way'!K3*'OddsRatio_working_3-way'!L3*'OddsRatio_working_3-way'!M3 -> 0.07581524129 | R3: =O3/N3 -> 0 | S3: =P3/N3 -> -0.806934291 | T3: =Q3/N3 -> -0.2671967851 | U3: ='OddsRatio_working_3-way'!S3-'OddsRatio_working_3-way'!R3^2/3 -> -0.806934291 | V3: ='OddsRatio_working_3-way'!S3*'OddsRatio_working_3-way'!R3/3-2*'OddsRatio_working_3-way'!R3^3/27-'OddsRatio_working_3-way'!T3 -> 0.2671967851 | W3: ='OddsRatio_working_3-way'!V3^2+4*'OddsRatio_working_3-way'!U3^3/27 -> -0.006447296502 | X3: =IF('OddsRatio_working_3-way'!W3>0,IF(ABS('OddsRatio_working_3-way'!V3+SQRT('OddsRatio_working_3-way'!W3))/2>0,ABS('OddsRatio_working_3-way'!V3+SQRT('OddsRatio_working_3-way'!W3))/2,ABS('OddsRatio_working_3-way'!V3-SQRT('OddsRatio_working_3-way'!W3))/2),SQRT(-'OddsRatio_working_3-way'!U3^3/27)) -> 0.139500375 | Y3: =IF('OddsRatio_working_3-way'!W3>=0,IF('OddsRatio_working_3-way'!V3+SQRT('OddsRatio_working_3-way'!W3)>0,0,PI()),ACOS('OddsRatio_working_3-way'!V3/(2*'OddsRatio_working_3-way'!X3))) -> 0.2919237713 | Z3: ='OddsRatio_working_3-way'!X3^(1/3)*COS('OddsRatio_working_3-way'!Y3/3) -> 0.5161775055 | AA3: ='OddsRatio_working_3-way'!X3^(1/3)*COS(('OddsRatio_working_3-way'!Y3+2*PI())/3) -> -0.3017254329 | AB3: ='OddsRatio_working_3-way'!X3^(1/3)*COS(('OddsRatio_working_3-way'!Y3+4*PI())/3) -> -0.2144520725 | AC3: ='OddsRatio_working_3-way'!X3^(1/3)*SIN('OddsRatio_working_3-way'!Y3/3) -> 0.05038729812 | AD3: ='OddsRatio_working_3-way'!X3^(1/3)*SIN(('OddsRatio_working_3-way'!Y3+2*PI())/3) -> 0.4218291836 | AE3: ='OddsRatio_working_3-way'!X3^(1/3)*SIN(('OddsRatio_working_3-way'!Y3+4*PI())/3) -> -0.4722164817 | AF3: =-'OddsRatio_working_3-way'!U3/(3*'OddsRatio_working_3-way'!X3^(1/3))*COS(('OddsRatio_working_3-way'!Y3)/3) -> 0.5161775055 | AG3: =-'OddsRatio_working_3-way'!U3/(3*'OddsRatio_working_3-way'!X3^(1/3))*COS(('OddsRatio_working_3-way'!Y3+2*PI())/3) -> -0.3017254329 | AH3: =-'OddsRatio_working_3-way'!U3/(3*'OddsRatio_working_3-way'!X3^(1/3))*COS(('OddsRatio_working_3-way'!Y3+4*PI())/3) -> -0.2144520725 | AI3: ='OddsRatio_working_3-way'!U3/(3*'OddsRatio_working_3-way'!X3^(1/3))*SIN(('OddsRatio_working_3-way'!Y3)/3) -> -0.05038729812 | AJ3: ='OddsRatio_working_3-way'!U3/(3*'OddsRatio_working_3-way'!X3^(1/3))*SIN(('OddsRatio_working_3-way'!Y3+2*PI())/3) -> -0.4218291836 | AK3: ='OddsRatio_working_3-way'!U3/(3*'OddsRatio_working_3-way'!X3^(1/3))*SIN(('OddsRatio_working_3-way'!Y3+4*PI())/3) -> 0.4722164817 | AL3: ='OddsRatio_working_3-way'!Z3+'OddsRatio_working_3-way'!AF3 -> 1.032355011 | AM3: ='OddsRatio_working_3-way'!AA3+'OddsRatio_working_3-way'!AG3 -> -0.6034508659 | AN3: ='OddsRatio_working_3-way'!AB3+'OddsRatio_working_3-way'!AH3 -> -0.4289041451 | AO3: ='OddsRatio_working_3-way'!AC3+'OddsRatio_working_3-way'!AI3 -> 0 | AP3: ='OddsRatio_working_3-way'!AD3+'OddsRatio_working_3-way'!AJ3 -> 0 | AQ3: ='OddsRatio_working_3-way'!AE3+'OddsRatio_working_3-way'!AK3 -> 0 | AR3: =IF(A3="","",IF(('OddsRatio_working_3-way'!X3=0),IF(Q3>0,-Q3^(1/3),(-Q3)^(1/3)),'OddsRatio_working_3-way'!AL3-'OddsRatio_working_3-way'!R3/3)) -> 1.032355011 | AS3: =IF(('OddsRatio_working_3-way'!X3=0),IF(Q3>0,-Q3^(1/3),(-Q3)^(1/3)),'OddsRatio_working_3-way'!AM3-'OddsRatio_working_3-way'!R3/3) -> -0.6034508659 | AT3: =IF(('OddsRatio_working_3-way'!X3=0),IF(Q3>0,-Q3^(1/3),(-Q3)^(1/3)),'OddsRatio_working_3-way'!AN3-'OddsRatio_working_3-way'!R3/3) -> -0.4289041451 | AU3: =IF(('OddsRatio_working_3-way'!X3=0),0,'OddsRatio_working_3-way'!AO3) -> 0 | AV3: =IF(('OddsRatio_working_3-way'!X3=0),0,'OddsRatio_working_3-way'!AP3) -> 0 | AW3: =IF(('OddsRatio_working_3-way'!X3=0),0,'OddsRatio_working_3-way'!AQ3) -> 0
A4: =IF('True_Odds_Calculator_3-way'!A5="","",'True_Odds_Calculator_3-way'!A5) -> 1.16 | B4: =IF('True_Odds_Calculator_3-way'!B5="","",'True_Odds_Calculator_3-way'!B5) -> 9.01 | C4: =IF('True_Odds_Calculator_3-way'!C5="","",'True_Odds_Calculator_3-way'!C5) -> 21.02 | D4: =(K4/(AR4+K4-(AR4*K4))) -> 0.8524268543 | E4: =(L4/(AR4+L4-(AR4*L4))) -> 0.1034460011 | F4: =(M4/(AR4+M4-(AR4*M4))) -> 0.04412714466 | G4: =AR4 -> 1.082007396 | H4: =IF(A4="","",1/D4) -> 1.173121183 | I4: =IF(B4="","",1/E4) -> 9.66687924 | J4: =IF(C4="","",1/F4) -> 22.66178806 | K4: =1/A4 -> 0.8620689655 | L4: =1/B4 -> 0.1109877913 | M4: =1/C4 -> 0.0475737393 | N4: ='OddsRatio_working_3-way'!K4+'OddsRatio_working_3-way'!L4+'OddsRatio_working_3-way'!M4-('OddsRatio_working_3-way'!K4*'OddsRatio_working_3-way'!L4)-('OddsRatio_working_3-way'!K4*'OddsRatio_working_3-way'!M4)-('OddsRatio_working_3-way'!L4*'OddsRatio_working_3-way'!M4)+('OddsRatio_working_3-way'!K4*'OddsRatio_working_3-way'!L4*'OddsRatio_working_3-way'!M4)-1 -> -0.1167887688 | O4: =0 -> 0 | P4: =('OddsRatio_working_3-way'!K4*'OddsRatio_working_3-way'!L4)+('OddsRatio_working_3-way'!K4*'OddsRatio_working_3-way'!M4)+('OddsRatio_working_3-way'!L4*'OddsRatio_working_3-way'!M4)-(3*'OddsRatio_working_3-way'!K4*'OddsRatio_working_3-way'!L4*'OddsRatio_working_3-way'!M4) -> 0.1283156369 | Q4: =2*'OddsRatio_working_3-way'!K4*'OddsRatio_working_3-way'!L4*'OddsRatio_working_3-way'!M4 -> 0.009103628018 | R4: =O4/N4 -> 0 | S4: =P4/N4 -> -1.09869843 | T4: =Q4/N4 -> -0.07794951615 | U4: ='OddsRatio_working_3-way'!S4-'OddsRatio_working_3-way'!R4^2/3 -> -1.09869843 | V4: ='OddsRatio_working_3-way'!S4*'OddsRatio_working_3-way'!R4/3-2*'OddsRatio_working_3-way'!R4^3/27-'OddsRatio_working_3-way'!T4 -> 0.07794951615 | W4: ='OddsRatio_working_3-way'!V4^2+4*'OddsRatio_working_3-way'!U4^3/27 -> -0.1904099307 | X4: =IF('OddsRatio_working_3-way'!W4>0,IF(ABS('OddsRatio_working_3-way'!V4+SQRT('OddsRatio_working_3-way'!W4))/2>0,ABS('OddsRatio_working_3-way'!V4+SQRT('OddsRatio_working_3-way'!W4))/2,ABS('OddsRatio_working_3-way'!V4-SQRT('OddsRatio_working_3-way'!W4))/2),SQRT(-'OddsRatio_working_3-way'!U4^3/27)) -> 0.2216337394 | Y4: =IF('OddsRatio_working_3-way'!W4>=0,IF('OddsRatio_working_3-way'!V4+SQRT('OddsRatio_working_3-way'!W4)>0,0,PI()),ACOS('OddsRatio_working_3-way'!V4/(2*'OddsRatio_working_3-way'!X4))) -> 1.394025039 | Z4: ='OddsRatio_working_3-way'!X4^(1/3)*COS('OddsRatio_working_3-way'!Y4/3) -> 0.5410036979 | AA4: ='OddsRatio_working_3-way'!X4^(1/3)*COS(('OddsRatio_working_3-way'!Y4+2*PI())/3) -> -0.5053653342 | AB4: ='OddsRatio_working_3-way'!X4^(1/3)*COS(('OddsRatio_working_3-way'!Y4+4*PI())/3) -> -0.03563836367 | AC4: ='OddsRatio_working_3-way'!X4^(1/3)*SIN('OddsRatio_working_3-way'!Y4/3) -> 0.2711969929 | AD4: ='OddsRatio_working_3-way'!X4^(1/3)*SIN(('OddsRatio_working_3-way'!Y4+2*PI())/3) -> 0.3329244495 | AE4: ='OddsRatio_working_3-way'!X4^(1/3)*SIN(('OddsRatio_working_3-way'!Y4+4*PI())/3) -> -0.6041214423 | AF4: =-'OddsRatio_working_3-way'!U4/(3*'OddsRatio_working_3-way'!X4^(1/3))*COS(('OddsRatio_working_3-way'!Y4)/3) -> 0.5410036979 | AG4: =-'OddsRatio_working_3-way'!U4/(3*'OddsRatio_working_3-way'!X4^(1/3))*COS(('OddsRatio_working_3-way'!Y4+2*PI())/3) -> -0.5053653342 | AH4: =-'OddsRatio_working_3-way'!U4/(3*'OddsRatio_working_3-way'!X4^(1/3))*COS(('OddsRatio_working_3-way'!Y4+4*PI())/3) -> -0.03563836367 | AI4: ='OddsRatio_working_3-way'!U4/(3*'OddsRatio_working_3-way'!X4^(1/3))*SIN(('OddsRatio_working_3-way'!Y4)/3) -> -0.2711969929 | AJ4: ='OddsRatio_working_3-way'!U4/(3*'OddsRatio_working_3-way'!X4^(1/3))*SIN(('OddsRatio_working_3-way'!Y4+2*PI())/3) -> -0.3329244495 | AK4: ='OddsRatio_working_3-way'!U4/(3*'OddsRatio_working_3-way'!X4^(1/3))*SIN(('OddsRatio_working_3-way'!Y4+4*PI())/3) -> 0.6041214423 | AL4: ='OddsRatio_working_3-way'!Z4+'OddsRatio_working_3-way'!AF4 -> 1.082007396 | AM4: ='OddsRatio_working_3-way'!AA4+'OddsRatio_working_3-way'!AG4 -> -1.010730668 | AN4: ='OddsRatio_working_3-way'!AB4+'OddsRatio_working_3-way'!AH4 -> -0.07127672734 | AO4: ='OddsRatio_working_3-way'!AC4+'OddsRatio_working_3-way'!AI4 -> 0 | AP4: ='OddsRatio_working_3-way'!AD4+'OddsRatio_working_3-way'!AJ4 -> 0 | AQ4: ='OddsRatio_working_3-way'!AE4+'OddsRatio_working_3-way'!AK4 -> 0 | AR4: =IF(A4="","",IF(('OddsRatio_working_3-way'!X4=0),IF(Q4>0,-Q4^(1/3),(-Q4)^(1/3)),'OddsRatio_working_3-way'!AL4-'OddsRatio_working_3-way'!R4/3)) -> 1.082007396 | AS4: =IF(('OddsRatio_working_3-way'!X4=0),IF(Q4>0,-Q4^(1/3),(-Q4)^(1/3)),'OddsRatio_working_3-way'!AM4-'OddsRatio_working_3-way'!R4/3) -> -1.010730668 | AT4: =IF(('OddsRatio_working_3-way'!X4=0),IF(Q4>0,-Q4^(1/3),(-Q4)^(1/3)),'OddsRatio_working_3-way'!AN4-'OddsRatio_working_3-way'!R4/3) -> -0.07127672734 | AU4: =IF(('OddsRatio_working_3-way'!X4=0),0,'OddsRatio_working_3-way'!AO4) -> 0 | AV4: =IF(('OddsRatio_working_3-way'!X4=0),0,'OddsRatio_working_3-way'!AP4) -> 0 | AW4: =IF(('OddsRatio_working_3-way'!X4=0),0,'OddsRatio_working_3-way'!AQ4) -> 0
A5: =IF('True_Odds_Calculator_3-way'!A6="","",'True_Odds_Calculator_3-way'!A6) -> 6.36 | B5: =IF('True_Odds_Calculator_3-way'!B6="","",'True_Odds_Calculator_3-way'!B6) -> 4.61 | C5: =IF('True_Odds_Calculator_3-way'!C6="","",'True_Odds_Calculator_3-way'!C6) -> 1.55 | D5: 0.1524558838 | E5: 0.2107831205 | F5: 0.6367609958 | G5: 1.03717809 | H5: 6.559274561 | I5: 4.744212904 | J5: 1.570447949 | K5: 0.1572327044 | L5: 0.2169197397 | M5: 0.6451612903 | N5: ='OddsRatio_working_3-way'!K5+'OddsRatio_working_3-way'!L5+'OddsRatio_working_3-way'!M5-('OddsRatio_working_3-way'!K5*'OddsRatio_working_3-way'!L5)-('OddsRatio_working_3-way'!K5*'OddsRatio_working_3-way'!M5)-('OddsRatio_working_3-way'!L5*'OddsRatio_working_3-way'!M5)+('OddsRatio_working_3-way'!K5*'OddsRatio_working_3-way'!L5*'OddsRatio_working_3-way'!M5)-1 -> -0.2341773795 | O5: =0 -> 0 | P5: =('OddsRatio_working_3-way'!K5*'OddsRatio_working_3-way'!L5)+('OddsRatio_working_3-way'!K5*'OddsRatio_working_3-way'!M5)+('OddsRatio_working_3-way'!L5*'OddsRatio_working_3-way'!M5)-(3*'OddsRatio_working_3-way'!K5*'OddsRatio_working_3-way'!L5*'OddsRatio_working_3-way'!M5) -> 0.20948224 | Q5: =2*'OddsRatio_working_3-way'!K5*'OddsRatio_working_3-way'!L5*'OddsRatio_working_3-way'!M5 -> 0.04400887395 | R5: 0 | S5: -0.8945451539 | T5: -0.1879296542 | U5: ='OddsRatio_working_3-way'!S5-'OddsRatio_working_3-way'!R5^2/3 -> -0.8945451539 | V5: ='OddsRatio_working_3-way'!S5*'OddsRatio_working_3-way'!R5/3-2*'OddsRatio_working_3-way'!R5^3/27-'OddsRatio_working_3-way'!T5 -> 0.1879296542 | W5: ='OddsRatio_working_3-way'!V5^2+4*'OddsRatio_working_3-way'!U5^3/27 -> -0.07073057856 | X5: =IF('OddsRatio_working_3-way'!W5>0,IF(ABS('OddsRatio_working_3-way'!V5+SQRT('OddsRatio_working_3-way'!W5))/2>0,ABS('OddsRatio_working_3-way'!V5+SQRT('OddsRatio_working_3-way'!W5))/2,ABS('OddsRatio_working_3-way'!V5-SQRT('OddsRatio_working_3-way'!W5))/2),SQRT(-'OddsRatio_working_3-way'!U5^3/27)) -> 0.162825162 | Y5: =IF('OddsRatio_working_3-way'!W5>=0,IF('OddsRatio_working_3-way'!V5+SQRT('OddsRatio_working_3-way'!W5)>0,0,PI()),ACOS('OddsRatio_working_3-way'!V5/(2*'OddsRatio_working_3-way'!X5))) -> 0.9556349367 | Z5: ='OddsRatio_working_3-way'!X5^(1/3)*COS('OddsRatio_working_3-way'!Y5/3) -> 0.5185890448 | AA5: ='OddsRatio_working_3-way'!X5^(1/3)*COS(('OddsRatio_working_3-way'!Y5+2*PI())/3) -> -0.4074003643 | AB5: ='OddsRatio_working_3-way'!X5^(1/3)*COS(('OddsRatio_working_3-way'!Y5+4*PI())/3) -> -0.1111886805 | AC5: ='OddsRatio_working_3-way'!X5^(1/3)*SIN('OddsRatio_working_3-way'!Y5/3) -> 0.1710178954 | AD5: ='OddsRatio_working_3-way'!X5^(1/3)*SIN(('OddsRatio_working_3-way'!Y5+2*PI())/3) -> 0.3636023393 | AE5: ='OddsRatio_working_3-way'!X5^(1/3)*SIN(('OddsRatio_working_3-way'!Y5+4*PI())/3) -> -0.5346202346 | AF5: =-'OddsRatio_working_3-way'!U5/(3*'OddsRatio_working_3-way'!X5^(1/3))*COS(('OddsRatio_working_3-way'!Y5)/3) -> 0.5185890448 | AG5: =-'OddsRatio_working_3-way'!U5/(3*'OddsRatio_working_3-way'!X5^(1/3))*COS(('OddsRatio_working_3-way'!Y5+2*PI())/3) -> -0.4074003643 | AH5: =-'OddsRatio_working_3-way'!U5/(3*'OddsRatio_working_3-way'!X5^(1/3))*COS(('OddsRatio_working_3-way'!Y5+4*PI())/3) -> -0.1111886805 | AI5: ='OddsRatio_working_3-way'!U5/(3*'OddsRatio_working_3-way'!X5^(1/3))*SIN(('OddsRatio_working_3-way'!Y5)/3) -> -0.1710178954 | AJ5: ='OddsRatio_working_3-way'!U5/(3*'OddsRatio_working_3-way'!X5^(1/3))*SIN(('OddsRatio_working_3-way'!Y5+2*PI())/3) -> -0.3636023393 | AK5: ='OddsRatio_working_3-way'!U5/(3*'OddsRatio_working_3-way'!X5^(1/3))*SIN(('OddsRatio_working_3-way'!Y5+4*PI())/3) -> 0.5346202346 | AL5: ='OddsRatio_working_3-way'!Z5+'OddsRatio_working_3-way'!AF5 -> 1.03717809 | AM5: ='OddsRatio_working_3-way'!AA5+'OddsRatio_working_3-way'!AG5 -> -0.8148007286 | AN5: ='OddsRatio_working_3-way'!AB5+'OddsRatio_working_3-way'!AH5 -> -0.222377361 | AO5: ='OddsRatio_working_3-way'!AC5+'OddsRatio_working_3-way'!AI5 -> 0 | AP5: ='OddsRatio_working_3-way'!AD5+'OddsRatio_working_3-way'!AJ5 -> 0 | AQ5: ='OddsRatio_working_3-way'!AE5+'OddsRatio_working_3-way'!AK5 -> 0 | AR5: =IF(A5="","",IF(('OddsRatio_working_3-way'!X5=0),IF(Q5>0,-Q5^(1/3),(-Q5)^(1/3)),'OddsRatio_working_3-way'!AL5-'OddsRatio_working_3-way'!R5/3)) -> 1.03717809 | AS5: =IF(('OddsRatio_working_3-way'!X5=0),IF(Q5>0,-Q5^(1/3),(-Q5)^(1/3)),'OddsRatio_working_3-way'!AM5-'OddsRatio_working_3-way'!R5/3) -> -0.8148007286 | AT5: =IF(('OddsRatio_working_3-way'!X5=0),IF(Q5>0,-Q5^(1/3),(-Q5)^(1/3)),'OddsRatio_working_3-way'!AN5-'OddsRatio_working_3-way'!R5/3) -> -0.222377361 | AU5: =IF(('OddsRatio_working_3-way'!X5=0),0,'OddsRatio_working_3-way'!AO5) -> 0 | AV5: =IF(('OddsRatio_working_3-way'!X5=0),0,'OddsRatio_working_3-way'!AP5) -> 0 | AW5: =IF(('OddsRatio_working_3-way'!X5=0),0,'OddsRatio_working_3-way'!AQ5) -> 0
A6: =IF('True_Odds_Calculator_3-way'!A7="","",'True_Odds_Calculator_3-way'!A7) -> 1.91 | B6: =IF('True_Odds_Calculator_3-way'!B7="","",'True_Odds_Calculator_3-way'!B7) -> 3.75 | C6: =IF('True_Odds_Calculator_3-way'!C7="","",'True_Odds_Calculator_3-way'!C7) -> 4.35 | D6: 0.5154521528 | E6: 0.2603628889 | F6: 0.2241849583 | G6: 1.033015691 | H6: 1.940044279 | I6: 3.84079315 | J6: 4.460602564 | K6: 0.5235602094 | L6: 0.2666666667 | M6: 0.2298850575 | N6: ='OddsRatio_working_3-way'!K6+'OddsRatio_working_3-way'!L6+'OddsRatio_working_3-way'!M6-('OddsRatio_working_3-way'!K6*'OddsRatio_working_3-way'!L6)-('OddsRatio_working_3-way'!K6*'OddsRatio_working_3-way'!M6)-('OddsRatio_working_3-way'!L6*'OddsRatio_working_3-way'!M6)+('OddsRatio_working_3-way'!K6*'OddsRatio_working_3-way'!L6*'OddsRatio_working_3-way'!M6)-1 -> -0.2690698281 | O6: =0 -> 0 | P6: =('OddsRatio_working_3-way'!K6*'OddsRatio_working_3-way'!L6)+('OddsRatio_working_3-way'!K6*'OddsRatio_working_3-way'!M6)+('OddsRatio_working_3-way'!L6*'OddsRatio_working_3-way'!M6)-(3*'OddsRatio_working_3-way'!K6*'OddsRatio_working_3-way'!L6*'OddsRatio_working_3-way'!M6) -> 0.2249904716 | Q6: =2*'OddsRatio_working_3-way'!K6*'OddsRatio_working_3-way'!L6*'OddsRatio_working_3-way'!M6 -> 0.06419129004 | R6: 0 | S6: -0.8361787466 | T6: -0.2385674027 | U6: ='OddsRatio_working_3-way'!S6-'OddsRatio_working_3-way'!R6^2/3 -> -0.8361787466 | V6: ='OddsRatio_working_3-way'!S6*'OddsRatio_working_3-way'!R6/3-2*'OddsRatio_working_3-way'!R6^3/27-'OddsRatio_working_3-way'!T6 -> 0.2385674027 | W6: ='OddsRatio_working_3-way'!V6^2+4*'OddsRatio_working_3-way'!U6^3/27 -> -0.02970069243 | X6: =IF('OddsRatio_working_3-way'!W6>0,IF(ABS('OddsRatio_working_3-way'!V6+SQRT('OddsRatio_working_3-way'!W6))/2>0,ABS('OddsRatio_working_3-way'!V6+SQRT('OddsRatio_working_3-way'!W6))/2,ABS('OddsRatio_working_3-way'!V6-SQRT('OddsRatio_working_3-way'!W6))/2),SQRT(-'OddsRatio_working_3-way'!U6^3/27)) -> 0.1471522155 | Y6: =IF('OddsRatio_working_3-way'!W6>=0,IF('OddsRatio_working_3-way'!V6+SQRT('OddsRatio_working_3-way'!W6)>0,0,PI()),ACOS('OddsRatio_working_3-way'!V6/(2*'OddsRatio_working_3-way'!X6))) -> 0.6255957971 | Z6: ='OddsRatio_working_3-way'!X6^(1/3)*COS('OddsRatio_working_3-way'!Y6/3) -> 0.5165078454 | AA6: ='OddsRatio_working_3-way'!X6^(1/3)*COS(('OddsRatio_working_3-way'!Y6+2*PI())/3) -> -0.3529081401 | AB6: ='OddsRatio_working_3-way'!X6^(1/3)*COS(('OddsRatio_working_3-way'!Y6+4*PI())/3) -> -0.1635997053 | AC6: ='OddsRatio_working_3-way'!X6^(1/3)*SIN('OddsRatio_working_3-way'!Y6/3) -> 0.1092972758 | AD6: ='OddsRatio_working_3-way'!X6^(1/3)*SIN(('OddsRatio_working_3-way'!Y6+2*PI())/3) -> 0.3926602775 | AE6: ='OddsRatio_working_3-way'!X6^(1/3)*SIN(('OddsRatio_working_3-way'!Y6+4*PI())/3) -> -0.5019575533 | AF6: =-'OddsRatio_working_3-way'!U6/(3*'OddsRatio_working_3-way'!X6^(1/3))*COS(('OddsRatio_working_3-way'!Y6)/3) -> 0.5165078454 | AG6: =-'OddsRatio_working_3-way'!U6/(3*'OddsRatio_working_3-way'!X6^(1/3))*COS(('OddsRatio_working_3-way'!Y6+2*PI())/3) -> -0.3529081401 | AH6: =-'OddsRatio_working_3-way'!U6/(3*'OddsRatio_working_3-way'!X6^(1/3))*COS(('OddsRatio_working_3-way'!Y6+4*PI())/3) -> -0.1635997053 | AI6: ='OddsRatio_working_3-way'!U6/(3*'OddsRatio_working_3-way'!X6^(1/3))*SIN(('OddsRatio_working_3-way'!Y6)/3) -> -0.1092972758 | AJ6: ='OddsRatio_working_3-way'!U6/(3*'OddsRatio_working_3-way'!X6^(1/3))*SIN(('OddsRatio_working_3-way'!Y6+2*PI())/3) -> -0.3926602775 | AK6: ='OddsRatio_working_3-way'!U6/(3*'OddsRatio_working_3-way'!X6^(1/3))*SIN(('OddsRatio_working_3-way'!Y6+4*PI())/3) -> 0.5019575533 | AL6: ='OddsRatio_working_3-way'!Z6+'OddsRatio_working_3-way'!AF6 -> 1.033015691 | AM6: ='OddsRatio_working_3-way'!AA6+'OddsRatio_working_3-way'!AG6 -> -0.7058162802 | AN6: ='OddsRatio_working_3-way'!AB6+'OddsRatio_working_3-way'!AH6 -> -0.3271994107 | AO6: ='OddsRatio_working_3-way'!AC6+'OddsRatio_working_3-way'!AI6 -> 0 | AP6: ='OddsRatio_working_3-way'!AD6+'OddsRatio_working_3-way'!AJ6 -> 0 | AQ6: ='OddsRatio_working_3-way'!AE6+'OddsRatio_working_3-way'!AK6 -> 0 | AR6: =IF(A6="","",IF(('OddsRatio_working_3-way'!X6=0),IF(Q6>0,-Q6^(1/3),(-Q6)^(1/3)),'OddsRatio_working_3-way'!AL6-'OddsRatio_working_3-way'!R6/3)) -> 1.033015691 | AS6: =IF(('OddsRatio_working_3-way'!X6=0),IF(Q6>0,-Q6^(1/3),(-Q6)^(1/3)),'OddsRatio_working_3-way'!AM6-'OddsRatio_working_3-way'!R6/3) -> -0.7058162802 | AT6: =IF(('OddsRatio_working_3-way'!X6=0),IF(Q6>0,-Q6^(1/3),(-Q6)^(1/3)),'OddsRatio_working_3-way'!AN6-'OddsRatio_working_3-way'!R6/3) -> -0.3271994107 | AU6: =IF(('OddsRatio_working_3-way'!X6=0),0,'OddsRatio_working_3-way'!AO6) -> 0 | AV6: =IF(('OddsRatio_working_3-way'!X6=0),0,'OddsRatio_working_3-way'!AP6) -> 0 | AW6: =IF(('OddsRatio_working_3-way'!X6=0),0,'OddsRatio_working_3-way'!AQ6) -> 0
A7: =IF('True_Odds_Calculator_3-way'!A8="","",'True_Odds_Calculator_3-way'!A8) -> 1.14 | B7: =IF('True_Odds_Calculator_3-way'!B8="","",'True_Odds_Calculator_3-way'!B8) -> 9.31 | C7: =IF('True_Odds_Calculator_3-way'!C8="","",'True_Odds_Calculator_3-way'!C8) -> 27.82 | D7: 0.8675533392 | E7: 0.09938510679 | F7: 0.03306155399 | G7: 1.090477708 | H7: 1.152666879 | I7: 10.06186975 | J7: 30.24661213 | K7: 0.8771929825 | L7: 0.1074113856 | M7: 0.03594536305 | N7: ='OddsRatio_working_3-way'!K7+'OddsRatio_working_3-way'!L7+'OddsRatio_working_3-way'!M7-('OddsRatio_working_3-way'!K7*'OddsRatio_working_3-way'!L7)-('OddsRatio_working_3-way'!K7*'OddsRatio_working_3-way'!M7)-('OddsRatio_working_3-way'!L7*'OddsRatio_working_3-way'!M7)+('OddsRatio_working_3-way'!K7*'OddsRatio_working_3-way'!L7*'OddsRatio_working_3-way'!M7)-1 -> -0.1056759535 | O7: =0 -> 0 | P7: =('OddsRatio_working_3-way'!K7*'OddsRatio_working_3-way'!L7)+('OddsRatio_working_3-way'!K7*'OddsRatio_working_3-way'!M7)+('OddsRatio_working_3-way'!L7*'OddsRatio_working_3-way'!M7)-(3*'OddsRatio_working_3-way'!K7*'OddsRatio_working_3-way'!L7*'OddsRatio_working_3-way'!M7) -> 0.1194521034 | Q7: =2*'OddsRatio_working_3-way'!K7*'OddsRatio_working_3-way'!L7*'OddsRatio_working_3-way'!M7 -> 0.006773581142 | R7: 0 | S7: -1.130362202 | T7: -0.06409765817 | U7: ='OddsRatio_working_3-way'!S7-'OddsRatio_working_3-way'!R7^2/3 -> -1.130362202 | V7: ='OddsRatio_working_3-way'!S7*'OddsRatio_working_3-way'!R7/3-2*'OddsRatio_working_3-way'!R7^3/27-'OddsRatio_working_3-way'!T7 -> 0.06409765817 | W7: ='OddsRatio_working_3-way'!V7^2+4*'OddsRatio_working_3-way'!U7^3/27 -> -0.2098596282 | X7: =IF('OddsRatio_working_3-way'!W7>0,IF(ABS('OddsRatio_working_3-way'!V7+SQRT('OddsRatio_working_3-way'!W7))/2>0,ABS('OddsRatio_working_3-way'!V7+SQRT('OddsRatio_working_3-way'!W7))/2,ABS('OddsRatio_working_3-way'!V7-SQRT('OddsRatio_working_3-way'!W7))/2),SQRT(-'OddsRatio_working_3-way'!U7^3/27)) -> 0.2312834505 | Y7: =IF('OddsRatio_working_3-way'!W7>=0,IF('OddsRatio_working_3-way'!V7+SQRT('OddsRatio_working_3-way'!W7)>0,0,PI()),ACOS('OddsRatio_working_3-way'!V7/(2*'OddsRatio_working_3-way'!X7))) -> 1.431779507 | Z7: ='OddsRatio_working_3-way'!X7^(1/3)*COS('OddsRatio_working_3-way'!Y7/3) -> 0.545238854 | AA7: ='OddsRatio_working_3-way'!X7^(1/3)*COS(('OddsRatio_working_3-way'!Y7+2*PI())/3) -> -0.5168047961 | AB7: ='OddsRatio_working_3-way'!X7^(1/3)*COS(('OddsRatio_working_3-way'!Y7+4*PI())/3) -> -0.02843405793 | AC7: ='OddsRatio_working_3-way'!X7^(1/3)*SIN('OddsRatio_working_3-way'!Y7/3) -> 0.2819609771 | AD7: ='OddsRatio_working_3-way'!X7^(1/3)*SIN(('OddsRatio_working_3-way'!Y7+2*PI())/3) -> 0.3312102102 | AE7: ='OddsRatio_working_3-way'!X7^(1/3)*SIN(('OddsRatio_working_3-way'!Y7+4*PI())/3) -> -0.6131711873 | AF7: =-'OddsRatio_working_3-way'!U7/(3*'OddsRatio_working_3-way'!X7^(1/3))*COS(('OddsRatio_working_3-way'!Y7)/3) -> 0.545238854 | AG7: =-'OddsRatio_working_3-way'!U7/(3*'OddsRatio_working_3-way'!X7^(1/3))*COS(('OddsRatio_working_3-way'!Y7+2*PI())/3) -> -0.5168047961 | AH7: =-'OddsRatio_working_3-way'!U7/(3*'OddsRatio_working_3-way'!X7^(1/3))*COS(('OddsRatio_working_3-way'!Y7+4*PI())/3) -> -0.02843405793 | AI7: ='OddsRatio_working_3-way'!U7/(3*'OddsRatio_working_3-way'!X7^(1/3))*SIN(('OddsRatio_working_3-way'!Y7)/3) -> -0.2819609771 | AJ7: ='OddsRatio_working_3-way'!U7/(3*'OddsRatio_working_3-way'!X7^(1/3))*SIN(('OddsRatio_working_3-way'!Y7+2*PI())/3) -> -0.3312102102 | AK7: ='OddsRatio_working_3-way'!U7/(3*'OddsRatio_working_3-way'!X7^(1/3))*SIN(('OddsRatio_working_3-way'!Y7+4*PI())/3) -> 0.6131711873 | AL7: ='OddsRatio_working_3-way'!Z7+'OddsRatio_working_3-way'!AF7 -> 1.090477708 | AM7: ='OddsRatio_working_3-way'!AA7+'OddsRatio_working_3-way'!AG7 -> -1.033609592 | AN7: ='OddsRatio_working_3-way'!AB7+'OddsRatio_working_3-way'!AH7 -> -0.05686811587 | AO7: ='OddsRatio_working_3-way'!AC7+'OddsRatio_working_3-way'!AI7 -> 0 | AP7: ='OddsRatio_working_3-way'!AD7+'OddsRatio_working_3-way'!AJ7 -> 0 | AQ7: ='OddsRatio_working_3-way'!AE7+'OddsRatio_working_3-way'!AK7 -> 0 | AR7: =IF(A7="","",IF(('OddsRatio_working_3-way'!X7=0),IF(Q7>0,-Q7^(1/3),(-Q7)^(1/3)),'OddsRatio_working_3-way'!AL7-'OddsRatio_working_3-way'!R7/3)) -> 1.090477708 | AS7: =IF(('OddsRatio_working_3-way'!X7=0),IF(Q7>0,-Q7^(1/3),(-Q7)^(1/3)),'OddsRatio_working_3-way'!AM7-'OddsRatio_working_3-way'!R7/3) -> -1.033609592 | AT7: =IF(('OddsRatio_working_3-way'!X7=0),IF(Q7>0,-Q7^(1/3),(-Q7)^(1/3)),'OddsRatio_working_3-way'!AN7-'OddsRatio_working_3-way'!R7/3) -> -0.05686811587 | AU7: =IF(('OddsRatio_working_3-way'!X7=0),0,'OddsRatio_working_3-way'!AO7) -> 0 | AV7: =IF(('OddsRatio_working_3-way'!X7=0),0,'OddsRatio_working_3-way'!AP7) -> 0 | AW7: =IF(('OddsRatio_working_3-way'!X7=0),0,'OddsRatio_working_3-way'!AQ7) -> 0
A8: =IF('True_Odds_Calculator_3-way'!A9="","",'True_Odds_Calculator_3-way'!A9) -> 2.44 | B8: =IF('True_Odds_Calculator_3-way'!B9="","",'True_Odds_Calculator_3-way'!B9) -> 3.4 | C8: =IF('True_Odds_Calculator_3-way'!C9="","",'True_Odds_Calculator_3-way'!C9) -> 3.14 | D8: 0.4016804344 | E8: 0.2871443709 | F8: 0.3111751947 | G8: 1.034403627 | H8: 2.489541223 | I8: 3.482568705 | J8: 3.213623762 | K8: 0.4098360656 | L8: 0.2941176471 | M8: 0.3184713376 | N8: ='OddsRatio_working_3-way'!K8+'OddsRatio_working_3-way'!L8+'OddsRatio_working_3-way'!M8-('OddsRatio_working_3-way'!K8*'OddsRatio_working_3-way'!L8)-('OddsRatio_working_3-way'!K8*'OddsRatio_working_3-way'!M8)-('OddsRatio_working_3-way'!L8*'OddsRatio_working_3-way'!M8)+('OddsRatio_working_3-way'!K8*'OddsRatio_working_3-way'!L8*'OddsRatio_working_3-way'!M8)-1 -> -0.2839155084 | O8: =0 -> 0 | P8: =('OddsRatio_working_3-way'!K8*'OddsRatio_working_3-way'!L8)+('OddsRatio_working_3-way'!K8*'OddsRatio_working_3-way'!M8)+('OddsRatio_working_3-way'!L8*'OddsRatio_working_3-way'!M8)-(3*'OddsRatio_working_3-way'!K8*'OddsRatio_working_3-way'!L8*'OddsRatio_working_3-way'!M8) -> 0.2295634762 | Q8: =2*'OddsRatio_working_3-way'!K8*'OddsRatio_working_3-way'!L8*'OddsRatio_working_3-way'!M8 -> 0.07677708235 | R8: 0 | S8: -0.8085626514 | T8: -0.2704222915 | U8: ='OddsRatio_working_3-way'!S8-'OddsRatio_working_3-way'!R8^2/3 -> -0.8085626514 | V8: ='OddsRatio_working_3-way'!S8*'OddsRatio_working_3-way'!R8/3-2*'OddsRatio_working_3-way'!R8^3/27-'OddsRatio_working_3-way'!T8 -> 0.2704222915 | W8: ='OddsRatio_working_3-way'!V8^2+4*'OddsRatio_working_3-way'!U8^3/27 -> -0.005185396755 | X8: =IF('OddsRatio_working_3-way'!W8>0,IF(ABS('OddsRatio_working_3-way'!V8+SQRT('OddsRatio_working_3-way'!W8))/2>0,ABS('OddsRatio_working_3-way'!V8+SQRT('OddsRatio_working_3-way'!W8))/2,ABS('OddsRatio_working_3-way'!V8-SQRT('OddsRatio_working_3-way'!W8))/2),SQRT(-'OddsRatio_working_3-way'!U8^3/27)) -> 0.139922847 | Y8: =IF('OddsRatio_working_3-way'!W8>=0,IF('OddsRatio_working_3-way'!V8+SQRT('OddsRatio_working_3-way'!W8)>0,0,PI()),ACOS('OddsRatio_working_3-way'!V8/(2*'OddsRatio_working_3-way'!X8))) -> 0.2602470631 | Z8: ='OddsRatio_working_3-way'!X8^(1/3)*COS('OddsRatio_working_3-way'!Y8/3) -> 0.5172018136 | AA8: ='OddsRatio_working_3-way'!X8^(1/3)*COS(('OddsRatio_working_3-way'!Y8+2*PI())/3) -> -0.2975544155 | AB8: ='OddsRatio_working_3-way'!X8^(1/3)*COS(('OddsRatio_working_3-way'!Y8+4*PI())/3) -> -0.2196473981 | AC8: ='OddsRatio_working_3-way'!X8^(1/3)*SIN('OddsRatio_working_3-way'!Y8/3) -> 0.04497963747 | AD8: ='OddsRatio_working_3-way'!X8^(1/3)*SIN(('OddsRatio_working_3-way'!Y8+2*PI())/3) -> 0.4254200908 | AE8: ='OddsRatio_working_3-way'!X8^(1/3)*SIN(('OddsRatio_working_3-way'!Y8+4*PI())/3) -> -0.4703997282 | AF8: =-'OddsRatio_working_3-way'!U8/(3*'OddsRatio_working_3-way'!X8^(1/3))*COS(('OddsRatio_working_3-way'!Y8)/3) -> 0.5172018136 | AG8: =-'OddsRatio_working_3-way'!U8/(3*'OddsRatio_working_3-way'!X8^(1/3))*COS(('OddsRatio_working_3-way'!Y8+2*PI())/3) -> -0.2975544155 | AH8: =-'OddsRatio_working_3-way'!U8/(3*'OddsRatio_working_3-way'!X8^(1/3))*COS(('OddsRatio_working_3-way'!Y8+4*PI())/3) -> -0.2196473981 | AI8: ='OddsRatio_working_3-way'!U8/(3*'OddsRatio_working_3-way'!X8^(1/3))*SIN(('OddsRatio_working_3-way'!Y8)/3) -> -0.04497963747 | AJ8: ='OddsRatio_working_3-way'!U8/(3*'OddsRatio_working_3-way'!X8^(1/3))*SIN(('OddsRatio_working_3-way'!Y8+2*PI())/3) -> -0.4254200908 | AK8: ='OddsRatio_working_3-way'!U8/(3*'OddsRatio_working_3-way'!X8^(1/3))*SIN(('OddsRatio_working_3-way'!Y8+4*PI())/3) -> 0.4703997282 | AL8: ='OddsRatio_working_3-way'!Z8+'OddsRatio_working_3-way'!AF8 -> 1.034403627 | AM8: ='OddsRatio_working_3-way'!AA8+'OddsRatio_working_3-way'!AG8 -> -0.595108831 | AN8: ='OddsRatio_working_3-way'!AB8+'OddsRatio_working_3-way'!AH8 -> -0.4392947962 | AO8: ='OddsRatio_working_3-way'!AC8+'OddsRatio_working_3-way'!AI8 -> 0 | AP8: ='OddsRatio_working_3-way'!AD8+'OddsRatio_working_3-way'!AJ8 -> 0 | AQ8: ='OddsRatio_working_3-way'!AE8+'OddsRatio_working_3-way'!AK8 -> 0 | AR8: =IF(A8="","",IF(('OddsRatio_working_3-way'!X8=0),IF(Q8>0,-Q8^(1/3),(-Q8)^(1/3)),'OddsRatio_working_3-way'!AL8-'OddsRatio_working_3-way'!R8/3)) -> 1.034403627 | AS8: =IF(('OddsRatio_working_3-way'!X8=0),IF(Q8>0,-Q8^(1/3),(-Q8)^(1/3)),'OddsRatio_working_3-way'!AM8-'OddsRatio_working_3-way'!R8/3) -> -0.595108831 | AT8: =IF(('OddsRatio_working_3-way'!X8=0),IF(Q8>0,-Q8^(1/3),(-Q8)^(1/3)),'OddsRatio_working_3-way'!AN8-'OddsRatio_working_3-way'!R8/3) -> -0.4392947962 | AU8: =IF(('OddsRatio_working_3-way'!X8=0),0,'OddsRatio_working_3-way'!AO8) -> 0 | AV8: =IF(('OddsRatio_working_3-way'!X8=0),0,'OddsRatio_working_3-way'!AP8) -> 0 | AW8: =IF(('OddsRatio_working_3-way'!X8=0),0,'OddsRatio_working_3-way'!AQ8) -> 0
A9: =IF('True_Odds_Calculator_3-way'!A10="","",'True_Odds_Calculator_3-way'!A10) -> 1.8 | B9: =IF('True_Odds_Calculator_3-way'!B10="","",'True_Odds_Calculator_3-way'!B10) -> 3.95 | C9: =IF('True_Odds_Calculator_3-way'!C10="","",'True_Odds_Calculator_3-way'!C10) -> 4.73 | D9: 0.5472536033 | E9: 0.2468713822 | F9: 0.2058750145 | G9: 1.034132973 | H9: 1.827306379 | I9: 4.050692271 | J9: 4.857315991 | K9: 0.5555555556 | L9: 0.253164557 | M9: 0.2114164905 | N9: ='OddsRatio_working_3-way'!K9+'OddsRatio_working_3-way'!L9+'OddsRatio_working_3-way'!M9-('OddsRatio_working_3-way'!K9*'OddsRatio_working_3-way'!L9)-('OddsRatio_working_3-way'!K9*'OddsRatio_working_3-way'!M9)-('OddsRatio_working_3-way'!L9*'OddsRatio_working_3-way'!M9)+('OddsRatio_working_3-way'!K9*'OddsRatio_working_3-way'!L9*'OddsRatio_working_3-way'!M9)-1 -> -0.261752051 | O9: =0 -> 0 | P9: =('OddsRatio_working_3-way'!K9*'OddsRatio_working_3-way'!L9)+('OddsRatio_working_3-way'!K9*'OddsRatio_working_3-way'!M9)+('OddsRatio_working_3-way'!L9*'OddsRatio_working_3-way'!M9)-(3*'OddsRatio_working_3-way'!K9*'OddsRatio_working_3-way'!L9*'OddsRatio_working_3-way'!M9) -> 0.2224184738 | Q9: =2*'OddsRatio_working_3-way'!K9*'OddsRatio_working_3-way'!L9*'OddsRatio_working_3-way'!M9 -> 0.05947018016 | R9: 0 | S9: -0.8497296315 | T9: -0.2272004362 | U9: ='OddsRatio_working_3-way'!S9-'OddsRatio_working_3-way'!R9^2/3 -> -0.8497296315 | V9: ='OddsRatio_working_3-way'!S9*'OddsRatio_working_3-way'!R9/3-2*'OddsRatio_working_3-way'!R9^3/27-'OddsRatio_working_3-way'!T9 -> 0.2272004362 | W9: ='OddsRatio_working_3-way'!V9^2+4*'OddsRatio_working_3-way'!U9^3/27 -> -0.03927465254 | X9: =IF('OddsRatio_working_3-way'!W9>0,IF(ABS('OddsRatio_working_3-way'!V9+SQRT('OddsRatio_working_3-way'!W9))/2>0,ABS('OddsRatio_working_3-way'!V9+SQRT('OddsRatio_working_3-way'!W9))/2,ABS('OddsRatio_working_3-way'!V9-SQRT('OddsRatio_working_3-way'!W9))/2),SQRT(-'OddsRatio_working_3-way'!U9^3/27)) -> 0.1507437318 | Y9: =IF('OddsRatio_working_3-way'!W9>=0,IF('OddsRatio_working_3-way'!V9+SQRT('OddsRatio_working_3-way'!W9)>0,0,PI()),ACOS('OddsRatio_working_3-way'!V9/(2*'OddsRatio_working_3-way'!X9))) -> 0.7172772389 | Z9: ='OddsRatio_working_3-way'!X9^(1/3)*COS('OddsRatio_working_3-way'!Y9/3) -> 0.5170664867 | AA9: ='OddsRatio_working_3-way'!X9^(1/3)*COS(('OddsRatio_working_3-way'!Y9+2*PI())/3) -> -0.3676849458 | AB9: ='OddsRatio_working_3-way'!X9^(1/3)*COS(('OddsRatio_working_3-way'!Y9+4*PI())/3) -> -0.1493815409 | AC9: ='OddsRatio_working_3-way'!X9^(1/3)*SIN('OddsRatio_working_3-way'!Y9/3) -> 0.1260375296 | AD9: ='OddsRatio_working_3-way'!X9^(1/3)*SIN(('OddsRatio_working_3-way'!Y9+2*PI())/3) -> 0.3847739481 | AE9: ='OddsRatio_working_3-way'!X9^(1/3)*SIN(('OddsRatio_working_3-way'!Y9+4*PI())/3) -> -0.5108114777 | AF9: =-'OddsRatio_working_3-way'!U9/(3*'OddsRatio_working_3-way'!X9^(1/3))*COS(('OddsRatio_working_3-way'!Y9)/3) -> 0.5170664867 | AG9: =-'OddsRatio_working_3-way'!U9/(3*'OddsRatio_working_3-way'!X9^(1/3))*COS(('OddsRatio_working_3-way'!Y9+2*PI())/3) -> -0.3676849458 | AH9: =-'OddsRatio_working_3-way'!U9/(3*'OddsRatio_working_3-way'!X9^(1/3))*COS(('OddsRatio_working_3-way'!Y9+4*PI())/3) -> -0.1493815409 | AI9: ='OddsRatio_working_3-way'!U9/(3*'OddsRatio_working_3-way'!X9^(1/3))*SIN(('OddsRatio_working_3-way'!Y9)/3) -> -0.1260375296 | AJ9: ='OddsRatio_working_3-way'!U9/(3*'OddsRatio_working_3-way'!X9^(1/3))*SIN(('OddsRatio_working_3-way'!Y9+2*PI())/3) -> -0.3847739481 | AK9: ='OddsRatio_working_3-way'!U9/(3*'OddsRatio_working_3-way'!X9^(1/3))*SIN(('OddsRatio_working_3-way'!Y9+4*PI())/3) -> 0.5108114777 | AL9: ='OddsRatio_working_3-way'!Z9+'OddsRatio_working_3-way'!AF9 -> 1.034132973 | AM9: ='OddsRatio_working_3-way'!AA9+'OddsRatio_working_3-way'!AG9 -> -0.7353698915 | AN9: ='OddsRatio_working_3-way'!AB9+'OddsRatio_working_3-way'!AH9 -> -0.2987630818 | AO9: ='OddsRatio_working_3-way'!AC9+'OddsRatio_working_3-way'!AI9 -> 0 | AP9: ='OddsRatio_working_3-way'!AD9+'OddsRatio_working_3-way'!AJ9 -> 0 | AQ9: ='OddsRatio_working_3-way'!AE9+'OddsRatio_working_3-way'!AK9 -> 0 | AR9: =IF(A9="","",IF(('OddsRatio_working_3-way'!X9=0),IF(Q9>0,-Q9^(1/3),(-Q9)^(1/3)),'OddsRatio_working_3-way'!AL9-'OddsRatio_working_3-way'!R9/3)) -> 1.034132973 | AS9: =IF(('OddsRatio_working_3-way'!X9=0),IF(Q9>0,-Q9^(1/3),(-Q9)^(1/3)),'OddsRatio_working_3-way'!AM9-'OddsRatio_working_3-way'!R9/3) -> -0.7353698915 | AT9: =IF(('OddsRatio_working_3-way'!X9=0),IF(Q9>0,-Q9^(1/3),(-Q9)^(1/3)),'OddsRatio_working_3-way'!AN9-'OddsRatio_working_3-way'!R9/3) -> -0.2987630818 | AU9: =IF(('OddsRatio_working_3-way'!X9=0),0,'OddsRatio_working_3-way'!AO9) -> 0 | AV9: =IF(('OddsRatio_working_3-way'!X9=0),0,'OddsRatio_working_3-way'!AP9) -> 0 | AW9: =IF(('OddsRatio_working_3-way'!X9=0),0,'OddsRatio_working_3-way'!AQ9) -> 0
A10: =IF('True_Odds_Calculator_3-way'!A11="","",'True_Odds_Calculator_3-way'!A11) -> 2.1 | B10: =IF('True_Odds_Calculator_3-way'!B11="","",'True_Odds_Calculator_3-way'!B11) -> 3.68 | C10: =IF('True_Odds_Calculator_3-way'!C11="","",'True_Odds_Calculator_3-way'!C11) -> 3.67 | D10: 0.4682735194 | E10: 0.2654984176 | F10: 0.2662280629 | G10: 1.032276414 | H10: 2.135504056 | I10: 3.766500791 | J10: 3.756178027 | K10: 0.4761904762 | L10: 0.2717391304 | M10: 0.272479564 | N10: ='OddsRatio_working_3-way'!K10+'OddsRatio_working_3-way'!L10+'OddsRatio_working_3-way'!M10-('OddsRatio_working_3-way'!K10*'OddsRatio_working_3-way'!L10)-('OddsRatio_working_3-way'!K10*'OddsRatio_working_3-way'!M10)-('OddsRatio_working_3-way'!L10*'OddsRatio_working_3-way'!M10)+('OddsRatio_working_3-way'!K10*'OddsRatio_working_3-way'!L10*'OddsRatio_working_3-way'!M10)-1 -> -0.2775272056 | O10: =0 -> 0 | P10: =('OddsRatio_working_3-way'!K10*'OddsRatio_working_3-way'!L10)+('OddsRatio_working_3-way'!K10*'OddsRatio_working_3-way'!M10)+('OddsRatio_working_3-way'!L10*'OddsRatio_working_3-way'!M10)-(3*'OddsRatio_working_3-way'!K10*'OddsRatio_working_3-way'!L10*'OddsRatio_working_3-way'!M10) -> 0.2274188908 | Q10: =2*'OddsRatio_working_3-way'!K10*'OddsRatio_working_3-way'!L10*'OddsRatio_working_3-way'!M10 -> 0.07051748552 | R10: 0 | S10: -0.8194471971 | T10: -0.2540921541 | U10: ='OddsRatio_working_3-way'!S10-'OddsRatio_working_3-way'!R10^2/3 -> -0.8194471971 | V10: ='OddsRatio_working_3-way'!S10*'OddsRatio_working_3-way'!R10/3-2*'OddsRatio_working_3-way'!R10^3/27-'OddsRatio_working_3-way'!T10 -> 0.2540921541 | W10: ='OddsRatio_working_3-way'!V10^2+4*'OddsRatio_working_3-way'!U10^3/27 -> -0.01695623462 | X10: =IF('OddsRatio_working_3-way'!W10>0,IF(ABS('OddsRatio_working_3-way'!V10+SQRT('OddsRatio_working_3-way'!W10))/2>0,ABS('OddsRatio_working_3-way'!V10+SQRT('OddsRatio_working_3-way'!W10))/2,ABS('OddsRatio_working_3-way'!V10-SQRT('OddsRatio_working_3-way'!W10))/2),SQRT(-'OddsRatio_working_3-way'!U10^3/27)) -> 0.1427577121 | Y10: =IF('OddsRatio_working_3-way'!W10>=0,IF('OddsRatio_working_3-way'!V10+SQRT('OddsRatio_working_3-way'!W10)>0,0,PI()),ACOS('OddsRatio_working_3-way'!V10/(2*'OddsRatio_working_3-way'!X10))) -> 0.4735784487 | Z10: ='OddsRatio_working_3-way'!X10^(1/3)*COS('OddsRatio_working_3-way'!Y10/3) -> 0.5161382072 | AA10: ='OddsRatio_working_3-way'!X10^(1/3)*COS(('OddsRatio_working_3-way'!Y10+2*PI())/3) -> -0.3292225474 | AB10: ='OddsRatio_working_3-way'!X10^(1/3)*COS(('OddsRatio_working_3-way'!Y10+4*PI())/3) -> -0.1869156598 | AC10: ='OddsRatio_working_3-way'!X10^(1/3)*SIN('OddsRatio_working_3-way'!Y10/3) -> 0.08216091987 | AD10: ='OddsRatio_working_3-way'!X10^(1/3)*SIN(('OddsRatio_working_3-way'!Y10+2*PI())/3) -> 0.4059083394 | AE10: ='OddsRatio_working_3-way'!X10^(1/3)*SIN(('OddsRatio_working_3-way'!Y10+4*PI())/3) -> -0.4880692592 | AF10: =-'OddsRatio_working_3-way'!U10/(3*'OddsRatio_working_3-way'!X10^(1/3))*COS(('OddsRatio_working_3-way'!Y10)/3) -> 0.5161382072 | AG10: =-'OddsRatio_working_3-way'!U10/(3*'OddsRatio_working_3-way'!X10^(1/3))*COS(('OddsRatio_working_3-way'!Y10+2*PI())/3) -> -0.3292225474 | AH10: =-'OddsRatio_working_3-way'!U10/(3*'OddsRatio_working_3-way'!X10^(1/3))*COS(('OddsRatio_working_3-way'!Y10+4*PI())/3) -> -0.1869156598 | AI10: ='OddsRatio_working_3-way'!U10/(3*'OddsRatio_working_3-way'!X10^(1/3))*SIN(('OddsRatio_working_3-way'!Y10)/3) -> -0.08216091987 | AJ10: ='OddsRatio_working_3-way'!U10/(3*'OddsRatio_working_3-way'!X10^(1/3))*SIN(('OddsRatio_working_3-way'!Y10+2*PI())/3) -> -0.4059083394 | AK10: ='OddsRatio_working_3-way'!U10/(3*'OddsRatio_working_3-way'!X10^(1/3))*SIN(('OddsRatio_working_3-way'!Y10+4*PI())/3) -> 0.4880692592 | AL10: ='OddsRatio_working_3-way'!Z10+'OddsRatio_working_3-way'!AF10 -> 1.032276414 | AM10: ='OddsRatio_working_3-way'!AA10+'OddsRatio_working_3-way'!AG10 -> -0.6584450948 | AN10: ='OddsRatio_working_3-way'!AB10+'OddsRatio_working_3-way'!AH10 -> -0.3738313196 | AO10: ='OddsRatio_working_3-way'!AC10+'OddsRatio_working_3-way'!AI10 -> 0 | AP10: ='OddsRatio_working_3-way'!AD10+'OddsRatio_working_3-way'!AJ10 -> 0 | AQ10: ='OddsRatio_working_3-way'!AE10+'OddsRatio_working_3-way'!AK10 -> 0 | AR10: =IF(A10="","",IF(('OddsRatio_working_3-way'!X10=0),IF(Q10>0,-Q10^(1/3),(-Q10)^(1/3)),'OddsRatio_working_3-way'!AL10-'OddsRatio_working_3-way'!R10/3)) -> 1.032276414 | AS10: =IF(('OddsRatio_working_3-way'!X10=0),IF(Q10>0,-Q10^(1/3),(-Q10)^(1/3)),'OddsRatio_working_3-way'!AM10-'OddsRatio_working_3-way'!R10/3) -> -0.6584450948 | AT10: =IF(('OddsRatio_working_3-way'!X10=0),IF(Q10>0,-Q10^(1/3),(-Q10)^(1/3)),'OddsRatio_working_3-way'!AN10-'OddsRatio_working_3-way'!R10/3) -> -0.3738313196 | AU10: =IF(('OddsRatio_working_3-way'!X10=0),0,'OddsRatio_working_3-way'!AO10) -> 0 | AV10: =IF(('OddsRatio_working_3-way'!X10=0),0,'OddsRatio_working_3-way'!AP10) -> 0 | AW10: =IF(('OddsRatio_working_3-way'!X10=0),0,'OddsRatio_working_3-way'!AQ10) -> 0
A11: =IF('True_Odds_Calculator_3-way'!A12="","",'True_Odds_Calculator_3-way'!A12) -> 11.51 | B11: =IF('True_Odds_Calculator_3-way'!B12="","",'True_Odds_Calculator_3-way'!B12) -> 6.21 | C11: =IF('True_Odds_Calculator_3-way'!C12="","",'True_Odds_Calculator_3-way'!C12) -> 1.29 | D11: 0.08225878524 | E11: 0.1531250775 | F11: 0.7646161373 | G11: 1.061537225 | H11: 12.15675623 | I11: 6.53060894 | J11: 1.307845795 | K11: 0.08688097307 | L11: 0.1610305958 | M11: 0.7751937984 | N11: ='OddsRatio_working_3-way'!K11+'OddsRatio_working_3-way'!L11+'OddsRatio_working_3-way'!M11-('OddsRatio_working_3-way'!K11*'OddsRatio_working_3-way'!L11)-('OddsRatio_working_3-way'!K11*'OddsRatio_working_3-way'!M11)-('OddsRatio_working_3-way'!L11*'OddsRatio_working_3-way'!M11)+('OddsRatio_working_3-way'!K11*'OddsRatio_working_3-way'!L11*'OddsRatio_working_3-way'!M11)-1 -> -0.1722192934 | O11: =0 -> 0 | P11: =('OddsRatio_working_3-way'!K11*'OddsRatio_working_3-way'!L11)+('OddsRatio_working_3-way'!K11*'OddsRatio_working_3-way'!M11)+('OddsRatio_working_3-way'!L11*'OddsRatio_working_3-way'!M11)-(3*'OddsRatio_working_3-way'!K11*'OddsRatio_working_3-way'!L11*'OddsRatio_working_3-way'!M11) -> 0.1736339711 | Q11: =2*'OddsRatio_working_3-way'!K11*'OddsRatio_working_3-way'!L11*'OddsRatio_working_3-way'!M11 -> 0.0216906897 | R11: 0 | S11: -1.008214397 | T11: -0.1259480821 | U11: ='OddsRatio_working_3-way'!S11-'OddsRatio_working_3-way'!R11^2/3 -> -1.008214397 | V11: ='OddsRatio_working_3-way'!S11*'OddsRatio_working_3-way'!R11/3-2*'OddsRatio_working_3-way'!R11^3/27-'OddsRatio_working_3-way'!T11 -> 0.1259480821 | W11: ='OddsRatio_working_3-way'!V11^2+4*'OddsRatio_working_3-way'!U11^3/27 -> -0.1359661434 | X11: =IF('OddsRatio_working_3-way'!W11>0,IF(ABS('OddsRatio_working_3-way'!V11+SQRT('OddsRatio_working_3-way'!W11))/2>0,ABS('OddsRatio_working_3-way'!V11+SQRT('OddsRatio_working_3-way'!W11))/2,ABS('OddsRatio_working_3-way'!V11-SQRT('OddsRatio_working_3-way'!W11))/2),SQRT(-'OddsRatio_working_3-way'!U11^3/27)) -> 0.1948262449 | Y11: =IF('OddsRatio_working_3-way'!W11>=0,IF('OddsRatio_working_3-way'!V11+SQRT('OddsRatio_working_3-way'!W11)>0,0,PI()),ACOS('OddsRatio_working_3-way'!V11/(2*'OddsRatio_working_3-way'!X11))) -> 1.241653681 | Z11: ='OddsRatio_working_3-way'!X11^(1/3)*COS('OddsRatio_working_3-way'!Y11/3) -> 0.5307686123 | AA11: ='OddsRatio_working_3-way'!X11^(1/3)*COS(('OddsRatio_working_3-way'!Y11+2*PI())/3) -> -0.4672929721 | AB11: ='OddsRatio_working_3-way'!X11^(1/3)*COS(('OddsRatio_working_3-way'!Y11+4*PI())/3) -> -0.06347564018 | AC11: ='OddsRatio_working_3-way'!X11^(1/3)*SIN('OddsRatio_working_3-way'!Y11/3) -> 0.2331440453 | AD11: ='OddsRatio_working_3-way'!X11^(1/3)*SIN(('OddsRatio_working_3-way'!Y11+2*PI())/3) -> 0.3430870791 | AE11: ='OddsRatio_working_3-way'!X11^(1/3)*SIN(('OddsRatio_working_3-way'!Y11+4*PI())/3) -> -0.5762311244 | AF11: =-'OddsRatio_working_3-way'!U11/(3*'OddsRatio_working_3-way'!X11^(1/3))*COS(('OddsRatio_working_3-way'!Y11)/3) -> 0.5307686123 | AG11: =-'OddsRatio_working_3-way'!U11/(3*'OddsRatio_working_3-way'!X11^(1/3))*COS(('OddsRatio_working_3-way'!Y11+2*PI())/3) -> -0.4672929721 | AH11: =-'OddsRatio_working_3-way'!U11/(3*'OddsRatio_working_3-way'!X11^(1/3))*COS(('OddsRatio_working_3-way'!Y11+4*PI())/3) -> -0.06347564018 | AI11: ='OddsRatio_working_3-way'!U11/(3*'OddsRatio_working_3-way'!X11^(1/3))*SIN(('OddsRatio_working_3-way'!Y11)/3) -> -0.2331440453 | AJ11: ='OddsRatio_working_3-way'!U11/(3*'OddsRatio_working_3-way'!X11^(1/3))*SIN(('OddsRatio_working_3-way'!Y11+2*PI())/3) -> -0.3430870791 | AK11: ='OddsRatio_working_3-way'!U11/(3*'OddsRatio_working_3-way'!X11^(1/3))*SIN(('OddsRatio_working_3-way'!Y11+4*PI())/3) -> 0.5762311244 | AL11: ='OddsRatio_working_3-way'!Z11+'OddsRatio_working_3-way'!AF11 -> 1.061537225 | AM11: ='OddsRatio_working_3-way'!AA11+'OddsRatio_working_3-way'!AG11 -> -0.9345859442 | AN11: ='OddsRatio_working_3-way'!AB11+'OddsRatio_working_3-way'!AH11 -> -0.1269512804 | AO11: ='OddsRatio_working_3-way'!AC11+'OddsRatio_working_3-way'!AI11 -> 0 | AP11: ='OddsRatio_working_3-way'!AD11+'OddsRatio_working_3-way'!AJ11 -> 0 | AQ11: ='OddsRatio_working_3-way'!AE11+'OddsRatio_working_3-way'!AK11 -> 0 | AR11: =IF(A11="","",IF(('OddsRatio_working_3-way'!X11=0),IF(Q11>0,-Q11^(1/3),(-Q11)^(1/3)),'OddsRatio_working_3-way'!AL11-'OddsRatio_working_3-way'!R11/3)) -> 1.061537225 | AS11: =IF(('OddsRatio_working_3-way'!X11=0),IF(Q11>0,-Q11^(1/3),(-Q11)^(1/3)),'OddsRatio_working_3-way'!AM11-'OddsRatio_working_3-way'!R11/3) -> -0.9345859442 | AT11: =IF(('OddsRatio_working_3-way'!X11=0),IF(Q11>0,-Q11^(1/3),(-Q11)^(1/3)),'OddsRatio_working_3-way'!AN11-'OddsRatio_working_3-way'!R11/3) -> -0.1269512804 | AU11: =IF(('OddsRatio_working_3-way'!X11=0),0,'OddsRatio_working_3-way'!AO11) -> 0 | AV11: =IF(('OddsRatio_working_3-way'!X11=0),0,'OddsRatio_working_3-way'!AP11) -> 0 | AW11: =IF(('OddsRatio_working_3-way'!X11=0),0,'OddsRatio_working_3-way'!AQ11) -> 0
A12: =IF('True_Odds_Calculator_3-way'!A13="","",'True_Odds_Calculator_3-way'!A13) ->  | B12: =IF('True_Odds_Calculator_3-way'!B13="","",'True_Odds_Calculator_3-way'!B13) ->  | C12: =IF('True_Odds_Calculator_3-way'!C13="","",'True_Odds_Calculator_3-way'!C13) ->  | N12: ='OddsRatio_working_3-way'!K12+'OddsRatio_working_3-way'!L12+'OddsRatio_working_3-way'!M12-('OddsRatio_working_3-way'!K12*'OddsRatio_working_3-way'!L12)-('OddsRatio_working_3-way'!K12*'OddsRatio_working_3-way'!M12)-('OddsRatio_working_3-way'!L12*'OddsRatio_working_3-way'!M12)+('OddsRatio_working_3-way'!K12*'OddsRatio_working_3-way'!L12*'OddsRatio_working_3-way'!M12)-1 ->  | O12: =0 -> 0 | P12: =('OddsRatio_working_3-way'!K12*'OddsRatio_working_3-way'!L12)+('OddsRatio_working_3-way'!K12*'OddsRatio_working_3-way'!M12)+('OddsRatio_working_3-way'!L12*'OddsRatio_working_3-way'!M12)-(3*'OddsRatio_working_3-way'!K12*'OddsRatio_working_3-way'!L12*'OddsRatio_working_3-way'!M12) ->  | Q12: =2*'OddsRatio_working_3-way'!K12*'OddsRatio_working_3-way'!L12*'OddsRatio_working_3-way'!M12 ->  | U12: ='OddsRatio_working_3-way'!S12-'OddsRatio_working_3-way'!R12^2/3 ->  | V12: ='OddsRatio_working_3-way'!S12*'OddsRatio_working_3-way'!R12/3-2*'OddsRatio_working_3-way'!R12^3/27-'OddsRatio_working_3-way'!T12 ->  | W12: ='OddsRatio_working_3-way'!V12^2+4*'OddsRatio_working_3-way'!U12^3/27 ->  | X12: =IF('OddsRatio_working_3-way'!W12>0,IF(ABS('OddsRatio_working_3-way'!V12+SQRT('OddsRatio_working_3-way'!W12))/2>0,ABS('OddsRatio_working_3-way'!V12+SQRT('OddsRatio_working_3-way'!W12))/2,ABS('OddsRatio_working_3-way'!V12-SQRT('OddsRatio_working_3-way'!W12))/2),SQRT(-'OddsRatio_working_3-way'!U12^3/27)) ->  | Y12: =IF('OddsRatio_working_3-way'!W12>=0,IF('OddsRatio_working_3-way'!V12+SQRT('OddsRatio_working_3-way'!W12)>0,0,PI()),ACOS('OddsRatio_working_3-way'!V12/(2*'OddsRatio_working_3-way'!X12))) ->  | Z12: ='OddsRatio_working_3-way'!X12^(1/3)*COS('OddsRatio_working_3-way'!Y12/3) ->  | AA12: ='OddsRatio_working_3-way'!X12^(1/3)*COS(('OddsRatio_working_3-way'!Y12+2*PI())/3) ->  | AB12: ='OddsRatio_working_3-way'!X12^(1/3)*COS(('OddsRatio_working_3-way'!Y12+4*PI())/3) ->  | AC12: ='OddsRatio_working_3-way'!X12^(1/3)*SIN('OddsRatio_working_3-way'!Y12/3) ->  | AD12: ='OddsRatio_working_3-way'!X12^(1/3)*SIN(('OddsRatio_working_3-way'!Y12+2*PI())/3) ->  | AE12: ='OddsRatio_working_3-way'!X12^(1/3)*SIN(('OddsRatio_working_3-way'!Y12+4*PI())/3) ->  | AF12: =-'OddsRatio_working_3-way'!U12/(3*'OddsRatio_working_3-way'!X12^(1/3))*COS(('OddsRatio_working_3-way'!Y12)/3) ->  | AG12: =-'OddsRatio_working_3-way'!U12/(3*'OddsRatio_working_3-way'!X12^(1/3))*COS(('OddsRatio_working_3-way'!Y12+2*PI())/3) ->  | AH12: =-'OddsRatio_working_3-way'!U12/(3*'OddsRatio_working_3-way'!X12^(1/3))*COS(('OddsRatio_working_3-way'!Y12+4*PI())/3) ->  | AI12: ='OddsRatio_working_3-way'!U12/(3*'OddsRatio_working_3-way'!X12^(1/3))*SIN(('OddsRatio_working_3-way'!Y12)/3) ->  | AJ12: ='OddsRatio_working_3-way'!U12/(3*'OddsRatio_working_3-way'!X12^(1/3))*SIN(('OddsRatio_working_3-way'!Y12+2*PI())/3) ->  | AK12: ='OddsRatio_working_3-way'!U12/(3*'OddsRatio_working_3-way'!X12^(1/3))*SIN(('OddsRatio_working_3-way'!Y12+4*PI())/3) ->  | AL12: ='OddsRatio_working_3-way'!Z12+'OddsRatio_working_3-way'!AF12 ->  | AM12: ='OddsRatio_working_3-way'!AA12+'OddsRatio_working_3-way'!AG12 ->  | AN12: ='OddsRatio_working_3-way'!AB12+'OddsRatio_working_3-way'!AH12 ->  | AO12: ='OddsRatio_working_3-way'!AC12+'OddsRatio_working_3-way'!AI12 ->  | AP12: ='OddsRatio_working_3-way'!AD12+'OddsRatio_working_3-way'!AJ12 ->  | AQ12: ='OddsRatio_working_3-way'!AE12+'OddsRatio_working_3-way'!AK12 ->  | AR12: =IF(A12="","",IF(('OddsRatio_working_3-way'!X12=0),IF(Q12>0,-Q12^(1/3),(-Q12)^(1/3)),'OddsRatio_working_3-way'!AL12-'OddsRatio_working_3-way'!R12/3)) ->  | AS12: =IF(('OddsRatio_working_3-way'!X12=0),IF(Q12>0,-Q12^(1/3),(-Q12)^(1/3)),'OddsRatio_working_3-way'!AM12-'OddsRatio_working_3-way'!R12/3) ->  | AT12: =IF(('OddsRatio_working_3-way'!X12=0),IF(Q12>0,-Q12^(1/3),(-Q12)^(1/3)),'OddsRatio_working_3-way'!AN12-'OddsRatio_working_3-way'!R12/3) ->  | AU12: =IF(('OddsRatio_working_3-way'!X12=0),0,'OddsRatio_working_3-way'!AO12) ->  | AV12: =IF(('OddsRatio_working_3-way'!X12=0),0,'OddsRatio_working_3-way'!AP12) ->  | AW12: =IF(('OddsRatio_working_3-way'!X12=0),0,'OddsRatio_working_3-way'!AQ12) -> 
A13: =IF('True_Odds_Calculator_3-way'!A14="","",'True_Odds_Calculator_3-way'!A14) ->  | B13: =IF('True_Odds_Calculator_3-way'!B14="","",'True_Odds_Calculator_3-way'!B14) ->  | C13: =IF('True_Odds_Calculator_3-way'!C14="","",'True_Odds_Calculator_3-way'!C14) ->  | N13: ='OddsRatio_working_3-way'!K13+'OddsRatio_working_3-way'!L13+'OddsRatio_working_3-way'!M13-('OddsRatio_working_3-way'!K13*'OddsRatio_working_3-way'!L13)-('OddsRatio_working_3-way'!K13*'OddsRatio_working_3-way'!M13)-('OddsRatio_working_3-way'!L13*'OddsRatio_working_3-way'!M13)+('OddsRatio_working_3-way'!K13*'OddsRatio_working_3-way'!L13*'OddsRatio_working_3-way'!M13)-1 ->  | O13: =0 -> 0 | P13: =('OddsRatio_working_3-way'!K13*'OddsRatio_working_3-way'!L13)+('OddsRatio_working_3-way'!K13*'OddsRatio_working_3-way'!M13)+('OddsRatio_working_3-way'!L13*'OddsRatio_working_3-way'!M13)-(3*'OddsRatio_working_3-way'!K13*'OddsRatio_working_3-way'!L13*'OddsRatio_working_3-way'!M13) ->  | Q13: =2*'OddsRatio_working_3-way'!K13*'OddsRatio_working_3-way'!L13*'OddsRatio_working_3-way'!M13 ->  | U13: ='OddsRatio_working_3-way'!S13-'OddsRatio_working_3-way'!R13^2/3 ->  | V13: ='OddsRatio_working_3-way'!S13*'OddsRatio_working_3-way'!R13/3-2*'OddsRatio_working_3-way'!R13^3/27-'OddsRatio_working_3-way'!T13 ->  | W13: ='OddsRatio_working_3-way'!V13^2+4*'OddsRatio_working_3-way'!U13^3/27 ->  | X13: =IF('OddsRatio_working_3-way'!W13>0,IF(ABS('OddsRatio_working_3-way'!V13+SQRT('OddsRatio_working_3-way'!W13))/2>0,ABS('OddsRatio_working_3-way'!V13+SQRT('OddsRatio_working_3-way'!W13))/2,ABS('OddsRatio_working_3-way'!V13-SQRT('OddsRatio_working_3-way'!W13))/2),SQRT(-'OddsRatio_working_3-way'!U13^3/27)) ->  | Y13: =IF('OddsRatio_working_3-way'!W13>=0,IF('OddsRatio_working_3-way'!V13+SQRT('OddsRatio_working_3-way'!W13)>0,0,PI()),ACOS('OddsRatio_working_3-way'!V13/(2*'OddsRatio_working_3-way'!X13))) ->  | Z13: ='OddsRatio_working_3-way'!X13^(1/3)*COS('OddsRatio_working_3-way'!Y13/3) ->  | AA13: ='OddsRatio_working_3-way'!X13^(1/3)*COS(('OddsRatio_working_3-way'!Y13+2*PI())/3) ->  | AB13: ='OddsRatio_working_3-way'!X13^(1/3)*COS(('OddsRatio_working_3-way'!Y13+4*PI())/3) ->  | AC13: ='OddsRatio_working_3-way'!X13^(1/3)*SIN('OddsRatio_working_3-way'!Y13/3) ->  | AD13: ='OddsRatio_working_3-way'!X13^(1/3)*SIN(('OddsRatio_working_3-way'!Y13+2*PI())/3) ->  | AE13: ='OddsRatio_working_3-way'!X13^(1/3)*SIN(('OddsRatio_working_3-way'!Y13+4*PI())/3) ->  | AF13: =-'OddsRatio_working_3-way'!U13/(3*'OddsRatio_working_3-way'!X13^(1/3))*COS(('OddsRatio_working_3-way'!Y13)/3) ->  | AG13: =-'OddsRatio_working_3-way'!U13/(3*'OddsRatio_working_3-way'!X13^(1/3))*COS(('OddsRatio_working_3-way'!Y13+2*PI())/3) ->  | AH13: =-'OddsRatio_working_3-way'!U13/(3*'OddsRatio_working_3-way'!X13^(1/3))*COS(('OddsRatio_working_3-way'!Y13+4*PI())/3) ->  | AI13: ='OddsRatio_working_3-way'!U13/(3*'OddsRatio_working_3-way'!X13^(1/3))*SIN(('OddsRatio_working_3-way'!Y13)/3) ->  | AJ13: ='OddsRatio_working_3-way'!U13/(3*'OddsRatio_working_3-way'!X13^(1/3))*SIN(('OddsRatio_working_3-way'!Y13+2*PI())/3) ->  | AK13: ='OddsRatio_working_3-way'!U13/(3*'OddsRatio_working_3-way'!X13^(1/3))*SIN(('OddsRatio_working_3-way'!Y13+4*PI())/3) ->  | AL13: ='OddsRatio_working_3-way'!Z13+'OddsRatio_working_3-way'!AF13 ->  | AM13: ='OddsRatio_working_3-way'!AA13+'OddsRatio_working_3-way'!AG13 ->  | AN13: ='OddsRatio_working_3-way'!AB13+'OddsRatio_working_3-way'!AH13 ->  | AO13: ='OddsRatio_working_3-way'!AC13+'OddsRatio_working_3-way'!AI13 ->  | AP13: ='OddsRatio_working_3-way'!AD13+'OddsRatio_working_3-way'!AJ13 ->  | AQ13: ='OddsRatio_working_3-way'!AE13+'OddsRatio_working_3-way'!AK13 ->  | AR13: =IF(A13="","",IF(('OddsRatio_working_3-way'!X13=0),IF(Q13>0,-Q13^(1/3),(-Q13)^(1/3)),'OddsRatio_working_3-way'!AL13-'OddsRatio_working_3-way'!R13/3)) ->  | AS13: =IF(('OddsRatio_working_3-way'!X13=0),IF(Q13>0,-Q13^(1/3),(-Q13)^(1/3)),'OddsRatio_working_3-way'!AM13-'OddsRatio_working_3-way'!R13/3) ->  | AT13: =IF(('OddsRatio_working_3-way'!X13=0),IF(Q13>0,-Q13^(1/3),(-Q13)^(1/3)),'OddsRatio_working_3-way'!AN13-'OddsRatio_working_3-way'!R13/3) ->  | AU13: =IF(('OddsRatio_working_3-way'!X13=0),0,'OddsRatio_working_3-way'!AO13) ->  | AV13: =IF(('OddsRatio_working_3-way'!X13=0),0,'OddsRatio_working_3-way'!AP13) ->  | AW13: =IF(('OddsRatio_working_3-way'!X13=0),0,'OddsRatio_working_3-way'!AQ13) -> 
A14: =IF('True_Odds_Calculator_3-way'!A15="","",'True_Odds_Calculator_3-way'!A15) ->  | B14: =IF('True_Odds_Calculator_3-way'!B15="","",'True_Odds_Calculator_3-way'!B15) ->  | C14: =IF('True_Odds_Calculator_3-way'!C15="","",'True_Odds_Calculator_3-way'!C15) ->  | N14: ='OddsRatio_working_3-way'!K14+'OddsRatio_working_3-way'!L14+'OddsRatio_working_3-way'!M14-('OddsRatio_working_3-way'!K14*'OddsRatio_working_3-way'!L14)-('OddsRatio_working_3-way'!K14*'OddsRatio_working_3-way'!M14)-('OddsRatio_working_3-way'!L14*'OddsRatio_working_3-way'!M14)+('OddsRatio_working_3-way'!K14*'OddsRatio_working_3-way'!L14*'OddsRatio_working_3-way'!M14)-1 ->  | O14: =0 -> 0 | P14: =('OddsRatio_working_3-way'!K14*'OddsRatio_working_3-way'!L14)+('OddsRatio_working_3-way'!K14*'OddsRatio_working_3-way'!M14)+('OddsRatio_working_3-way'!L14*'OddsRatio_working_3-way'!M14)-(3*'OddsRatio_working_3-way'!K14*'OddsRatio_working_3-way'!L14*'OddsRatio_working_3-way'!M14) ->  | Q14: =2*'OddsRatio_working_3-way'!K14*'OddsRatio_working_3-way'!L14*'OddsRatio_working_3-way'!M14 ->  | U14: ='OddsRatio_working_3-way'!S14-'OddsRatio_working_3-way'!R14^2/3 ->  | V14: ='OddsRatio_working_3-way'!S14*'OddsRatio_working_3-way'!R14/3-2*'OddsRatio_working_3-way'!R14^3/27-'OddsRatio_working_3-way'!T14 ->  | W14: ='OddsRatio_working_3-way'!V14^2+4*'OddsRatio_working_3-way'!U14^3/27 ->  | X14: =IF('OddsRatio_working_3-way'!W14>0,IF(ABS('OddsRatio_working_3-way'!V14+SQRT('OddsRatio_working_3-way'!W14))/2>0,ABS('OddsRatio_working_3-way'!V14+SQRT('OddsRatio_working_3-way'!W14))/2,ABS('OddsRatio_working_3-way'!V14-SQRT('OddsRatio_working_3-way'!W14))/2),SQRT(-'OddsRatio_working_3-way'!U14^3/27)) ->  | Y14: =IF('OddsRatio_working_3-way'!W14>=0,IF('OddsRatio_working_3-way'!V14+SQRT('OddsRatio_working_3-way'!W14)>0,0,PI()),ACOS('OddsRatio_working_3-way'!V14/(2*'OddsRatio_working_3-way'!X14))) ->  | Z14: ='OddsRatio_working_3-way'!X14^(1/3)*COS('OddsRatio_working_3-way'!Y14/3) ->  | AA14: ='OddsRatio_working_3-way'!X14^(1/3)*COS(('OddsRatio_working_3-way'!Y14+2*PI())/3) ->  | AB14: ='OddsRatio_working_3-way'!X14^(1/3)*COS(('OddsRatio_working_3-way'!Y14+4*PI())/3) ->  | AC14: ='OddsRatio_working_3-way'!X14^(1/3)*SIN('OddsRatio_working_3-way'!Y14/3) ->  | AD14: ='OddsRatio_working_3-way'!X14^(1/3)*SIN(('OddsRatio_working_3-way'!Y14+2*PI())/3) ->  | AE14: ='OddsRatio_working_3-way'!X14^(1/3)*SIN(('OddsRatio_working_3-way'!Y14+4*PI())/3) ->  | AF14: =-'OddsRatio_working_3-way'!U14/(3*'OddsRatio_working_3-way'!X14^(1/3))*COS(('OddsRatio_working_3-way'!Y14)/3) ->  | AG14: =-'OddsRatio_working_3-way'!U14/(3*'OddsRatio_working_3-way'!X14^(1/3))*COS(('OddsRatio_working_3-way'!Y14+2*PI())/3) ->  | AH14: =-'OddsRatio_working_3-way'!U14/(3*'OddsRatio_working_3-way'!X14^(1/3))*COS(('OddsRatio_working_3-way'!Y14+4*PI())/3) ->  | AI14: ='OddsRatio_working_3-way'!U14/(3*'OddsRatio_working_3-way'!X14^(1/3))*SIN(('OddsRatio_working_3-way'!Y14)/3) ->  | AJ14: ='OddsRatio_working_3-way'!U14/(3*'OddsRatio_working_3-way'!X14^(1/3))*SIN(('OddsRatio_working_3-way'!Y14+2*PI())/3) ->  | AK14: ='OddsRatio_working_3-way'!U14/(3*'OddsRatio_working_3-way'!X14^(1/3))*SIN(('OddsRatio_working_3-way'!Y14+4*PI())/3) ->  | AL14: ='OddsRatio_working_3-way'!Z14+'OddsRatio_working_3-way'!AF14 ->  | AM14: ='OddsRatio_working_3-way'!AA14+'OddsRatio_working_3-way'!AG14 ->  | AN14: ='OddsRatio_working_3-way'!AB14+'OddsRatio_working_3-way'!AH14 ->  | AO14: ='OddsRatio_working_3-way'!AC14+'OddsRatio_working_3-way'!AI14 ->  | AP14: ='OddsRatio_working_3-way'!AD14+'OddsRatio_working_3-way'!AJ14 ->  | AQ14: ='OddsRatio_working_3-way'!AE14+'OddsRatio_working_3-way'!AK14 ->  | AR14: =IF(A14="","",IF(('OddsRatio_working_3-way'!X14=0),IF(Q14>0,-Q14^(1/3),(-Q14)^(1/3)),'OddsRatio_working_3-way'!AL14-'OddsRatio_working_3-way'!R14/3)) ->  | AS14: =IF(('OddsRatio_working_3-way'!X14=0),IF(Q14>0,-Q14^(1/3),(-Q14)^(1/3)),'OddsRatio_working_3-way'!AM14-'OddsRatio_working_3-way'!R14/3) ->  | AT14: =IF(('OddsRatio_working_3-way'!X14=0),IF(Q14>0,-Q14^(1/3),(-Q14)^(1/3)),'OddsRatio_working_3-way'!AN14-'OddsRatio_working_3-way'!R14/3) ->  | AU14: =IF(('OddsRatio_working_3-way'!X14=0),0,'OddsRatio_working_3-way'!AO14) ->  | AV14: =IF(('OddsRatio_working_3-way'!X14=0),0,'OddsRatio_working_3-way'!AP14) ->  | AW14: =IF(('OddsRatio_working_3-way'!X14=0),0,'OddsRatio_working_3-way'!AQ14) -> 
A15: =IF('True_Odds_Calculator_3-way'!A16="","",'True_Odds_Calculator_3-way'!A16) ->  | B15: =IF('True_Odds_Calculator_3-way'!B16="","",'True_Odds_Calculator_3-way'!B16) ->  | C15: =IF('True_Odds_Calculator_3-way'!C16="","",'True_Odds_Calculator_3-way'!C16) ->  | N15: ='OddsRatio_working_3-way'!K15+'OddsRatio_working_3-way'!L15+'OddsRatio_working_3-way'!M15-('OddsRatio_working_3-way'!K15*'OddsRatio_working_3-way'!L15)-('OddsRatio_working_3-way'!K15*'OddsRatio_working_3-way'!M15)-('OddsRatio_working_3-way'!L15*'OddsRatio_working_3-way'!M15)+('OddsRatio_working_3-way'!K15*'OddsRatio_working_3-way'!L15*'OddsRatio_working_3-way'!M15)-1 ->  | O15: =0 -> 0 | P15: =('OddsRatio_working_3-way'!K15*'OddsRatio_working_3-way'!L15)+('OddsRatio_working_3-way'!K15*'OddsRatio_working_3-way'!M15)+('OddsRatio_working_3-way'!L15*'OddsRatio_working_3-way'!M15)-(3*'OddsRatio_working_3-way'!K15*'OddsRatio_working_3-way'!L15*'OddsRatio_working_3-way'!M15) ->  | Q15: =2*'OddsRatio_working_3-way'!K15*'OddsRatio_working_3-way'!L15*'OddsRatio_working_3-way'!M15 ->  | U15: ='OddsRatio_working_3-way'!S15-'OddsRatio_working_3-way'!R15^2/3 ->  | V15: ='OddsRatio_working_3-way'!S15*'OddsRatio_working_3-way'!R15/3-2*'OddsRatio_working_3-way'!R15^3/27-'OddsRatio_working_3-way'!T15 ->  | W15: ='OddsRatio_working_3-way'!V15^2+4*'OddsRatio_working_3-way'!U15^3/27 ->  | X15: =IF('OddsRatio_working_3-way'!W15>0,IF(ABS('OddsRatio_working_3-way'!V15+SQRT('OddsRatio_working_3-way'!W15))/2>0,ABS('OddsRatio_working_3-way'!V15+SQRT('OddsRatio_working_3-way'!W15))/2,ABS('OddsRatio_working_3-way'!V15-SQRT('OddsRatio_working_3-way'!W15))/2),SQRT(-'OddsRatio_working_3-way'!U15^3/27)) ->  | Y15: =IF('OddsRatio_working_3-way'!W15>=0,IF('OddsRatio_working_3-way'!V15+SQRT('OddsRatio_working_3-way'!W15)>0,0,PI()),ACOS('OddsRatio_working_3-way'!V15/(2*'OddsRatio_working_3-way'!X15))) ->  | Z15: ='OddsRatio_working_3-way'!X15^(1/3)*COS('OddsRatio_working_3-way'!Y15/3) ->  | AA15: ='OddsRatio_working_3-way'!X15^(1/3)*COS(('OddsRatio_working_3-way'!Y15+2*PI())/3) ->  | AB15: ='OddsRatio_working_3-way'!X15^(1/3)*COS(('OddsRatio_working_3-way'!Y15+4*PI())/3) ->  | AC15: ='OddsRatio_working_3-way'!X15^(1/3)*SIN('OddsRatio_working_3-way'!Y15/3) ->  | AD15: ='OddsRatio_working_3-way'!X15^(1/3)*SIN(('OddsRatio_working_3-way'!Y15+2*PI())/3) ->  | AE15: ='OddsRatio_working_3-way'!X15^(1/3)*SIN(('OddsRatio_working_3-way'!Y15+4*PI())/3) ->  | AF15: =-'OddsRatio_working_3-way'!U15/(3*'OddsRatio_working_3-way'!X15^(1/3))*COS(('OddsRatio_working_3-way'!Y15)/3) ->  | AG15: =-'OddsRatio_working_3-way'!U15/(3*'OddsRatio_working_3-way'!X15^(1/3))*COS(('OddsRatio_working_3-way'!Y15+2*PI())/3) ->  | AH15: =-'OddsRatio_working_3-way'!U15/(3*'OddsRatio_working_3-way'!X15^(1/3))*COS(('OddsRatio_working_3-way'!Y15+4*PI())/3) ->  | AI15: ='OddsRatio_working_3-way'!U15/(3*'OddsRatio_working_3-way'!X15^(1/3))*SIN(('OddsRatio_working_3-way'!Y15)/3) ->  | AJ15: ='OddsRatio_working_3-way'!U15/(3*'OddsRatio_working_3-way'!X15^(1/3))*SIN(('OddsRatio_working_3-way'!Y15+2*PI())/3) ->  | AK15: ='OddsRatio_working_3-way'!U15/(3*'OddsRatio_working_3-way'!X15^(1/3))*SIN(('OddsRatio_working_3-way'!Y15+4*PI())/3) ->  | AL15: ='OddsRatio_working_3-way'!Z15+'OddsRatio_working_3-way'!AF15 ->  | AM15: ='OddsRatio_working_3-way'!AA15+'OddsRatio_working_3-way'!AG15 ->  | AN15: ='OddsRatio_working_3-way'!AB15+'OddsRatio_working_3-way'!AH15 ->  | AO15: ='OddsRatio_working_3-way'!AC15+'OddsRatio_working_3-way'!AI15 ->  | AP15: ='OddsRatio_working_3-way'!AD15+'OddsRatio_working_3-way'!AJ15 ->  | AQ15: ='OddsRatio_working_3-way'!AE15+'OddsRatio_working_3-way'!AK15 ->  | AR15: =IF(A15="","",IF(('OddsRatio_working_3-way'!X15=0),IF(Q15>0,-Q15^(1/3),(-Q15)^(1/3)),'OddsRatio_working_3-way'!AL15-'OddsRatio_working_3-way'!R15/3)) ->  | AS15: =IF(('OddsRatio_working_3-way'!X15=0),IF(Q15>0,-Q15^(1/3),(-Q15)^(1/3)),'OddsRatio_working_3-way'!AM15-'OddsRatio_working_3-way'!R15/3) ->  | AT15: =IF(('OddsRatio_working_3-way'!X15=0),IF(Q15>0,-Q15^(1/3),(-Q15)^(1/3)),'OddsRatio_working_3-way'!AN15-'OddsRatio_working_3-way'!R15/3) ->  | AU15: =IF(('OddsRatio_working_3-way'!X15=0),0,'OddsRatio_working_3-way'!AO15) ->  | AV15: =IF(('OddsRatio_working_3-way'!X15=0),0,'OddsRatio_working_3-way'!AP15) ->  | AW15: =IF(('OddsRatio_working_3-way'!X15=0),0,'OddsRatio_working_3-way'!AQ15) -> 
A16: =IF('True_Odds_Calculator_3-way'!A17="","",'True_Odds_Calculator_3-way'!A17) ->  | B16: =IF('True_Odds_Calculator_3-way'!B17="","",'True_Odds_Calculator_3-way'!B17) ->  | C16: =IF('True_Odds_Calculator_3-way'!C17="","",'True_Odds_Calculator_3-way'!C17) ->  | N16: ='OddsRatio_working_3-way'!K16+'OddsRatio_working_3-way'!L16+'OddsRatio_working_3-way'!M16-('OddsRatio_working_3-way'!K16*'OddsRatio_working_3-way'!L16)-('OddsRatio_working_3-way'!K16*'OddsRatio_working_3-way'!M16)-('OddsRatio_working_3-way'!L16*'OddsRatio_working_3-way'!M16)+('OddsRatio_working_3-way'!K16*'OddsRatio_working_3-way'!L16*'OddsRatio_working_3-way'!M16)-1 ->  | O16: =0 -> 0 | P16: =('OddsRatio_working_3-way'!K16*'OddsRatio_working_3-way'!L16)+('OddsRatio_working_3-way'!K16*'OddsRatio_working_3-way'!M16)+('OddsRatio_working_3-way'!L16*'OddsRatio_working_3-way'!M16)-(3*'OddsRatio_working_3-way'!K16*'OddsRatio_working_3-way'!L16*'OddsRatio_working_3-way'!M16) ->  | Q16: =2*'OddsRatio_working_3-way'!K16*'OddsRatio_working_3-way'!L16*'OddsRatio_working_3-way'!M16 ->  | U16: ='OddsRatio_working_3-way'!S16-'OddsRatio_working_3-way'!R16^2/3 ->  | V16: ='OddsRatio_working_3-way'!S16*'OddsRatio_working_3-way'!R16/3-2*'OddsRatio_working_3-way'!R16^3/27-'OddsRatio_working_3-way'!T16 ->  | W16: ='OddsRatio_working_3-way'!V16^2+4*'OddsRatio_working_3-way'!U16^3/27 ->  | X16: =IF('OddsRatio_working_3-way'!W16>0,IF(ABS('OddsRatio_working_3-way'!V16+SQRT('OddsRatio_working_3-way'!W16))/2>0,ABS('OddsRatio_working_3-way'!V16+SQRT('OddsRatio_working_3-way'!W16))/2,ABS('OddsRatio_working_3-way'!V16-SQRT('OddsRatio_working_3-way'!W16))/2),SQRT(-'OddsRatio_working_3-way'!U16^3/27)) ->  | Y16: =IF('OddsRatio_working_3-way'!W16>=0,IF('OddsRatio_working_3-way'!V16+SQRT('OddsRatio_working_3-way'!W16)>0,0,PI()),ACOS('OddsRatio_working_3-way'!V16/(2*'OddsRatio_working_3-way'!X16))) ->  | Z16: ='OddsRatio_working_3-way'!X16^(1/3)*COS('OddsRatio_working_3-way'!Y16/3) ->  | AA16: ='OddsRatio_working_3-way'!X16^(1/3)*COS(('OddsRatio_working_3-way'!Y16+2*PI())/3) ->  | AB16: ='OddsRatio_working_3-way'!X16^(1/3)*COS(('OddsRatio_working_3-way'!Y16+4*PI())/3) ->  | AC16: ='OddsRatio_working_3-way'!X16^(1/3)*SIN('OddsRatio_working_3-way'!Y16/3) ->  | AD16: ='OddsRatio_working_3-way'!X16^(1/3)*SIN(('OddsRatio_working_3-way'!Y16+2*PI())/3) ->  | AE16: ='OddsRatio_working_3-way'!X16^(1/3)*SIN(('OddsRatio_working_3-way'!Y16+4*PI())/3) ->  | AF16: =-'OddsRatio_working_3-way'!U16/(3*'OddsRatio_working_3-way'!X16^(1/3))*COS(('OddsRatio_working_3-way'!Y16)/3) ->  | AG16: =-'OddsRatio_working_3-way'!U16/(3*'OddsRatio_working_3-way'!X16^(1/3))*COS(('OddsRatio_working_3-way'!Y16+2*PI())/3) ->  | AH16: =-'OddsRatio_working_3-way'!U16/(3*'OddsRatio_working_3-way'!X16^(1/3))*COS(('OddsRatio_working_3-way'!Y16+4*PI())/3) ->  | AI16: ='OddsRatio_working_3-way'!U16/(3*'OddsRatio_working_3-way'!X16^(1/3))*SIN(('OddsRatio_working_3-way'!Y16)/3) ->  | AJ16: ='OddsRatio_working_3-way'!U16/(3*'OddsRatio_working_3-way'!X16^(1/3))*SIN(('OddsRatio_working_3-way'!Y16+2*PI())/3) ->  | AK16: ='OddsRatio_working_3-way'!U16/(3*'OddsRatio_working_3-way'!X16^(1/3))*SIN(('OddsRatio_working_3-way'!Y16+4*PI())/3) ->  | AL16: ='OddsRatio_working_3-way'!Z16+'OddsRatio_working_3-way'!AF16 ->  | AM16: ='OddsRatio_working_3-way'!AA16+'OddsRatio_working_3-way'!AG16 ->  | AN16: ='OddsRatio_working_3-way'!AB16+'OddsRatio_working_3-way'!AH16 ->  | AO16: ='OddsRatio_working_3-way'!AC16+'OddsRatio_working_3-way'!AI16 ->  | AP16: ='OddsRatio_working_3-way'!AD16+'OddsRatio_working_3-way'!AJ16 ->  | AQ16: ='OddsRatio_working_3-way'!AE16+'OddsRatio_working_3-way'!AK16 ->  | AR16: =IF(A16="","",IF(('OddsRatio_working_3-way'!X16=0),IF(Q16>0,-Q16^(1/3),(-Q16)^(1/3)),'OddsRatio_working_3-way'!AL16-'OddsRatio_working_3-way'!R16/3)) ->  | AS16: =IF(('OddsRatio_working_3-way'!X16=0),IF(Q16>0,-Q16^(1/3),(-Q16)^(1/3)),'OddsRatio_working_3-way'!AM16-'OddsRatio_working_3-way'!R16/3) ->  | AT16: =IF(('OddsRatio_working_3-way'!X16=0),IF(Q16>0,-Q16^(1/3),(-Q16)^(1/3)),'OddsRatio_working_3-way'!AN16-'OddsRatio_working_3-way'!R16/3) ->  | AU16: =IF(('OddsRatio_working_3-way'!X16=0),0,'OddsRatio_working_3-way'!AO16) ->  | AV16: =IF(('OddsRatio_working_3-way'!X16=0),0,'OddsRatio_working_3-way'!AP16) ->  | AW16: =IF(('OddsRatio_working_3-way'!X16=0),0,'OddsRatio_working_3-way'!AQ16) -> 
A17: =IF('True_Odds_Calculator_3-way'!A18="","",'True_Odds_Calculator_3-way'!A18) ->  | B17: =IF('True_Odds_Calculator_3-way'!B18="","",'True_Odds_Calculator_3-way'!B18) ->  | C17: =IF('True_Odds_Calculator_3-way'!C18="","",'True_Odds_Calculator_3-way'!C18) ->  | N17: ='OddsRatio_working_3-way'!K17+'OddsRatio_working_3-way'!L17+'OddsRatio_working_3-way'!M17-('OddsRatio_working_3-way'!K17*'OddsRatio_working_3-way'!L17)-('OddsRatio_working_3-way'!K17*'OddsRatio_working_3-way'!M17)-('OddsRatio_working_3-way'!L17*'OddsRatio_working_3-way'!M17)+('OddsRatio_working_3-way'!K17*'OddsRatio_working_3-way'!L17*'OddsRatio_working_3-way'!M17)-1 ->  | O17: =0 -> 0 | P17: =('OddsRatio_working_3-way'!K17*'OddsRatio_working_3-way'!L17)+('OddsRatio_working_3-way'!K17*'OddsRatio_working_3-way'!M17)+('OddsRatio_working_3-way'!L17*'OddsRatio_working_3-way'!M17)-(3*'OddsRatio_working_3-way'!K17*'OddsRatio_working_3-way'!L17*'OddsRatio_working_3-way'!M17) ->  | Q17: =2*'OddsRatio_working_3-way'!K17*'OddsRatio_working_3-way'!L17*'OddsRatio_working_3-way'!M17 ->  | U17: ='OddsRatio_working_3-way'!S17-'OddsRatio_working_3-way'!R17^2/3 ->  | V17: ='OddsRatio_working_3-way'!S17*'OddsRatio_working_3-way'!R17/3-2*'OddsRatio_working_3-way'!R17^3/27-'OddsRatio_working_3-way'!T17 ->  | W17: ='OddsRatio_working_3-way'!V17^2+4*'OddsRatio_working_3-way'!U17^3/27 ->  | X17: =IF('OddsRatio_working_3-way'!W17>0,IF(ABS('OddsRatio_working_3-way'!V17+SQRT('OddsRatio_working_3-way'!W17))/2>0,ABS('OddsRatio_working_3-way'!V17+SQRT('OddsRatio_working_3-way'!W17))/2,ABS('OddsRatio_working_3-way'!V17-SQRT('OddsRatio_working_3-way'!W17))/2),SQRT(-'OddsRatio_working_3-way'!U17^3/27)) ->  | Y17: =IF('OddsRatio_working_3-way'!W17>=0,IF('OddsRatio_working_3-way'!V17+SQRT('OddsRatio_working_3-way'!W17)>0,0,PI()),ACOS('OddsRatio_working_3-way'!V17/(2*'OddsRatio_working_3-way'!X17))) ->  | Z17: ='OddsRatio_working_3-way'!X17^(1/3)*COS('OddsRatio_working_3-way'!Y17/3) ->  | AA17: ='OddsRatio_working_3-way'!X17^(1/3)*COS(('OddsRatio_working_3-way'!Y17+2*PI())/3) ->  | AB17: ='OddsRatio_working_3-way'!X17^(1/3)*COS(('OddsRatio_working_3-way'!Y17+4*PI())/3) ->  | AC17: ='OddsRatio_working_3-way'!X17^(1/3)*SIN('OddsRatio_working_3-way'!Y17/3) ->  | AD17: ='OddsRatio_working_3-way'!X17^(1/3)*SIN(('OddsRatio_working_3-way'!Y17+2*PI())/3) ->  | AE17: ='OddsRatio_working_3-way'!X17^(1/3)*SIN(('OddsRatio_working_3-way'!Y17+4*PI())/3) ->  | AF17: =-'OddsRatio_working_3-way'!U17/(3*'OddsRatio_working_3-way'!X17^(1/3))*COS(('OddsRatio_working_3-way'!Y17)/3) ->  | AG17: =-'OddsRatio_working_3-way'!U17/(3*'OddsRatio_working_3-way'!X17^(1/3))*COS(('OddsRatio_working_3-way'!Y17+2*PI())/3) ->  | AH17: =-'OddsRatio_working_3-way'!U17/(3*'OddsRatio_working_3-way'!X17^(1/3))*COS(('OddsRatio_working_3-way'!Y17+4*PI())/3) ->  | AI17: ='OddsRatio_working_3-way'!U17/(3*'OddsRatio_working_3-way'!X17^(1/3))*SIN(('OddsRatio_working_3-way'!Y17)/3) ->  | AJ17: ='OddsRatio_working_3-way'!U17/(3*'OddsRatio_working_3-way'!X17^(1/3))*SIN(('OddsRatio_working_3-way'!Y17+2*PI())/3) ->  | AK17: ='OddsRatio_working_3-way'!U17/(3*'OddsRatio_working_3-way'!X17^(1/3))*SIN(('OddsRatio_working_3-way'!Y17+4*PI())/3) ->  | AL17: ='OddsRatio_working_3-way'!Z17+'OddsRatio_working_3-way'!AF17 ->  | AM17: ='OddsRatio_working_3-way'!AA17+'OddsRatio_working_3-way'!AG17 ->  | AN17: ='OddsRatio_working_3-way'!AB17+'OddsRatio_working_3-way'!AH17 ->  | AO17: ='OddsRatio_working_3-way'!AC17+'OddsRatio_working_3-way'!AI17 ->  | AP17: ='OddsRatio_working_3-way'!AD17+'OddsRatio_working_3-way'!AJ17 ->  | AQ17: ='OddsRatio_working_3-way'!AE17+'OddsRatio_working_3-way'!AK17 ->  | AR17: =IF(A17="","",IF(('OddsRatio_working_3-way'!X17=0),IF(Q17>0,-Q17^(1/3),(-Q17)^(1/3)),'OddsRatio_working_3-way'!AL17-'OddsRatio_working_3-way'!R17/3)) ->  | AS17: =IF(('OddsRatio_working_3-way'!X17=0),IF(Q17>0,-Q17^(1/3),(-Q17)^(1/3)),'OddsRatio_working_3-way'!AM17-'OddsRatio_working_3-way'!R17/3) ->  | AT17: =IF(('OddsRatio_working_3-way'!X17=0),IF(Q17>0,-Q17^(1/3),(-Q17)^(1/3)),'OddsRatio_working_3-way'!AN17-'OddsRatio_working_3-way'!R17/3) ->  | AU17: =IF(('OddsRatio_working_3-way'!X17=0),0,'OddsRatio_working_3-way'!AO17) ->  | AV17: =IF(('OddsRatio_working_3-way'!X17=0),0,'OddsRatio_working_3-way'!AP17) ->  | AW17: =IF(('OddsRatio_working_3-way'!X17=0),0,'OddsRatio_working_3-way'!AQ17) -> 
A18: =IF('True_Odds_Calculator_3-way'!A19="","",'True_Odds_Calculator_3-way'!A19) ->  | B18: =IF('True_Odds_Calculator_3-way'!B19="","",'True_Odds_Calculator_3-way'!B19) ->  | C18: =IF('True_Odds_Calculator_3-way'!C19="","",'True_Odds_Calculator_3-way'!C19) ->  | N18: ='OddsRatio_working_3-way'!K18+'OddsRatio_working_3-way'!L18+'OddsRatio_working_3-way'!M18-('OddsRatio_working_3-way'!K18*'OddsRatio_working_3-way'!L18)-('OddsRatio_working_3-way'!K18*'OddsRatio_working_3-way'!M18)-('OddsRatio_working_3-way'!L18*'OddsRatio_working_3-way'!M18)+('OddsRatio_working_3-way'!K18*'OddsRatio_working_3-way'!L18*'OddsRatio_working_3-way'!M18)-1 ->  | O18: =0 -> 0 | P18: =('OddsRatio_working_3-way'!K18*'OddsRatio_working_3-way'!L18)+('OddsRatio_working_3-way'!K18*'OddsRatio_working_3-way'!M18)+('OddsRatio_working_3-way'!L18*'OddsRatio_working_3-way'!M18)-(3*'OddsRatio_working_3-way'!K18*'OddsRatio_working_3-way'!L18*'OddsRatio_working_3-way'!M18) ->  | Q18: =2*'OddsRatio_working_3-way'!K18*'OddsRatio_working_3-way'!L18*'OddsRatio_working_3-way'!M18 ->  | U18: ='OddsRatio_working_3-way'!S18-'OddsRatio_working_3-way'!R18^2/3 ->  | V18: ='OddsRatio_working_3-way'!S18*'OddsRatio_working_3-way'!R18/3-2*'OddsRatio_working_3-way'!R18^3/27-'OddsRatio_working_3-way'!T18 ->  | W18: ='OddsRatio_working_3-way'!V18^2+4*'OddsRatio_working_3-way'!U18^3/27 ->  | X18: =IF('OddsRatio_working_3-way'!W18>0,IF(ABS('OddsRatio_working_3-way'!V18+SQRT('OddsRatio_working_3-way'!W18))/2>0,ABS('OddsRatio_working_3-way'!V18+SQRT('OddsRatio_working_3-way'!W18))/2,ABS('OddsRatio_working_3-way'!V18-SQRT('OddsRatio_working_3-way'!W18))/2),SQRT(-'OddsRatio_working_3-way'!U18^3/27)) ->  | Y18: =IF('OddsRatio_working_3-way'!W18>=0,IF('OddsRatio_working_3-way'!V18+SQRT('OddsRatio_working_3-way'!W18)>0,0,PI()),ACOS('OddsRatio_working_3-way'!V18/(2*'OddsRatio_working_3-way'!X18))) ->  | Z18: ='OddsRatio_working_3-way'!X18^(1/3)*COS('OddsRatio_working_3-way'!Y18/3) ->  | AA18: ='OddsRatio_working_3-way'!X18^(1/3)*COS(('OddsRatio_working_3-way'!Y18+2*PI())/3) ->  | AB18: ='OddsRatio_working_3-way'!X18^(1/3)*COS(('OddsRatio_working_3-way'!Y18+4*PI())/3) ->  | AC18: ='OddsRatio_working_3-way'!X18^(1/3)*SIN('OddsRatio_working_3-way'!Y18/3) ->  | AD18: ='OddsRatio_working_3-way'!X18^(1/3)*SIN(('OddsRatio_working_3-way'!Y18+2*PI())/3) ->  | AE18: ='OddsRatio_working_3-way'!X18^(1/3)*SIN(('OddsRatio_working_3-way'!Y18+4*PI())/3) ->  | AF18: =-'OddsRatio_working_3-way'!U18/(3*'OddsRatio_working_3-way'!X18^(1/3))*COS(('OddsRatio_working_3-way'!Y18)/3) ->  | AG18: =-'OddsRatio_working_3-way'!U18/(3*'OddsRatio_working_3-way'!X18^(1/3))*COS(('OddsRatio_working_3-way'!Y18+2*PI())/3) ->  | AH18: =-'OddsRatio_working_3-way'!U18/(3*'OddsRatio_working_3-way'!X18^(1/3))*COS(('OddsRatio_working_3-way'!Y18+4*PI())/3) ->  | AI18: ='OddsRatio_working_3-way'!U18/(3*'OddsRatio_working_3-way'!X18^(1/3))*SIN(('OddsRatio_working_3-way'!Y18)/3) ->  | AJ18: ='OddsRatio_working_3-way'!U18/(3*'OddsRatio_working_3-way'!X18^(1/3))*SIN(('OddsRatio_working_3-way'!Y18+2*PI())/3) ->  | AK18: ='OddsRatio_working_3-way'!U18/(3*'OddsRatio_working_3-way'!X18^(1/3))*SIN(('OddsRatio_working_3-way'!Y18+4*PI())/3) ->  | AL18: ='OddsRatio_working_3-way'!Z18+'OddsRatio_working_3-way'!AF18 ->  | AM18: ='OddsRatio_working_3-way'!AA18+'OddsRatio_working_3-way'!AG18 ->  | AN18: ='OddsRatio_working_3-way'!AB18+'OddsRatio_working_3-way'!AH18 ->  | AO18: ='OddsRatio_working_3-way'!AC18+'OddsRatio_working_3-way'!AI18 ->  | AP18: ='OddsRatio_working_3-way'!AD18+'OddsRatio_working_3-way'!AJ18 ->  | AQ18: ='OddsRatio_working_3-way'!AE18+'OddsRatio_working_3-way'!AK18 ->  | AR18: =IF(A18="","",IF(('OddsRatio_working_3-way'!X18=0),IF(Q18>0,-Q18^(1/3),(-Q18)^(1/3)),'OddsRatio_working_3-way'!AL18-'OddsRatio_working_3-way'!R18/3)) ->  | AS18: =IF(('OddsRatio_working_3-way'!X18=0),IF(Q18>0,-Q18^(1/3),(-Q18)^(1/3)),'OddsRatio_working_3-way'!AM18-'OddsRatio_working_3-way'!R18/3) ->  | AT18: =IF(('OddsRatio_working_3-way'!X18=0),IF(Q18>0,-Q18^(1/3),(-Q18)^(1/3)),'OddsRatio_working_3-way'!AN18-'OddsRatio_working_3-way'!R18/3) ->  | AU18: =IF(('OddsRatio_working_3-way'!X18=0),0,'OddsRatio_working_3-way'!AO18) ->  | AV18: =IF(('OddsRatio_working_3-way'!X18=0),0,'OddsRatio_working_3-way'!AP18) ->  | AW18: =IF(('OddsRatio_working_3-way'!X18=0),0,'OddsRatio_working_3-way'!AQ18) -> 
A19: =IF('True_Odds_Calculator_3-way'!A20="","",'True_Odds_Calculator_3-way'!A20) ->  | B19: =IF('True_Odds_Calculator_3-way'!B20="","",'True_Odds_Calculator_3-way'!B20) ->  | C19: =IF('True_Odds_Calculator_3-way'!C20="","",'True_Odds_Calculator_3-way'!C20) ->  | N19: ='OddsRatio_working_3-way'!K19+'OddsRatio_working_3-way'!L19+'OddsRatio_working_3-way'!M19-('OddsRatio_working_3-way'!K19*'OddsRatio_working_3-way'!L19)-('OddsRatio_working_3-way'!K19*'OddsRatio_working_3-way'!M19)-('OddsRatio_working_3-way'!L19*'OddsRatio_working_3-way'!M19)+('OddsRatio_working_3-way'!K19*'OddsRatio_working_3-way'!L19*'OddsRatio_working_3-way'!M19)-1 ->  | O19: =0 -> 0 | P19: =('OddsRatio_working_3-way'!K19*'OddsRatio_working_3-way'!L19)+('OddsRatio_working_3-way'!K19*'OddsRatio_working_3-way'!M19)+('OddsRatio_working_3-way'!L19*'OddsRatio_working_3-way'!M19)-(3*'OddsRatio_working_3-way'!K19*'OddsRatio_working_3-way'!L19*'OddsRatio_working_3-way'!M19) ->  | Q19: =2*'OddsRatio_working_3-way'!K19*'OddsRatio_working_3-way'!L19*'OddsRatio_working_3-way'!M19 ->  | U19: ='OddsRatio_working_3-way'!S19-'OddsRatio_working_3-way'!R19^2/3 ->  | V19: ='OddsRatio_working_3-way'!S19*'OddsRatio_working_3-way'!R19/3-2*'OddsRatio_working_3-way'!R19^3/27-'OddsRatio_working_3-way'!T19 ->  | W19: ='OddsRatio_working_3-way'!V19^2+4*'OddsRatio_working_3-way'!U19^3/27 ->  | X19: =IF('OddsRatio_working_3-way'!W19>0,IF(ABS('OddsRatio_working_3-way'!V19+SQRT('OddsRatio_working_3-way'!W19))/2>0,ABS('OddsRatio_working_3-way'!V19+SQRT('OddsRatio_working_3-way'!W19))/2,ABS('OddsRatio_working_3-way'!V19-SQRT('OddsRatio_working_3-way'!W19))/2),SQRT(-'OddsRatio_working_3-way'!U19^3/27)) ->  | Y19: =IF('OddsRatio_working_3-way'!W19>=0,IF('OddsRatio_working_3-way'!V19+SQRT('OddsRatio_working_3-way'!W19)>0,0,PI()),ACOS('OddsRatio_working_3-way'!V19/(2*'OddsRatio_working_3-way'!X19))) ->  | Z19: ='OddsRatio_working_3-way'!X19^(1/3)*COS('OddsRatio_working_3-way'!Y19/3) ->  | AA19: ='OddsRatio_working_3-way'!X19^(1/3)*COS(('OddsRatio_working_3-way'!Y19+2*PI())/3) ->  | AB19: ='OddsRatio_working_3-way'!X19^(1/3)*COS(('OddsRatio_working_3-way'!Y19+4*PI())/3) ->  | AC19: ='OddsRatio_working_3-way'!X19^(1/3)*SIN('OddsRatio_working_3-way'!Y19/3) ->  | AD19: ='OddsRatio_working_3-way'!X19^(1/3)*SIN(('OddsRatio_working_3-way'!Y19+2*PI())/3) ->  | AE19: ='OddsRatio_working_3-way'!X19^(1/3)*SIN(('OddsRatio_working_3-way'!Y19+4*PI())/3) ->  | AF19: =-'OddsRatio_working_3-way'!U19/(3*'OddsRatio_working_3-way'!X19^(1/3))*COS(('OddsRatio_working_3-way'!Y19)/3) ->  | AG19: =-'OddsRatio_working_3-way'!U19/(3*'OddsRatio_working_3-way'!X19^(1/3))*COS(('OddsRatio_working_3-way'!Y19+2*PI())/3) ->  | AH19: =-'OddsRatio_working_3-way'!U19/(3*'OddsRatio_working_3-way'!X19^(1/3))*COS(('OddsRatio_working_3-way'!Y19+4*PI())/3) ->  | AI19: ='OddsRatio_working_3-way'!U19/(3*'OddsRatio_working_3-way'!X19^(1/3))*SIN(('OddsRatio_working_3-way'!Y19)/3) ->  | AJ19: ='OddsRatio_working_3-way'!U19/(3*'OddsRatio_working_3-way'!X19^(1/3))*SIN(('OddsRatio_working_3-way'!Y19+2*PI())/3) ->  | AK19: ='OddsRatio_working_3-way'!U19/(3*'OddsRatio_working_3-way'!X19^(1/3))*SIN(('OddsRatio_working_3-way'!Y19+4*PI())/3) ->  | AL19: ='OddsRatio_working_3-way'!Z19+'OddsRatio_working_3-way'!AF19 ->  | AM19: ='OddsRatio_working_3-way'!AA19+'OddsRatio_working_3-way'!AG19 ->  | AN19: ='OddsRatio_working_3-way'!AB19+'OddsRatio_working_3-way'!AH19 ->  | AO19: ='OddsRatio_working_3-way'!AC19+'OddsRatio_working_3-way'!AI19 ->  | AP19: ='OddsRatio_working_3-way'!AD19+'OddsRatio_working_3-way'!AJ19 ->  | AQ19: ='OddsRatio_working_3-way'!AE19+'OddsRatio_working_3-way'!AK19 ->  | AR19: =IF(A19="","",IF(('OddsRatio_working_3-way'!X19=0),IF(Q19>0,-Q19^(1/3),(-Q19)^(1/3)),'OddsRatio_working_3-way'!AL19-'OddsRatio_working_3-way'!R19/3)) ->  | AS19: =IF(('OddsRatio_working_3-way'!X19=0),IF(Q19>0,-Q19^(1/3),(-Q19)^(1/3)),'OddsRatio_working_3-way'!AM19-'OddsRatio_working_3-way'!R19/3) ->  | AT19: =IF(('OddsRatio_working_3-way'!X19=0),IF(Q19>0,-Q19^(1/3),(-Q19)^(1/3)),'OddsRatio_working_3-way'!AN19-'OddsRatio_working_3-way'!R19/3) ->  | AU19: =IF(('OddsRatio_working_3-way'!X19=0),0,'OddsRatio_working_3-way'!AO19) ->  | AV19: =IF(('OddsRatio_working_3-way'!X19=0),0,'OddsRatio_working_3-way'!AP19) ->  | AW19: =IF(('OddsRatio_working_3-way'!X19=0),0,'OddsRatio_working_3-way'!AQ19) -> 
A20: =IF('True_Odds_Calculator_3-way'!A21="","",'True_Odds_Calculator_3-way'!A21) ->  | B20: =IF('True_Odds_Calculator_3-way'!B21="","",'True_Odds_Calculator_3-way'!B21) ->  | C20: =IF('True_Odds_Calculator_3-way'!C21="","",'True_Odds_Calculator_3-way'!C21) ->  | N20: ='OddsRatio_working_3-way'!K20+'OddsRatio_working_3-way'!L20+'OddsRatio_working_3-way'!M20-('OddsRatio_working_3-way'!K20*'OddsRatio_working_3-way'!L20)-('OddsRatio_working_3-way'!K20*'OddsRatio_working_3-way'!M20)-('OddsRatio_working_3-way'!L20*'OddsRatio_working_3-way'!M20)+('OddsRatio_working_3-way'!K20*'OddsRatio_working_3-way'!L20*'OddsRatio_working_3-way'!M20)-1 ->  | O20: =0 -> 0 | P20: =('OddsRatio_working_3-way'!K20*'OddsRatio_working_3-way'!L20)+('OddsRatio_working_3-way'!K20*'OddsRatio_working_3-way'!M20)+('OddsRatio_working_3-way'!L20*'OddsRatio_working_3-way'!M20)-(3*'OddsRatio_working_3-way'!K20*'OddsRatio_working_3-way'!L20*'OddsRatio_working_3-way'!M20) ->  | Q20: =2*'OddsRatio_working_3-way'!K20*'OddsRatio_working_3-way'!L20*'OddsRatio_working_3-way'!M20 ->  | U20: ='OddsRatio_working_3-way'!S20-'OddsRatio_working_3-way'!R20^2/3 ->  | V20: ='OddsRatio_working_3-way'!S20*'OddsRatio_working_3-way'!R20/3-2*'OddsRatio_working_3-way'!R20^3/27-'OddsRatio_working_3-way'!T20 ->  | W20: ='OddsRatio_working_3-way'!V20^2+4*'OddsRatio_working_3-way'!U20^3/27 ->  | X20: =IF('OddsRatio_working_3-way'!W20>0,IF(ABS('OddsRatio_working_3-way'!V20+SQRT('OddsRatio_working_3-way'!W20))/2>0,ABS('OddsRatio_working_3-way'!V20+SQRT('OddsRatio_working_3-way'!W20))/2,ABS('OddsRatio_working_3-way'!V20-SQRT('OddsRatio_working_3-way'!W20))/2),SQRT(-'OddsRatio_working_3-way'!U20^3/27)) ->  | Y20: =IF('OddsRatio_working_3-way'!W20>=0,IF('OddsRatio_working_3-way'!V20+SQRT('OddsRatio_working_3-way'!W20)>0,0,PI()),ACOS('OddsRatio_working_3-way'!V20/(2*'OddsRatio_working_3-way'!X20))) ->  | Z20: ='OddsRatio_working_3-way'!X20^(1/3)*COS('OddsRatio_working_3-way'!Y20/3) ->  | AA20: ='OddsRatio_working_3-way'!X20^(1/3)*COS(('OddsRatio_working_3-way'!Y20+2*PI())/3) ->  | AB20: ='OddsRatio_working_3-way'!X20^(1/3)*COS(('OddsRatio_working_3-way'!Y20+4*PI())/3) ->  | AC20: ='OddsRatio_working_3-way'!X20^(1/3)*SIN('OddsRatio_working_3-way'!Y20/3) ->  | AD20: ='OddsRatio_working_3-way'!X20^(1/3)*SIN(('OddsRatio_working_3-way'!Y20+2*PI())/3) ->  | AE20: ='OddsRatio_working_3-way'!X20^(1/3)*SIN(('OddsRatio_working_3-way'!Y20+4*PI())/3) ->  | AF20: =-'OddsRatio_working_3-way'!U20/(3*'OddsRatio_working_3-way'!X20^(1/3))*COS(('OddsRatio_working_3-way'!Y20)/3) ->  | AG20: =-'OddsRatio_working_3-way'!U20/(3*'OddsRatio_working_3-way'!X20^(1/3))*COS(('OddsRatio_working_3-way'!Y20+2*PI())/3) ->  | AH20: =-'OddsRatio_working_3-way'!U20/(3*'OddsRatio_working_3-way'!X20^(1/3))*COS(('OddsRatio_working_3-way'!Y20+4*PI())/3) ->  | AI20: ='OddsRatio_working_3-way'!U20/(3*'OddsRatio_working_3-way'!X20^(1/3))*SIN(('OddsRatio_working_3-way'!Y20)/3) ->  | AJ20: ='OddsRatio_working_3-way'!U20/(3*'OddsRatio_working_3-way'!X20^(1/3))*SIN(('OddsRatio_working_3-way'!Y20+2*PI())/3) ->  | AK20: ='OddsRatio_working_3-way'!U20/(3*'OddsRatio_working_3-way'!X20^(1/3))*SIN(('OddsRatio_working_3-way'!Y20+4*PI())/3) ->  | AL20: ='OddsRatio_working_3-way'!Z20+'OddsRatio_working_3-way'!AF20 ->  | AM20: ='OddsRatio_working_3-way'!AA20+'OddsRatio_working_3-way'!AG20 ->  | AN20: ='OddsRatio_working_3-way'!AB20+'OddsRatio_working_3-way'!AH20 ->  | AO20: ='OddsRatio_working_3-way'!AC20+'OddsRatio_working_3-way'!AI20 ->  | AP20: ='OddsRatio_working_3-way'!AD20+'OddsRatio_working_3-way'!AJ20 ->  | AQ20: ='OddsRatio_working_3-way'!AE20+'OddsRatio_working_3-way'!AK20 ->  | AR20: =IF(A20="","",IF(('OddsRatio_working_3-way'!X20=0),IF(Q20>0,-Q20^(1/3),(-Q20)^(1/3)),'OddsRatio_working_3-way'!AL20-'OddsRatio_working_3-way'!R20/3)) ->  | AS20: =IF(('OddsRatio_working_3-way'!X20=0),IF(Q20>0,-Q20^(1/3),(-Q20)^(1/3)),'OddsRatio_working_3-way'!AM20-'OddsRatio_working_3-way'!R20/3) ->  | AT20: =IF(('OddsRatio_working_3-way'!X20=0),IF(Q20>0,-Q20^(1/3),(-Q20)^(1/3)),'OddsRatio_working_3-way'!AN20-'OddsRatio_working_3-way'!R20/3) ->  | AU20: =IF(('OddsRatio_working_3-way'!X20=0),0,'OddsRatio_working_3-way'!AO20) ->  | AV20: =IF(('OddsRatio_working_3-way'!X20=0),0,'OddsRatio_working_3-way'!AP20) ->  | AW20: =IF(('OddsRatio_working_3-way'!X20=0),0,'OddsRatio_working_3-way'!AQ20) -> 
A21: =IF('True_Odds_Calculator_3-way'!A22="","",'True_Odds_Calculator_3-way'!A22) ->  | B21: =IF('True_Odds_Calculator_3-way'!B22="","",'True_Odds_Calculator_3-way'!B22) ->  | C21: =IF('True_Odds_Calculator_3-way'!C22="","",'True_Odds_Calculator_3-way'!C22) ->  | N21: ='OddsRatio_working_3-way'!K21+'OddsRatio_working_3-way'!L21+'OddsRatio_working_3-way'!M21-('OddsRatio_working_3-way'!K21*'OddsRatio_working_3-way'!L21)-('OddsRatio_working_3-way'!K21*'OddsRatio_working_3-way'!M21)-('OddsRatio_working_3-way'!L21*'OddsRatio_working_3-way'!M21)+('OddsRatio_working_3-way'!K21*'OddsRatio_working_3-way'!L21*'OddsRatio_working_3-way'!M21)-1 ->  | O21: =0 -> 0 | P21: =('OddsRatio_working_3-way'!K21*'OddsRatio_working_3-way'!L21)+('OddsRatio_working_3-way'!K21*'OddsRatio_working_3-way'!M21)+('OddsRatio_working_3-way'!L21*'OddsRatio_working_3-way'!M21)-(3*'OddsRatio_working_3-way'!K21*'OddsRatio_working_3-way'!L21*'OddsRatio_working_3-way'!M21) ->  | Q21: =2*'OddsRatio_working_3-way'!K21*'OddsRatio_working_3-way'!L21*'OddsRatio_working_3-way'!M21 ->  | U21: ='OddsRatio_working_3-way'!S21-'OddsRatio_working_3-way'!R21^2/3 ->  | V21: ='OddsRatio_working_3-way'!S21*'OddsRatio_working_3-way'!R21/3-2*'OddsRatio_working_3-way'!R21^3/27-'OddsRatio_working_3-way'!T21 ->  | W21: ='OddsRatio_working_3-way'!V21^2+4*'OddsRatio_working_3-way'!U21^3/27 ->  | X21: =IF('OddsRatio_working_3-way'!W21>0,IF(ABS('OddsRatio_working_3-way'!V21+SQRT('OddsRatio_working_3-way'!W21))/2>0,ABS('OddsRatio_working_3-way'!V21+SQRT('OddsRatio_working_3-way'!W21))/2,ABS('OddsRatio_working_3-way'!V21-SQRT('OddsRatio_working_3-way'!W21))/2),SQRT(-'OddsRatio_working_3-way'!U21^3/27)) ->  | Y21: =IF('OddsRatio_working_3-way'!W21>=0,IF('OddsRatio_working_3-way'!V21+SQRT('OddsRatio_working_3-way'!W21)>0,0,PI()),ACOS('OddsRatio_working_3-way'!V21/(2*'OddsRatio_working_3-way'!X21))) ->  | Z21: ='OddsRatio_working_3-way'!X21^(1/3)*COS('OddsRatio_working_3-way'!Y21/3) ->  | AA21: ='OddsRatio_working_3-way'!X21^(1/3)*COS(('OddsRatio_working_3-way'!Y21+2*PI())/3) ->  | AB21: ='OddsRatio_working_3-way'!X21^(1/3)*COS(('OddsRatio_working_3-way'!Y21+4*PI())/3) ->  | AC21: ='OddsRatio_working_3-way'!X21^(1/3)*SIN('OddsRatio_working_3-way'!Y21/3) ->  | AD21: ='OddsRatio_working_3-way'!X21^(1/3)*SIN(('OddsRatio_working_3-way'!Y21+2*PI())/3) ->  | AE21: ='OddsRatio_working_3-way'!X21^(1/3)*SIN(('OddsRatio_working_3-way'!Y21+4*PI())/3) ->  | AF21: =-'OddsRatio_working_3-way'!U21/(3*'OddsRatio_working_3-way'!X21^(1/3))*COS(('OddsRatio_working_3-way'!Y21)/3) ->  | AG21: =-'OddsRatio_working_3-way'!U21/(3*'OddsRatio_working_3-way'!X21^(1/3))*COS(('OddsRatio_working_3-way'!Y21+2*PI())/3) ->  | AH21: =-'OddsRatio_working_3-way'!U21/(3*'OddsRatio_working_3-way'!X21^(1/3))*COS(('OddsRatio_working_3-way'!Y21+4*PI())/3) ->  | AI21: ='OddsRatio_working_3-way'!U21/(3*'OddsRatio_working_3-way'!X21^(1/3))*SIN(('OddsRatio_working_3-way'!Y21)/3) ->  | AJ21: ='OddsRatio_working_3-way'!U21/(3*'OddsRatio_working_3-way'!X21^(1/3))*SIN(('OddsRatio_working_3-way'!Y21+2*PI())/3) ->  | AK21: ='OddsRatio_working_3-way'!U21/(3*'OddsRatio_working_3-way'!X21^(1/3))*SIN(('OddsRatio_working_3-way'!Y21+4*PI())/3) ->  | AL21: ='OddsRatio_working_3-way'!Z21+'OddsRatio_working_3-way'!AF21 ->  | AM21: ='OddsRatio_working_3-way'!AA21+'OddsRatio_working_3-way'!AG21 ->  | AN21: ='OddsRatio_working_3-way'!AB21+'OddsRatio_working_3-way'!AH21 ->  | AO21: ='OddsRatio_working_3-way'!AC21+'OddsRatio_working_3-way'!AI21 ->  | AP21: ='OddsRatio_working_3-way'!AD21+'OddsRatio_working_3-way'!AJ21 ->  | AQ21: ='OddsRatio_working_3-way'!AE21+'OddsRatio_working_3-way'!AK21 ->  | AR21: =IF(A21="","",IF(('OddsRatio_working_3-way'!X21=0),IF(Q21>0,-Q21^(1/3),(-Q21)^(1/3)),'OddsRatio_working_3-way'!AL21-'OddsRatio_working_3-way'!R21/3)) ->  | AS21: =IF(('OddsRatio_working_3-way'!X21=0),IF(Q21>0,-Q21^(1/3),(-Q21)^(1/3)),'OddsRatio_working_3-way'!AM21-'OddsRatio_working_3-way'!R21/3) ->  | AT21: =IF(('OddsRatio_working_3-way'!X21=0),IF(Q21>0,-Q21^(1/3),(-Q21)^(1/3)),'OddsRatio_working_3-way'!AN21-'OddsRatio_working_3-way'!R21/3) ->  | AU21: =IF(('OddsRatio_working_3-way'!X21=0),0,'OddsRatio_working_3-way'!AO21) ->  | AV21: =IF(('OddsRatio_working_3-way'!X21=0),0,'OddsRatio_working_3-way'!AP21) ->  | AW21: =IF(('OddsRatio_working_3-way'!X21=0),0,'OddsRatio_working_3-way'!AQ21) -> 
A22: =IF('True_Odds_Calculator_3-way'!A23="","",'True_Odds_Calculator_3-way'!A23) ->  | B22: =IF('True_Odds_Calculator_3-way'!B23="","",'True_Odds_Calculator_3-way'!B23) ->  | C22: =IF('True_Odds_Calculator_3-way'!C23="","",'True_Odds_Calculator_3-way'!C23) ->  | N22: ='OddsRatio_working_3-way'!K22+'OddsRatio_working_3-way'!L22+'OddsRatio_working_3-way'!M22-('OddsRatio_working_3-way'!K22*'OddsRatio_working_3-way'!L22)-('OddsRatio_working_3-way'!K22*'OddsRatio_working_3-way'!M22)-('OddsRatio_working_3-way'!L22*'OddsRatio_working_3-way'!M22)+('OddsRatio_working_3-way'!K22*'OddsRatio_working_3-way'!L22*'OddsRatio_working_3-way'!M22)-1 ->  | O22: =0 -> 0 | P22: =('OddsRatio_working_3-way'!K22*'OddsRatio_working_3-way'!L22)+('OddsRatio_working_3-way'!K22*'OddsRatio_working_3-way'!M22)+('OddsRatio_working_3-way'!L22*'OddsRatio_working_3-way'!M22)-(3*'OddsRatio_working_3-way'!K22*'OddsRatio_working_3-way'!L22*'OddsRatio_working_3-way'!M22) ->  | Q22: =2*'OddsRatio_working_3-way'!K22*'OddsRatio_working_3-way'!L22*'OddsRatio_working_3-way'!M22 ->  | U22: ='OddsRatio_working_3-way'!S22-'OddsRatio_working_3-way'!R22^2/3 ->  | V22: ='OddsRatio_working_3-way'!S22*'OddsRatio_working_3-way'!R22/3-2*'OddsRatio_working_3-way'!R22^3/27-'OddsRatio_working_3-way'!T22 ->  | W22: ='OddsRatio_working_3-way'!V22^2+4*'OddsRatio_working_3-way'!U22^3/27 ->  | X22: =IF('OddsRatio_working_3-way'!W22>0,IF(ABS('OddsRatio_working_3-way'!V22+SQRT('OddsRatio_working_3-way'!W22))/2>0,ABS('OddsRatio_working_3-way'!V22+SQRT('OddsRatio_working_3-way'!W22))/2,ABS('OddsRatio_working_3-way'!V22-SQRT('OddsRatio_working_3-way'!W22))/2),SQRT(-'OddsRatio_working_3-way'!U22^3/27)) ->  | Y22: =IF('OddsRatio_working_3-way'!W22>=0,IF('OddsRatio_working_3-way'!V22+SQRT('OddsRatio_working_3-way'!W22)>0,0,PI()),ACOS('OddsRatio_working_3-way'!V22/(2*'OddsRatio_working_3-way'!X22))) ->  | Z22: ='OddsRatio_working_3-way'!X22^(1/3)*COS('OddsRatio_working_3-way'!Y22/3) ->  | AA22: ='OddsRatio_working_3-way'!X22^(1/3)*COS(('OddsRatio_working_3-way'!Y22+2*PI())/3) ->  | AB22: ='OddsRatio_working_3-way'!X22^(1/3)*COS(('OddsRatio_working_3-way'!Y22+4*PI())/3) ->  | AC22: ='OddsRatio_working_3-way'!X22^(1/3)*SIN('OddsRatio_working_3-way'!Y22/3) ->  | AD22: ='OddsRatio_working_3-way'!X22^(1/3)*SIN(('OddsRatio_working_3-way'!Y22+2*PI())/3) ->  | AE22: ='OddsRatio_working_3-way'!X22^(1/3)*SIN(('OddsRatio_working_3-way'!Y22+4*PI())/3) ->  | AF22: =-'OddsRatio_working_3-way'!U22/(3*'OddsRatio_working_3-way'!X22^(1/3))*COS(('OddsRatio_working_3-way'!Y22)/3) ->  | AG22: =-'OddsRatio_working_3-way'!U22/(3*'OddsRatio_working_3-way'!X22^(1/3))*COS(('OddsRatio_working_3-way'!Y22+2*PI())/3) ->  | AH22: =-'OddsRatio_working_3-way'!U22/(3*'OddsRatio_working_3-way'!X22^(1/3))*COS(('OddsRatio_working_3-way'!Y22+4*PI())/3) ->  | AI22: ='OddsRatio_working_3-way'!U22/(3*'OddsRatio_working_3-way'!X22^(1/3))*SIN(('OddsRatio_working_3-way'!Y22)/3) ->  | AJ22: ='OddsRatio_working_3-way'!U22/(3*'OddsRatio_working_3-way'!X22^(1/3))*SIN(('OddsRatio_working_3-way'!Y22+2*PI())/3) ->  | AK22: ='OddsRatio_working_3-way'!U22/(3*'OddsRatio_working_3-way'!X22^(1/3))*SIN(('OddsRatio_working_3-way'!Y22+4*PI())/3) ->  | AL22: ='OddsRatio_working_3-way'!Z22+'OddsRatio_working_3-way'!AF22 ->  | AM22: ='OddsRatio_working_3-way'!AA22+'OddsRatio_working_3-way'!AG22 ->  | AN22: ='OddsRatio_working_3-way'!AB22+'OddsRatio_working_3-way'!AH22 ->  | AO22: ='OddsRatio_working_3-way'!AC22+'OddsRatio_working_3-way'!AI22 ->  | AP22: ='OddsRatio_working_3-way'!AD22+'OddsRatio_working_3-way'!AJ22 ->  | AQ22: ='OddsRatio_working_3-way'!AE22+'OddsRatio_working_3-way'!AK22 ->  | AR22: =IF(A22="","",IF(('OddsRatio_working_3-way'!X22=0),IF(Q22>0,-Q22^(1/3),(-Q22)^(1/3)),'OddsRatio_working_3-way'!AL22-'OddsRatio_working_3-way'!R22/3)) ->  | AS22: =IF(('OddsRatio_working_3-way'!X22=0),IF(Q22>0,-Q22^(1/3),(-Q22)^(1/3)),'OddsRatio_working_3-way'!AM22-'OddsRatio_working_3-way'!R22/3) ->  | AT22: =IF(('OddsRatio_working_3-way'!X22=0),IF(Q22>0,-Q22^(1/3),(-Q22)^(1/3)),'OddsRatio_working_3-way'!AN22-'OddsRatio_working_3-way'!R22/3) ->  | AU22: =IF(('OddsRatio_working_3-way'!X22=0),0,'OddsRatio_working_3-way'!AO22) ->  | AV22: =IF(('OddsRatio_working_3-way'!X22=0),0,'OddsRatio_working_3-way'!AP22) ->  | AW22: =IF(('OddsRatio_working_3-way'!X22=0),0,'OddsRatio_working_3-way'!AQ22) -> 
